Workbook

Sheet EF (hidden)
A1: Fin | B1: Función | C1: Sub-función | D1: Dimención del indicador | E1: Tipo | F1: Tipo de programa | G1: Frecuencia | H1: Tipo de indicador | I1: Nivel de MIR
A2: 1. Gobierno | B2: 1.1. Legislación | C2: 1.1.1 Legislación | D2: Eficacia | E2: Estatégico | F2: MIR | G2: Mensual | H2: Cantidad | I2: FIN
A3: 1. Gobierno | B3: 1.1. Legislación | C3: 1.1.2 Fiscalización | D3: Eficiencia | E3: Gestión | F3: Indicador de gestión | G3: Bimestral | H3: Porcentaje | I3: PROPÓSITO
A4: 1. Gobierno | B4: 1.2. Justicia | C4: 1.2.1 Impartición de justicia | D4: Econocmía | G4: Trimestral | H4: Tasa | I4: COMPONENTE
A5: 1. Gobierno | B5: 1.2. Justicia | C5: 1.2.2 Procuración de justicia | D5: Calidad | G5: Cuatrimestral | H5: Razón | I5: ACTIVIDAD
A6: 1. Gobierno | B6: 1.2. Justicia | C6: 1.2.3 Reclusión y readaptación social | G6: Semestral | H6: Promedio | I6: INDICADOR DE GESTIÓN
A7: 1. Gobierno | B7: 1.2. Justicia | C7: 1.2.4 Derechos humanos | G7: Anual | H7: Tasa de variación
A8: 1. Gobierno | B8: 1.3. Coordinación política de gobierno | C8: 1.3.1 Presidencia / Gubernatura | G8: Bienal
A9: 1. Gobierno | B9: 1.3. Coordinación política de gobierno | C9: 1.3.2 Política interior
A10: 1. Gobierno | B10: 1.3. Coordinación política de gobierno | C10: 1.3.3 Preservación y cuidado del patrimonio público
A11: 1. Gobierno | B11: 1.3. Coordinación política de gobierno | C11: 1.3.4 Función pública
A12: 1. Gobierno | B12: 1.3. Coordinación política de gobierno | C12: 1.3.5 Asuntos jurídicos
A13: 1. Gobierno | B13: 1.3. Coordinación política de gobierno | C13: 1.3.6 Organización de procesos electorales
A14: 1. Gobierno | B14: 1.3. Coordinación política de gobierno | C14: 1.3.7 Población
A15: 1. Gobierno | B15: 1.3. Coordinación política de gobierno | C15: 1.3.8 Territorio
A16: 1. Gobierno | B16: 1.3. Coordinación política de gobierno | C16: 1.3.9 Otros
A17: 1. Gobierno | B17: 1.4. Relaciones exteriores | C17: 1.4.1 Relaciones exteriores
A18: 1. Gobierno | B18: 1.5. Asuntos financieros y hacendarios | C18: 1.5.1 Asuntos financieros
A19: 1. Gobierno | B19: 1.5. Asuntos financieros y hacendarios | C19: 1.5.2 Asuntos hacendarios
A20: 1. Gobierno | B20: 1.6 Seguridad nacional | C20: 1.6.1 Defensa
A21: 1. Gobierno | B21: 1.6 Seguridad nacional | C21: 1.6.2 Marina
A22: 1. Gobierno | B22: 1.6 Seguridad nacional | C22: 1.6.3 Inteligencia para la preservación de la seguridad nacional
A23: 1. Gobierno | B23: 1.7. Asuntos de orden público y seguridad interior | C23: 1.7.1 Policía
A24: 1. Gobierno | B24: 1.7. Asuntos de orden público y seguridad interior | C24: 1.7.2 Protección civil
A25: 1. Gobierno | B25: 1.7. Asuntos de orden público y seguridad interior | C25: 1.7.3 Otros asuntos de orden público y seguridad
A26: 1. Gobierno | B26: 1.7. Asuntos de orden público y seguridad interior | C26: 1.7.4 Sistema nacional de seguridad pública
A27: 1. Gobierno | B27: 1.8. Otros servicios generales | C27: 1.8.1 Servicios registrales, administrativos y patrimoniales
A28: 1. Gobierno | B28: 1.8. Otros servicios generales | C28: 1.8.2 Servicios estadísticos
A29: 1. Gobierno | B29: 1.8. Otros servicios generales | C29: 1.8.3 Servicios de comunicación y medios
A30: 1. Gobierno | B30: 1.8. Otros servicios generales | C30: 1.8.4 Acceso a la información pública gubernamental
A31: 1. Gobierno | B31: 1.8. Otros servicios generales | C31: 1.8.5 Otros
A32: 2. Desarrollo social | B32: 2.1. Protección ambiental | C32: 2.1.1 Ordenación de desechos
A33: 2. Desarrollo social | B33: 2.1. Protección ambiental | C33: 2.1.2 Administración del agua
A34: 2. Desarrollo social | B34: 2.1. Protección ambiental | C34: 2.1.3 Ordenación de aguas residuales, drenaje y alcantarillado
A35: 2. Desarrollo social | B35: 2.1. Protección ambiental | C35: 2.1.4 Reducción de la contaminación
A36: 2. Desarrollo social | B36: 2.1. Protección ambiental | C36: 2.1.5 Protección de la diversidad biológica y del paisaje
A37: 2. Desarrollo social | B37: 2.1. Protección ambiental | C37: 2.1.6 Otros de protección ambiental
A38: 2. Desarrollo social | B38: 2.2. Vivienda y servicios a la comunidad | C38: 2.2.1 Urbanización
A39: 2. Desarrollo social | B39: 2.2. Vivienda y servicios a la comunidad | C39: 2.2.2 Desarrollo comunitario
A40: 2. Desarrollo social | B40: 2.2. Vivienda y servicios a la comunidad | C40: 2.2.3 Abastecimiento de agua
A41: 2. Desarrollo social | B41: 2.2. Vivienda y servicios a la comunidad | C41: 2.2.4 Alumbrado público
A42: 2. Desarrollo social | B42: 2.2. Vivienda y servicios a la comunidad | C42: 2.2.5 Vivienda
A43: 2. Desarrollo social | B43: 2.2. Vivienda y servicios a la comunidad | C43: 2.2.6 Servicios comunales
A44: 2. Desarrollo social | B44: 2.2. Vivienda y servicios a la comunidad | C44: 2.2.7 Desarrollo regional
A45: 2. Desarrollo social | B45: 2.3. Salud | C45: 2.3.1 Prestación de servicios de aalud a la comunidad
A46: 2. Desarrollo social | B46: 2.3. Salud | C46: 2.3.2 Prestación de servicios de salud a la persona
A47: 2. Desarrollo social | B47: 2.3. Salud | C47: 2.3.3 Generación de recursos para la salud
A48: 2. Desarrollo social | B48: 2.3. Salud | C48: 2.3.4 Rectoría del sistema de salud
A49: 2. Desarrollo social | B49: 2.3. Salud | C49: 2.3.5 Protección social en salud
A50: 2. Desarrollo social | B50: 2.4. Recreación cultura y otras manifestaciones sociales | C50: 2.4.1 Deporte y recreación
A51: 2. Desarrollo social | B51: 2.4. Recreación cultura y otras manifestaciones sociales | C51: 2.4.2 Cultura
A52: 2. Desarrollo social | B52: 2.4. Recreación cultura y otras manifestaciones sociales | C52: 2.4.3 Radio, televisión y editoriales
A53: 2. Desarrollo social | B53: 2.4. Recreación cultura y otras manifestaciones sociales | C53: 2.4.4 Asuntos religiosos y otras manifestaciones sociales
A54: 2. Desarrollo social | B54: 2.5. Educación | C54: 2.5.1 Educación básica
A55: 2. Desarrollo social | B55: 2.5. Educación | C55: 2.5.2 Educación media superior
A56: 2. Desarrollo social | B56: 2.5. Educación | C56: 2.5.3 Educación superior
A57: 2. Desarrollo social | B57: 2.5. Educación | C57: 2.5.4 Posgrado
A58: 2. Desarrollo social | B58: 2.5. Educación | C58: 2.5.5 Educación para adultos
A59: 2. Desarrollo social | B59: 2.5. Educación | C59: 2.5.6 Otros servicios educativos y actividades inherentes
A60: 2. Desarrollo social | B60: 2.6. Protección social | C60: 2.6.1 Enfermedad e incapacidad
A61: 2. Desarrollo social | B61: 2.6. Protección social | C61: 2.6.2 Edad avanzada
A62: 2. Desarrollo social | B62: 2.6. Protección social | C62: 2.6.3 Familia e hijos
A63: 2. Desarrollo social | B63: 2.6. Protección social | C63: 2.6.4 Desempleo
A64: 2. Desarrollo social | B64: 2.6. Protección social | C64: 2.6.5 Alimentación y nutrición
A65: 2. Desarrollo social | B65: 2.6. Protección social | C65: 2.6.6 Apoyo social para la vivienda
A66: 2. Desarrollo social | B66: 2.6. Protección social | C66: 2.6.7 Indígenas
A67: 2. Desarrollo social | B67: 2.6. Protección social | C67: 2.6.8 Otros grupos vulnerables
A68: 2. Desarrollo social | B68: 2.6. Protección social | C68: 2.6.9 Otros de seguridad social y asistencia social
A69: 2. Desarrollo social | B69: 2.7. Otros asuntos sociales | C69: 2.7.1 Otros asuntos sociales
A70: 3. Desarrollo económico | B70: 3.1. Asuntos económicos comerciales y laborales generales | C70: 3.1.1 Asuntos económicos y comerciales en general
A71: 3. Desarrollo económico | B71: 3.1. Asuntos económicos comerciales y laborales generales | C71: 3.1.2 Asuntos laborales generales
A72: 3. Desarrollo económico | B72: 3.2. Agropecuaria silvicultura pesca y caza | C72: 3.2.1 Agropecuaria
A73: 3. Desarrollo económico | B73: 3.2. Agropecuaria silvicultura pesca y caza | C73: 3.2.2 Silvicultura
A74: 3. Desarrollo económico | B74: 3.2. Agropecuaria silvicultura pesca y caza | C74: 3.2.3 Acuacultura, pesca y caza
A75: 3. Desarrollo económico | B75: 3.2. Agropecuaria silvicultura pesca y caza | C75: 3.2.4 Agroindustrial
A76: 3. Desarrollo económico | B76: 3.2. Agropecuaria silvicultura pesca y caza | C76: 3.2.5 Hidroagrícola
A77: 3. Desarrollo económico | B77: 3.2. Agropecuaria silvicultura pesca y caza | C77: 3.2.6 Apoyo financiero a la banca y seguro agropecuario
A78: 3. Desarrollo económico | B78: 3.3. Combustibles y energía | C78: 3.3.1 Carbón y otros combustibles minerales sólidos
A79: 3. Desarrollo económico | B79: 3.3. Combustibles y energía | C79: 3.3.2 Petróleo y gas natural (Hidrocarburos)
A80: 3. Desarrollo económico | B80: 3.3. Combustibles y energía | C80: 3.3.3 Combustibles nucleares
A81: 3. Desarrollo económico | B81: 3.3. Combustibles y energía | C81: 3.3.4 Otros combustibles
A82: 3. Desarrollo económico | B82: 3.3. Combustibles y energía | C82: 3.3.5 Electricidad
A83: 3. Desarrollo económico | B83: 3.3. Combustibles y energía | C83: 3.3.6 Energía no eléctrica
A84: 3. Desarrollo económico | B84: 3.4. Minería manufacturas y construcción | C84: 3.4.1 Extracción de recursos minerales excepto los combustibles minerales
A85: 3. Desarrollo económico | B85: 3.4. Minería manufacturas y construcción | C85: 3.4.2 Manufacturas
A86: 3. Desarrollo económico | B86: 3.4. Minería manufacturas y construcción | C86: 3.4.3 Construcción
A87: 3. Desarrollo económico | B87: 3.5. Transporte | C87: 3.5.1 Transporte por carretera
A88: 3. Desarrollo económico | B88: 3.5. Transporte | C88: 3.5.2 Transporte por agua y puertos
A89: 3. Desarrollo económico | B89: 3.5. Transporte | C89: 3.5.3 Transporte por ferrocarril
A90: 3. Desarrollo económico | B90: 3.5. Transporte | C90: 3.5.4 Transporte aéreo
A91: 3. Desarrollo económico | B91: 3.5. Transporte | C91: 3.5.5 Transporte por oleoductos y gasoductos y otros sistemas de transporte
A92: 3. Desarrollo económico | B92: 3.5. Transporte | C92: 3.5.6 Otros relacionados con transporte
A93: 3. Desarrollo económico | B93: 3.6. Comunicaciones | C93: 3.6.1 Comunicaciones
A94: 3. Desarrollo económico | B94: 3.7. Turismo | C94: 3.7.1 Turismo
A95: 3. Desarrollo económico | B95: 3.7. Turismo | C95: 3.7.2 Hoteles y restaurantes
A96: 3. Desarrollo económico | B96: 3.8. Ciencia tecnología e innovación | C96: 3.8.1 Investigación científica
A97: 3. Desarrollo económico | B97: 3.8. Ciencia tecnología e innovación | C97: 3.8.2 Desarrollo tecnológico
A98: 3. Desarrollo económico | B98: 3.8. Ciencia tecnología e innovación | C98: 3.8.3 Servicios científicos y tecnológicos
A99: 3. Desarrollo económico | B99: 3.8. Ciencia tecnología e innovación | C99: 3.8.4 Innovación
A100: 3. Desarrollo económico | B100: 3.9. Otras industrias y otros asuntos económicos | C100: 3.9.1 Comercio, distribución, almacenamiento y depósito
A101: 3. Desarrollo económico | B101: 3.9. Otras industrias y otros asuntos económicos | C101: 3.9.2 Otras industrias
A102: 3. Desarrollo económico | B102: 3.9. Otras industrias y otros asuntos económicos | C102: 3.9.3 Otros asuntos económicos
A103: 4. Otros no clasificadas en funciones anteriores | B103: 4.1. Transacciones de la deuda financiera y costo financiero deuda | C103: 4.1.1 Deuda pública interna
A104: 4. Otros no clasificadas en funciones anteriores | B104: 4.1. Transacciones de la deuda financiera y costo financiero deuda | C104: 4.1.2 Deuda pública externa
A105: 4. Otros no clasificadas en funciones anteriores | B105: 4.2. Transferencias, participaciones y aportaciones entre diferentes niveles y ordenes de gobierno | C105: 4.2.1 Transferencias entre diferentes niveles y ordenes de gobierno
A106: 4. Otros no clasificadas en funciones anteriores | B106: 4.2. Transferencias, participaciones y aportaciones entre diferentes niveles y ordenes de gobierno | C106: 4.2.2 Participaciones entre diferentes niveles y ordenes de gobierno
A107: 4. Otros no clasificadas en funciones anteriores | B107: 4.2. Transferencias, participaciones y aportaciones entre diferentes niveles y ordenes de gobierno | C107: 4.2.3 Aportaciones entre diferentes niveles y ordenes de gobierno
A108: 4. Otros no clasificadas en funciones anteriores | B108: 4.3. Saneamiento del sistema financiero | C108: 4.3.1 Saneamiento del sistema financiero
A109: 4. Otros no clasificadas en funciones anteriores | B109: 4.3. Saneamiento del sistema financiero | C109: 4.3.2 Apoyos IPAB
A110: 4. Otros no clasificadas en funciones anteriores | B110: 4.3. Saneamiento del sistema financiero | C110: 4.3.3 Banca de desarrollo
A111: 4. Otros no clasificadas en funciones anteriores | B111: 4.3. Saneamiento del sistema financiero | C111: 4.3.4 Apoyo a los programas de reestructura en unidades de inversión (UDIS)
A112: 4. Otros no clasificadas en funciones anteriores | B112: 4.4. Adeudos de ejercicios fiscales anteriores | C112: 4.4.1 Adeudos de ejercicios fiscales anteriores

Sheet Validacion
A1: NOMBRE DEL ENTE PÚBLICO | AG1: Versión 2022.01
A2: Atemajac de Brizuela
A5: INFORMACIÓN
A6: Nombre del presidente municipal o titular de la entidad pública
A7: C. SANTIAGO LEON CASTRO
A8: Nombre del encargado de la hacienda pública o finanzas de la entidad pública
A9: L.T. JOCELYN SANCHEZ HERRERA
A10: Mes o corte a informar
A11: DICIEMBRE, 2do. Informe de Avance de Gestión Financiera y Corte Anual
A12: VERIFICACIÓN DE ESTADOS E INFORMES FINANCIEROS
A13: Estados e informes contables:
A14: =IF(ROUND(SUM(A48:L50),2)>0,IF(ROUND((M48),2)=ROUND((M49+M50),2),IF(ROUND(A48,2)=ROUND((A49+A50),2),"X","")),"") -> X | B14: Estado de situación financiera (F1)
A15: =IF(ROUND('F2'!G33,2)=0,"","X") -> X | B15: Estado de variación de la hacienda pública (F2)
A16: =IF(ROUND('F3'!F60,2)>0,"X","") -> X | B16: Estado de flujo de efectivo (F3)
A17: =IF(ROUND(F4A1!D18,2)>0,"X","") -> X | B17: Conciliación entre los ingresos presupuestarios y contables (F4A1)
A18: =IF(ROUND(F4A2!D37,2)>0,"X","") -> X | B18: Conciliación entre los egresos presupuestarios y los gastos contables (F4A2)
A19: =IF(ROUND('F5'!H6,2)>0,"X","") -> X | B19: Estado analítico del activo (F5)
A20: =IF(ROUND(SUM(A51:L52),2)>0,IF(ROUND(M51,2)>0,"X",""),"") -> X | B20: Estado de actividades (F6)
A21: =IF(ROUND('F16'!E4,2)-ROUND('F16'!F4,2)=0,IF('F16'!E4+'F16'!F4>0,"X",""),"") -> X | B21: Estado de cambios en la situación financiera (F16)
A22: =IF('F11'!A6>0,"X","") -> X | B22: Informe sobre pasivos contingentes (F11)
A23: Estados e informes presupuestarios:
A24: =IF(ROUND(SUM('F7'!E70:F70),2)>0,"X","") -> X | B24: Estado analítico de ingresos por clasificación por rubro de ingresos (F7)
A25: =IF(ROUND(SUM(F7A!F23:G23),2)>0,"X","") -> X | B25: Estado analítico de ingresos por clasificación por fuente de financiamiento (F7A)
A26: =IF(ROUND(SUM('F8'!E80:F80),2)>0,"X","") -> X | B26: Estado analítico del ejercicio del presupuesto de egresos por clasificación por objeto del gasto (F8)
A27: =IF(ROUND(SUM('F17'!E13:F13),2)>0,"X","") -> X | B27: Estado analítico del ejercicio del presupuesto de egresos por clasificación por tipo de gasto (F17)
A28: =IF(ROUND(SUM('F18'!D58:E58),2)>0,"X","") -> X | B28: Estado analítico del ejercicio del presupuesto de egresos por clasificación administrativa (F18)
A29: =IF(ROUND(SUM('F19'!E40:F40),2)>0,"X","") -> X | B29: Estado analítico del ejercicio del presupuesto de egresos por clasificación funcional (F19)
A30: Estados e informes de la Ley de Disciplina Financiera:
A31: =IF(ROUND(SUM(A48:L50),2)>0,IF(ROUND(M48,2)=ROUND((M49+M50),2),IF(ROUND(A48,2)=ROUND((A49+A50),2),"X","")),"") -> X | B31: Estado de situación financiera detallado - LDF (F1LDF)
A32: =IF('F9-IDP'!J3>0,"X","") -> X | B32: Estado e informe analítico de la deuda pública y otros pasivos (F9-EDP)
A33: =IF('F9-IAO'!C12>0,"X","") -> X | B33: Informe analítico de obligaciones diferentes de financiamiento (F9-IAO)
A34: =IF(ROUND(SUM('F22'!F10:G10),2)>0,"X","") -> X | B34: Balance presupuestario - LDF (F22)
A35: =IF(ROUND(SUM(F7B!E64:F64),2)>0,"X","") -> X | B35: Estado analítico de ingresos detallados - LDF (F7B)
A36: =IF(ROUND(SUM(F8B!F155:G155),2)>0,"X","") -> X | B36: Estado analítico del ejercicio del presupuesto de egresos detallado - LDF por clasificación por objeto del gasto (F8B)
A37: =IF(ROUND(SUM(F18A!F62:G62),2)>0,"X","") -> X | B37: Estado analítico del ejercicio del presupuesto de egresos detallado - LDF por clasificación administrativa (F18A)
A38: =IF(ROUND(SUM(F19A!F76:G76),2)>0,"X","") -> X | B38: Estado analítico del ejercicio del presupuesto de egresos detallado - LDF por clasificación funcional (F19A)
A39: =IF(ROUND(SUM('F21'!F32:G32),2)>0,"X","") -> X | B39: Estado analítico del ejercicio del presupuesto de egresos detallado - LDF por servicios personales por categoría (F21)
A40: Informes complementarios:
A41: =IF('F10'!B6>0,"X","") -> X | B41: Informativa de proveedores (F10)
A42: =IF('F23'!A9>0,"X","") -> X | B42: Informativa de obra pública (F23)
A43: Informe de Avances de Gestión Financiera
A44: =IF(ROUND(SUM('F12'!E30:F30),2)>0,"X","") -> X | B44: Flujo contable de ingresos y egresos (F12)
A45: =IF(ROUND(SUM('F13'!AA2:AI2),2)>0,"X","") -> X | B45: Avance de programas y/o procesos concluidos (F13)
A46: INFORMACIÓN FINANCIERA GENERAL
A47: EJERCICIO 2022 | M47: EJERCICIO 2021 | Y47: CONCEPTO
A48: =ROUND('F1'!AF106,2) -> 47137648.68 | M48: =ROUND('F1'!AG106,2) -> 29129868.99 | Y48: Activo
A49: =ROUND('F1'!BM80,2) -> 5084046.8 | M49: =ROUND('F1'!BN80,2) -> 327242.73 | Y49: Pasivo
A50: =ROUND('F1'!BM104,2) -> 42053601.88 | M50: =ROUND('F1'!BN104,2) -> 28802626.26 | Y50: Hacienda pública/patrimonio
A51: =ROUND('F6'!AX184,2) -> 54878799.87 | M51: =ROUND('F6'!AY184,2) -> 49351198 | Y51: Ingresos
A52: =ROUND('F6'!AX543,2) -> 41627824.25 | M52: =ROUND('F6'!AY543,2) -> 37277244.29 | Y52: Egresos
A53: =ROUND('F6'!AX544,2) -> 13250975.62 | M53: =ROUND('F6'!AY544,2) -> 12073953.71 | Y53: Ahorro/desahorro
A54: F1 | G54: F9-EDP | M54: F1 | S54: F9-EDP | Y54: CONCEPTO
A55: =ROUND('F1'!BM23,2) -> 0 | G55: =ROUND('F9-EDP'!AP12,2) -> 0 | M55: =ROUND('F1'!BN23+'F1'!BN60,2) -> 0 | S55: =ROUND('F9-EDP'!N12,2) -> 0 | Y55: Deuda pública instituciones de crédito C/P
A56: =ROUND('F1'!BM60,2) -> 0 | G56: =ROUND('F9-EDP'!AP16,2) -> 0 | S56: =ROUND('F9-EDP'!N16,2) -> 0 | Y56: Deuda pública instituciones de crédito L/P
A57: =ROUND('F1'!BM27,2) -> 0 | G57: =ROUND('F9-EDP'!AP13,2) -> 0 | M57: =ROUND('F1'!BN27+'F1'!BN58,2) -> 0 | S57: =ROUND('F9-EDP'!N13,2) -> 0 | Y57: Deuda pública títulos y valores C/P
A58: =ROUND('F1'!BM58,2) -> 0 | G58: =ROUND('F9-EDP'!AP17,2) -> 0 | S58: =ROUND('F9-EDP'!N17,2) -> 0 | Y58: Deuda pública títulos y valores L/P
A59: =ROUND('F1'!BM25,2) -> 0 | G59: =ROUND('F9-EDP'!AP14,2) -> 0 | M59: =ROUND('F1'!BN25+'F1'!BN62,2) -> 0 | S59: =ROUND('F9-EDP'!N14,2) -> 0 | Y59: Deuda pública arrendamiento financiero C/P
A60: =ROUND('F1'!BM62,2) -> 0 | G60: =ROUND('F9-EDP'!AP18,2) -> 0 | S60: =ROUND('F9-EDP'!N18,2) -> 0 | Y60: Deuda pública arrendamiento financiero L/P
A61: INCONSISTENCIAS
A62: 1. Validación a la balanza de comprobación (contable) | C62: =IF(ROUND(Balanza!$C$753,2)=ROUND(Balanza!$D$753,2),"","1.1. Balanza de comprobación (contable) descuadarada en el saldo inicial.") -> 
C63: =IF(ROUND(Balanza!$E$753,2)=ROUND(Balanza!$F$753,2),"","1.2. Balanza de comprobación (contable) descuadarada en los movimientos de cargo y abono.") -> 
C64: =IF(ROUND(Balanza!$G$753,2)=ROUND(Balanza!$H$753,2),"","1.3. Balanza de comprobación (contable) descuadarada en el saldo final.") -> 
A65: 2. Validación a la balanza de comprobación (orden género 7) | C65: =IF(ROUND(Balanza!$C$792,2)=ROUND(Balanza!$D$792,2),"","2.1. Balanza de comprobación (orden) descuadarada en el saldo inicial.") -> 
C66: =IF(ROUND(Balanza!$E$792,2)=ROUND(Balanza!$F$792,2),"","2.2. Balanza de comprobación (orden) descuadarada en los movimientos de cargo y abono.") -> 
C67: =IF(ROUND(Balanza!$G$792,2)=ROUND(Balanza!$H$792,2),"","2.3. Balanza de comprobación (orden) descuadarada en el saldo final.") -> 
A68: 3. Validación a la balanza de comprobación (orden presupuestal) | C68: =IF(ROUND(Balanza!$C$2222,2)=ROUND(Balanza!$D$2222,2),"","3.1. Balanza de comprobación (orden presupuestal) descuadarada en el saldo inicial.") -> 
C69: =IF(ROUND(Balanza!$E$2222,2)=ROUND(Balanza!$F$2222,2),"","3.2. Balanza de comprobación (orden presupuestal) descuadarada en los movimientos de cargo y abono.") -> 
C70: =IF(ROUND(Balanza!$G$2222,2)=ROUND(Balanza!$H$2222,2),"","3.3. Balanza de comprobación (presupuestal) descuadarada en el saldo final.") -> 
A71: 4. Validación al estado de situación financiera (F1) | C71: =IF(ROUND($M$48,2)=ROUND(($M$49+$M$50),2),"","4.1. En el estado de situación financiera ejercicio 2021, no es igual el activo y el pasivo más la hacienda pública/patrimonio.") -> 
C72: =IF(ROUND($A$48,2)=ROUND(($A$49+$A$50),2),"","4.2. En el estado de situación financiera ejercicio 2022, no es igual el activo y el pasivo más la hacienda pública/patrimonio.") -> 
C73: =IF(ROUND('F6'!$AY$544,2)=ROUND('F1'!$BN$87,2),"","4.3. El resultado del ejercicio (ahorro/desarrollo) del estado de actividades (F6) no es igual al resultado del ejercicio del estado de situación financiera (F1), estos del ejercicio 2021.") -> 
C74: =IF(ROUND('F6'!$AX$544,2)=ROUND('F1'!$BM$87,2),"","4.4. El resultado del ejercicio (ahorro/desarrollo) del estado de actividades (F6) no es igual al resultado del ejercicio del estado de situación financiera (F1), estos del ejercicio 2022.") -> 
A75: 5. Validación al estado de variación en la hacienda pública (F2) | C75: =IF(ROUND('F2'!C6,2)=ROUND('F1'!BN82,2),"","5.1. El saldo de la hacienda pública/patrimonio contribuido neto del 2021 en el estado de variación de la hacienda publica (F2), no es igual a la hacienda pública/patrimonio contribuido del estado de situación financiera (F1) en la columna ejercicio 2021.") -> 
C76: =IF(ROUND('F2'!G10,2)=ROUND('F1'!BN86,2),"","5.2. El saldo de la hacienda pública/patrimonio generado neto del 2021 de la columna total en el estado de variación de la hacienda publica (F2), no es igual a la hacienda pública/patrimonio generado "&"del estado de situación financiera (F1) en la columna ejercicio 2021.") -> 
C77: =IF(ROUND('F2'!G16,2)=ROUND('F1'!BN101,2),"","5.3. El saldo del exceso o insuficiencia en la actualización de la hacienda pública/patrimonio neto de 2021 de la columna total en el estado de variación de la hacienda publica (F2),"&" no es igual al exceso o insuficiencia en la actualización de la hacienda pública/patrimonio del estado de situación financiera (F1) en la columna ejercicio 2021.") -> 
C78: =IF(ROUND('F2'!G19,2)=ROUND('F1'!BN104,2),"","5.4. El saldo de la hacienda pública/patrimonio neto final de 2021 de la columna total en el estado de variación de la hacienda publica (F2),"&" no es igual al total de la hacienda pública/patrimonio del estado de situación financiera (F1) en la columna ejercicio 2021.") -> 
C79: =IF(ROUND('F2'!G33,2)=ROUND('F1'!BM104,2),"","5.6. El saldo de la hacienda pública/patrimonio neto final de 2022 de la columna total en el estado de variación de la hacienda publica (F2),"&" no es igual al total de la hacienda pública/patrimonio del estado de situación financiera (F1) en la columna ejercicio 2022.") -> 
A80: 6. Validación de conciliaciones prespu. vs conta. (F4A1, F4A2) | C80: =IF(ROUND(F4A1!D18,2)=ROUND('F6'!AX184,2),"","6.1. El importe de total de ingresos contables de la conciliación entre los ingresos presupuestal y contable (F4A1),"&" no es igual al total ingresos del estado de actividades (F6) en la columna ejercicio 2022.") -> 
C81: =IF(ROUND(F4A2!D37,2)=ROUND('F6'!AX543,2),"","6.2. El importe del total de gastos contables de la conciliación entre los egresos presupuestal y gastos contables (F4A2),"&" no es igual al total gastos y otras perdidas del estado de actividades (F6) en la columna ejercicio 2022.") -> 
A82: 7. Validación al estado de cambios de la situación financiera (F16) | C82: =IF(ROUND(ABS('F16'!E43-'F16'!F43),2)=ROUND(ABS('F2'!C20),2),"","7.1. El saldo de la hacienda pública/patrimonio contribuido neto del 2022 del estado de variación de la hacienda publica (F2), "&"es diferente a la hacienda pública/patrimonio contribuido del estado de cambios de la situación financiera (F16) en la columna ejercicio 2022.") -> 
C83: =IF(ROUND(ABS(SUM('F16'!E50:E52)-SUM('F16'!F50:F52)),2)=ROUND(ABS(SUM('F2'!E27:E29)),2),"","7.2. La suma de las filas de revalúos, reservas y rectificaciones de resultados de ejercicios anteriores 2022, del estado de variación de la hacienda publica (F2), "&"es diferente a la que se muestra en estos rubros del estado de cambios de la situación financiera (F16) en la columna ejercicio 2022.") -> 
C84: =IF(ROUND(ABS('F16'!E49+'F16'!F49),2)=ROUND(ABS('F2'!D24),2),"","7.3. El saldo del resultado de ejercicios anteriores del apartado variaciones de la hacienda pública/patrimonio contribuido neto del 2022 del estado de variación de la hacienda publica (F2), "&"es diferente al apartado de ejercicios anteriores del estado de cambios de la situación financiera (F16) en la columna ejercicio 2022.") -> 
C85: =IF(ROUND(ABS('F16'!E53-'F16'!F53),2)=ROUND(ABS('F2'!F30),2),"","7.4. El saldo del exceso o insuficiencia en la actuialización de la hacienda pública/patrimonio neto 2022, del estado de variación de la hacienda publica (F2), "&"es diferente al apartado del exceso o insuficiencia en la actualización de la hacienda pública /patrimonio del estado de cambios de la situación financiera (F16) en la columna ejercicio 2022.") -> 
A86: 8. Validación al estado de flujo de efectivo (F3) | C86: =IF(ROUND(ABS('F3'!F58),2)=ROUND(ABS('F16'!E8+'F16'!F8),2),"","8.1. El incremento/disminución neta en el efectivo y equivalentes del flujo de efectivo (F3) de la columna 2022, no es igual al que se muestra en el estado de "&"cambios en la situación financiera (F16) en la fila de efectivo y equivalentes ya sea de la columna de origen o aplicación.") -> 
C87: =IF(ROUND('F3'!G60,2)=ROUND('F1'!AG8,2),"","8.2. El efectivo y equivalentes al efectivo al final del ejercicio columna 2021, del estado de flujo de efectivo (F3), es diferente al saldo del"&" rubro de efectivo y equivalentes de la columna 2021 del estado de situación financiera (F1).") -> 
C88: =IF(ROUND('F3'!F60,2)=ROUND('F1'!AF8,2),"","8.3. El efectivo y equivalentes al efectivo al final del ejercicio columna 2022, del estado de flujo de efectivo (F3), es diferente al saldo del"&" rubro de efectivo y equivalentes de la columna 2022 del estado de situación financiera (F1).") -> 
A89: 9. Validación al estado analítico del activo (F5) | C89: =IF(ROUND('F5'!E6,2)=ROUND('F1'!AG106,2),"","9.1. El total del activo del estado analítico del activo (F5) en la columna de saldo inicial, es diferente al total del activo en el estado de situación financiera (F1), en la columna correspondiente al ejercicio 2021") -> 
C90: =IF(ROUND('F5'!H6,2)=ROUND('F1'!AF106,2),"","9.2. El total del activo del estado analítico del activo (F5) en la columna de saldo final, es diferente al total del activo en el estado de situación financiera (F1), en la columna correspondiente al ejercicio 2022") -> 
C91: =IF(ROUND(ABS('F5'!I6),2)=ROUND(ABS('F16'!E6-'F16'!F6),2),"","9.3. La cifra de la fila del rubro de activo de la columna de variación del periodo del estado analítico del activo (F5), es diferente a los rubros del activo en las columnas de origen o aplicación del estado de cambios en la situación financiera (F16)") -> 
A92: 10. Validación al estado analítico de la deuda y otros pasivos (F9) | C92: =IF(ROUND((S55+S56),2)=ROUND(M55,2),"","10.1. El saldo de la deuda pública al 1° de enero de 2022 con instituciones de crédito a corto y largo plazo, del estado e informe análitico de la deuda pública y "&"otros pasivos (F9-EDP), no es igual a los rubros de la deuda pública interna por pagar a corto y largo plazo (suma de las cuentas 2131 y 2233 columna ejercicio 2021) del estado de situación financiera (F1).") -> 
C93: =IF(ROUND((S57+S58),2)=ROUND(M57,2),"","10.2. El saldo de la deuda pública al 1° de enero de 2022 en títulos y valores de corto y largo plazo, del estado e informe análitico de la deuda pública y otros "&"pasivos (F9-EDP), no es igual al rubro de títulos y valores por pagar a corto y largo plazo (suma de las cuentas 2141 y 2231 columna ejercicio 2021) del estado de situación financiera (F1).") -> 
C94: =IF(ROUND((S59+S60),2)=ROUND(M59,2),"","10.3. El saldo de la deuda pública al 1° de enero de 2022 en arrendamiento financiero de corto y largo plazo, del estado e informe análitico de la deuda pública y "&"otros pasivos (F9-EDP), no es igual al rubro de arrendamiento financiero por pagar a corto y largo plazo (suma de las cuentas 2133 y 2235 columna ejercicio 2021) del estado de situación financiera (F1).") -> 
C95: =IF(ROUND(A55,2)=ROUND(G55,2),"","10.4. El saldo de la deuda pública del periodo con instituciones de crédito a corto plazo, del estado e informe análitico de la deuda pública y otros pasivos (F9-EDP), "&"no es igual al rubro de la porción de la deuda pública interna por pagar a corto plazo (cuenta 2131 columna ejercicio 2022) del estado de situación financiera (F1).") -> 
C96: =IF(ROUND(A56,2)=ROUND(G56,2),"","10.5. El saldo de la deuda pública del periodo con instituciones de crédito a largo plazo, del estado e informe análitico de la deuda pública y otros pasivos (F9-EDP), "&"no es igual al rubro de préstamos de la deuda pública interna por pagar a largo plazo (cuenta 2233 columna ejercicio 2022) del estado de situación financiera (F1).") -> 
C97: =IF(ROUND(A57,2)=ROUND(G57,2),"","10.6. El saldo de la deuda pública del periodo en títulos y valores a corto plazo, del estado e informe análitico de la deuda pública y otros pasivos (F9-EDP), no es "&"igual al rubro de títulos y valores de la deuda pública interna por pagar a corto plazo (cuenta 2141 columna ejercicio 2022) del estado de situación financiera (F1).") -> 
C98: =IF(ROUND(A58,2)=ROUND(G58,2),"","10.7. El saldo de la deuda pública del periodo en títulos y valores a largo plazo, del estado e informe análitico de la deuda pública y otros pasivos (F9-EDP), no es "&"igual al rubro de títulos y valores de la deuda pública interna por pagar a largo plazo (cuenta 2231 columna ejercicio 2022) del estado de situación financiera (F1).") -> 
C99: =IF(ROUND(A59,2)=ROUND(G59,2),"","10.8. El saldo de la deuda pública del periodo en arrendamiento financiero a corto plazo, del estado e informe análitico de la deuda pública y otros pasivos"&" (F9-EDP), no es igual al rubro de la porción de arrendamiento financiero de la deuda pública interna por pagar a corto plazo (cuenta 2133 columna ejercicio 2022) del estado de situación financiera (F1).") -> 
C100: =IF(ROUND(A60,2)=ROUND(G60,2),"","10.9. El saldo de la deuda pública del periodo en arrendamiento financiero a largo plazo, del estado e informe análitico de la deuda pública y otros pasivos (F9-EDP), "&"no es igual al rubro de arrendamiento financiero de la deuda pública interna por pagar a largo plazo (cuenta 2235 columna ejercicio 2022) del estado de situación financiera (F1).") -> 
C101: =IF(ROUND('F9-EDP'!N20,2)=ROUND('F1'!BN80,2),"","10.10. El total del pasivo al inicio del ejercicio 2022 del estado e informe análitico de la deuda pública y otros pasivos (F9-EDP), no es igua al pasivo (columna del ejercicio 2021) en el estado de situación financiera (F1).") -> 
C102: =IF(ROUND('F9-EDP'!AP20,2)=ROUND('F1'!BM80,2),"","10.11. El total del pasivo del periodo informado del ejercicio 2022 del estado e informe análitico de la deuda pública y otros pasivos (F9-EDP), no es igua al pasivo (columna del ejercicio 2022) en el estado de situación financiera (F1).") -> 
A103: 11. Validación flujo contable de ingresos y egresos (F12) | C103: =IF(ROUND('F7'!C70,2)=ROUND('F12'!C17,2),"","11.1. El importe total de ingresos estimado del estado analítico de ingresos (F7),"&" no es igual al total ingresos del flujo contable del ingreso y egresos (F12) columna estimado.") -> 
C104: =IF(ROUND('F7'!D70,2)=ROUND('F12'!D17,2),"","11.2. El importe total de ingresos de ampliaciones y reducciones del estado analítico de ingresos (F7),"&" no es igual al total ingresos del flujo contable del ingreso y egresos (F12) columna amplación y reducción.") -> 
C105: =IF(ROUND('F7'!F70,2)=ROUND('F12'!F17,2),"","11.3. El importe total de ingresos devengados del estado analítico de ingresos (F7),"&" no es igual al total ingresos del flujo contable del ingreso y egresos (F12) columna devengado.") -> 
C106: =IF(ROUND('F8'!C80,2)=ROUND('F12'!C30,2),"","11.4. El importe total de egreso aporbado del estado analítico del ejercicio del prespuesto de egresos (F8),"&" no es igual al total egresos del flujo contable del ingreso y egresos (F12) columna aprobado.") -> 
C107: =IF(ROUND('F8'!D80,2)=ROUND('F12'!D30,2),"","11.5. El importe total de egresos de ampliaciones y reducciones del estado analítico del ejercicio del prespuesto de egresos (F8),"&" no es igual al total egresos del flujo contable del ingreso y egresos (F12) columna amplación y reducción.") -> 
C108: =IF(ROUND('F8'!F80,2)=ROUND('F12'!F30,2),"","11.6. El importe total de egresos devengados del estado analítico del ejercicio del prespuesto de egresos (F8),"&" no es igual al total egresos del flujo contable del ingreso y egresos (F12) columna devengado.") -> 
A109: 12. Validación Estado Analítico del Ingreso - LDF (F7B) | C109: =IF(ROUND('F7'!C70,2)=ROUND(F7B!C64,2),"","12.1. El importe total de ingresos estimados del estado analítico de ingresos detallado - LDF (F7B),"&" no es igual al estado analítico de ingresos (F7) columna estimado.") -> 
C110: =IF(ROUND('F7'!D70,2)=ROUND(F7B!D64,2),"","12.2. El importe total de ingresos modificado del estado analítico de ingresos detallado - LDF (F7B),"&" no es igual al estado analítico de ingresos (F7) columna modificado.") -> 
C111: =IF(ROUND('F7'!F70,2)=ROUND(F7B!F64,2),"","12.3. El importe total de ingresos devengado del estado analítico de ingresos detallado - LDF (F7B),"&" no es igual al estado analítico de ingresos (F7) columna devengado.") -> 
C112: =IF(ROUND('F7'!G70,2)=ROUND(F7B!G64,2),"","12.4. El importe total de ingresos recaudado del estado analítico de ingresos detallado - LDF (F7B),"&" no es igual al estado analítico de ingresos (F7) columna recaudado.") -> 
A113: 13. Validación Estado Analítico del Egreso (COG) - LDF (F8B) | C113: =IF(ROUND(F8B!D155,2)=ROUND('F8'!C80,2),"","13.1. El importe total del gasto aprobado del estado analítico del ejercicio del prespuesto de egresos detallado - LDF (F8A),"&" no es igual al estado analítico del ejercicio del prespuesto de egresos (F8) columna aprobado.") -> 
C114: =IF(ROUND(F8B!F155,2)=ROUND('F8'!E80,2),"","13.2. El importe total del gasto modificado del estado analítico del ejercicio del prespuesto de egresos detallado - LDF (F8A),"&" no es igual al estado analítico del ejercicio del prespuesto de egresos (F8) columna modificado.") -> 
C115: =IF(ROUND(F8B!G155,2)=ROUND('F8'!F80,2),"","13.3. El importe total del gasto devengado del estado analítico del ejercicio del prespuesto de egresos detallado - LDF (F8A),"&" no es igual al estado analítico del ejercicio del prespuesto de egresos (F8) columna devengado.") -> 
C116: =IF(ROUND(F8B!H155,2)=ROUND('F8'!G80,2),"","13.4. El importe total del gasto pagado del estado analítico del ejercicio del prespuesto de egresos detallado - LDF (F8A),"&" no es igual al estado analítico del ejercicio del prespuesto de egresos (F8) columna pagado.") -> 
A117: 14. Validación Estado Analítico del Egreso (CF) - (F19A) | C117: =IF(ROUND(F19A!D76,2)=ROUND('F19'!C40,2),"","14.1. El importe total del gasto aprobado del estado analítico del ejercicio del prespuesto de egresos detallado - LDF (F19A),"&" no es igual al estado analítico del ejercicio del prespuesto de egresos (F19) columna aprobado.") -> 
C118: =IF(ROUND(F19A!F76,2)=ROUND('F19'!E40,2),"","14.2. El importe total del gasto modificado del estado analítico del ejercicio del prespuesto de egresos detallado - LDF (F19A),"&" no es igual al estado analítico del ejercicio del prespuesto de egresos (F19) columna modificado.") -> 
C119: =IF(ROUND(F19A!G76,2)=ROUND('F19'!F40,2),"","14.3. El importe total del gasto devengado del estado analítico del ejercicio del prespuesto de egresos detallado - LDF (F19A),"&" no es igual al estado analítico del ejercicio del prespuesto de egresos (F19) columna devengado.") -> 
C120: =IF(ROUND(F19A!H76,2)=ROUND('F19'!G40,2),"","14.4. El importe total del gasto pagado del estado analítico del ejercicio del prespuesto de egresos detallado - LDF (F19A),"&" no es igual al estado analítico del ejercicio del prespuesto de egresos (F19) columna pagado.") -> 
A121: 15. Validación Estado Analítico del Egreso (CA) - LDF (F18A) | C121: =IF(ROUND(F18A!B62,2)=ROUND('F18'!B58,2),"","15.1. El importe total del gasto aprobado del estado analítico del ejercicio del prespuesto de egresos detallado - LDF (F18A),"&" no es igual al estado analítico del ejercicio del prespuesto de egresos (F18) columna aprobado.") -> 
C122: =IF(ROUND(F18A!C62,2)=ROUND('F18'!C58,2),"","15.2. El importe total del gasto modificado del estado analítico del ejercicio del prespuesto de egresos detallado - LDF (F18A),"&" no es igual al estado analítico del ejercicio del prespuesto de egresos (F18) columna modificado.") -> 
C123: =IF(ROUND(F18A!E62,2)=ROUND('F18'!E58,2),"","15.3. El importe total del gasto devengado del estado analítico del ejercicio del prespuesto de egresos detallado - LDF (F18A),"&" no es igual al estado analítico del ejercicio del prespuesto de egresos (F18) columna devengado.") -> 
C124: =IF(ROUND(F18A!F62,2)=ROUND('F18'!F58,2),"","15.4. El importe total del gasto pagado del estado analítico del ejercicio del prespuesto de egresos detallado - LDF (F18A),"&" no es igual al estado analítico del ejercicio del prespuesto de egresos (F18) columna pagado.") -> 
A125: 16. Validación Balance Presupuestario - LDF (F22) | C125: =IF(ROUND(SUM('F22'!E7:E8)+('F22'!E27),2)=ROUND('F7'!C70,2),"","16.1. El importe de ingresos totales estimado del balance presupuestario - LDF (F22),"&" no es igual al estado analítico de ingresos (F7) columna estimado.") -> 
C126: =IF(ROUND(SUM('F22'!F7:F8)+('F22'!F27),2)=ROUND('F7'!F70,2),"","16.2. El importe de ingresos totales devengado del balance presupuestario - LDF (F22),"&" no es igual al estado analítico de ingresos (F7) columna devengado.") -> 
C127: =IF(ROUND(SUM('F22'!G7:G8)+('F22'!G27),2)=ROUND('F7'!G70,2),"","16.3. El importe de ingresos totales recaudado del balance presupuestario - LDF (F22),"&" no es igual al estado analítico de ingresos (F7) columna recaudado.") -> 
C128: =IF(ROUND(('F22'!E10+'F22'!E30),2)=ROUND('F8'!C80,2),"","16.4. El importe de egresos presupuestarios aprobado del balance presupuestario - LDF (F22),"&" no es igual al estado analítico del ejercicio del presupuesto de egresos COG (F8) columna aprobado.") -> 
C129: =IF(ROUND(('F22'!F10+'F22'!F30),2)=ROUND('F8'!F80,2),"","16.5. El importe de egresos presupuestarios devengado del balance presupuestario - LDF (F22),"&" no es igual al estado analítico del ejercicio del presupuesto de egresos COG (F8) columna devengado.") -> 
C130: =IF(ROUND(('F22'!G10+'F22'!G30),2)=ROUND('F8'!G80,2),"","16.6. El importe de egresos presupuestarios pagado del balance presupuestario - LDF (F22),"&" no es igual al estado analítico del ejercicio del presupuesto de egresos COG (F8) columna pagado.") -> 
A131: 17. Validación Avance de programas y/o procesos concluidos (F13) | C131: =IF(ROUND('F13'!$P$2,2)=ROUND('F12'!$E$21,2),"","17.1. El importe total del capítulo 1000 del avance de programas y/o procesos concluidos (F13),"&" no es igual al informado en el flujo contable de ingresos y egresos (F12) columna modificado.") -> 
C132: =IF(ROUND('F13'!$Q$2,2)=ROUND('F12'!$E$22,2),"","17.2. El importe total del capítulo 2000 del avance de programas y/o procesos concluidos (F13),"&" no es igual al informado en el flujo contable de ingresos y egresos (F12) columna modificado.") -> 
C133: =IF(ROUND('F13'!$R$2,2)=ROUND('F12'!$E$23,2),"","17.3. El importe total del capítulo 3000 del avance de programas y/o procesos concluidos (F13),"&" no es igual al informado en el flujo contable de ingresos y egresos (F12) columna modificado.") -> 
C134: =IF(ROUND('F13'!$S$2,2)=ROUND('F12'!$E$24,2),"","17.4. El importe total del capítulo 4000 del avance de programas y/o procesos concluidos (F13),"&" no es igual al informado en el flujo contable de ingresos y egresos (F12) columna modificado.") -> 
C135: =IF(ROUND('F13'!$T$2,2)=ROUND('F12'!$E$25,2),"","17.5. El importe total del capítulo 5000 del avance de programas y/o procesos concluidos (F13),"&" no es igual al informado en el flujo contable de ingresos y egresos (F12) columna modificado.") -> 
C136: =IF(ROUND('F13'!$U$2,2)=ROUND('F12'!$E$26,2),"","17.6. El importe total del capítulo 6000 del avance de programas y/o procesos concluidos (F13),"&" no es igual al informado en el flujo contable de ingresos y egresos (F12) columna modificado.") -> 
C137: =IF(ROUND('F13'!$V$2,2)=ROUND('F12'!$E$27,2),"","17.7. El importe total del capítulo 7000 del avance de programas y/o procesos concluidos (F13),"&" no es igual al informado en el flujo contable de ingresos y egresos (F12) columna modificado.") -> 
C138: =IF(ROUND('F13'!$W$2,2)=ROUND('F12'!$E$28,2),"","17.8. El importe total del capítulo 8000 del avance de programas y/o procesos concluidos (F13),"&" no es igual al informado en el flujo contable de ingresos y egresos (F12) columna modificado.") -> 
C139: =IF(ROUND('F13'!$X$2,2)=ROUND('F12'!$E$29,2),"","17.9. El importe total del capítulo 9000 del avance de programas y/o procesos concluidos (F13),"&" no es igual al informado en el flujo contable de ingresos y egresos (F12) columna modificado.") -> 
C140: =IF(ROUND('F13'!$AA$2,2)=ROUND('F12'!$F$21,2),"","17.10. El importe total del capítulo 1000 del avance de programas y/o procesos concluidos (F13),"&" no es igual al informado en el flujo contable de ingresos y egresos (F12) columna devengado.") -> 
C141: =IF(ROUND('F13'!$AB$2,2)=ROUND('F12'!$F$22,2),"","17.11. El importe total del capítulo 2000 del avance de programas y/o procesos concluidos (F13),"&" no es igual al informado en el flujo contable de ingresos y egresos (F12) columna devengado.") -> 
C142: =IF(ROUND('F13'!$AC$2,2)=ROUND('F12'!$F$23,2),"","17.12. El importe total del capítulo 3000 del avance de programas y/o procesos concluidos (F13),"&" no es igual al informado en el flujo contable de ingresos y egresos (F12) columna devengado.") -> 
C143: =IF(ROUND('F13'!$AD$2,2)=ROUND('F12'!$F$24,2),"","17.13. El importe total del capítulo 4000 del avance de programas y/o procesos concluidos (F13),"&" no es igual al informado en el flujo contable de ingresos y egresos (F12) columna devengado.") -> 
C144: =IF(ROUND('F13'!$AE$2,2)=ROUND('F12'!$F$25,2),"","17.14. El importe total del capítulo 5000 del avance de programas y/o procesos concluidos (F13),"&" no es igual al informado en el flujo contable de ingresos y egresos (F12) columna devengado.") -> 
C145: =IF(ROUND('F13'!$AF$2,2)=ROUND('F12'!$F$26,2),"","17.15. El importe total del capítulo 6000 del avance de programas y/o procesos concluidos (F13),"&" no es igual al informado en el flujo contable de ingresos y egresos (F12) columna devengado.") -> 
C146: =IF(ROUND('F13'!$AG$2,2)=ROUND('F12'!$F$27,2),"","17.16. El importe total del capítulo 7000 del avance de programas y/o procesos concluidos (F13),"&" no es igual al informado en el flujo contable de ingresos y egresos (F12) columna devengado.") -> 
C147: =IF(ROUND('F13'!$AH$2,2)=ROUND('F12'!$F$28,2),"","17.17. El importe total del capítulo 8000 del avance de programas y/o procesos concluidos (F13),"&" no es igual al informado en el flujo contable de ingresos y egresos (F12) columna devengado.") -> 
C148: =IF(ROUND('F13'!$AI$2,2)=ROUND('F12'!$F$29,2),"","17.18. El importe total del capítulo 9000 del avance de programas y/o procesos concluidos (F13),"&" no es igual al informado en el flujo contable de ingresos y egresos (F12) columna devengado.") -> 
B150: Acatic | C150: ENERO | D150: 31 de Enero de 2022 | E150: Del 1° al 31 de Enero de 2022
B151: Acatlán de Juárez | C151: FEBRERO | D151: 28 de Febrero de 2022 | E151: Del 1° al 28 de Febrero de 2022
B152: Administración de Estacionómetros para la Asistencia Social del Municipio de Zapotlán el Grande | C152: MARZO | D152: 31 de Marzo de 2022 | E152: Del 1° al 31 de Marzo de 2022
B153: Agencia de Energía del Estado de Jalisco | C153: ABRIL | D153: 30 de Abril de 2022 | E153: Del 1° al 30 de Abril de 2022
B154: Agencia Estatal de Entretenimiento de Jalisco | C154: MAYO | D154: 31 de Mayo de 2022 | E154: Del 1° al 31 de Mayo de 2022
B155: Agencia Integral de Regulación de Emisiones | C155: JUNIO, 1er. Informe de Avance de Gestión Financiera y Corte Semestral | D155: 30 de Junio de 2022 | E155: Del 1° al 30 de Junio de 2022
B156: Agencia Metropolitana de Bosques Urbanos del Área Metropolitana de Guadalajara | C156: JULIO | D156: 31 de Julio de 2022 | E156: Del 1° al 31 de Julio de 2022
B157: Agencia Metropolitana de Servicios de Infraestructura para la Movilidad del Área Metropolitana de Guadalajara | C157: AGOSTO | D157: 31 de Agosto de 2022 | E157: Del 1° al 31 de Agosto de 2022
B158: Agencia para el Desarrollo de Industrias Creativas y Digitales | C158: SEPTIEMBRE | D158: 30 de Septiembre de 2022 | E158: Del 1° al 30 de Septiembre de 2022
B159: Agua y Saneamiento del Municipio de Tepatitlán de Morelos, Jalisco (ASTEPA) | C159: OCTUBRE | D159: 31 de Octubre de 2022 | E159: Del 1° al 31 de Octubre de 2022
B160: Ahualulco de Mercado | C160: NOVIEMBRE | D160: 30 de Noviembre de 2022 | E160: Del 1° al 30 de Noviembre de 2022
B161: Albergue Las Cuadritas "Fray Antonio Alcalde" | C161: DICIEMBRE, 2do. Informe de Avance de Gestión Financiera y Corte Anual | D161: 31 de Diciembre de 2022 | E161: Del 1° al 31 de Diciembre de 2022
B162: Amacueca
B163: Amatitán
B164: Ameca
B165: Arandas
B166: Asociación Intermunicipal para la Protección del Medio Ambiente y el Desarrollo Sustentable del Lago de Chapala
B167: Atemajac de Brizuela
B168: Atengo
B169: Atenguillo
B170: Atotonilco el Alto
B171: Atoyac
B172: Auditoría Superior del Estado de Jalisco
B173: Autlán de Navarro
B174: Ayotlán
B175: Ayutla
B176: Bolaños
B177: Bosque la Primavera
B178: Cabo Corrientes
B179: Cañadas de Obregón
B180: Casimiro Castillo
B181: Centro de Atención para las Víctimas del Delito
B182: Centro de Coordinación, Comando, Control, Comunicaciones y Cómputo del Estado de Jalisco "Escudo Urbano C5"
B183: Centro de Estimulación para Personas con Discapacidad Intelectual de Tlajomulco de Zúñiga
B184: Centro Ferial de Guadalajara
B185: Chapala
B186: Chimaltitán
B187: Chiquilistlán
B188: Cihuatlán
B189: Cocula
B190: Colegio de Bachilleres del Estado de Jalisco
B191: Colegio de Educación Profesional Técnica del Estado de Jalisco
B192: Colegio de Estudios Científicos y Tecnológicos del Estado de Jalisco
B193: Colotlán
B194: Comisión de Arbitraje Médico del Estado de Jalisco
B195: Comisión de Valuación del Estado de Jalisco
B196: Comisión Estatal de Agua y Saneamiento de Jalisco
B197: Comisión Estatal de Derechos Humanos Jalisco
B198: Comisión Estatal del Agua de Jalisco
B199: Comisión Estatal Indígena
B200: Comité de Feria de Zapotlán el Grande, Jalisco
B201: Comité del Carnaval Sayula
B202: Concepción de Buenos Aires
B203: Congreso del Estado de Jalisco
... 515 more rows

Sheet Balanza
A1: No. DE CUENTA | B1: NOMBRE DE LA CUENTA | C1: SALDO AL 31 DE DICIEMBRE DE 2021 | E1: MOVIMIENTO | G1: SALDO FINAL DEL PERIODO A INFORMAR EJERCICIO 2022
C2: DEUDOR | D2: ACREEDOR | E2: DEUDOR | F2: ACREEDOR | G2: DEUDOR | H2: ACREEDOR
A3: 10000 | B3: ACTIVO | C3: =C4+C43 -> 29129868.99 | E3: =E4+E43 -> 107541067.6 | F3: =F4+F43 -> 89533287.87 | G3: =G4+G43 -> 47137648.68
A4: 11000 | B4: ACTIVO CIRCULANTE | C4: =C5+C13+C21+C27+C33+C35+C38 -> 769144.48 | E4: =E5+E13+E21+E27+E33+E35+E38 -> 88883359.1 | F4: =F5+F13+F21+F27+F33+F35+F38 -> 89533287.87 | G4: =G5+G13+G21+G27+G33+G35+G38 -> 119215.71
A5: 11100 | B5: EFECTIVO Y EQUIVALENTES | C5: =SUM(C6:C12) -> 765144.48 | E5: =SUM(E6:E12) -> 86981830.77 | F5: =SUM(F6:F12) -> 87659759.54 | G5: =SUM(G6:G12) -> 87215.71
A6: 11110 | B6: Efectivo | C6: 2557.02 | E6: 11709395.73 | F6: 11711952.75 | G6: =C6+E6-F6 -> 0
A7: 11120 | B7: Bancos/Tesorería | C7: 762587.46 | E7: 75272435.04 | F7: 75947806.79 | G7: 87215.71
A8: 11130 | B8: Bancos/Dependencias y otros | G8: 0
A9: 11140 | B9: Inversiones temporales (hasta 3 meses) | G9: 0
A10: 11150 | B10: Fondos con afectación específica | G10: 0
A11: 11160 | B11: Depósitos de fondos de terceros en garantía y/o administración | G11: 0
A12: 11190 | B12: Otros efectivos y equivalentes | G12: 0
A13: 11200 | B13: DERECHOS A RECIBIR EFECTIVO O EQUIVALENTES | C13: =SUM(C14:C20) -> 4000 | E13: =SUM(E14:E20) -> 1901528.33 | F13: =SUM(F14:F20) -> 1873528.33 | G13: =SUM(G14:G20) -> 32000
A14: 11210 | B14: Inversiones financieras de corto plazo | G14: =C14+E14-F14 -> 0
A15: 11220 | B15: Cuentas por cobrar a corto plazo | G15: 0
A16: 11230 | B16: Deudores diversos por cobrar a corto plazo | C16: 4000 | E16: 1901528.33 | F16: 1873528.33 | G16: 32000
A17: 11240 | B17: Ingresos por recuperar a corto plazo | G17: 0
A18: 11250 | B18: Deudores por anticipos de la tesorería a corto plazo | G18: 0
A19: 11260 | B19: Préstamos otorgados a corto plazo | G19: 0
A20: 11290 | B20: Otros derechos a recibir efectivo o equivalentes a corto plazo | G20: 0
A21: 11300 | B21: DERECHOS A RECIBIR BIENES O SERVICIOS | C21: =SUM(C22:C26) -> 0 | E21: =SUM(E22:E26) -> 0 | F21: =SUM(F22:F26) -> 0 | G21: =SUM(G22:G26) -> 0
A22: 11310 | B22: Anticipo a proveedores por adquisición de bienes y prestación de servicios a corto plazo | G22: =C22+E22-F22 -> 0
A23: 11320 | B23: Anticipo a proveedores por adquisición de bienes inmuebles y muebles a corto plazo | G23: =C23+E23-F23 -> 0
A24: 11330 | B24: Anticipo a proveedores por adquisición de bienes intangibles a corto plazo | G24: =C24+E24-F24 -> 0
A25: 11340 | B25: Anticipo a contratistas por obras públicas a corto plazo | G25: =C25+E25-F25 -> 0
A26: 11390 | B26: Otros derechos a recibir bienes o servicios a corto plazo | G26: =C26+E26-F26 -> 0
A27: 11400 | B27: INVENTARIOS | C27: =SUM(C28:C32) -> 0 | E27: =SUM(E28:E32) -> 0 | F27: =SUM(F28:F32) -> 0 | G27: =SUM(G28:G32) -> 0
A28: 11410 | B28: Inventario de mercancías para venta
A29: 11420 | B29: Inventario de mercancías terminadas
A30: 11430 | B30: Inventario de mercancías en proceso de elaboración
A31: 11440 | B31: Inventario de materias primas, materiales y suministros para producción
A32: 11450 | B32: Bienes en tránsito
A33: 11500 | B33: ALMACENES | C33: =SUM(C34) -> 0 | E33: =SUM(E34) -> 0 | F33: =SUM(F34) -> 0 | G33: =SUM(G34) -> 0
A34: 11510 | B34: Almacén de materiales y suministros de consumo | G34: =C34+E34-F34 -> 0
A35: 11600 | B35: ESTIMACIÓN POR PÉRDIDA O DETERIORO DE ACTIVOS CIRCULANTES | C35: =SUM(C36:C37) -> 0 | E35: =SUM(E36:E37) -> 0 | F35: =SUM(F36:F37) -> 0 | G35: =SUM(G36:G37) -> 0
A36: 11610 | B36: Estimaciones para cuentas incobrables por derechos a recibir efectivo o equivalentes | G36: =C36+E36-F36 -> 0
A37: 11620 | B37: Estimación por deterioro de inventarios | G37: =C37+E37-F37 -> 0
A38: 11900 | B38: OTROS ACTIVOS CIRCULANTES | C38: =SUM(C39:C42) -> 0 | E38: =SUM(E39:E42) -> 0 | F38: =SUM(F39:F42) -> 0 | G38: =SUM(G39:G42) -> 0
A39: 11910 | B39: Valores en garantía | G39: =C39+E39-F39 -> 0
A40: 11920 | B40: Bienes en garantía (excluye depósitos de fondos) | G40: =C40+E40-F40 -> 0
A41: 11930 | B41: Bienes derivados de embargos, decomisos, aseguramientos y dación en pago | G41: =C41+E41-F41 -> 0
A42: 11940 | B42: Adquisición con fondos de terceros | G42: =C42+E42-F42 -> 0
A43: 12000 | B43: ACTIVO NO CIRCULANTE | C43: =C44+C49+C55+C63+C72+C78+C84+C91+C97-D43 -> 28360724.51 | D43: =D44+D49+D55+D63+D72+D78+D84+D91+D97 -> 0 | E43: =E44+E49+E55+E63+E72+E78+E84+E91+E97 -> 18657708.46 | F43: =F44+F49+F55+F63+F72+F78+F84+F91+F97 -> 0 | G43: =G44+G49+G55+G63+G72+G78+G84+G91+G97-H43 -> 47018432.97 | H43: =H44+H49+H55+H63+H72+H78+H84+H91+H97 -> 0
A44: 12100 | B44: INVERSIONES FINANCIERAS A LARGO PLAZO | C44: =SUM(C45:C48) -> 0 | E44: =SUM(E45:E48) -> 0 | F44: =SUM(F45:F48) -> 0 | G44: =SUM(G45:G48) -> 0
A45: 12110 | B45: Inversiones a largo plazo | G45: =C45+E45-F45 -> 0
A46: 12120 | B46: Títulos y valores a largo plazo | G46: =C46+E46-F46 -> 0
A47: 12130 | B47: Fideicomisos, mandatos y contratos análogos | G47: =C47+E47-F47 -> 0
A48: 12140 | B48: Participaciones y aportaciones de capital | G48: =C48+E48-F48 -> 0
A49: 12200 | B49: DERECHOS A RECIBIR EFECTIVO O EQUIVALENTES A LARGO PLAZO | C49: =SUM(C50:C54) -> 0 | E49: =SUM(E50:E54) -> 0 | F49: =SUM(F50:F54) -> 0 | G49: =SUM(G50:G54) -> 0
A50: 12210 | B50: Documentos por cobrar a largo plazo | G50: =C50+E50-F50 -> 0
A51: 12220 | B51: Deudores diversos a largo plazo | G51: =C51+E51-F51 -> 0
A52: 12230 | B52: Ingresos por recuperar a largo plazo | G52: =C52+E52-F52 -> 0
A53: 12240 | B53: Préstamos otorgados a largo plazo | G53: =C53+E53-F53 -> 0
A54: 12290 | B54: Otros derechos a recibir efectivo o equivalentes a largo plazo | G54: =C54+E54-F54 -> 0
A55: 12300 | B55: BIENES INMUEBLES, INFRAESTRUCTURA Y CONSTRUCCIONES EN PROCESO | C55: =SUM(C56:C62) -> 25830417.29 | E55: =SUM(E56:E62) -> 17721601.28 | F55: =SUM(F56:F62) -> 0 | G55: =SUM(G56:G62) -> 43552018.57
A56: 12310 | B56: Terrenos | G56: =C56+E56-F56 -> 0
A57: 12320 | B57: Viviendas | G57: 0
A58: 12330 | B58: Edificios no habitacionales | G58: 0
A59: 12340 | B59: Infraestructura | C59: 25830417.29 | G59: 25830417.29
A60: 12350 | B60: Construcciones en proceso en bienes de dominio público | E60: 17721601.28 | G60: 17721601.28
A61: 12360 | B61: Construcciones en proceso en bienes propios | G61: 0
A62: 12390 | B62: Otros bienes inmuebles | G62: 0
A63: 12400 | B63: BIENES MUEBLES | C63: =SUM(C64:C71) -> 2530307.22 | E63: =SUM(E64:E71) -> 936107.18 | F63: =SUM(F64:F71) -> 0 | G63: =SUM(G64:G71) -> 3466414.4
A64: 12410 | B64: Mobiliario y equipo de administración | C64: 198100.98 | E64: 13880.92 | G64: =C64+E64-F64 -> 211981.9
A65: 12420 | B65: Mobiliario y equipo educacional y recreativo | E65: 16436.27 | G65: 16436.27
A66: 12430 | B66: Equipo e instrumental médico y de laboratorio | G66: 0
A67: 12440 | B67: Vehículos y equipo de transporte | C67: 2332206.24 | E67: 905789.99 | G67: 3237996.23
A68: 12450 | B68: Equipo de defensa y seguridad | G68: 0
A69: 12460 | B69: Maquinaria, otros equipos y herramientas | G69: 0
A70: 12470 | B70: Colecciones, obras de arte y objetos valiosos | G70: 0
A71: 12480 | B71: Activos biológicos | G71: 0
A72: 12500 | B72: ACTIVOS INTANGIBLES | C72: =SUM(C73:C77) -> 0 | E72: =SUM(E73:E77) -> 0 | F72: =SUM(F73:F77) -> 0 | G72: =SUM(G73:G77) -> 0
A73: 12510 | B73: Software | G73: =C73+E73-F73 -> 0
A74: 12520 | B74: Patentes, marcas y derechos | G74: =C74+E74-F74 -> 0
A75: 12530 | B75: Concesiones y franquicias | G75: =C75+E75-F75 -> 0
A76: 12540 | B76: Licencias | G76: =C76+E76-F76 -> 0
A77: 12590 | B77: Otros activos intangibles | G77: =C77+E77-F77 -> 0
A78: 12600 | B78: DEPRECIACIÓN, DETERIORO Y AMORTIZACIÓN ACUMULADA DE BIENES | D78: =SUM(D79:D83) -> 0 | E78: =SUM(E79:E83) -> 0 | F78: =SUM(F79:F83) -> 0 | H78: =D78+F78-E78 -> 0
A79: 12610 | B79: Depreciación acumulada de bienes inmuebles | H79: =D79+F79-E79 -> 0
A80: 12620 | B80: Depreciación acumulada de infraestructura | H80: =D80+F80-E80 -> 0
A81: 12630 | B81: Depreciación acumulada de bienes muebles | H81: 0
A82: 12640 | B82: Deterioro acumulado de activos biológicos | H82: 0
A83: 12650 | B83: Amortización acumulada de activos intangibles | H83: 0
A84: 12700 | B84: ACTIVOS DIFERIDOS | C84: =SUM(C85:C90) -> 0 | E84: =SUM(E85:E90) -> 0 | F84: =SUM(F85:F90) -> 0 | G84: =SUM(G85:G90) -> 0
A85: 12710 | B85: Estudios, formulación y evaluación de proyectos | G85: =C85+E85-F85 -> 0
A86: 12720 | B86: Derechos sobre bienes en régimen de arrendamiento financiero | G86: 0
A87: 12730 | B87: Gastos pagados por adelantado a largo plazo | G87: 0
A88: 12740 | B88: Anticipos a largo plazo | G88: 0
A89: 12750 | B89: Beneficios al retiro de empleados pagados por adelantado | G89: 0
A90: 12790 | B90: Otros activos diferidos | G90: 0
A91: 12800 | B91: ESTIMACIÓN POR PÉRDIDA O DETERIORO DE ACTIVOS NO CIRCULANTES | D91: =SUM(D92:D96) -> 0 | E91: =SUM(E92:E96) -> 0 | F91: =SUM(F92:F96) -> 0 | H91: =D91+F91-E91 -> 0
A92: 12810 | B92: Estimaciones por pérdida de cuentas incobrables de documentos por cobrar a largo plazo | H92: =D92+F92-E92 -> 0
A93: 12820 | B93: Estimaciones por pérdida de cuentas incobrables de deudores diversos por cobrar a largo plazo | H93: =D93+F93-E93 -> 0
A94: 12830 | B94: Estimaciones por pérdida de cuentas incobrables de ingresos por cobrar a largo plazo | H94: 0
A95: 12840 | B95: Estimaciones por pérdida de cuentas incobrables de préstamos otorgados a largo plazo | H95: 0
A96: 12890 | B96: Estimaciones por pérdida de otras cuentas incobrables a largo plazo | H96: 0
A97: 12900 | B97: OTROS ACTIVOS NO CIRCULANTES | C97: =SUM(C98:C100) -> 0 | E97: =SUM(E98:E100) -> 0 | F97: =SUM(F98:F100) -> 0 | G97: =SUM(G98:G100) -> 0
A98: 12910 | B98: Bienes en concesión | G98: =C98+E98-F98 -> 0
A99: 12920 | B99: Bienes en arrendamiento financiero | G99: =C99+E99-F99 -> 0
A100: 12930 | B100: Bienes en comodato | G100: =C100+E100-F100 -> 0
A101: 20000 | B101: PASIVO | D101: =D102+D143 -> 327242.73 | E101: =E102+E143 -> 58103719.54 | F101: =F102+F143 -> 62860523.61 | H101: =H102+H143 -> 5084046.8
A102: 21000 | B102: PASIVO CIRCULANTE | D102: =D103+D113+D117+D121+D124+D128+D135+D139 -> 327242.73 | E102: =E103+E113+E117+E121+E124+E128+E135+E139 -> 58103719.54 | F102: =F103+F113+F117+F121+F124+F128+F135+F139 -> 62860523.61 | H102: =H103+H113+H117+H121+H124+H128+H135+H139 -> 5084046.8
A103: 21100 | B103: CUENTAS POR PAGAR A CORTO PLAZO | D103: =SUM(D104:D112) -> 261060.73 | E103: =SUM(E104:E112) -> 58063379.54 | F103: =SUM(F104:F112) -> 62820183.61 | H103: =SUM(H104:H112) -> 5017864.8
A104: 21110 | B104: Servicios personales por pagar a corto plazo | E104: 16025485.25 | F104: 16239326.25 | H104: =D104+F104-E104 -> 213841
A105: 21120 | B105: Proveedores por pagar a corto plazo | E105: 33993126.12 | F105: 33993126.12 | H105: 0
A106: 21130 | B106: Contratistas por obras públicas por pagar a corto plazo | E106: 6274335.22 | F106: 8946511.54 | H106: 2672176.32
A107: 21140 | B107: Participaciones y aportaciones por pagar a corto plazo | E107: 691564.16 | F107: 2364455.18 | H107: 1672891.02
A108: 21150 | B108: Transferencias otorgadas por pagar a corto plazo | H108: 0
A109: 21160 | B109: Intereses, comisiones y otros gastos de la deuda pública por pagar a corto plazo | H109: 0
A110: 21170 | B110: Retenciones y contribuciones por pagar a corto plazo | D110: 261060.73 | E110: 1078868.79 | F110: 1276764.52 | H110: 458956.46
A111: 21180 | B111: Devoluciones de la ley de ingresos por pagar a corto plazo | H111: 0
A112: 21190 | B112: Otras cuentas por pagar a corto plazo | H112: 0
A113: 21200 | B113: DOCUMENTOS POR PAGAR A CORTO PLAZO | D113: =SUM(D114:D116) -> 66182 | E113: =SUM(E114:E116) -> 40340 | F113: =SUM(F114:F116) -> 40340 | H113: =SUM(H114:H116) -> 66182
A114: 21210 | B114: Documentos comerciales por pagar a corto plazo | E114: 40340 | F114: 40340 | H114: =D114+F114-E114 -> 0
A115: 21220 | B115: Documentos con contratistas por obras públicas por pagar a corto plazo | H115: =D115+F115-E115 -> 0
A116: 21290 | B116: Otros documentos por pagar a corto plazo | D116: 66182 | H116: =D116+F116-E116 -> 66182
A117: 21300 | B117: PORCIÓN A CORTO PLAZO DE LA DEUDA PÚBLICA A LARGO PLAZO | D117: =SUM(D118+D120) -> 0 | E117: =SUM(E118+E120) -> 0 | F117: =SUM(F118+F120) -> 0 | H117: =SUM(H118+H120) -> 0
A118: 21310 | B118: Porción a corto plazo de la deuda pública interna | H118: =D118+F118-E118 -> 0
A119: 21320 | B119: Porción a corto plazo de la deuda pública externa
A120: 21330 | B120: Porción a corto plazo de arrendamiento financiero | H120: =D120+F120-E120 -> 0
A121: 21400 | B121: TÍTULOS Y VALORES A CORTO PLAZO | D121: =SUM(D122) -> 0 | E121: =SUM(E122) -> 0 | F121: =SUM(F122) -> 0 | H121: =SUM(H122) -> 0
A122: 21410 | B122: Títulos y valores de la deuda pública interna a corto plazo | H122: =D122+F122-E122 -> 0
A123: 21420 | B123: Títulos y valores de la deuda pública externa a corto plazo
A124: 21500 | B124: PASIVOS DIFERIDOS A CORTO PLAZO | D124: =SUM(D125:D127) -> 0 | E124: =SUM(E125:E127) -> 0 | F124: =SUM(F125:F127) -> 0 | H124: =SUM(H125:H127) -> 0
A125: 21510 | B125: Ingresos cobrados por adelantado a corto plazo | H125: =D125+F125-E125 -> 0
A126: 21520 | B126: Intereses cobrados por adelantado a corto plazo | H126: =D126+F126-E126 -> 0
A127: 21590 | B127: Otros pasivos diferidos a corto plazo | H127: =D127+F127-E127 -> 0
A128: 21600 | B128: FONDOS Y BIENES DE TERCEROS EN GARANTÍA Y/O ADMINISTRACIÓN A CORTO PLAZO | D128: =SUM(D129:D134) -> 0 | E128: =SUM(E129:E134) -> 0 | F128: =SUM(F129:F134) -> 0 | H128: =SUM(H129:H134) -> 0
A129: 21610 | B129: Fondos en garantía a corto plazo | H129: =D129+F129-E129 -> 0
A130: 21620 | B130: Fondos en administración a corto plazo | H130: 0
A131: 21630 | B131: Fondos contingentes a corto plazo | H131: 0
A132: 21640 | B132: Fondos de fideicomisos, mandatos y contratos análogos a corto plazo | H132: 0
A133: 21650 | B133: Otros fondos de terceros en garantía y/o administración a corto plazo | H133: 0
A134: 21660 | B134: Valores y bienes en garantía a corto plazo | H134: 0
A135: 21700 | B135: PROVISIONES A CORTO PLAZO | D135: =SUM(D136:D138) -> 0 | E135: =SUM(E136:E138) -> 0 | F135: =SUM(F136:F138) -> 0 | H135: =SUM(H136:H138) -> 0
A136: 21710 | B136: Provisión para demandas y juicios a corto plazo | H136: =D136+F136-E136 -> 0
A137: 21720 | B137: Provisión para contingencias a corto plazo | H137: =D137+F137-E137 -> 0
A138: 21790 | B138: Otras provisiones a corto plazo | H138: =D138+F138-E138 -> 0
A139: 21900 | B139: OTROS PASIVOS A CORTO PLAZO | D139: =SUM(D140:D142) -> 0 | E139: =SUM(E140:E142) -> 0 | F139: =SUM(F140:F142) -> 0 | H139: =SUM(H140:H142) -> 0
A140: 21910 | B140: Ingresos por clasificar | H140: =D140+F140-E140 -> 0
A141: 21920 | B141: Recaudación por participar | H141: =D141+F141-E141 -> 0
A142: 21990 | B142: Otros pasivos circulantes | H142: =D142+F142-E142 -> 0
A143: 22000 | B143: PASIVO NO CIRCULANTE | D143: =SUM(D144+D147+D151+D157+D161+D168) -> 0 | E143: =SUM(E144+E147+E151+E157+E161+E168) -> 0 | F143: =SUM(F144+F147+F151+F157+F161+F168) -> 0 | H143: =SUM(H144+H147+H151+H157+H161+H168) -> 0
A144: 22100 | B144: CUENTAS POR PAGAR A LARGO PLAZO | D144: =SUM(D145:D146) -> 0 | E144: =SUM(E145:E146) -> 0 | F144: =SUM(F145:F146) -> 0 | H144: =SUM(H145:H146) -> 0
A145: 22110 | B145: Proveedores por pagar a largo plazo | H145: =D145+F145-E145 -> 0
A146: 22120 | B146: Contratistas por obras públicas por pagar a largo plazo | H146: =D146+F146-E146 -> 0
A147: 22200 | B147: DOCUMENTOS POR PAGAR A LARGO PLAZO | D147: =SUM(D148:D150) -> 0 | E147: =SUM(E148:E150) -> 0 | F147: =SUM(F148:F150) -> 0 | H147: =SUM(H148:H150) -> 0
A148: 22210 | B148: Documentos comerciales por pagar a largo plazo | H148: =D148+F148-E148 -> 0
A149: 22220 | B149: Documentos con contratistas por obras públicas por pagar a largo plazo | H149: =D149+F149-E149 -> 0
A150: 22290 | B150: Otros documentos por pagar a largo plazo | H150: =D150+F150-E150 -> 0
A151: 22300 | B151: DEUDA PÚBLICA A LARGO PLAZO | D151: =SUM(D152:D156) -> 0 | E151: =SUM(E152:E156) -> 0 | F151: =SUM(F152:F156) -> 0 | H151: =SUM(H152:H156) -> 0
A152: 22310 | B152: Títulos y valores de la deuda pública interna a largo plazo | H152: =D152+F152-E152 -> 0
A153: 22320 | B153: Títulos y valores de la deuda pública externa a largo plazo
A154: 22330 | B154: Préstamos de la deuda pública interna por pagar a largo plazo | H154: =D154+F154-E154 -> 0
A155: 22340 | B155: Préstamos de la deuda pública externa por pagar a largo plazo
A156: 22350 | B156: Arrendamiento financiero por pagar a largo plazo | H156: =D156+F156-E156 -> 0
A157: 22400 | B157: PASIVOS DIFERIDOS A LARGO PLAZO | D157: =SUM(D158:D160) -> 0 | E157: =SUM(E158:E160) -> 0 | F157: =SUM(F158:F160) -> 0 | H157: =SUM(H158:H160) -> 0
A158: 22410 | B158: Créditos diferidos a largo plazo | H158: =D158+F158-E158 -> 0
A159: 22420 | B159: Intereses cobrados por adelantado a largo plazo | H159: =D159+F159-E159 -> 0
A160: 22490 | B160: Otros pasivos diferidos a largo plazo | H160: =D160+F160-E160 -> 0
A161: 22500 | B161: FONDOS Y BIENES DE TERCEROS EN GARANTÍA Y/O ADMINISTRACIÓN A LARGO PLAZO | D161: =SUM(D162:D167) -> 0 | E161: =SUM(E162:E167) -> 0 | F161: =SUM(F162:F167) -> 0 | H161: =SUM(H162:H167) -> 0
A162: 22510 | B162: Fondos en garantía a largo plazo | H162: =D162+F162-E162 -> 0
A163: 22520 | B163: Fondos en administración a largo plazo | H163: 0
A164: 22530 | B164: Fondos contingentes a largo plazo | H164: 0
A165: 22540 | B165: Fondos de fideicomisos, mandatos y contratos análogos a largo plazo | H165: 0
A166: 22550 | B166: Otros fondos de terceros en garantía y/o administración a largo plazo | H166: 0
A167: 22560 | B167: Valores y bienes en garantía a largo plazo | H167: 0
A168: 22600 | B168: PROVISIONES A LARGO PLAZO | D168: =SUM(D169:D172) -> 0 | E168: =SUM(E169:E172) -> 0 | F168: =SUM(F169:F172) -> 0 | H168: =SUM(H169:H172) -> 0
A169: 22610 | B169: Provisión para demandas y juicios a largo plazo | H169: =D169+F169-E169 -> 0
A170: 22620 | B170: Provisión para pensiones a largo plazo | H170: =D170+F170-E170 -> 0
A171: 22630 | B171: Provisión para contingencias a largo plazo | H171: =D171+F171-E171 -> 0
A172: 22690 | B172: Otras provisiones a largo plazo | H172: =D172+F172-E172 -> 0
A173: 30000 | B173: HACIENDA PÚBLICA/ PATRIMONIO | D173: =D174+D178+D193 -> 28802626.26 | E173: =E174+E178+E193 -> 0 | F173: =F174+F178+F193 -> 13250975.62 | H173: =H174+H178+H193 -> 42053601.88
A174: 31000 | B174: HACIENDA PÚBLICA/ PATRIMONIO CONTRIBUIDO | D174: =SUM(D175:D177) -> 0 | E174: =SUM(E175:E177) -> 0 | F174: =SUM(F175:F177) -> 0 | H174: =SUM(H175:H177) -> 0
A175: 31100 | B175: APORTACIONES | H175: =D175+F175-E175 -> 0
A176: 31200 | B176: DONACIONES DE CAPITAL | H176: =D176+F176-E176 -> 0
A177: 31300 | B177: ACTUALIZACIÓN DE LA HACIENDA PÚBLICA/PATRIMONIO | H177: =D177+F177-E177 -> 0
A178: 32000 | B178: HACIENDA PÚBLICA/PATRIMONIO GENERADO | D178: =D179+D180+D181+D186+D190 -> 28802626.26 | E178: =E179+E180+E181+E186+E190 -> 0 | F178: =F179+F180+F181+F186+F190 -> 13250975.62 | H178: =H179+H180+H181+H186+H190 -> 42053601.88
A179: 32100 | B179: RESULTADOS DEL EJERCICIO (AHORRO/ DESAHORRO) | D179: =IF(C751>D752,C751,(D752)*-1) -> 12073953.71 | E179: =F752 -> 0 | F179: =E751 -> 13250975.62 | H179: =F179-E179 -> 13250975.62
A180: 32200 | B180: RESULTADOS DE EJERCICIOS ANTERIORES | D180: 16728672.55 | H180: =D179+D180+F180-E180 -> 28802626.26
A181: 32300 | B181: REVALÚOS | D181: =SUM(D182:D185) -> 0 | E181: =SUM(E182:E185) -> 0 | F181: =SUM(F182:F185) -> 0 | H181: =SUM(H182:H185) -> 0
A182: 32310 | B182: Revalúo de bienes inmuebles | H182: =D182+F182-E182 -> 0
A183: 32320 | B183: Revalúo de bienes muebles | H183: =D183+F183-E183 -> 0
A184: 32330 | B184: Revalúo de bienes intangibles | H184: =D184+F184-E184 -> 0
A185: 32390 | B185: Otros revalúos | H185: =D185+F185-E185 -> 0
A186: 32400 | B186: RESERVAS | D186: =SUM(D187:D189) -> 0 | E186: =SUM(E187:E189) -> 0 | F186: =SUM(F187:F189) -> 0 | H186: =SUM(H187:H189) -> 0
A187: 32410 | B187: Reservas de patrimonio | H187: =D187+F187-E187 -> 0
A188: 32420 | B188: Reservas territoriales | H188: =D188+F188-E188 -> 0
A189: 32430 | B189: Reservas por contingencias | H189: =D189+F189-E189 -> 0
A190: 32500 | B190: RECTIFICACIONES DE RESULTADOS DE EJERCICIOS ANTERIORES | D190: =SUM(D191:D192) -> 0 | E190: =SUM(E191:E192) -> 0 | F190: =SUM(F191:F192) -> 0 | H190: =SUM(H191:H192) -> 0
A191: 32510 | B191: Cambios en políticas contables | H191: =D191+F191-E191 -> 0
A192: 32520 | B192: Cambios por errores contables | H192: =D192+F192-E192 -> 0
A193: 33000 | B193: EXCESO O INSUFICIENCIA EN LA ACTUALIZACIÓN DE LA HACIENDA PÚBLICA/ PATRIMONIO | D193: =SUM(D194:D195) -> 0 | E193: =SUM(E194:E195) -> 0 | F193: =SUM(F194:F195) -> 0 | H193: =SUM(H194:H195) -> 0
A194: 33100 | B194: RESULTADO POR POSICIÓN MONETARIA | H194: =D194+F194-E194 -> 0
A195: 33200 | B195: RESULTADO POR TENENCIA DE ACTIVOS NO MONETARIOS | H195: =D195+F195-E195 -> 0
A196: 40000 | B196: INGRESOS Y OTROS BENEFICIOS | D196: =D197+D307+D355 -> 49351198 | E196: =E197+E307+E355 -> 0 | F196: =F197+F307+F355 -> 54878799.87 | H196: =H197+H307+H355 -> 54878799.87
A197: 41000 | B197: INGRESOS DE GESTIÓN | D197: =D198+D219+D225+D230+D262+D271+D292+D304 -> 9645868.57 | E197: =E198+E219+E225+E230+E262+E271+E292+E304 -> 0 | F197: =F198+F219+F225+F230+F262+F271+F292+F304 -> 11085521.64 | H197: =H198+H219+H225+H230+H262+H271+H292+H304 -> 11085521.64
A198: 41100 | B198: IMPUESTOS | D198: =D199+D201+D205+D206+D207+D208+D209+D215+D217 -> 4282314.98 | E198: =E199+E201+E205+E206+E207+E208+E209+E215+E217 -> 0 | F198: =F199+F201+F205+F206+F207+F208+F209+F215+F217 -> 4329071.44 | H198: =H199+H201+H205+H206+H207+H208+H209+H215+H217 -> 4329071.44
A199: 41110 | B199: Impuestos sobre los ingresos | D199: =SUM(D200) -> 15088 | E199: =SUM(E200) -> 0 | F199: =SUM(F200) -> 0 | H199: =F199-E199 -> 0
A200: 41110-1 | B200: Impuestos sobre espectáculos públicos | D200: 15088 | H200: =F200-E200 -> 0
... 2022 more rows

Sheet F3
A1: =Validacion!A2 -> Atemajac de Brizuela
A2: ESTADO DE FLUJOS DE EFECTIVO
A3: ='F6'!A3 -> Del 1° de Enero al 31 de Diciembre de 2022
A5: CONCEPTO | F5: 2022 | G5: 2021
A6: Flujos de efectivo de las actividades de operación
B7: Origen | F7: =SUM(F8:F17) -> 54878799.87 | G7: =SUM(G8:G17) -> 49351198
C8: Impuestos | F8: 4329071.44 | G8: 4282314.98
C9: Cuotas y aportaciones de seguridad social
C10: Contribuciones de mejoras
C11: Derechos | F11: 5890489.07 | G11: 4717158.67
C12: Productos | F12: 655224.46 | G12: 53968.85
C13: Aprovechamientos | F13: 210736.67 | G13: 592426.07
C14: Ingresos por venta de bienes y prestación servicios
C15: Participaciones, aportaciones, convenios, incentivos derivados de la colaboración fiscal y fondos distitntos de aportaciones | F15: 43793278.23 | G15: 39705329.43
C16: Transferencias, asignaciones, subsidios y subvenciones, y pensiones y jubilaciones
C17: Otros origenes de operación
B18: Aplicación | F18: =SUM(F19:F34) -> 41627824.25 | G18: =SUM(G19:G34) -> 37277244.29
C19: Servicios personales | F19: 18163725.76 | G19: 18118436.47
C20: Materiales y suministros | F20: 10149469.55 | G20: 3906677.51
C21: Servicios generales | F21: 9536080.22 | G21: 11709801.48
C22: Transferencias internas y asignaciones al sector público | G22: 1020000
C23: Transferencias al resto del sector público | F23: 1592504 | G23: 480000
C24: Subsidios y subvenciones | F24: 0 | G24: 2003874.62
C25: Ayudas sociales | F25: 2186044.72
C26: Pensiones y jubilaciones
C27: Transferencias a fideicomisos, mandatos y contratos análogos
C28: Transferencias a la seguridad ocial
C29: Donativos
C30: Transferencias al exterior
C31: Participaciones
C32: Aportaciones
C33: Convenios
C34: Otros aplicaciones de operación | G34: 38454.21
A35: Flujos netos de efectivo por actividades de operación | F35: =F7-F18 -> 13250975.62 | G35: =G7-G18 -> 12073953.71
A36: Flujos de efectivo de las actividades de inversión
B37: Origen | F37: =SUM(F38:F40) -> 0 | G37: =SUM(G38:G40) -> 0
C38: Bienes inmuebles, infraestructura y construcciones en proceso
C39: Bienes muebles
C40: Otros Orígenes de inversión
B41: Aplicación | F41: =SUM(F42:F44) -> 18657708.46 | G41: =SUM(G42:G44) -> 9322595.39
C42: Bienes inmuebles, infraestructura y construcciones en proceso | F42: 17721601.28 | G42: 8962182.42
C43: Bienes muebles | F43: 936107.18 | G43: 360412.97
C44: Otras aplicaciones de inversión | F44: 0
A45: Flujos netos de efectivo por actividades de inversión | F45: =F37-F41 -> -18657708.46 | G45: =G37-G41 -> -9322595.39
A46: Flujo de efectivo de las actividades de financiamiento
B47: Origen | F47: =F48+F51 -> 4756804.07 | G47: =G48+G51 -> 456120.23
C48: Endeudamiento neto | F48: =F49+F50 -> 0 | G48: =G49+G50 -> 195059.5
C49: Interno | G49: 195059.5
C50: Externo
C51: Otros origenes de financiamiento | F51: 4756804.07 | G51: 261060.73
B52: Aplicación | F52: =F53+F56 -> 28000 | G52: =G53+G56 -> 3881878.41
C53: Servicios de la deuda | F53: =F54+F55 -> 0 | G53: =G54+G55 -> 2450000
C54: Interno | F54: 0 | G54: 2450000
C55: Externo
C56: Otras aplicaciones de finaciamiento | F56: 28000 | G56: 1431878.41
A57: Flujos netos de efectivo por actividades de financiamiento | F57: =F47-F52 -> 4728804.07 | G57: =G47-G52 -> -3425758.18
A58: Incremento/disminución neta en el efectivo y equivalentes al efectivo | F58: =F35+F45+F57 -> -677928.77 | G58: =G35+G45+G57 -> -674399.86
A59: Efectivo y equivalentes al efectivo al inicio del ejercicio | F59: =G60 -> 765144.48 | G59: 1439544.34
A60: Efectivo y equivalentes al efectivo al final del ejercicio | F60: =F58+F59 -> 87215.71 | G60: =+G58+G59 -> 765144.48
A62: Bajo protesta de decir verdad declaramos que los estados financieros y sus notas, son razonablemente correctos y son responsabilidad del emisor.
C67: =Validacion!A7 -> C. SANTIAGO LEON CASTRO | E67: =Validacion!A9 -> L.T. JOCELYN SANCHEZ HERRERA
C69: Presidente Municipal o Titular del ente público | E69: Encargado de Hacienda Municipal o Responsable de las finanzas del ente público

Sheet F9-IDP
A1: CONCEPTO | J1: No. 1 | AJ1: CONCEPTO | AS1: No. 2 | BS1: CONCEPTO | CB1: No. 3 | DB1: CONCEPTO | DK1: No. 4 | EK1: CONCEPTO | ET1: No. 5 | FT1: CONCEPTO | GC1: No. 6 | HC1: CONCEPTO | HL1: No. 7 | IL1: CONCEPTO | IU1: No. 8 | JU1: CONCEPTO | KD1: No. 9 | LD1: CONCEPTO | LM1: No. 10
A2: TIPO DE OBLIGACIÓN: | J2: =IF(L2="Institución de crédito","1",IF(L2="Títulos y valores","2",IF(L2="Arrendamiento financiero","3",""))) -> 1 | K2: =IF(L2>0,".-","") -> .- | L2: Institución de crédito | AJ2: TIPO DE OBLIGACIÓN: | AS2: =IF(AU2="Institución de crédito","1",IF(AU2="Títulos y valores","2",IF(AU2="Arrendamiento financiero","3",""))) ->  | AT2: =IF(AU2>0,".-","") ->  | BS2: TIPO DE OBLIGACIÓN: | CB2: =IF(CD2="Institución de crédito","1",IF(CD2="Títulos y valores","2",IF(CD2="Arrendamiento financiero","3",""))) ->  | CC2: =IF(CD2>0,".-","") ->  | DB2: TIPO DE OBLIGACIÓN: | DK2: =IF(DM2="Institución de crédito","1",IF(DM2="Títulos y valores","2",IF(DM2="Arrendamiento financiero","3",""))) ->  | DL2: =IF(DM2>0,".-","") ->  | EK2: TIPO DE OBLIGACIÓN: | ET2: =IF(EV2="Institución de crédito","1",IF(EV2="Títulos y valores","2",IF(EV2="Arrendamiento financiero","3",""))) ->  | EU2: =IF(EV2>0,".-","") ->  | FT2: TIPO DE OBLIGACIÓN: | GC2: =IF(GE2="Institución de crédito","1",IF(GE2="Títulos y valores","2",IF(GE2="Arrendamiento financiero","3",""))) ->  | GD2: =IF(GE2>0,".-","") ->  | HC2: TIPO DE OBLIGACIÓN: | HL2: =IF(HN2="Institución de crédito","1",IF(HN2="Títulos y valores","2",IF(HN2="Arrendamiento financiero","3",""))) ->  | HM2: =IF(HN2>0,".-","") ->  | IL2: TIPO DE OBLIGACIÓN: | IU2: =IF(IW2="Institución de crédito","1",IF(IW2="Títulos y valores","2",IF(IW2="Arrendamiento financiero","3",""))) ->  | IV2: =IF(IW2>0,".-","") ->  | JU2: TIPO DE OBLIGACIÓN: | KD2: =IF(KF2="Institución de crédito","1",IF(KF2="Títulos y valores","2",IF(KF2="Arrendamiento financiero","3",""))) ->  | KE2: =IF(KF2>0,".-","") ->  | LD2: TIPO DE OBLIGACIÓN: | LM2: =IF(LO2="Institución de crédito","1",IF(LO2="Títulos y valores","2",IF(LO2="Arrendamiento financiero","3",""))) ->  | LN2: =IF(LO2>0,".-","") -> 
A3: NOMBRE DEL ACREEDOR: | J3: BANOBRAS | AJ3: NOMBRE DEL ACREEDOR: | BS3: NOMBRE DEL ACREEDOR: | DB3: NOMBRE DEL ACREEDOR: | EK3: NOMBRE DEL ACREEDOR: | FT3: NOMBRE DEL ACREEDOR: | HC3: NOMBRE DEL ACREEDOR: | IL3: NOMBRE DEL ACREEDOR: | JU3: NOMBRE DEL ACREEDOR: | LD3: NOMBRE DEL ACREEDOR:
A4: MONTO DISPUESTO: | J4: 0 | R4: FECHA DE INICIO: | Z4: 2022-01-01 | AJ4: MONTO DISPUESTO: | BA4: FECHA DE INICIO: | BS4: MONTO DISPUESTO: | CJ4: FECHA DE INICIO: | DB4: MONTO DISPUESTO: | DS4: FECHA DE INICIO: | EK4: MONTO DISPUESTO: | FB4: FECHA DE INICIO: | FT4: MONTO DISPUESTO: | GK4: FECHA DE INICIO: | HC4: MONTO DISPUESTO: | HT4: FECHA DE INICIO: | IL4: MONTO DISPUESTO: | JC4: FECHA DE INICIO: | JU4: MONTO DISPUESTO: | KL4: FECHA DE INICIO: | LD4: MONTO DISPUESTO: | LU4: FECHA DE INICIO:
R5: FECHA DE VENCIMIENTO: | Z5: 2022-12-31 | BA5: FECHA DE VENCIMIENTO: | CJ5: FECHA DE VENCIMIENTO: | DS5: FECHA DE VENCIMIENTO: | FB5: FECHA DE VENCIMIENTO: | GK5: FECHA DE VENCIMIENTO: | HT5: FECHA DE VENCIMIENTO: | JC5: FECHA DE VENCIMIENTO: | KL5: FECHA DE VENCIMIENTO: | LU5: FECHA DE VENCIMIENTO:
A6: SALDO AL 1° DE ENERO DE 2022 A CORTO PLAZO: | R6: 0 | AJ6: SALDO AL 1° DE ENERO DE 2022 A CORTO PLAZO: | BS6: SALDO AL 1° DE ENERO DE 2022 A CORTO PLAZO: | DB6: SALDO AL 1° DE ENERO DE 2022 A CORTO PLAZO: | EK6: SALDO AL 1° DE ENERO DE 2022 A CORTO PLAZO: | FT6: SALDO AL 1° DE ENERO DE 2022 A CORTO PLAZO: | HC6: SALDO AL 1° DE ENERO DE 2022 A CORTO PLAZO: | IL6: SALDO AL 1° DE ENERO DE 2022 A CORTO PLAZO: | JU6: SALDO AL 1° DE ENERO DE 2022 A CORTO PLAZO: | LD6: SALDO AL 1° DE ENERO DE 2022 A CORTO PLAZO:
A7: SALDO AL 1° DE ENERO DE 2022 A LARGO PLAZO: | R7: 0 | AJ7: SALDO AL 1° DE ENERO DE 2022 A LARGO PLAZO: | BS7: SALDO AL 1° DE ENERO DE 2022 A LARGO PLAZO: | DB7: SALDO AL 1° DE ENERO DE 2022 A LARGO PLAZO: | EK7: SALDO AL 1° DE ENERO DE 2022 A LARGO PLAZO: | FT7: SALDO AL 1° DE ENERO DE 2022 A LARGO PLAZO: | HC7: SALDO AL 1° DE ENERO DE 2022 A LARGO PLAZO: | IL7: SALDO AL 1° DE ENERO DE 2022 A LARGO PLAZO: | JU7: SALDO AL 1° DE ENERO DE 2022 A LARGO PLAZO: | LD7: SALDO AL 1° DE ENERO DE 2022 A LARGO PLAZO:
A8: OBLIGACIONES A LARGO PLAZO | AJ8: OBLIGACIONES A LARGO PLAZO | BS8: OBLIGACIONES A LARGO PLAZO | DB8: OBLIGACIONES A LARGO PLAZO | EK8: OBLIGACIONES A LARGO PLAZO | FT8: OBLIGACIONES A LARGO PLAZO | HC8: OBLIGACIONES A LARGO PLAZO | IL8: OBLIGACIONES A LARGO PLAZO | JU8: OBLIGACIONES A LARGO PLAZO | LD8: OBLIGACIONES A LARGO PLAZO
A9: CONCEPTO | E9: DISPOSICIÓN | K9: AMORTIZACIÓN | Q9: REVALUACIONES | W9: INTERÉS | AC9: COMISIONES | AJ9: CONCEPTO | AN9: DISPOSICIÓN | AT9: AMORTIZACIÓN | AZ9: REVALUACIONES | BF9: INTERÉS | BL9: COMISIONES | BS9: CONCEPTO | BW9: DISPOSICIÓN | CC9: AMORTIZACIÓN | CI9: REVALUACIONES | CO9: INTERÉS | CU9: COMISIONES | DB9: CONCEPTO | DF9: DISPOSICIÓN | DL9: AMORTIZACIÓN | DR9: REVALUACIONES | DX9: INTERÉS | ED9: COMISIONES | EK9: CONCEPTO | EO9: DISPOSICIÓN | EU9: AMORTIZACIÓN | FA9: REVALUACIONES | FG9: INTERÉS | FM9: COMISIONES | FT9: CONCEPTO | FX9: DISPOSICIÓN | GD9: AMORTIZACIÓN | GJ9: REVALUACIONES | GP9: INTERÉS | GV9: COMISIONES | HC9: CONCEPTO | HG9: DISPOSICIÓN | HM9: AMORTIZACIÓN | HS9: REVALUACIONES | HY9: INTERÉS | IE9: COMISIONES | IL9: CONCEPTO | IP9: DISPOSICIÓN | IV9: AMORTIZACIÓN | JB9: REVALUACIONES | JH9: INTERÉS | JN9: COMISIONES | JU9: CONCEPTO | JY9: DISPOSICIÓN | KE9: AMORTIZACIÓN | KK9: REVALUACIONES | KQ9: INTERÉS | KW9: COMISIONES | LD9: CONCEPTO | LH9: DISPOSICIÓN | LN9: AMORTIZACIÓN | LT9: REVALUACIONES | LZ9: INTERÉS | MF9: COMISIONES
A10: Largo Plazo | E10: 0 | K10: 0 | Q10: 0 | W10: 0 | AC10: 0 | AJ10: Largo Plazo | BS10: Largo Plazo | DB10: Largo Plazo | EK10: Largo Plazo | FT10: Largo Plazo | HC10: Largo Plazo | IL10: Largo Plazo | JU10: Largo Plazo | LD10: Largo Plazo
A11: OBLIGACIONES A CORTO PLAZO | AJ11: OBLIGACIONES A CORTO PLAZO | BS11: OBLIGACIONES A CORTO PLAZO | DB11: OBLIGACIONES A CORTO PLAZO | EK11: OBLIGACIONES A CORTO PLAZO | FT11: OBLIGACIONES A CORTO PLAZO | HC11: OBLIGACIONES A CORTO PLAZO | IL11: OBLIGACIONES A CORTO PLAZO | JU11: OBLIGACIONES A CORTO PLAZO | LD11: OBLIGACIONES A CORTO PLAZO
A12: MES | E12: DISPOSICIÓN | K12: AMORTIZACIÓN | Q12: REVALUACIONES | W12: INTERÉS | AC12: COMISIONES | AJ12: MES | AN12: DISPOSICIÓN | AT12: AMORTIZACIÓN | AZ12: REVALUACIONES | BF12: INTERÉS | BL12: COMISIONES | BS12: MES | BW12: DISPOSICIÓN | CC12: AMORTIZACIÓN | CI12: REVALUACIONES | CO12: INTERÉS | CU12: COMISIONES | DB12: MES | DF12: DISPOSICIÓN | DL12: AMORTIZACIÓN | DR12: REVALUACIONES | DX12: INTERÉS | ED12: COMISIONES | EK12: MES | EO12: DISPOSICIÓN | EU12: AMORTIZACIÓN | FA12: REVALUACIONES | FG12: INTERÉS | FM12: COMISIONES | FT12: MES | FX12: DISPOSICIÓN | GD12: AMORTIZACIÓN | GJ12: REVALUACIONES | GP12: INTERÉS | GV12: COMISIONES | HC12: MES | HG12: DISPOSICIÓN | HM12: AMORTIZACIÓN | HS12: REVALUACIONES | HY12: INTERÉS | IE12: COMISIONES | IL12: MES | IP12: DISPOSICIÓN | IV12: AMORTIZACIÓN | JB12: REVALUACIONES | JH12: INTERÉS | JN12: COMISIONES | JU12: MES | JY12: DISPOSICIÓN | KE12: AMORTIZACIÓN | KK12: REVALUACIONES | KQ12: INTERÉS | KW12: COMISIONES | LD12: MES | LH12: DISPOSICIÓN | LN12: AMORTIZACIÓN | LT12: REVALUACIONES | LZ12: INTERÉS | MF12: COMISIONES
A13: ENERO | E13: 0 | K13: 0 | Q13: 0 | W13: 0 | AC13: 0 | AJ13: ENERO | BS13: ENERO | DB13: ENERO | EK13: ENERO | FT13: ENERO | HC13: ENERO | IL13: ENERO | JU13: ENERO | LD13: ENERO
A14: FEBRERO | AJ14: FEBRERO | BS14: FEBRERO | DB14: FEBRERO | EK14: FEBRERO | FT14: FEBRERO | HC14: FEBRERO | IL14: FEBRERO | JU14: FEBRERO | LD14: FEBRERO
A15: MARZO | AJ15: MARZO | BS15: MARZO | DB15: MARZO | EK15: MARZO | FT15: MARZO | HC15: MARZO | IL15: MARZO | JU15: MARZO | LD15: MARZO
A16: ABRIL | AJ16: ABRIL | BS16: ABRIL | DB16: ABRIL | EK16: ABRIL | FT16: ABRIL | HC16: ABRIL | IL16: ABRIL | JU16: ABRIL | LD16: ABRIL
A17: MAYO | AJ17: MAYO | BS17: MAYO | DB17: MAYO | EK17: MAYO | FT17: MAYO | HC17: MAYO | IL17: MAYO | JU17: MAYO | LD17: MAYO
A18: JUNIO | AJ18: JUNIO | BS18: JUNIO | DB18: JUNIO | EK18: JUNIO | FT18: JUNIO | HC18: JUNIO | IL18: JUNIO | JU18: JUNIO | LD18: JUNIO
A19: JULIO | AJ19: JULIO | BS19: JULIO | DB19: JULIO | EK19: JULIO | FT19: JULIO | HC19: JULIO | IL19: JULIO | JU19: JULIO | LD19: JULIO
A20: AGOSTO | AJ20: AGOSTO | BS20: AGOSTO | DB20: AGOSTO | EK20: AGOSTO | FT20: AGOSTO | HC20: AGOSTO | IL20: AGOSTO | JU20: AGOSTO | LD20: AGOSTO
A21: SEPTIEMBRE | AJ21: SEPTIEMBRE | BS21: SEPTIEMBRE | DB21: SEPTIEMBRE | EK21: SEPTIEMBRE | FT21: SEPTIEMBRE | HC21: SEPTIEMBRE | IL21: SEPTIEMBRE | JU21: SEPTIEMBRE | LD21: SEPTIEMBRE
A22: OCTUBRE | AJ22: OCTUBRE | BS22: OCTUBRE | DB22: OCTUBRE | EK22: OCTUBRE | FT22: OCTUBRE | HC22: OCTUBRE | IL22: OCTUBRE | JU22: OCTUBRE | LD22: OCTUBRE
A23: NOVIEMBRE | AJ23: NOVIEMBRE | BS23: NOVIEMBRE | DB23: NOVIEMBRE | EK23: NOVIEMBRE | FT23: NOVIEMBRE | HC23: NOVIEMBRE | IL23: NOVIEMBRE | JU23: NOVIEMBRE | LD23: NOVIEMBRE
A24: DICIEMBRE | AJ24: DICIEMBRE | BS24: DICIEMBRE | DB24: DICIEMBRE | EK24: DICIEMBRE | FT24: DICIEMBRE | HC24: DICIEMBRE | IL24: DICIEMBRE | JU24: DICIEMBRE | LD24: DICIEMBRE
A25: SUMA | E25: =SUM(E13:J24) -> 0 | K25: =SUM(K13:P24) -> 0 | Q25: =SUM(Q13:V24) -> 0 | W25: =SUM(W13:AB24) -> 0 | AC25: =SUM(AC13:AH24) -> 0 | AJ25: SUMA | AN25: =SUM(AN13:AS24) -> 0 | AT25: =SUM(AT13:AY24) -> 0 | AZ25: =SUM(AZ13:BE24) -> 0 | BF25: =SUM(BF13:BK24) -> 0 | BL25: =SUM(BL13:BQ24) -> 0 | BS25: SUMA | BW25: =SUM(BW13:CB24) -> 0 | CC25: =SUM(CC13:CH24) -> 0 | CI25: =SUM(CI13:CN24) -> 0 | CO25: =SUM(CO13:CT24) -> 0 | CU25: =SUM(CU13:CZ24) -> 0 | DB25: SUMA | DF25: =SUM(DF13:DK24) -> 0 | DL25: =SUM(DL13:DQ24) -> 0 | DR25: =SUM(DR13:DW24) -> 0 | DX25: =SUM(DX13:EC24) -> 0 | ED25: =SUM(ED13:EI24) -> 0 | EK25: SUMA | EO25: =SUM(EO13:ET24) -> 0 | EU25: =SUM(EU13:EZ24) -> 0 | FA25: =SUM(FA13:FF24) -> 0 | FG25: =SUM(FG13:FL24) -> 0 | FM25: =SUM(FM13:FR24) -> 0 | FT25: SUMA | FX25: =SUM(FX13:GC24) -> 0 | GD25: =SUM(GD13:GI24) -> 0 | GJ25: =SUM(GJ13:GO24) -> 0 | GP25: =SUM(GP13:GU24) -> 0 | GV25: =SUM(GV13:HA24) -> 0 | HC25: SUMA | HG25: =SUM(HG13:HL24) -> 0 | HM25: =SUM(HM13:HR24) -> 0 | HS25: =SUM(HS13:HX24) -> 0 | HY25: =SUM(HY13:ID24) -> 0 | IE25: =SUM(IE13:IJ24) -> 0 | IL25: SUMA | IP25: =SUM(IP13:IU24) -> 0 | IV25: =SUM(IV13:JA24) -> 0 | JB25: =SUM(JB13:JG24) -> 0 | JH25: =SUM(JH13:JM24) -> 0 | JN25: =SUM(JN13:JS24) -> 0 | JU25: SUMA | JY25: =SUM(JY13:KD24) -> 0 | KE25: =SUM(KE13:KJ24) -> 0 | KK25: =SUM(KK13:KP24) -> 0 | KQ25: =SUM(KQ13:KV24) -> 0 | KW25: =SUM(KW13:LB24) -> 0 | LD25: SUMA | LH25: =SUM(LH13:LM24) -> 0 | LN25: =SUM(LN13:LS24) -> 0 | LT25: =SUM(LT13:LY24) -> 0 | LZ25: =SUM(LZ13:ME24) -> 0 | MF25: =SUM(MF13:MK24) -> 0

Sheet F9-EDP
A1: =Validacion!A2 -> Atemajac de Brizuela
A2: ESTADO E INFORME ANALÍTICO DE LA DEUDA PÚBLICA Y OTROS PASIVOS
A3: =IF(Validacion!A11="ENERO",Validacion!E150,"Del 1° de Enero al "&INDEX(Validacion!D150:D161,MATCH(Validacion!A11,Validacion!C150:C161,0))) -> Del 1° de Enero al 31 de Diciembre de 2022
A5: Denominación de la deuda pública y otros pasivos | N5: Saldo al 1° de enero de 2022 | U5: Disposiciones del periodo | AB5: Amortizaciones del periodo | AI5: Revaluaciones, reclasificaciones y otros ajustes | AP5: Saldo del periodo | AW5: Pago de intereses del periodo | BD5: Pago de comisiones y demás costos asociados duarante el periodo
A10: Deuda Pública
B11: Corto Plazo | N11: =SUM(N12:T14) -> 0 | U11: =SUM(U12:AA14) -> 0 | AB11: =SUM(AB12:AH14) -> 0 | AI11: =SUM(AI12:AO14) -> 0 | AP11: =SUM(AP12:AV14) -> 0 | AW11: =SUM(AW12:BC14) -> 0 | BD11: =SUM(BD12:BJ14) -> 0
C12: Instituciones de Crédito | N12: =IF('F9-IDP'!$J$2="1",'F9-IDP'!$R$6,0)+IF('F9-IDP'!$AS$2="1",'F9-IDP'!$BA$6,0)+IF('F9-IDP'!$CB$2="1",'F9-IDP'!$CJ$6,0)+IF('F9-IDP'!$DK$2="1",'F9-IDP'!$DS$6,0)+IF('F9-IDP'!$ET$2="1",'F9-IDP'!$FB$6,0)+IF('F9-IDP'!$GC$2="1",'F9-IDP'!$GK$6,0)+IF('F9-IDP'!$HL$2="1",'F9-IDP'!$HT$6,0)+IF('F9-IDP'!$IU$2="1",'F9-IDP'!$JC$6,0)+IF('F9-IDP'!$KD$2="1",'F9-IDP'!$KL$6,0)+IF('F9-IDP'!$LM$2="1",'F9-IDP'!$LU$6,0) -> 0 | U12: =IF('F9-IDP'!$J$2="1",'F9-IDP'!$E$25,0)+IF('F9-IDP'!$AS$2="1",'F9-IDP'!$AN$25,0)+IF('F9-IDP'!$CB$2="1",'F9-IDP'!$BW$25,0)+IF('F9-IDP'!$DK$2="1",'F9-IDP'!$DF$25,0)+IF('F9-IDP'!$ET$2="1",'F9-IDP'!$EO$25,0)+IF('F9-IDP'!$GC$2="1",'F9-IDP'!$FX$25,0)+IF('F9-IDP'!$HL$2="1",'F9-IDP'!$HG$25,0)+IF('F9-IDP'!$IU$2="1",'F9-IDP'!$IP$25,0)+IF('F9-IDP'!$KD$2="1",'F9-IDP'!$JY$25,0)+IF('F9-IDP'!$LM$2="1",'F9-IDP'!$LH$25,0) -> 0 | AB12: =IF('F9-IDP'!$J$2="1",'F9-IDP'!$K$25,0)+IF('F9-IDP'!$AS$2="1",'F9-IDP'!$AT$25,0)+IF('F9-IDP'!$CB$2="1",'F9-IDP'!$CC$25,0)+IF('F9-IDP'!$DK$2="1",'F9-IDP'!$DL$25,0)+IF('F9-IDP'!$ET$2="1",'F9-IDP'!$EU$25,0)+IF('F9-IDP'!$GC$2="1",'F9-IDP'!$GD$25,0)+IF('F9-IDP'!$HL$2="1",'F9-IDP'!$HM$25,0)+IF('F9-IDP'!$IU$2="1",'F9-IDP'!$IV$25,0)+IF('F9-IDP'!$KD$2="1",'F9-IDP'!$KE$25,0)+IF('F9-IDP'!$LM$2="1",'F9-IDP'!$LN$25,0) -> 0 | AI12: =IF('F9-IDP'!$J$2="1",'F9-IDP'!$Q$25,0)+IF('F9-IDP'!$AS$2="1",'F9-IDP'!$AZ$25,0)+IF('F9-IDP'!$CB$2="1",'F9-IDP'!$CI$25,0)+IF('F9-IDP'!$DK$2="1",'F9-IDP'!$DR$25,0)+IF('F9-IDP'!$ET$2="1",'F9-IDP'!$FA$25,0)+IF('F9-IDP'!$GC$2="1",'F9-IDP'!$GJ$25,0)+IF('F9-IDP'!$HL$2="1",'F9-IDP'!$HS$25,0)+IF('F9-IDP'!$IU$2="1",'F9-IDP'!$JB$25,0)+IF('F9-IDP'!$KD$2="1",'F9-IDP'!$KK$25,0)+IF('F9-IDP'!$LM$2="1",'F9-IDP'!$LT$25,0) -> 0 | AP12: =N12+U12-AB12+AI12 -> 0 | AW12: =IF('F9-IDP'!$J$2="1",'F9-IDP'!$W$25,0)+IF('F9-IDP'!$AS$2="1",'F9-IDP'!$BF$25,0)+IF('F9-IDP'!$CB$2="1",'F9-IDP'!$CO$25,0)+IF('F9-IDP'!$DK$2="1",'F9-IDP'!$DX$25,0)+IF('F9-IDP'!$ET$2="1",'F9-IDP'!$FG$25,0)+IF('F9-IDP'!$GC$2="1",'F9-IDP'!$GP$25,0)+IF('F9-IDP'!$HL$2="1",'F9-IDP'!$HY$25,0)+IF('F9-IDP'!$IU$2="1",'F9-IDP'!$JH$25,0)+IF('F9-IDP'!$KD$2="1",'F9-IDP'!$KQ$25,0)+IF('F9-IDP'!$LM$2="1",'F9-IDP'!$LZ$25,0) -> 0 | BD12: =IF('F9-IDP'!$J$2="1",'F9-IDP'!$AC$25,0)+IF('F9-IDP'!$AS$2="1",'F9-IDP'!$BL$25,0)+IF('F9-IDP'!$CB$2="1",'F9-IDP'!$CU$25,0)+IF('F9-IDP'!$DK$2="1",'F9-IDP'!$ED$25,0)+IF('F9-IDP'!$ET$2="1",'F9-IDP'!$FM$25,0)+IF('F9-IDP'!$GC$2="1",'F9-IDP'!$GV$25,0)+IF('F9-IDP'!$HL$2="1",'F9-IDP'!$IE$25,0)+IF('F9-IDP'!$IU$2="1",'F9-IDP'!$JN$25,0)+IF('F9-IDP'!$KD$2="1",'F9-IDP'!$KW$25,0)+IF('F9-IDP'!$LM$2="1",'F9-IDP'!$MF$25,0) -> 0
C13: Títulos y Valores | N13: =IF('F9-IDP'!$J$2="2",'F9-IDP'!$R$6,0)+IF('F9-IDP'!$AS$2="2",'F9-IDP'!$BA$6,0)+IF('F9-IDP'!$CB$2="2",'F9-IDP'!$CJ$6,0)+IF('F9-IDP'!$DK$2="2",'F9-IDP'!$DS$6,0)+IF('F9-IDP'!$ET$2="2",'F9-IDP'!$FB$6,0)+IF('F9-IDP'!$GC$2="2",'F9-IDP'!$GK$6,0)+IF('F9-IDP'!$HL$2="2",'F9-IDP'!$HT$6,0)+IF('F9-IDP'!$IU$2="2",'F9-IDP'!$JC$6,0)+IF('F9-IDP'!$KD$2="2",'F9-IDP'!$KL$6,0)+IF('F9-IDP'!$LM$2="2",'F9-IDP'!$LU$6,0) -> 0 | U13: =IF('F9-IDP'!$J$2="2",'F9-IDP'!$E$25,0)+IF('F9-IDP'!$AS$2="2",'F9-IDP'!$AN$25,0)+IF('F9-IDP'!$CB$2="2",'F9-IDP'!$BW$25,0)+IF('F9-IDP'!$DK$2="2",'F9-IDP'!$DF$25,0)+IF('F9-IDP'!$ET$2="2",'F9-IDP'!$EO$25,0)+IF('F9-IDP'!$GC$2="2",'F9-IDP'!$FX$25,0)+IF('F9-IDP'!$HL$2="2",'F9-IDP'!$HG$25,0)+IF('F9-IDP'!$IU$2="2",'F9-IDP'!$IP$25,0)+IF('F9-IDP'!$KD$2="2",'F9-IDP'!$JY$25,0)+IF('F9-IDP'!$LM$2="2",'F9-IDP'!$LH$25,0) -> 0 | AB13: =IF('F9-IDP'!$J$2="2",'F9-IDP'!$K$25,0)+IF('F9-IDP'!$AS$2="2",'F9-IDP'!$AT$25,0)+IF('F9-IDP'!$CB$2="2",'F9-IDP'!$CC$25,0)+IF('F9-IDP'!$DK$2="2",'F9-IDP'!$DL$25,0)+IF('F9-IDP'!$ET$2="2",'F9-IDP'!$EU$25,0)+IF('F9-IDP'!$GC$2="2",'F9-IDP'!$GD$25,0)+IF('F9-IDP'!$HL$2="2",'F9-IDP'!$HM$25,0)+IF('F9-IDP'!$IU$2="2",'F9-IDP'!$IV$25,0)+IF('F9-IDP'!$KD$2="2",'F9-IDP'!$KE$25,0)+IF('F9-IDP'!$LM$2="2",'F9-IDP'!$LN$25,0) -> 0 | AI13: =IF('F9-IDP'!$J$2="2",'F9-IDP'!$Q$25,0)+IF('F9-IDP'!$AS$2="2",'F9-IDP'!$AZ$25,0)+IF('F9-IDP'!$CB$2="2",'F9-IDP'!$CI$25,0)+IF('F9-IDP'!$DK$2="2",'F9-IDP'!$DR$25,0)+IF('F9-IDP'!$ET$2="2",'F9-IDP'!$FA$25,0)+IF('F9-IDP'!$GC$2="2",'F9-IDP'!$GJ$25,0)+IF('F9-IDP'!$HL$2="2",'F9-IDP'!$HS$25,0)+IF('F9-IDP'!$IU$2="2",'F9-IDP'!$JB$25,0)+IF('F9-IDP'!$KD$2="2",'F9-IDP'!$KK$25,0)+IF('F9-IDP'!$LM$2="2",'F9-IDP'!$LT$25,0) -> 0 | AP13: =N13+U13-AB13+AI13 -> 0 | AW13: =IF('F9-IDP'!$J$2="2",'F9-IDP'!$W$25,0)+IF('F9-IDP'!$AS$2="2",'F9-IDP'!$BF$25,0)+IF('F9-IDP'!$CB$2="2",'F9-IDP'!$CO$25,0)+IF('F9-IDP'!$DK$2="2",'F9-IDP'!$DX$25,0)+IF('F9-IDP'!$ET$2="2",'F9-IDP'!$FG$25,0)+IF('F9-IDP'!$GC$2="2",'F9-IDP'!$GP$25,0)+IF('F9-IDP'!$HL$2="2",'F9-IDP'!$HY$25,0)+IF('F9-IDP'!$IU$2="2",'F9-IDP'!$JH$25,0)+IF('F9-IDP'!$KD$2="2",'F9-IDP'!$KQ$25,0)+IF('F9-IDP'!$LM$2="2",'F9-IDP'!$LZ$25,0) -> 0 | BD13: =IF('F9-IDP'!$J$2="2",'F9-IDP'!$AC$25,0)+IF('F9-IDP'!$AS$2="2",'F9-IDP'!$BL$25,0)+IF('F9-IDP'!$CB$2="2",'F9-IDP'!$CU$25,0)+IF('F9-IDP'!$DK$2="2",'F9-IDP'!$ED$25,0)+IF('F9-IDP'!$ET$2="2",'F9-IDP'!$FM$25,0)+IF('F9-IDP'!$GC$2="2",'F9-IDP'!$GV$25,0)+IF('F9-IDP'!$HL$2="2",'F9-IDP'!$IE$25,0)+IF('F9-IDP'!$IU$2="2",'F9-IDP'!$JN$25,0)+IF('F9-IDP'!$KD$2="2",'F9-IDP'!$KW$25,0)+IF('F9-IDP'!$LM$2="2",'F9-IDP'!$MF$25,0) -> 0
C14: Arrendamiento Financiero | N14: =IF('F9-IDP'!$J$2="3",'F9-IDP'!$R$6,0)+IF('F9-IDP'!$AS$2="3",'F9-IDP'!$BA$6,0)+IF('F9-IDP'!$CB$2="3",'F9-IDP'!$CJ$6,0)+IF('F9-IDP'!$DK$2="3",'F9-IDP'!$DS$6,0)+IF('F9-IDP'!$ET$2="3",'F9-IDP'!$FB$6,0)+IF('F9-IDP'!$GC$2="3",'F9-IDP'!$GK$6,0)+IF('F9-IDP'!$HL$2="3",'F9-IDP'!$HT$6,0)+IF('F9-IDP'!$IU$2="3",'F9-IDP'!$JC$6,0)+IF('F9-IDP'!$KD$2="3",'F9-IDP'!$KL$6,0)+IF('F9-IDP'!$LM$2="3",'F9-IDP'!$LU$6,0) -> 0 | U14: =IF('F9-IDP'!$J$2="3",'F9-IDP'!$E$25,0)+IF('F9-IDP'!$AS$2="3",'F9-IDP'!$AN$25,0)+IF('F9-IDP'!$CB$2="3",'F9-IDP'!$BW$25,0)+IF('F9-IDP'!$DK$2="3",'F9-IDP'!$DF$25,0)+IF('F9-IDP'!$ET$2="3",'F9-IDP'!$EO$25,0)+IF('F9-IDP'!$GC$2="3",'F9-IDP'!$FX$25,0)+IF('F9-IDP'!$HL$2="3",'F9-IDP'!$HG$25,0)+IF('F9-IDP'!$IU$2="3",'F9-IDP'!$IP$25,0)+IF('F9-IDP'!$KD$2="3",'F9-IDP'!$JY$25,0)+IF('F9-IDP'!$LM$2="3",'F9-IDP'!$LH$25,0) -> 0 | AB14: =IF('F9-IDP'!$J$2="3",'F9-IDP'!$K$25,0)+IF('F9-IDP'!$AS$2="3",'F9-IDP'!$AT$25,0)+IF('F9-IDP'!$CB$2="3",'F9-IDP'!$CC$25,0)+IF('F9-IDP'!$DK$2="3",'F9-IDP'!$DL$25,0)+IF('F9-IDP'!$ET$2="3",'F9-IDP'!$EU$25,0)+IF('F9-IDP'!$GC$2="3",'F9-IDP'!$GD$25,0)+IF('F9-IDP'!$HL$2="3",'F9-IDP'!$HM$25,0)+IF('F9-IDP'!$IU$2="3",'F9-IDP'!$IV$25,0)+IF('F9-IDP'!$KD$2="3",'F9-IDP'!$KE$25,0)+IF('F9-IDP'!$LM$2="3",'F9-IDP'!$LN$25,0) -> 0 | AI14: =IF('F9-IDP'!$J$2="3",'F9-IDP'!$Q$25,0)+IF('F9-IDP'!$AS$2="3",'F9-IDP'!$AZ$25,0)+IF('F9-IDP'!$CB$2="3",'F9-IDP'!$CI$25,0)+IF('F9-IDP'!$DK$2="3",'F9-IDP'!$DR$25,0)+IF('F9-IDP'!$ET$2="3",'F9-IDP'!$FA$25,0)+IF('F9-IDP'!$GC$2="3",'F9-IDP'!$GJ$25,0)+IF('F9-IDP'!$HL$2="3",'F9-IDP'!$HS$25,0)+IF('F9-IDP'!$IU$2="3",'F9-IDP'!$JB$25,0)+IF('F9-IDP'!$KD$2="3",'F9-IDP'!$KK$25,0)+IF('F9-IDP'!$LM$2="3",'F9-IDP'!$LT$25,0) -> 0 | AP14: =N14+U14-AB14+AI14 -> 0 | AW14: =IF('F9-IDP'!$J$2="3",'F9-IDP'!$W$25,0)+IF('F9-IDP'!$AS$2="3",'F9-IDP'!$BF$25,0)+IF('F9-IDP'!$CB$2="3",'F9-IDP'!$CO$25,0)+IF('F9-IDP'!$DK$2="3",'F9-IDP'!$DX$25,0)+IF('F9-IDP'!$ET$2="3",'F9-IDP'!$FG$25,0)+IF('F9-IDP'!$GC$2="3",'F9-IDP'!$GP$25,0)+IF('F9-IDP'!$HL$2="3",'F9-IDP'!$HY$25,0)+IF('F9-IDP'!$IU$2="3",'F9-IDP'!$JH$25,0)+IF('F9-IDP'!$KD$2="3",'F9-IDP'!$KQ$25,0)+IF('F9-IDP'!$LM$2="3",'F9-IDP'!$LZ$25,0) -> 0 | BD14: =IF('F9-IDP'!$J$2="3",'F9-IDP'!$AC$25,0)+IF('F9-IDP'!$AS$2="3",'F9-IDP'!$BL$25,0)+IF('F9-IDP'!$CB$2="3",'F9-IDP'!$CU$25,0)+IF('F9-IDP'!$DK$2="3",'F9-IDP'!$ED$25,0)+IF('F9-IDP'!$ET$2="3",'F9-IDP'!$FM$25,0)+IF('F9-IDP'!$GC$2="3",'F9-IDP'!$GV$25,0)+IF('F9-IDP'!$HL$2="3",'F9-IDP'!$IE$25,0)+IF('F9-IDP'!$IU$2="3",'F9-IDP'!$JN$25,0)+IF('F9-IDP'!$KD$2="3",'F9-IDP'!$KW$25,0)+IF('F9-IDP'!$LM$2="3",'F9-IDP'!$MF$25,0) -> 0
B15: Largo Plazo | N15: =SUM(N16:T18) -> 0 | U15: =SUM(U16:AA18) -> 0 | AB15: =SUM(AB16:AH18) -> 0 | AI15: =SUM(AI16:AO18) -> 0 | AP15: =SUM(AP16:AV18) -> 0 | AW15: =SUM(AW16:BC18) -> 0 | BD15: =SUM(BD16:BJ18) -> 0
C16: Instituciones de Crédito | N16: =IF('F9-IDP'!$J$2="1",'F9-IDP'!$R$7,0)+IF('F9-IDP'!$AS$2="1",'F9-IDP'!$BA$7,0)+IF('F9-IDP'!$CB$2="1",'F9-IDP'!$CJ$7,0)+IF('F9-IDP'!$DK$2="1",'F9-IDP'!$DS$7,0)+IF('F9-IDP'!$ET$2="1",'F9-IDP'!$FB$7,0)+IF('F9-IDP'!$GC$2="1",'F9-IDP'!$GK$7,0)+IF('F9-IDP'!$HL$2="1",'F9-IDP'!$HT$7,0)+IF('F9-IDP'!$IU$2="1",'F9-IDP'!$JC$7,0)+IF('F9-IDP'!$KD$2="1",'F9-IDP'!$KL$7,0)+IF('F9-IDP'!$LM$2="1",'F9-IDP'!$LU$7,0) -> 0 | U16: =IF('F9-IDP'!$J$2="1",'F9-IDP'!$E$10,0)+IF('F9-IDP'!$AS$2="1",'F9-IDP'!$AN$10,0)+IF('F9-IDP'!$CB$2="1",'F9-IDP'!$BW$10,0)+IF('F9-IDP'!$DK$2="1",'F9-IDP'!$DF$10,0)+IF('F9-IDP'!$ET$2="1",'F9-IDP'!$EO$10,0)+IF('F9-IDP'!$GC$2="1",'F9-IDP'!$FX$10,0)+IF('F9-IDP'!$HL$2="1",'F9-IDP'!$HG$10,0)+IF('F9-IDP'!$IU$2="1",'F9-IDP'!$IP$10,0)+IF('F9-IDP'!$KD$2="1",'F9-IDP'!$JY$10,0)+IF('F9-IDP'!$LM$2="1",'F9-IDP'!$LH$10,0) -> 0 | AB16: =IF('F9-IDP'!$J$2="1",'F9-IDP'!$K$10,0)+IF('F9-IDP'!$AS$2="1",'F9-IDP'!$AT$10,0)+IF('F9-IDP'!$CB$2="1",'F9-IDP'!$CC$10,0)+IF('F9-IDP'!$DK$2="1",'F9-IDP'!$DL$10,0)+IF('F9-IDP'!$ET$2="1",'F9-IDP'!$EU$10,0)+IF('F9-IDP'!$GC$2="1",'F9-IDP'!$GD$10,0)+IF('F9-IDP'!$HL$2="1",'F9-IDP'!$HM$10,0)+IF('F9-IDP'!$IU$2="1",'F9-IDP'!$IV$10,0)+IF('F9-IDP'!$KD$2="1",'F9-IDP'!$KE$10,0)+IF('F9-IDP'!$LM$2="1",'F9-IDP'!$LN$10,0) -> 0 | AI16: =IF('F9-IDP'!$J$2="1",'F9-IDP'!$Q$10,0)+IF('F9-IDP'!$AS$2="1",'F9-IDP'!$AZ$10,0)+IF('F9-IDP'!$CB$2="1",'F9-IDP'!$CI$10,0)+IF('F9-IDP'!$DK$2="1",'F9-IDP'!$DR$10,0)+IF('F9-IDP'!$ET$2="1",'F9-IDP'!$FA$10,0)+IF('F9-IDP'!$GC$2="1",'F9-IDP'!$GJ$10,0)+IF('F9-IDP'!$HL$2="1",'F9-IDP'!$HS$10,0)+IF('F9-IDP'!$IU$2="1",'F9-IDP'!$JB$10,0)+IF('F9-IDP'!$KD$2="1",'F9-IDP'!$KK$10,0)+IF('F9-IDP'!$LM$2="1",'F9-IDP'!$LT$10,0) -> 0 | AP16: =N16+U16-AB16+AI16 -> 0 | AW16: =IF('F9-IDP'!$J$2="1",'F9-IDP'!$W$10,0)+IF('F9-IDP'!$AS$2="1",'F9-IDP'!$BF$10,0)+IF('F9-IDP'!$CB$2="1",'F9-IDP'!$CO$10,0)+IF('F9-IDP'!$DK$2="1",'F9-IDP'!$DX$10,0)+IF('F9-IDP'!$ET$2="1",'F9-IDP'!$FG$10,0)+IF('F9-IDP'!$GC$2="1",'F9-IDP'!$GP$10,0)+IF('F9-IDP'!$HL$2="1",'F9-IDP'!$HY$10,0)+IF('F9-IDP'!$IU$2="1",'F9-IDP'!$JH$10,0)+IF('F9-IDP'!$KD$2="1",'F9-IDP'!$KQ$10,0)+IF('F9-IDP'!$LM$2="1",'F9-IDP'!$LZ$10,0) -> 0 | BD16: =IF('F9-IDP'!$J$2="1",'F9-IDP'!$AC$10,0)+IF('F9-IDP'!$AS$2="1",'F9-IDP'!$BL$10,0)+IF('F9-IDP'!$CB$2="1",'F9-IDP'!$CU$10,0)+IF('F9-IDP'!$DK$2="1",'F9-IDP'!$ED$10,0)+IF('F9-IDP'!$ET$2="1",'F9-IDP'!$FM$10,0)+IF('F9-IDP'!$GC$2="1",'F9-IDP'!$GV$10,0)+IF('F9-IDP'!$HL$2="1",'F9-IDP'!$IE$10,0)+IF('F9-IDP'!$IU$2="1",'F9-IDP'!$JN$10,0)+IF('F9-IDP'!$KD$2="1",'F9-IDP'!$KW$10,0)+IF('F9-IDP'!$LM$2="1",'F9-IDP'!$MF$10,0) -> 0
C17: Títulos y Valores | N17: =IF('F9-IDP'!$J$2="2",'F9-IDP'!$R$7,0)+IF('F9-IDP'!$AS$2="2",'F9-IDP'!$BA$7,0)+IF('F9-IDP'!$CB$2="2",'F9-IDP'!$CJ$7,0)+IF('F9-IDP'!$DK$2="2",'F9-IDP'!$DS$7,0)+IF('F9-IDP'!$ET$2="2",'F9-IDP'!$FB$7,0)+IF('F9-IDP'!$GC$2="2",'F9-IDP'!$GK$7,0)+IF('F9-IDP'!$HL$2="2",'F9-IDP'!$HT$7,0)+IF('F9-IDP'!$IU$2="2",'F9-IDP'!$JC$7,0)+IF('F9-IDP'!$KD$2="2",'F9-IDP'!$KL$7,0)+IF('F9-IDP'!$LM$2="2",'F9-IDP'!$LU$7,0) -> 0 | U17: =IF('F9-IDP'!$J$2="2",'F9-IDP'!$E$10,0)+IF('F9-IDP'!$AS$2="2",'F9-IDP'!$AN$10,0)+IF('F9-IDP'!$CB$2="2",'F9-IDP'!$BW$10,0)+IF('F9-IDP'!$DK$2="2",'F9-IDP'!$DF$10,0)+IF('F9-IDP'!$ET$2="2",'F9-IDP'!$EO$10,0)+IF('F9-IDP'!$GC$2="2",'F9-IDP'!$FX$10,0)+IF('F9-IDP'!$HL$2="2",'F9-IDP'!$HG$10,0)+IF('F9-IDP'!$IU$2="2",'F9-IDP'!$IP$10,0)+IF('F9-IDP'!$KD$2="2",'F9-IDP'!$JY$10,0)+IF('F9-IDP'!$LM$2="2",'F9-IDP'!$LH$10,0) -> 0 | AB17: =IF('F9-IDP'!$J$2="2",'F9-IDP'!$K$10,0)+IF('F9-IDP'!$AS$2="2",'F9-IDP'!$AT$10,0)+IF('F9-IDP'!$CB$2="2",'F9-IDP'!$CC$10,0)+IF('F9-IDP'!$DK$2="2",'F9-IDP'!$DL$10,0)+IF('F9-IDP'!$ET$2="2",'F9-IDP'!$EU$10,0)+IF('F9-IDP'!$GC$2="2",'F9-IDP'!$GD$10,0)+IF('F9-IDP'!$HL$2="2",'F9-IDP'!$HM$10,0)+IF('F9-IDP'!$IU$2="2",'F9-IDP'!$IV$10,0)+IF('F9-IDP'!$KD$2="2",'F9-IDP'!$KE$10,0)+IF('F9-IDP'!$LM$2="2",'F9-IDP'!$LN$10,0) -> 0 | AI17: =IF('F9-IDP'!$J$2="2",'F9-IDP'!$Q$10,0)+IF('F9-IDP'!$AS$2="2",'F9-IDP'!$AZ$10,0)+IF('F9-IDP'!$CB$2="2",'F9-IDP'!$CI$10,0)+IF('F9-IDP'!$DK$2="2",'F9-IDP'!$DR$10,0)+IF('F9-IDP'!$ET$2="2",'F9-IDP'!$FA$10,0)+IF('F9-IDP'!$GC$2="2",'F9-IDP'!$GJ$10,0)+IF('F9-IDP'!$HL$2="2",'F9-IDP'!$HS$10,0)+IF('F9-IDP'!$IU$2="2",'F9-IDP'!$JB$10,0)+IF('F9-IDP'!$KD$2="2",'F9-IDP'!$KK$10,0)+IF('F9-IDP'!$LM$2="2",'F9-IDP'!$LT$10,0) -> 0 | AP17: =N17+U17-AB17+AI17 -> 0 | AW17: =IF('F9-IDP'!$J$2="2",'F9-IDP'!$W$10,0)+IF('F9-IDP'!$AS$2="2",'F9-IDP'!$BF$10,0)+IF('F9-IDP'!$CB$2="2",'F9-IDP'!$CO$10,0)+IF('F9-IDP'!$DK$2="2",'F9-IDP'!$DX$10,0)+IF('F9-IDP'!$ET$2="2",'F9-IDP'!$FG$10,0)+IF('F9-IDP'!$GC$2="2",'F9-IDP'!$GP$10,0)+IF('F9-IDP'!$HL$2="2",'F9-IDP'!$HY$10,0)+IF('F9-IDP'!$IU$2="2",'F9-IDP'!$JH$10,0)+IF('F9-IDP'!$KD$2="2",'F9-IDP'!$KQ$10,0)+IF('F9-IDP'!$LM$2="2",'F9-IDP'!$LZ$10,0) -> 0 | BD17: =IF('F9-IDP'!$J$2="2",'F9-IDP'!$AC$10,0)+IF('F9-IDP'!$AS$2="2",'F9-IDP'!$BL$10,0)+IF('F9-IDP'!$CB$2="2",'F9-IDP'!$CU$10,0)+IF('F9-IDP'!$DK$2="2",'F9-IDP'!$ED$10,0)+IF('F9-IDP'!$ET$2="2",'F9-IDP'!$FM$10,0)+IF('F9-IDP'!$GC$2="2",'F9-IDP'!$GV$10,0)+IF('F9-IDP'!$HL$2="2",'F9-IDP'!$IE$10,0)+IF('F9-IDP'!$IU$2="2",'F9-IDP'!$JN$10,0)+IF('F9-IDP'!$KD$2="2",'F9-IDP'!$KW$10,0)+IF('F9-IDP'!$LM$2="2",'F9-IDP'!$MF$10,0) -> 0
C18: Arrendamiento Financiero | N18: =IF('F9-IDP'!$J$2="3",'F9-IDP'!$R$7,0)+IF('F9-IDP'!$AS$2="3",'F9-IDP'!$BA$7,0)+IF('F9-IDP'!$CB$2="3",'F9-IDP'!$CJ$7,0)+IF('F9-IDP'!$DK$2="3",'F9-IDP'!$DS$7,0)+IF('F9-IDP'!$ET$2="3",'F9-IDP'!$FB$7,0)+IF('F9-IDP'!$GC$2="3",'F9-IDP'!$GK$7,0)+IF('F9-IDP'!$HL$2="3",'F9-IDP'!$HT$7,0)+IF('F9-IDP'!$IU$2="3",'F9-IDP'!$JC$7,0)+IF('F9-IDP'!$KD$2="3",'F9-IDP'!$KL$7,0)+IF('F9-IDP'!$LM$2="3",'F9-IDP'!$LU$7,0) -> 0 | U18: =IF('F9-IDP'!$J$2="3",'F9-IDP'!$E$10,0)+IF('F9-IDP'!$AS$2="3",'F9-IDP'!$AN$10,0)+IF('F9-IDP'!$CB$2="3",'F9-IDP'!$BW$10,0)+IF('F9-IDP'!$DK$2="3",'F9-IDP'!$DF$10,0)+IF('F9-IDP'!$ET$2="3",'F9-IDP'!$EO$10,0)+IF('F9-IDP'!$GC$2="3",'F9-IDP'!$FX$10,0)+IF('F9-IDP'!$HL$2="3",'F9-IDP'!$HG$10,0)+IF('F9-IDP'!$IU$2="3",'F9-IDP'!$IP$10,0)+IF('F9-IDP'!$KD$2="3",'F9-IDP'!$JY$10,0)+IF('F9-IDP'!$LM$2="3",'F9-IDP'!$LH$10,0) -> 0 | AB18: =IF('F9-IDP'!$J$2="3",'F9-IDP'!$K$10,0)+IF('F9-IDP'!$AS$2="3",'F9-IDP'!$AT$10,0)+IF('F9-IDP'!$CB$2="3",'F9-IDP'!$CC$10,0)+IF('F9-IDP'!$DK$2="3",'F9-IDP'!$DL$10,0)+IF('F9-IDP'!$ET$2="3",'F9-IDP'!$EU$10,0)+IF('F9-IDP'!$GC$2="3",'F9-IDP'!$GD$10,0)+IF('F9-IDP'!$HL$2="3",'F9-IDP'!$HM$10,0)+IF('F9-IDP'!$IU$2="3",'F9-IDP'!$IV$10,0)+IF('F9-IDP'!$KD$2="3",'F9-IDP'!$KE$10,0)+IF('F9-IDP'!$LM$2="3",'F9-IDP'!$LN$10,0) -> 0 | AI18: =IF('F9-IDP'!$J$2="3",'F9-IDP'!$Q$10,0)+IF('F9-IDP'!$AS$2="3",'F9-IDP'!$AZ$10,0)+IF('F9-IDP'!$CB$2="3",'F9-IDP'!$CI$10,0)+IF('F9-IDP'!$DK$2="3",'F9-IDP'!$DR$10,0)+IF('F9-IDP'!$ET$2="3",'F9-IDP'!$FA$10,0)+IF('F9-IDP'!$GC$2="3",'F9-IDP'!$GJ$10,0)+IF('F9-IDP'!$HL$2="3",'F9-IDP'!$HS$10,0)+IF('F9-IDP'!$IU$2="3",'F9-IDP'!$JB$10,0)+IF('F9-IDP'!$KD$2="3",'F9-IDP'!$KK$10,0)+IF('F9-IDP'!$LM$2="3",'F9-IDP'!$LT$10,0) -> 0 | AP18: =N18+U18-AB18+AI18 -> 0 | AW18: =IF('F9-IDP'!$J$2="3",'F9-IDP'!$W$10,0)+IF('F9-IDP'!$AS$2="3",'F9-IDP'!$BF$10,0)+IF('F9-IDP'!$CB$2="3",'F9-IDP'!$CO$10,0)+IF('F9-IDP'!$DK$2="3",'F9-IDP'!$DX$10,0)+IF('F9-IDP'!$ET$2="3",'F9-IDP'!$FG$10,0)+IF('F9-IDP'!$GC$2="3",'F9-IDP'!$GP$10,0)+IF('F9-IDP'!$HL$2="3",'F9-IDP'!$HY$10,0)+IF('F9-IDP'!$IU$2="3",'F9-IDP'!$JH$10,0)+IF('F9-IDP'!$KD$2="3",'F9-IDP'!$KQ$10,0)+IF('F9-IDP'!$LM$2="3",'F9-IDP'!$LZ$10,0) -> 0 | BD18: =IF('F9-IDP'!$J$2="3",'F9-IDP'!$AC$10,0)+IF('F9-IDP'!$AS$2="3",'F9-IDP'!$BL$10,0)+IF('F9-IDP'!$CB$2="3",'F9-IDP'!$CU$10,0)+IF('F9-IDP'!$DK$2="3",'F9-IDP'!$ED$10,0)+IF('F9-IDP'!$ET$2="3",'F9-IDP'!$FM$10,0)+IF('F9-IDP'!$GC$2="3",'F9-IDP'!$GV$10,0)+IF('F9-IDP'!$HL$2="3",'F9-IDP'!$IE$10,0)+IF('F9-IDP'!$IU$2="3",'F9-IDP'!$JN$10,0)+IF('F9-IDP'!$KD$2="3",'F9-IDP'!$KW$10,0)+IF('F9-IDP'!$LM$2="3",'F9-IDP'!$MF$10,0) -> 0
A19: Otros Pasivos | N19: =Balanza!D101-'F9-EDP'!N11:T11-'F9-EDP'!N15:T15 -> 327242.73 | AP19: =Balanza!H101-'F9-EDP'!AP11:AV11-'F9-EDP'!AP15:AV15 -> 5084046.8
A20: Total de la Deuda Pública y Otros Pasivos | N20: =N11+N19+N15 -> 327242.73 | U20: =U11+U19+U15 -> 0 | AB20: =AB11+AB19+AB15 -> 0 | AI20: =AI11+AI19+AI15 -> 0 | AP20: =AP11+AP19+AP15 -> 5084046.8 | AW20: =AW11+AW19+AW15 -> 0 | BD20: =BD11+BD19+BD15 -> 0
A23: Denominaciónde la deuda pública y otros pasivos | N23: Saldo al 1° de enero de 2022 | U23: Disposiciones del periodo | AB23: Amortizaciones del periodo | AI23: Revaluaciones, reclasificaciones y otros ajustes | AP23: Saldo del periodo | AW23: Pago de intereses del periodo | BD23: Pago de comisiones y demás costos asociados duarante el periodo
A27: Deuda Contingente
A28: 1.- | AP28: =N28+U28-AB28+AI28 -> 0
A29: 2.- | AP29: =N29+U29-AB29+AI29 -> 0
A30: 3.- | AP30: =N30+U30-AB30+AI30 -> 0
A31: 4.- | AP31: =N31+U31-AB31+AI31 -> 0
A32: 5.- | AP32: =N32+U32-AB32+AI32 -> 0
B33: SUMA | N33: =SUM(N28:T31) -> 0 | U33: =SUM(U28:AA31) -> 0 | AB33: =SUM(AB28:AH31) -> 0 | AI33: =SUM(AI28:AO31) -> 0 | AP33: =SUM(AP28:AV31) -> 0 | AW33: =SUM(AW28:BC31) -> 0 | BD33: =SUM(BD28:BJ31) -> 0
A34: Valor de Instrumentos Bonos Cupón Cero
A35: 1.- | AP35: =N35+U35-AB35+AI35 -> 0
A36: 2.- | AP36: =N36+U36-AB36+AI36 -> 0
A37: 3.- | AP37: =N37+U37-AB37+AI37 -> 0
A38: 4.- | AP38: =N38+U38-AB38+AI38 -> 0
A39: 5.- | AP39: =N39+U39-AB39+AI39 -> 0
B40: SUMA | N40: =SUM(N35:T39) -> 0 | U40: =SUM(U35:AA39) -> 0 | AB40: =SUM(AB35:AH39) -> 0 | AI40: =SUM(AI35:AO39) -> 0 | AP40: =SUM(AP35:AV39) -> 0 | AW40: =SUM(AW35:BC39) -> 0 | BD40: =SUM(BD35:BJ39) -> 0
A41: Obligaciones a Corto Plazo
A42: Obligaciones a corto plazo | N42: Monto contratado | X42: Plazo pactado | AH42: Tasa de interés | AR42: Comisiones y costos relacionados | BB42: Tasa afectiva
A44: 1.-
A45: 2.-
A46: 3.-
A47: 4.-
A48: 5.-
B49: SUMA | N49: =SUM(N44:W48) -> 0 | AR49: =SUM(AR44:BA48) -> 0
C51: Bajo protesta de decir verdad declaramos que los Estados Financieros y sus Notas son razonablemente correctos y responsabilidad del emisor.
F56: =Validacion!A7 -> C. SANTIAGO LEON CASTRO | AG56: =Validacion!A9 -> L.T. JOCELYN SANCHEZ HERRERA
F57: Presidente Municipal o Títular del ente público | AG57: Encargado de la Hacienda Pública Municipal o Responsable de las finanzas del ente público

Sheet F9-IAO
A1: =Validacion!A2 -> Atemajac de Brizuela
A2: INFORME ANALÍTICO DE OBLIGACIONES DIFERENTES DE FINANCIAMIENTO
A3: ='F9-EDP'!A3 -> Del 1° de Enero al 31 de Diciembre de 2022
A5: Denominación de las obligaciones diferentes de financiamiento | N5: Fecha del contrato | S5: Fecha de inicio de operaciones del proyecto | X5: Fecha de vencimiento | AC5: Monto de la inversión pactado | AI5: Plazo pactado | AN5: Monto promedio mensual del pago de la contraprestación | AT5: Monto promedio mensual del pago de la contraprestación correspondiente al pago de inversión | AZ5: Monto pagado de la inversión del periodo | BF5: Monto pagado de la inversión actualizado del periodo | BL5: Saldo pendiente por pagar de la inversión
A11: Asociación Público Privadas | AC11: =SUM(AC12:AH14) -> 0 | AN11: =SUM(AN12:AS14) -> 0 | AT11: =SUM(AT12:AY14) -> 0 | AZ11: =SUM(AZ12:BE14) -> 0 | BF11: =SUM(BF12:BK14) -> 0 | BL11: =SUM(BL12:BQ14) -> 0
B12: 1.- | C12: SIN MOVIMIENTOS | BL12: =AC12-BF12 -> 0
B13: 2.- | BL13: =AC13-BF13 -> 0
B14: 3.- | BL14: =AC14-BF14 -> 0
A15: Otros instrumentos | AC15: =SUM(AC16:AH18) -> 0 | AN15: =SUM(AN16:AS18) -> 0 | AT15: =SUM(AT16:AY18) -> 0 | AZ15: =SUM(AZ16:BE18) -> 0 | BF15: =SUM(BF16:BK18) -> 0 | BL15: =SUM(BL16:BQ18) -> 0
B16: 1.- | BL16: =AC16-BF16 -> 0
B17: 2.- | BL17: =AC17-BF17 -> 0
B18: 3.- | BL18: =AC18-BF18 -> 0
A19: Total de Obligaciones Diferentes de Financiamiento | AC19: =AC11+AC15 -> 0 | AN19: =AN11+AN15 -> 0 | AT19: =AT11+AT15 -> 0 | AZ19: =AZ11+AZ15 -> 0 | BF19: =BF11+BF15 -> 0 | BL19: =BL11+BL15 -> 0
C22: Bajo protesta de decir verdad declaramos que los Estados Financieros y sus Notas son razonablemente correctos y responsabilidad del emisor.
F27: =Validacion!A7 -> C. SANTIAGO LEON CASTRO | AP27: =Validacion!A9 -> L.T. JOCELYN SANCHEZ HERRERA
F28: Presidente Municipal o Títular del ente público | AP28: Encargado de la Hacienda Pública Municipal o Responsable de las finanzas del ente público

Sheet F10
A1: =Validacion!A2 -> Atemajac de Brizuela
A2: INFORMATIVA DE PROVEEDORES
A3: =INDEX(Validacion!E150:E161,MATCH(Validacion!A11,Validacion!C150:C161,0)) -> Del 1° al 31 de Diciembre de 2022
A5: N° | B5: PROVEEDOR Y/O PRESTADOR | C5: R.F.C. | D5: DOMICILIO | E5: CIUDAD | F5: CODIGO POSTAL | G5: FUENTE DE FINANCIAMIENTO | H5: ORIGEN DEL RECURSO POR CUENTA BANCARIA | I5: FORMA DE PAGO | J5: DESCRIPCIÓN DEL GASTO | K5: IMPORTE | L5: FECHA DE LA FACTURA | M5: FOLIO DE FACTURA
A6: 1 | B6: CONSTRUCTORA VALMUN SA DE CV | C6: CVA210302IL7 | D6: AV SAN LUIS GONZAGA 5289 JARDINES DE GUADALUPE | E6: ZAPOPAN, JALISCO | F6: 45030 | G6: 101 | H6: 101 | I6: TRANSFERENCIA | J6: COMPRA DE MATERIALES VARIOS PARA EMPEDRADOS | K6: 793158.51 | L6: 2022-11-30 | M6: 2182
A7: 2 | B7: MAGNO OBRAS NORTEUMBRIA SA DE CV | C7: MON2103091Z3 | D7: N/D | E7: N/D | F7: 0 | G7: 101 | H7: 101 | I7: TRANSFERENCIA | J7: SERVICIOS PROFESIONALES PARA ADMON. Y EJECUCION DE OBRA | K7: 85714.28 | L7: 2022-12-01 | M7: 2635
A8: 3 | B8: SERVICIO BELISARIO SA DE CV | C8: SBE690425R26 | D8: CIRCUNVALACION NO. 1032 LOMAS DE INDEPENDENCIA | E8: GUADALAJARA, JALISCO | F8: 44370 | G8: 101 | H8: 101 | I8: TRANSFERENCIA | J8: CONSUMO DE COMBUSTIBLE | K8: 50000 | L8: 2022-11-24 | M8: A 96882
A9: 4 | B9: SIAMIR YOSAM CARDENAS DEL TORO | C9: CATS931108IT6 | D9: N/D | E9: N/D | F9: 0 | G9: 101 | H9: 101 | I9: TRANSFERENCIA | J9: ESTIMACION 2 OBRA DOMO EN TIERRA BLANCA | K9: 25583.26 | L9: 2022-11-22 | M9: 239
A10: 5 | B10: CONSTRUCCIONES CLASICO TRES | C10: CCT200826J15 | D10: N/D | E10: N/D | F10: 0 | G10: 101 | H10: 101 | I10: TRANSFERENCIA | J10: MATERIALES PARA LA CONSTRUCCION DE RED DE AGUA Y DRENAJE | K10: 500000 | L10: 2022-12-17 | M10: 49
A11: 6 | B11: JORGE ARCADIO HUERTA SANDOVAL | C11: HUSJ730705I8A | D11: N/D | E11: N/D | F11: 0 | G11: 101 | H11: 101 | I11: TRANSFERENCIA | J11: PAGO DE GRUPO MUSICAL PARA LA POSADA DEL AYUNTAMIENTO | K11: 16008 | L11: 2022-12-13 | M11: D9650
A12: 7 | B12: ANTONIO HERRERA GONZALEZ | C12: HEGA3908016F5 | D12: N/D | E12: ATEMAJAC DE BRIZUELA, JALISCO | F12: 45790 | G12: 101 | H12: 101 | I12: CHEQUE | J12: MATERIALES VARIOS DE FONTANERIA | K12: 24246.32 | L12: 2022-11-28 | M12: FAC VARIAS
A13: 8 | B13: CONSULTORES EN AUDITORIAS LEGATUS SA DE CV | C13: CAL190730GL4 | D13: N/D | E13: N/D | F13: 0 | G13: 101 | H13: 101 | I13: TRANSFERENCIA | J13: PAGO DE SERVICIOS DE CAPACITACION | K13: 14500 | L13: 2022-12-07 | M13: 000091PA
A14: 9 | B14: FORLIGHTING DE MEXICO SA DE CV | C14: FME050708KH3 | D14: CAMINO A LA CALERILLA 426A SANTA MARIA TEQUEPEXPAN | E14: SAN PEDRO TLAQUEPAQUE, JALISCO | F14: 0 | G14: 101 | H14: 101 | I14: TRANSFERENCIA | J14: ADQUISICION E INSTALACION DE LUMINARIAS LED | K14: 150352.14 | L14: 2022-12-20 | M14: 5015956
A15: 10 | B15: OSCAR FILIBERTO HERRERA VAZQUEZ | C15: HEVO890608HE5 | D15: N/D | E15: ATEMAJAC DE BRIZUELA, JALISCO | F15: 45790 | G15: 101 | H15: 101 | I15: TRANSFERENCIA | J15: PINTURA PARA MANTENIMIENTO DEL DIF MPAL. | K15: 10211.48 | L15: 2022-12-31 | M15: 4E3F6

Sheet F11
A1: =Validacion!A2 -> Atemajac de Brizuela
A2: INFORME SOBRE PASIVOS CONTINGENTES
A3: ='F1'!B3 -> Al 31 de Diciembre de 2022
A5: DESCRIPCIÓN | AE5: IMPORTE
A6: NO APLICA
A207: Bajo protesta de decir verdad declaramos que los Estados Financieros y sus Notas son razonablemente correctos y resposabilidad del emisor
B210: =Validacion!A7 -> C. SANTIAGO LEON CASTRO | W210: =Validacion!A9 -> L.T. JOCELYN SANCHEZ HERRERA
B212: Presidente Municipal o Titular del ente público | W212: Encargado de la Hacienda Municipal o Responsable de las finanzas del ente público

Sheet F13
A1: ID | B1: Denominación del programa | C1: Tipo de programa | D1: Finalidad | E1: Función | F1: Sub-función | G1: Nivel MIR | H1: Código del nivel MIR | I1: Resumen Narrativo (objetivos) | J1: Nombre del indicador | K1: Método de cálculo del indicador | L1: Valor meta programado 1 (Numerador) | M1: Valor meta programado 2 (Denominador) | N1: Frecuencia de medición del indicador | O1: Tipo de indicador | P1: Capítulo 1000 (Modificado) | Q1: Capítulo 2000 (Modificado) | R1: Capítulo 3000 (Modificado) | S1: Capítulo 4000 (Modificado) | T1: Capítulo 5000 (Modificado) | U1: Capítulo 6000 (Modificado) | V1: Capítulo 7000 (Modificado) | W1: Capítulo 8000 (Modificado) | X1: Capítulo 9000 (Modificado) | Y1: Avance del Valor programado 1 (Numerador) | Z1: Avance del Valor programado 2 (Denominador) | AA1: Avance del Capítulo 1000 (Devengado) | AB1: Avance del Capítulo 2000 (Devengado) | AC1: Avance del Capítulo 3000 (Devengado) | AD1: Avance del Capítulo 4000 (Devengado) | AE1: Avance del Capítulo 5000 (Devengado) | AF1: Avance del Capítulo 6000 (Devengado) | AG1: Avance del Capítulo 7000 (Devengado) | AH1: Avance del Capítulo 8000 (Devengado) | AI1: Avance del Capítulo 9000 (Devengado)
P2: =SUM(P3:P202) -> 16449007 | Q2: =SUM(Q3:Q202) -> 5473908 | R2: 8548957 | S2: 3714920 | T2: 1150000 | U2: 9676218 | V2: 0 | W2: 0 | X2: 0 | AA2: =SUM(AA3:AA202) -> 18163725.76 | AB2: =SUM(AB3:AB202) -> 10149469.55 | AC2: 9536080.22 | AD2: 3778548.72 | AE2: 936107.18 | AF2: 17721604.28 | AG2: 0 | AH2: 0 | AI2: 0
A3: =IF(B3>0,1,"") -> 1 | B3: GESTION GUBERNAMENTAL | C3: Indicador de Gestión | D3: =IF(F3="","",INDEX(EF!$A$2:$A$112,MATCH(F3,EF!$C$2:$C$112,0))) -> 1. Gobierno | E3: =IF(F3="","",INDEX(EF!$B$2:$B$112,MATCH(F3,EF!$C$2:$C$112,0))) -> 1.3. Coordinación política de gobierno | F3: 1.3.1 Presidencia / Gubernatura | G3: FIN | H3: 1.0.0.0. | I3: ADMINISTRAR DE MANERA EFICIENTE EL GASTO PUBLICO | J3: EFICIENCIA GUBERNAMENTAL | K3: PORCENTAJE
A4: =IF(B4>0,A3+1,"") ->  | D4: =IF(F4="","",INDEX(EF!$A$2:$A$112,MATCH(F4,EF!$C$2:$C$112,0))) ->  | E4: =IF(F4="","",INDEX(EF!$B$2:$B$112,MATCH(F4,EF!$C$2:$C$112,0))) ->  | G4: PROPÓSITO | H4: 1.1.0.0.
A5: =IF(B5>0,A4+1,"") ->  | D5: =IF(F5="","",INDEX(EF!$A$2:$A$112,MATCH(F5,EF!$C$2:$C$112,0))) ->  | E5: =IF(F5="","",INDEX(EF!$B$2:$B$112,MATCH(F5,EF!$C$2:$C$112,0))) ->  | G5: COMPONENTE | H5: 1.1.1.0.
D6: =IF(F6="","",INDEX(EF!$A$2:$A$112,MATCH(F6,EF!$C$2:$C$112,0))) ->  | E6: =IF(F6="","",INDEX(EF!$B$2:$B$112,MATCH(F6,EF!$C$2:$C$112,0))) ->  | G6: ACTIVIDAD | H6: 1.1.1.1.
D7: =IF(F7="","",INDEX(EF!$A$2:$A$112,MATCH(F7,EF!$C$2:$C$112,0))) ->  | E7: =IF(F7="","",INDEX(EF!$B$2:$B$112,MATCH(F7,EF!$C$2:$C$112,0))) ->  | G7: ACTIVIDAD | H7: 1.1.1.2.
D8: =IF(F8="","",INDEX(EF!$A$2:$A$112,MATCH(F8,EF!$C$2:$C$112,0))) ->  | E8: =IF(F8="","",INDEX(EF!$B$2:$B$112,MATCH(F8,EF!$C$2:$C$112,0))) ->  | G8: INDICADOR DE GESTIÓN | H8: N/A
D9: =IF(F9="","",INDEX(EF!$A$2:$A$112,MATCH(F9,EF!$C$2:$C$112,0))) ->  | E9: =IF(F9="","",INDEX(EF!$B$2:$B$112,MATCH(F9,EF!$C$2:$C$112,0))) -> 
D10: =IF(F10="","",INDEX(EF!$A$2:$A$112,MATCH(F10,EF!$C$2:$C$112,0))) ->  | E10: =IF(F10="","",INDEX(EF!$B$2:$B$112,MATCH(F10,EF!$C$2:$C$112,0))) -> 
D11: =IF(F11="","",INDEX(EF!$A$2:$A$112,MATCH(F11,EF!$C$2:$C$112,0))) ->  | E11: =IF(F11="","",INDEX(EF!$B$2:$B$112,MATCH(F11,EF!$C$2:$C$112,0))) -> 
D12: =IF(F12="","",INDEX(EF!$A$2:$A$112,MATCH(F12,EF!$C$2:$C$112,0))) ->  | E12: =IF(F12="","",INDEX(EF!$B$2:$B$112,MATCH(F12,EF!$C$2:$C$112,0))) -> 
D13: =IF(F13="","",INDEX(EF!$A$2:$A$112,MATCH(F13,EF!$C$2:$C$112,0))) ->  | E13: =IF(F13="","",INDEX(EF!$B$2:$B$112,MATCH(F13,EF!$C$2:$C$112,0))) -> 
D14: =IF(F14="","",INDEX(EF!$A$2:$A$112,MATCH(F14,EF!$C$2:$C$112,0))) ->  | E14: =IF(F14="","",INDEX(EF!$B$2:$B$112,MATCH(F14,EF!$C$2:$C$112,0))) -> 
D15: =IF(F15="","",INDEX(EF!$A$2:$A$112,MATCH(F15,EF!$C$2:$C$112,0))) ->  | E15: =IF(F15="","",INDEX(EF!$B$2:$B$112,MATCH(F15,EF!$C$2:$C$112,0))) -> 
D16: =IF(F16="","",INDEX(EF!$A$2:$A$112,MATCH(F16,EF!$C$2:$C$112,0))) ->  | E16: =IF(F16="","",INDEX(EF!$B$2:$B$112,MATCH(F16,EF!$C$2:$C$112,0))) -> 
D17: =IF(F17="","",INDEX(EF!$A$2:$A$112,MATCH(F17,EF!$C$2:$C$112,0))) ->  | E17: =IF(F17="","",INDEX(EF!$B$2:$B$112,MATCH(F17,EF!$C$2:$C$112,0))) -> 
D18: =IF(F18="","",INDEX(EF!$A$2:$A$112,MATCH(F18,EF!$C$2:$C$112,0))) ->  | E18: =IF(F18="","",INDEX(EF!$B$2:$B$112,MATCH(F18,EF!$C$2:$C$112,0))) -> 
D19: =IF(F19="","",INDEX(EF!$A$2:$A$112,MATCH(F19,EF!$C$2:$C$112,0))) ->  | E19: =IF(F19="","",INDEX(EF!$B$2:$B$112,MATCH(F19,EF!$C$2:$C$112,0))) -> 
B20: GESTION EFICIENTE DE GOBIERNO | C20: Indicador de Gestión | D20: =IF(F20="","",INDEX(EF!$A$2:$A$112,MATCH(F20,EF!$C$2:$C$112,0))) -> 1. Gobierno | E20: =IF(F20="","",INDEX(EF!$B$2:$B$112,MATCH(F20,EF!$C$2:$C$112,0))) -> 1.3. Coordinación política de gobierno | F20: 1.3.1 Presidencia / Gubernatura | I20: EFICIEMTAR AL MAXIMO LOS RECURSOS Y LA MEJORA RECUDATORIA | J20: EFICIENCIA GUBERNAMENTAL | K20: PORCENTAJE | L20: 45013010 | M20: 60285535.71 | N20: Semestral | O20: Porcentaje | P20: 16449007 | Q20: 5473908 | R20: 8548957 | S20: 3714920 | T20: 1150000 | U20: 9676218 | V20: 0 | W20: 0 | X20: 0 | Y20: 45013010 | Z20: 60285535.71 | AA20: 18163725.76 | AB20: 10149469.55 | AC20: 9536080.22 | AD20: 3778548.72 | AE20: 936107.18 | AF20: 17721604.28 | AG20: 0 | AH20: 0 | AI20: 0
D21: =IF(F21="","",INDEX(EF!$A$2:$A$112,MATCH(F21,EF!$C$2:$C$112,0))) ->  | E21: =IF(F21="","",INDEX(EF!$B$2:$B$112,MATCH(F21,EF!$C$2:$C$112,0))) -> 
D22: =IF(F22="","",INDEX(EF!$A$2:$A$112,MATCH(F22,EF!$C$2:$C$112,0))) ->  | E22: =IF(F22="","",INDEX(EF!$B$2:$B$112,MATCH(F22,EF!$C$2:$C$112,0))) -> 
D23: =IF(F23="","",INDEX(EF!$A$2:$A$112,MATCH(F23,EF!$C$2:$C$112,0))) ->  | E23: =IF(F23="","",INDEX(EF!$B$2:$B$112,MATCH(F23,EF!$C$2:$C$112,0))) -> 
D24: =IF(F24="","",INDEX(EF!$A$2:$A$112,MATCH(F24,EF!$C$2:$C$112,0))) ->  | E24: =IF(F24="","",INDEX(EF!$B$2:$B$112,MATCH(F24,EF!$C$2:$C$112,0))) -> 
D25: =IF(F25="","",INDEX(EF!$A$2:$A$112,MATCH(F25,EF!$C$2:$C$112,0))) ->  | E25: =IF(F25="","",INDEX(EF!$B$2:$B$112,MATCH(F25,EF!$C$2:$C$112,0))) -> 
D26: =IF(F26="","",INDEX(EF!$A$2:$A$112,MATCH(F26,EF!$C$2:$C$112,0))) ->  | E26: =IF(F26="","",INDEX(EF!$B$2:$B$112,MATCH(F26,EF!$C$2:$C$112,0))) -> 
D27: =IF(F27="","",INDEX(EF!$A$2:$A$112,MATCH(F27,EF!$C$2:$C$112,0))) ->  | E27: =IF(F27="","",INDEX(EF!$B$2:$B$112,MATCH(F27,EF!$C$2:$C$112,0))) -> 
D28: =IF(F28="","",INDEX(EF!$A$2:$A$112,MATCH(F28,EF!$C$2:$C$112,0))) ->  | E28: =IF(F28="","",INDEX(EF!$B$2:$B$112,MATCH(F28,EF!$C$2:$C$112,0))) -> 
D29: =IF(F29="","",INDEX(EF!$A$2:$A$112,MATCH(F29,EF!$C$2:$C$112,0))) ->  | E29: =IF(F29="","",INDEX(EF!$B$2:$B$112,MATCH(F29,EF!$C$2:$C$112,0))) -> 
D30: =IF(F30="","",INDEX(EF!$A$2:$A$112,MATCH(F30,EF!$C$2:$C$112,0))) ->  | E30: =IF(F30="","",INDEX(EF!$B$2:$B$112,MATCH(F30,EF!$C$2:$C$112,0))) -> 
D31: =IF(F31="","",INDEX(EF!$A$2:$A$112,MATCH(F31,EF!$C$2:$C$112,0))) ->  | E31: =IF(F31="","",INDEX(EF!$B$2:$B$112,MATCH(F31,EF!$C$2:$C$112,0))) -> 
D32: =IF(F32="","",INDEX(EF!$A$2:$A$112,MATCH(F32,EF!$C$2:$C$112,0))) ->  | E32: =IF(F32="","",INDEX(EF!$B$2:$B$112,MATCH(F32,EF!$C$2:$C$112,0))) -> 
D33: =IF(F33="","",INDEX(EF!$A$2:$A$112,MATCH(F33,EF!$C$2:$C$112,0))) ->  | E33: =IF(F33="","",INDEX(EF!$B$2:$B$112,MATCH(F33,EF!$C$2:$C$112,0))) -> 
D34: =IF(F34="","",INDEX(EF!$A$2:$A$112,MATCH(F34,EF!$C$2:$C$112,0))) ->  | E34: =IF(F34="","",INDEX(EF!$B$2:$B$112,MATCH(F34,EF!$C$2:$C$112,0))) -> 
D35: =IF(F35="","",INDEX(EF!$A$2:$A$112,MATCH(F35,EF!$C$2:$C$112,0))) ->  | E35: =IF(F35="","",INDEX(EF!$B$2:$B$112,MATCH(F35,EF!$C$2:$C$112,0))) -> 
D36: =IF(F36="","",INDEX(EF!$A$2:$A$112,MATCH(F36,EF!$C$2:$C$112,0))) ->  | E36: =IF(F36="","",INDEX(EF!$B$2:$B$112,MATCH(F36,EF!$C$2:$C$112,0))) -> 
D37: =IF(F37="","",INDEX(EF!$A$2:$A$112,MATCH(F37,EF!$C$2:$C$112,0))) ->  | E37: =IF(F37="","",INDEX(EF!$B$2:$B$112,MATCH(F37,EF!$C$2:$C$112,0))) -> 
D38: =IF(F38="","",INDEX(EF!$A$2:$A$112,MATCH(F38,EF!$C$2:$C$112,0))) ->  | E38: =IF(F38="","",INDEX(EF!$B$2:$B$112,MATCH(F38,EF!$C$2:$C$112,0))) -> 
D39: =IF(F39="","",INDEX(EF!$A$2:$A$112,MATCH(F39,EF!$C$2:$C$112,0))) ->  | E39: =IF(F39="","",INDEX(EF!$B$2:$B$112,MATCH(F39,EF!$C$2:$C$112,0))) -> 
D40: =IF(F40="","",INDEX(EF!$A$2:$A$112,MATCH(F40,EF!$C$2:$C$112,0))) ->  | E40: =IF(F40="","",INDEX(EF!$B$2:$B$112,MATCH(F40,EF!$C$2:$C$112,0))) -> 
D41: =IF(F41="","",INDEX(EF!$A$2:$A$112,MATCH(F41,EF!$C$2:$C$112,0))) ->  | E41: =IF(F41="","",INDEX(EF!$B$2:$B$112,MATCH(F41,EF!$C$2:$C$112,0))) -> 
D42: =IF(F42="","",INDEX(EF!$A$2:$A$112,MATCH(F42,EF!$C$2:$C$112,0))) ->  | E42: =IF(F42="","",INDEX(EF!$B$2:$B$112,MATCH(F42,EF!$C$2:$C$112,0))) -> 
D43: =IF(F43="","",INDEX(EF!$A$2:$A$112,MATCH(F43,EF!$C$2:$C$112,0))) ->  | E43: =IF(F43="","",INDEX(EF!$B$2:$B$112,MATCH(F43,EF!$C$2:$C$112,0))) -> 
D44: =IF(F44="","",INDEX(EF!$A$2:$A$112,MATCH(F44,EF!$C$2:$C$112,0))) ->  | E44: =IF(F44="","",INDEX(EF!$B$2:$B$112,MATCH(F44,EF!$C$2:$C$112,0))) -> 
D45: =IF(F45="","",INDEX(EF!$A$2:$A$112,MATCH(F45,EF!$C$2:$C$112,0))) ->  | E45: =IF(F45="","",INDEX(EF!$B$2:$B$112,MATCH(F45,EF!$C$2:$C$112,0))) -> 
D46: =IF(F46="","",INDEX(EF!$A$2:$A$112,MATCH(F46,EF!$C$2:$C$112,0))) ->  | E46: =IF(F46="","",INDEX(EF!$B$2:$B$112,MATCH(F46,EF!$C$2:$C$112,0))) -> 
D47: =IF(F47="","",INDEX(EF!$A$2:$A$112,MATCH(F47,EF!$C$2:$C$112,0))) ->  | E47: =IF(F47="","",INDEX(EF!$B$2:$B$112,MATCH(F47,EF!$C$2:$C$112,0))) -> 
D48: =IF(F48="","",INDEX(EF!$A$2:$A$112,MATCH(F48,EF!$C$2:$C$112,0))) ->  | E48: =IF(F48="","",INDEX(EF!$B$2:$B$112,MATCH(F48,EF!$C$2:$C$112,0))) -> 
D49: =IF(F49="","",INDEX(EF!$A$2:$A$112,MATCH(F49,EF!$C$2:$C$112,0))) ->  | E49: =IF(F49="","",INDEX(EF!$B$2:$B$112,MATCH(F49,EF!$C$2:$C$112,0))) -> 
D50: =IF(F50="","",INDEX(EF!$A$2:$A$112,MATCH(F50,EF!$C$2:$C$112,0))) ->  | E50: =IF(F50="","",INDEX(EF!$B$2:$B$112,MATCH(F50,EF!$C$2:$C$112,0))) -> 
D51: =IF(F51="","",INDEX(EF!$A$2:$A$112,MATCH(F51,EF!$C$2:$C$112,0))) ->  | E51: =IF(F51="","",INDEX(EF!$B$2:$B$112,MATCH(F51,EF!$C$2:$C$112,0))) -> 
D52: =IF(F52="","",INDEX(EF!$A$2:$A$112,MATCH(F52,EF!$C$2:$C$112,0))) ->  | E52: =IF(F52="","",INDEX(EF!$B$2:$B$112,MATCH(F52,EF!$C$2:$C$112,0))) -> 
D53: =IF(F53="","",INDEX(EF!$A$2:$A$112,MATCH(F53,EF!$C$2:$C$112,0))) ->  | E53: =IF(F53="","",INDEX(EF!$B$2:$B$112,MATCH(F53,EF!$C$2:$C$112,0))) -> 
D54: =IF(F54="","",INDEX(EF!$A$2:$A$112,MATCH(F54,EF!$C$2:$C$112,0))) ->  | E54: =IF(F54="","",INDEX(EF!$B$2:$B$112,MATCH(F54,EF!$C$2:$C$112,0))) -> 
D55: =IF(F55="","",INDEX(EF!$A$2:$A$112,MATCH(F55,EF!$C$2:$C$112,0))) ->  | E55: =IF(F55="","",INDEX(EF!$B$2:$B$112,MATCH(F55,EF!$C$2:$C$112,0))) -> 
D56: =IF(F56="","",INDEX(EF!$A$2:$A$112,MATCH(F56,EF!$C$2:$C$112,0))) ->  | E56: =IF(F56="","",INDEX(EF!$B$2:$B$112,MATCH(F56,EF!$C$2:$C$112,0))) -> 
D57: =IF(F57="","",INDEX(EF!$A$2:$A$112,MATCH(F57,EF!$C$2:$C$112,0))) ->  | E57: =IF(F57="","",INDEX(EF!$B$2:$B$112,MATCH(F57,EF!$C$2:$C$112,0))) -> 
D58: =IF(F58="","",INDEX(EF!$A$2:$A$112,MATCH(F58,EF!$C$2:$C$112,0))) ->  | E58: =IF(F58="","",INDEX(EF!$B$2:$B$112,MATCH(F58,EF!$C$2:$C$112,0))) -> 
D59: =IF(F59="","",INDEX(EF!$A$2:$A$112,MATCH(F59,EF!$C$2:$C$112,0))) ->  | E59: =IF(F59="","",INDEX(EF!$B$2:$B$112,MATCH(F59,EF!$C$2:$C$112,0))) -> 
D60: =IF(F60="","",INDEX(EF!$A$2:$A$112,MATCH(F60,EF!$C$2:$C$112,0))) ->  | E60: =IF(F60="","",INDEX(EF!$B$2:$B$112,MATCH(F60,EF!$C$2:$C$112,0))) -> 
D61: =IF(F61="","",INDEX(EF!$A$2:$A$112,MATCH(F61,EF!$C$2:$C$112,0))) ->  | E61: =IF(F61="","",INDEX(EF!$B$2:$B$112,MATCH(F61,EF!$C$2:$C$112,0))) -> 
D62: =IF(F62="","",INDEX(EF!$A$2:$A$112,MATCH(F62,EF!$C$2:$C$112,0))) ->  | E62: =IF(F62="","",INDEX(EF!$B$2:$B$112,MATCH(F62,EF!$C$2:$C$112,0))) -> 
D63: =IF(F63="","",INDEX(EF!$A$2:$A$112,MATCH(F63,EF!$C$2:$C$112,0))) ->  | E63: =IF(F63="","",INDEX(EF!$B$2:$B$112,MATCH(F63,EF!$C$2:$C$112,0))) -> 
D64: =IF(F64="","",INDEX(EF!$A$2:$A$112,MATCH(F64,EF!$C$2:$C$112,0))) ->  | E64: =IF(F64="","",INDEX(EF!$B$2:$B$112,MATCH(F64,EF!$C$2:$C$112,0))) -> 
D65: =IF(F65="","",INDEX(EF!$A$2:$A$112,MATCH(F65,EF!$C$2:$C$112,0))) ->  | E65: =IF(F65="","",INDEX(EF!$B$2:$B$112,MATCH(F65,EF!$C$2:$C$112,0))) -> 
D66: =IF(F66="","",INDEX(EF!$A$2:$A$112,MATCH(F66,EF!$C$2:$C$112,0))) ->  | E66: =IF(F66="","",INDEX(EF!$B$2:$B$112,MATCH(F66,EF!$C$2:$C$112,0))) -> 
D67: =IF(F67="","",INDEX(EF!$A$2:$A$112,MATCH(F67,EF!$C$2:$C$112,0))) ->  | E67: =IF(F67="","",INDEX(EF!$B$2:$B$112,MATCH(F67,EF!$C$2:$C$112,0))) -> 
D68: =IF(F68="","",INDEX(EF!$A$2:$A$112,MATCH(F68,EF!$C$2:$C$112,0))) ->  | E68: =IF(F68="","",INDEX(EF!$B$2:$B$112,MATCH(F68,EF!$C$2:$C$112,0))) -> 
A69: =IF(B69>0,A68+1,"") ->  | D69: =IF(F69="","",INDEX(EF!$A$2:$A$112,MATCH(F69,EF!$C$2:$C$112,0))) ->  | E69: =IF(F69="","",INDEX(EF!$B$2:$B$112,MATCH(F69,EF!$C$2:$C$112,0))) -> 
D70: =IF(F70="","",INDEX(EF!$A$2:$A$112,MATCH(F70,EF!$C$2:$C$112,0))) ->  | E70: =IF(F70="","",INDEX(EF!$B$2:$B$112,MATCH(F70,EF!$C$2:$C$112,0))) -> 
D71: =IF(F71="","",INDEX(EF!$A$2:$A$112,MATCH(F71,EF!$C$2:$C$112,0))) ->  | E71: =IF(F71="","",INDEX(EF!$B$2:$B$112,MATCH(F71,EF!$C$2:$C$112,0))) -> 
D72: =IF(F72="","",INDEX(EF!$A$2:$A$112,MATCH(F72,EF!$C$2:$C$112,0))) ->  | E72: =IF(F72="","",INDEX(EF!$B$2:$B$112,MATCH(F72,EF!$C$2:$C$112,0))) -> 
D73: =IF(F73="","",INDEX(EF!$A$2:$A$112,MATCH(F73,EF!$C$2:$C$112,0))) ->  | E73: =IF(F73="","",INDEX(EF!$B$2:$B$112,MATCH(F73,EF!$C$2:$C$112,0))) -> 
D74: =IF(F74="","",INDEX(EF!$A$2:$A$112,MATCH(F74,EF!$C$2:$C$112,0))) ->  | E74: =IF(F74="","",INDEX(EF!$B$2:$B$112,MATCH(F74,EF!$C$2:$C$112,0))) -> 
D75: =IF(F75="","",INDEX(EF!$A$2:$A$112,MATCH(F75,EF!$C$2:$C$112,0))) ->  | E75: =IF(F75="","",INDEX(EF!$B$2:$B$112,MATCH(F75,EF!$C$2:$C$112,0))) -> 
D76: =IF(F76="","",INDEX(EF!$A$2:$A$112,MATCH(F76,EF!$C$2:$C$112,0))) ->  | E76: =IF(F76="","",INDEX(EF!$B$2:$B$112,MATCH(F76,EF!$C$2:$C$112,0))) -> 
D77: =IF(F77="","",INDEX(EF!$A$2:$A$112,MATCH(F77,EF!$C$2:$C$112,0))) ->  | E77: =IF(F77="","",INDEX(EF!$B$2:$B$112,MATCH(F77,EF!$C$2:$C$112,0))) -> 
D78: =IF(F78="","",INDEX(EF!$A$2:$A$112,MATCH(F78,EF!$C$2:$C$112,0))) ->  | E78: =IF(F78="","",INDEX(EF!$B$2:$B$112,MATCH(F78,EF!$C$2:$C$112,0))) -> 
D79: =IF(F79="","",INDEX(EF!$A$2:$A$112,MATCH(F79,EF!$C$2:$C$112,0))) ->  | E79: =IF(F79="","",INDEX(EF!$B$2:$B$112,MATCH(F79,EF!$C$2:$C$112,0))) -> 
D80: =IF(F80="","",INDEX(EF!$A$2:$A$112,MATCH(F80,EF!$C$2:$C$112,0))) ->  | E80: =IF(F80="","",INDEX(EF!$B$2:$B$112,MATCH(F80,EF!$C$2:$C$112,0))) -> 
D81: =IF(F81="","",INDEX(EF!$A$2:$A$112,MATCH(F81,EF!$C$2:$C$112,0))) ->  | E81: =IF(F81="","",INDEX(EF!$B$2:$B$112,MATCH(F81,EF!$C$2:$C$112,0))) -> 
D82: =IF(F82="","",INDEX(EF!$A$2:$A$112,MATCH(F82,EF!$C$2:$C$112,0))) ->  | E82: =IF(F82="","",INDEX(EF!$B$2:$B$112,MATCH(F82,EF!$C$2:$C$112,0))) -> 
D83: =IF(F83="","",INDEX(EF!$A$2:$A$112,MATCH(F83,EF!$C$2:$C$112,0))) ->  | E83: =IF(F83="","",INDEX(EF!$B$2:$B$112,MATCH(F83,EF!$C$2:$C$112,0))) -> 
D84: =IF(F84="","",INDEX(EF!$A$2:$A$112,MATCH(F84,EF!$C$2:$C$112,0))) ->  | E84: =IF(F84="","",INDEX(EF!$B$2:$B$112,MATCH(F84,EF!$C$2:$C$112,0))) -> 
D85: =IF(F85="","",INDEX(EF!$A$2:$A$112,MATCH(F85,EF!$C$2:$C$112,0))) ->  | E85: =IF(F85="","",INDEX(EF!$B$2:$B$112,MATCH(F85,EF!$C$2:$C$112,0))) -> 
D86: =IF(F86="","",INDEX(EF!$A$2:$A$112,MATCH(F86,EF!$C$2:$C$112,0))) ->  | E86: =IF(F86="","",INDEX(EF!$B$2:$B$112,MATCH(F86,EF!$C$2:$C$112,0))) -> 
D87: =IF(F87="","",INDEX(EF!$A$2:$A$112,MATCH(F87,EF!$C$2:$C$112,0))) ->  | E87: =IF(F87="","",INDEX(EF!$B$2:$B$112,MATCH(F87,EF!$C$2:$C$112,0))) -> 
D88: =IF(F88="","",INDEX(EF!$A$2:$A$112,MATCH(F88,EF!$C$2:$C$112,0))) ->  | E88: =IF(F88="","",INDEX(EF!$B$2:$B$112,MATCH(F88,EF!$C$2:$C$112,0))) -> 
D89: =IF(F89="","",INDEX(EF!$A$2:$A$112,MATCH(F89,EF!$C$2:$C$112,0))) ->  | E89: =IF(F89="","",INDEX(EF!$B$2:$B$112,MATCH(F89,EF!$C$2:$C$112,0))) -> 
D90: =IF(F90="","",INDEX(EF!$A$2:$A$112,MATCH(F90,EF!$C$2:$C$112,0))) ->  | E90: =IF(F90="","",INDEX(EF!$B$2:$B$112,MATCH(F90,EF!$C$2:$C$112,0))) -> 
D91: =IF(F91="","",INDEX(EF!$A$2:$A$112,MATCH(F91,EF!$C$2:$C$112,0))) ->  | E91: =IF(F91="","",INDEX(EF!$B$2:$B$112,MATCH(F91,EF!$C$2:$C$112,0))) -> 
D92: =IF(F92="","",INDEX(EF!$A$2:$A$112,MATCH(F92,EF!$C$2:$C$112,0))) ->  | E92: =IF(F92="","",INDEX(EF!$B$2:$B$112,MATCH(F92,EF!$C$2:$C$112,0))) -> 
D93: =IF(F93="","",INDEX(EF!$A$2:$A$112,MATCH(F93,EF!$C$2:$C$112,0))) ->  | E93: =IF(F93="","",INDEX(EF!$B$2:$B$112,MATCH(F93,EF!$C$2:$C$112,0))) -> 
D94: =IF(F94="","",INDEX(EF!$A$2:$A$112,MATCH(F94,EF!$C$2:$C$112,0))) ->  | E94: =IF(F94="","",INDEX(EF!$B$2:$B$112,MATCH(F94,EF!$C$2:$C$112,0))) -> 
D95: =IF(F95="","",INDEX(EF!$A$2:$A$112,MATCH(F95,EF!$C$2:$C$112,0))) ->  | E95: =IF(F95="","",INDEX(EF!$B$2:$B$112,MATCH(F95,EF!$C$2:$C$112,0))) -> 
D96: =IF(F96="","",INDEX(EF!$A$2:$A$112,MATCH(F96,EF!$C$2:$C$112,0))) ->  | E96: =IF(F96="","",INDEX(EF!$B$2:$B$112,MATCH(F96,EF!$C$2:$C$112,0))) -> 
D97: =IF(F97="","",INDEX(EF!$A$2:$A$112,MATCH(F97,EF!$C$2:$C$112,0))) ->  | E97: =IF(F97="","",INDEX(EF!$B$2:$B$112,MATCH(F97,EF!$C$2:$C$112,0))) -> 
D98: =IF(F98="","",INDEX(EF!$A$2:$A$112,MATCH(F98,EF!$C$2:$C$112,0))) ->  | E98: =IF(F98="","",INDEX(EF!$B$2:$B$112,MATCH(F98,EF!$C$2:$C$112,0))) -> 
D99: =IF(F99="","",INDEX(EF!$A$2:$A$112,MATCH(F99,EF!$C$2:$C$112,0))) ->  | E99: =IF(F99="","",INDEX(EF!$B$2:$B$112,MATCH(F99,EF!$C$2:$C$112,0))) -> 
D100: =IF(F100="","",INDEX(EF!$A$2:$A$112,MATCH(F100,EF!$C$2:$C$112,0))) ->  | E100: =IF(F100="","",INDEX(EF!$B$2:$B$112,MATCH(F100,EF!$C$2:$C$112,0))) -> 
D101: =IF(F101="","",INDEX(EF!$A$2:$A$112,MATCH(F101,EF!$C$2:$C$112,0))) ->  | E101: =IF(F101="","",INDEX(EF!$B$2:$B$112,MATCH(F101,EF!$C$2:$C$112,0))) -> 
D102: =IF(F102="","",INDEX(EF!$A$2:$A$112,MATCH(F102,EF!$C$2:$C$112,0))) ->  | E102: =IF(F102="","",INDEX(EF!$B$2:$B$112,MATCH(F102,EF!$C$2:$C$112,0))) -> 
D103: =IF(F103="","",INDEX(EF!$A$2:$A$112,MATCH(F103,EF!$C$2:$C$112,0))) ->  | E103: =IF(F103="","",INDEX(EF!$B$2:$B$112,MATCH(F103,EF!$C$2:$C$112,0))) -> 
D104: =IF(F104="","",INDEX(EF!$A$2:$A$112,MATCH(F104,EF!$C$2:$C$112,0))) ->  | E104: =IF(F104="","",INDEX(EF!$B$2:$B$112,MATCH(F104,EF!$C$2:$C$112,0))) -> 
D105: =IF(F105="","",INDEX(EF!$A$2:$A$112,MATCH(F105,EF!$C$2:$C$112,0))) ->  | E105: =IF(F105="","",INDEX(EF!$B$2:$B$112,MATCH(F105,EF!$C$2:$C$112,0))) -> 
D106: =IF(F106="","",INDEX(EF!$A$2:$A$112,MATCH(F106,EF!$C$2:$C$112,0))) ->  | E106: =IF(F106="","",INDEX(EF!$B$2:$B$112,MATCH(F106,EF!$C$2:$C$112,0))) -> 
D107: =IF(F107="","",INDEX(EF!$A$2:$A$112,MATCH(F107,EF!$C$2:$C$112,0))) ->  | E107: =IF(F107="","",INDEX(EF!$B$2:$B$112,MATCH(F107,EF!$C$2:$C$112,0))) -> 
D108: =IF(F108="","",INDEX(EF!$A$2:$A$112,MATCH(F108,EF!$C$2:$C$112,0))) ->  | E108: =IF(F108="","",INDEX(EF!$B$2:$B$112,MATCH(F108,EF!$C$2:$C$112,0))) -> 
D109: =IF(F109="","",INDEX(EF!$A$2:$A$112,MATCH(F109,EF!$C$2:$C$112,0))) ->  | E109: =IF(F109="","",INDEX(EF!$B$2:$B$112,MATCH(F109,EF!$C$2:$C$112,0))) -> 
D110: =IF(F110="","",INDEX(EF!$A$2:$A$112,MATCH(F110,EF!$C$2:$C$112,0))) ->  | E110: =IF(F110="","",INDEX(EF!$B$2:$B$112,MATCH(F110,EF!$C$2:$C$112,0))) -> 
D111: =IF(F111="","",INDEX(EF!$A$2:$A$112,MATCH(F111,EF!$C$2:$C$112,0))) ->  | E111: =IF(F111="","",INDEX(EF!$B$2:$B$112,MATCH(F111,EF!$C$2:$C$112,0))) -> 
D112: =IF(F112="","",INDEX(EF!$A$2:$A$112,MATCH(F112,EF!$C$2:$C$112,0))) ->  | E112: =IF(F112="","",INDEX(EF!$B$2:$B$112,MATCH(F112,EF!$C$2:$C$112,0))) -> 
D113: =IF(F113="","",INDEX(EF!$A$2:$A$112,MATCH(F113,EF!$C$2:$C$112,0))) ->  | E113: =IF(F113="","",INDEX(EF!$B$2:$B$112,MATCH(F113,EF!$C$2:$C$112,0))) -> 
D114: =IF(F114="","",INDEX(EF!$A$2:$A$112,MATCH(F114,EF!$C$2:$C$112,0))) ->  | E114: =IF(F114="","",INDEX(EF!$B$2:$B$112,MATCH(F114,EF!$C$2:$C$112,0))) -> 
D115: =IF(F115="","",INDEX(EF!$A$2:$A$112,MATCH(F115,EF!$C$2:$C$112,0))) ->  | E115: =IF(F115="","",INDEX(EF!$B$2:$B$112,MATCH(F115,EF!$C$2:$C$112,0))) -> 
D116: =IF(F116="","",INDEX(EF!$A$2:$A$112,MATCH(F116,EF!$C$2:$C$112,0))) ->  | E116: =IF(F116="","",INDEX(EF!$B$2:$B$112,MATCH(F116,EF!$C$2:$C$112,0))) -> 
D117: =IF(F117="","",INDEX(EF!$A$2:$A$112,MATCH(F117,EF!$C$2:$C$112,0))) ->  | E117: =IF(F117="","",INDEX(EF!$B$2:$B$112,MATCH(F117,EF!$C$2:$C$112,0))) -> 
D118: =IF(F118="","",INDEX(EF!$A$2:$A$112,MATCH(F118,EF!$C$2:$C$112,0))) ->  | E118: =IF(F118="","",INDEX(EF!$B$2:$B$112,MATCH(F118,EF!$C$2:$C$112,0))) -> 
D119: =IF(F119="","",INDEX(EF!$A$2:$A$112,MATCH(F119,EF!$C$2:$C$112,0))) ->  | E119: =IF(F119="","",INDEX(EF!$B$2:$B$112,MATCH(F119,EF!$C$2:$C$112,0))) -> 
D120: =IF(F120="","",INDEX(EF!$A$2:$A$112,MATCH(F120,EF!$C$2:$C$112,0))) ->  | E120: =IF(F120="","",INDEX(EF!$B$2:$B$112,MATCH(F120,EF!$C$2:$C$112,0))) -> 
D121: =IF(F121="","",INDEX(EF!$A$2:$A$112,MATCH(F121,EF!$C$2:$C$112,0))) ->  | E121: =IF(F121="","",INDEX(EF!$B$2:$B$112,MATCH(F121,EF!$C$2:$C$112,0))) -> 
D122: =IF(F122="","",INDEX(EF!$A$2:$A$112,MATCH(F122,EF!$C$2:$C$112,0))) ->  | E122: =IF(F122="","",INDEX(EF!$B$2:$B$112,MATCH(F122,EF!$C$2:$C$112,0))) -> 
D123: =IF(F123="","",INDEX(EF!$A$2:$A$112,MATCH(F123,EF!$C$2:$C$112,0))) ->  | E123: =IF(F123="","",INDEX(EF!$B$2:$B$112,MATCH(F123,EF!$C$2:$C$112,0))) -> 
D124: =IF(F124="","",INDEX(EF!$A$2:$A$112,MATCH(F124,EF!$C$2:$C$112,0))) ->  | E124: =IF(F124="","",INDEX(EF!$B$2:$B$112,MATCH(F124,EF!$C$2:$C$112,0))) -> 
D125: =IF(F125="","",INDEX(EF!$A$2:$A$112,MATCH(F125,EF!$C$2:$C$112,0))) ->  | E125: =IF(F125="","",INDEX(EF!$B$2:$B$112,MATCH(F125,EF!$C$2:$C$112,0))) -> 
D126: =IF(F126="","",INDEX(EF!$A$2:$A$112,MATCH(F126,EF!$C$2:$C$112,0))) ->  | E126: =IF(F126="","",INDEX(EF!$B$2:$B$112,MATCH(F126,EF!$C$2:$C$112,0))) -> 
D127: =IF(F127="","",INDEX(EF!$A$2:$A$112,MATCH(F127,EF!$C$2:$C$112,0))) ->  | E127: =IF(F127="","",INDEX(EF!$B$2:$B$112,MATCH(F127,EF!$C$2:$C$112,0))) -> 
D128: =IF(F128="","",INDEX(EF!$A$2:$A$112,MATCH(F128,EF!$C$2:$C$112,0))) ->  | E128: =IF(F128="","",INDEX(EF!$B$2:$B$112,MATCH(F128,EF!$C$2:$C$112,0))) -> 
D129: =IF(F129="","",INDEX(EF!$A$2:$A$112,MATCH(F129,EF!$C$2:$C$112,0))) ->  | E129: =IF(F129="","",INDEX(EF!$B$2:$B$112,MATCH(F129,EF!$C$2:$C$112,0))) -> 
D130: =IF(F130="","",INDEX(EF!$A$2:$A$112,MATCH(F130,EF!$C$2:$C$112,0))) ->  | E130: =IF(F130="","",INDEX(EF!$B$2:$B$112,MATCH(F130,EF!$C$2:$C$112,0))) -> 
D131: =IF(F131="","",INDEX(EF!$A$2:$A$112,MATCH(F131,EF!$C$2:$C$112,0))) ->  | E131: =IF(F131="","",INDEX(EF!$B$2:$B$112,MATCH(F131,EF!$C$2:$C$112,0))) -> 
D132: =IF(F132="","",INDEX(EF!$A$2:$A$112,MATCH(F132,EF!$C$2:$C$112,0))) ->  | E132: =IF(F132="","",INDEX(EF!$B$2:$B$112,MATCH(F132,EF!$C$2:$C$112,0))) -> 
A133: =IF(B133>0,A132+1,"") ->  | D133: =IF(F133="","",INDEX(EF!$A$2:$A$112,MATCH(F133,EF!$C$2:$C$112,0))) ->  | E133: =IF(F133="","",INDEX(EF!$B$2:$B$112,MATCH(F133,EF!$C$2:$C$112,0))) -> 
D134: =IF(F134="","",INDEX(EF!$A$2:$A$112,MATCH(F134,EF!$C$2:$C$112,0))) ->  | E134: =IF(F134="","",INDEX(EF!$B$2:$B$112,MATCH(F134,EF!$C$2:$C$112,0))) -> 
D135: =IF(F135="","",INDEX(EF!$A$2:$A$112,MATCH(F135,EF!$C$2:$C$112,0))) ->  | E135: =IF(F135="","",INDEX(EF!$B$2:$B$112,MATCH(F135,EF!$C$2:$C$112,0))) -> 
D136: =IF(F136="","",INDEX(EF!$A$2:$A$112,MATCH(F136,EF!$C$2:$C$112,0))) ->  | E136: =IF(F136="","",INDEX(EF!$B$2:$B$112,MATCH(F136,EF!$C$2:$C$112,0))) -> 
D137: =IF(F137="","",INDEX(EF!$A$2:$A$112,MATCH(F137,EF!$C$2:$C$112,0))) ->  | E137: =IF(F137="","",INDEX(EF!$B$2:$B$112,MATCH(F137,EF!$C$2:$C$112,0))) -> 
D138: =IF(F138="","",INDEX(EF!$A$2:$A$112,MATCH(F138,EF!$C$2:$C$112,0))) ->  | E138: =IF(F138="","",INDEX(EF!$B$2:$B$112,MATCH(F138,EF!$C$2:$C$112,0))) -> 
D139: =IF(F139="","",INDEX(EF!$A$2:$A$112,MATCH(F139,EF!$C$2:$C$112,0))) ->  | E139: =IF(F139="","",INDEX(EF!$B$2:$B$112,MATCH(F139,EF!$C$2:$C$112,0))) -> 
D140: =IF(F140="","",INDEX(EF!$A$2:$A$112,MATCH(F140,EF!$C$2:$C$112,0))) ->  | E140: =IF(F140="","",INDEX(EF!$B$2:$B$112,MATCH(F140,EF!$C$2:$C$112,0))) -> 
D141: =IF(F141="","",INDEX(EF!$A$2:$A$112,MATCH(F141,EF!$C$2:$C$112,0))) ->  | E141: =IF(F141="","",INDEX(EF!$B$2:$B$112,MATCH(F141,EF!$C$2:$C$112,0))) -> 
D142: =IF(F142="","",INDEX(EF!$A$2:$A$112,MATCH(F142,EF!$C$2:$C$112,0))) ->  | E142: =IF(F142="","",INDEX(EF!$B$2:$B$112,MATCH(F142,EF!$C$2:$C$112,0))) -> 
D143: =IF(F143="","",INDEX(EF!$A$2:$A$112,MATCH(F143,EF!$C$2:$C$112,0))) ->  | E143: =IF(F143="","",INDEX(EF!$B$2:$B$112,MATCH(F143,EF!$C$2:$C$112,0))) -> 
D144: =IF(F144="","",INDEX(EF!$A$2:$A$112,MATCH(F144,EF!$C$2:$C$112,0))) ->  | E144: =IF(F144="","",INDEX(EF!$B$2:$B$112,MATCH(F144,EF!$C$2:$C$112,0))) -> 
D145: =IF(F145="","",INDEX(EF!$A$2:$A$112,MATCH(F145,EF!$C$2:$C$112,0))) ->  | E145: =IF(F145="","",INDEX(EF!$B$2:$B$112,MATCH(F145,EF!$C$2:$C$112,0))) -> 
D146: =IF(F146="","",INDEX(EF!$A$2:$A$112,MATCH(F146,EF!$C$2:$C$112,0))) ->  | E146: =IF(F146="","",INDEX(EF!$B$2:$B$112,MATCH(F146,EF!$C$2:$C$112,0))) -> 
D147: =IF(F147="","",INDEX(EF!$A$2:$A$112,MATCH(F147,EF!$C$2:$C$112,0))) ->  | E147: =IF(F147="","",INDEX(EF!$B$2:$B$112,MATCH(F147,EF!$C$2:$C$112,0))) -> 
D148: =IF(F148="","",INDEX(EF!$A$2:$A$112,MATCH(F148,EF!$C$2:$C$112,0))) ->  | E148: =IF(F148="","",INDEX(EF!$B$2:$B$112,MATCH(F148,EF!$C$2:$C$112,0))) -> 
D149: =IF(F149="","",INDEX(EF!$A$2:$A$112,MATCH(F149,EF!$C$2:$C$112,0))) ->  | E149: =IF(F149="","",INDEX(EF!$B$2:$B$112,MATCH(F149,EF!$C$2:$C$112,0))) -> 
D150: =IF(F150="","",INDEX(EF!$A$2:$A$112,MATCH(F150,EF!$C$2:$C$112,0))) ->  | E150: =IF(F150="","",INDEX(EF!$B$2:$B$112,MATCH(F150,EF!$C$2:$C$112,0))) -> 
D151: =IF(F151="","",INDEX(EF!$A$2:$A$112,MATCH(F151,EF!$C$2:$C$112,0))) ->  | E151: =IF(F151="","",INDEX(EF!$B$2:$B$112,MATCH(F151,EF!$C$2:$C$112,0))) -> 
D152: =IF(F152="","",INDEX(EF!$A$2:$A$112,MATCH(F152,EF!$C$2:$C$112,0))) ->  | E152: =IF(F152="","",INDEX(EF!$B$2:$B$112,MATCH(F152,EF!$C$2:$C$112,0))) -> 
D153: =IF(F153="","",INDEX(EF!$A$2:$A$112,MATCH(F153,EF!$C$2:$C$112,0))) ->  | E153: =IF(F153="","",INDEX(EF!$B$2:$B$112,MATCH(F153,EF!$C$2:$C$112,0))) -> 
D154: =IF(F154="","",INDEX(EF!$A$2:$A$112,MATCH(F154,EF!$C$2:$C$112,0))) ->  | E154: =IF(F154="","",INDEX(EF!$B$2:$B$112,MATCH(F154,EF!$C$2:$C$112,0))) -> 
D155: =IF(F155="","",INDEX(EF!$A$2:$A$112,MATCH(F155,EF!$C$2:$C$112,0))) ->  | E155: =IF(F155="","",INDEX(EF!$B$2:$B$112,MATCH(F155,EF!$C$2:$C$112,0))) -> 
D156: =IF(F156="","",INDEX(EF!$A$2:$A$112,MATCH(F156,EF!$C$2:$C$112,0))) ->  | E156: =IF(F156="","",INDEX(EF!$B$2:$B$112,MATCH(F156,EF!$C$2:$C$112,0))) -> 
D157: =IF(F157="","",INDEX(EF!$A$2:$A$112,MATCH(F157,EF!$C$2:$C$112,0))) ->  | E157: =IF(F157="","",INDEX(EF!$B$2:$B$112,MATCH(F157,EF!$C$2:$C$112,0))) -> 
D158: =IF(F158="","",INDEX(EF!$A$2:$A$112,MATCH(F158,EF!$C$2:$C$112,0))) ->  | E158: =IF(F158="","",INDEX(EF!$B$2:$B$112,MATCH(F158,EF!$C$2:$C$112,0))) -> 
D159: =IF(F159="","",INDEX(EF!$A$2:$A$112,MATCH(F159,EF!$C$2:$C$112,0))) ->  | E159: =IF(F159="","",INDEX(EF!$B$2:$B$112,MATCH(F159,EF!$C$2:$C$112,0))) -> 
D160: =IF(F160="","",INDEX(EF!$A$2:$A$112,MATCH(F160,EF!$C$2:$C$112,0))) ->  | E160: =IF(F160="","",INDEX(EF!$B$2:$B$112,MATCH(F160,EF!$C$2:$C$112,0))) -> 
D161: =IF(F161="","",INDEX(EF!$A$2:$A$112,MATCH(F161,EF!$C$2:$C$112,0))) ->  | E161: =IF(F161="","",INDEX(EF!$B$2:$B$112,MATCH(F161,EF!$C$2:$C$112,0))) -> 
D162: =IF(F162="","",INDEX(EF!$A$2:$A$112,MATCH(F162,EF!$C$2:$C$112,0))) ->  | E162: =IF(F162="","",INDEX(EF!$B$2:$B$112,MATCH(F162,EF!$C$2:$C$112,0))) -> 
D163: =IF(F163="","",INDEX(EF!$A$2:$A$112,MATCH(F163,EF!$C$2:$C$112,0))) ->  | E163: =IF(F163="","",INDEX(EF!$B$2:$B$112,MATCH(F163,EF!$C$2:$C$112,0))) -> 
D164: =IF(F164="","",INDEX(EF!$A$2:$A$112,MATCH(F164,EF!$C$2:$C$112,0))) ->  | E164: =IF(F164="","",INDEX(EF!$B$2:$B$112,MATCH(F164,EF!$C$2:$C$112,0))) -> 
D165: =IF(F165="","",INDEX(EF!$A$2:$A$112,MATCH(F165,EF!$C$2:$C$112,0))) ->  | E165: =IF(F165="","",INDEX(EF!$B$2:$B$112,MATCH(F165,EF!$C$2:$C$112,0))) -> 
D166: =IF(F166="","",INDEX(EF!$A$2:$A$112,MATCH(F166,EF!$C$2:$C$112,0))) ->  | E166: =IF(F166="","",INDEX(EF!$B$2:$B$112,MATCH(F166,EF!$C$2:$C$112,0))) -> 
D167: =IF(F167="","",INDEX(EF!$A$2:$A$112,MATCH(F167,EF!$C$2:$C$112,0))) ->  | E167: =IF(F167="","",INDEX(EF!$B$2:$B$112,MATCH(F167,EF!$C$2:$C$112,0))) -> 
D168: =IF(F168="","",INDEX(EF!$A$2:$A$112,MATCH(F168,EF!$C$2:$C$112,0))) ->  | E168: =IF(F168="","",INDEX(EF!$B$2:$B$112,MATCH(F168,EF!$C$2:$C$112,0))) -> 
D169: =IF(F169="","",INDEX(EF!$A$2:$A$112,MATCH(F169,EF!$C$2:$C$112,0))) ->  | E169: =IF(F169="","",INDEX(EF!$B$2:$B$112,MATCH(F169,EF!$C$2:$C$112,0))) -> 
D170: =IF(F170="","",INDEX(EF!$A$2:$A$112,MATCH(F170,EF!$C$2:$C$112,0))) ->  | E170: =IF(F170="","",INDEX(EF!$B$2:$B$112,MATCH(F170,EF!$C$2:$C$112,0))) -> 
D171: =IF(F171="","",INDEX(EF!$A$2:$A$112,MATCH(F171,EF!$C$2:$C$112,0))) ->  | E171: =IF(F171="","",INDEX(EF!$B$2:$B$112,MATCH(F171,EF!$C$2:$C$112,0))) -> 
D172: =IF(F172="","",INDEX(EF!$A$2:$A$112,MATCH(F172,EF!$C$2:$C$112,0))) ->  | E172: =IF(F172="","",INDEX(EF!$B$2:$B$112,MATCH(F172,EF!$C$2:$C$112,0))) -> 
D173: =IF(F173="","",INDEX(EF!$A$2:$A$112,MATCH(F173,EF!$C$2:$C$112,0))) ->  | E173: =IF(F173="","",INDEX(EF!$B$2:$B$112,MATCH(F173,EF!$C$2:$C$112,0))) -> 
D174: =IF(F174="","",INDEX(EF!$A$2:$A$112,MATCH(F174,EF!$C$2:$C$112,0))) ->  | E174: =IF(F174="","",INDEX(EF!$B$2:$B$112,MATCH(F174,EF!$C$2:$C$112,0))) -> 
D175: =IF(F175="","",INDEX(EF!$A$2:$A$112,MATCH(F175,EF!$C$2:$C$112,0))) ->  | E175: =IF(F175="","",INDEX(EF!$B$2:$B$112,MATCH(F175,EF!$C$2:$C$112,0))) -> 
D176: =IF(F176="","",INDEX(EF!$A$2:$A$112,MATCH(F176,EF!$C$2:$C$112,0))) ->  | E176: =IF(F176="","",INDEX(EF!$B$2:$B$112,MATCH(F176,EF!$C$2:$C$112,0))) -> 
D177: =IF(F177="","",INDEX(EF!$A$2:$A$112,MATCH(F177,EF!$C$2:$C$112,0))) ->  | E177: =IF(F177="","",INDEX(EF!$B$2:$B$112,MATCH(F177,EF!$C$2:$C$112,0))) -> 
D178: =IF(F178="","",INDEX(EF!$A$2:$A$112,MATCH(F178,EF!$C$2:$C$112,0))) ->  | E178: =IF(F178="","",INDEX(EF!$B$2:$B$112,MATCH(F178,EF!$C$2:$C$112,0))) -> 
D179: =IF(F179="","",INDEX(EF!$A$2:$A$112,MATCH(F179,EF!$C$2:$C$112,0))) ->  | E179: =IF(F179="","",INDEX(EF!$B$2:$B$112,MATCH(F179,EF!$C$2:$C$112,0))) -> 
D180: =IF(F180="","",INDEX(EF!$A$2:$A$112,MATCH(F180,EF!$C$2:$C$112,0))) ->  | E180: =IF(F180="","",INDEX(EF!$B$2:$B$112,MATCH(F180,EF!$C$2:$C$112,0))) -> 
D181: =IF(F181="","",INDEX(EF!$A$2:$A$112,MATCH(F181,EF!$C$2:$C$112,0))) ->  | E181: =IF(F181="","",INDEX(EF!$B$2:$B$112,MATCH(F181,EF!$C$2:$C$112,0))) -> 
D182: =IF(F182="","",INDEX(EF!$A$2:$A$112,MATCH(F182,EF!$C$2:$C$112,0))) ->  | E182: =IF(F182="","",INDEX(EF!$B$2:$B$112,MATCH(F182,EF!$C$2:$C$112,0))) -> 
D183: =IF(F183="","",INDEX(EF!$A$2:$A$112,MATCH(F183,EF!$C$2:$C$112,0))) ->  | E183: =IF(F183="","",INDEX(EF!$B$2:$B$112,MATCH(F183,EF!$C$2:$C$112,0))) -> 
D184: =IF(F184="","",INDEX(EF!$A$2:$A$112,MATCH(F184,EF!$C$2:$C$112,0))) ->  | E184: =IF(F184="","",INDEX(EF!$B$2:$B$112,MATCH(F184,EF!$C$2:$C$112,0))) -> 
D185: =IF(F185="","",INDEX(EF!$A$2:$A$112,MATCH(F185,EF!$C$2:$C$112,0))) ->  | E185: =IF(F185="","",INDEX(EF!$B$2:$B$112,MATCH(F185,EF!$C$2:$C$112,0))) -> 
D186: =IF(F186="","",INDEX(EF!$A$2:$A$112,MATCH(F186,EF!$C$2:$C$112,0))) ->  | E186: =IF(F186="","",INDEX(EF!$B$2:$B$112,MATCH(F186,EF!$C$2:$C$112,0))) -> 
D187: =IF(F187="","",INDEX(EF!$A$2:$A$112,MATCH(F187,EF!$C$2:$C$112,0))) ->  | E187: =IF(F187="","",INDEX(EF!$B$2:$B$112,MATCH(F187,EF!$C$2:$C$112,0))) -> 
D188: =IF(F188="","",INDEX(EF!$A$2:$A$112,MATCH(F188,EF!$C$2:$C$112,0))) ->  | E188: =IF(F188="","",INDEX(EF!$B$2:$B$112,MATCH(F188,EF!$C$2:$C$112,0))) -> 
D189: =IF(F189="","",INDEX(EF!$A$2:$A$112,MATCH(F189,EF!$C$2:$C$112,0))) ->  | E189: =IF(F189="","",INDEX(EF!$B$2:$B$112,MATCH(F189,EF!$C$2:$C$112,0))) -> 
D190: =IF(F190="","",INDEX(EF!$A$2:$A$112,MATCH(F190,EF!$C$2:$C$112,0))) ->  | E190: =IF(F190="","",INDEX(EF!$B$2:$B$112,MATCH(F190,EF!$C$2:$C$112,0))) -> 
D191: =IF(F191="","",INDEX(EF!$A$2:$A$112,MATCH(F191,EF!$C$2:$C$112,0))) ->  | E191: =IF(F191="","",INDEX(EF!$B$2:$B$112,MATCH(F191,EF!$C$2:$C$112,0))) -> 
D192: =IF(F192="","",INDEX(EF!$A$2:$A$112,MATCH(F192,EF!$C$2:$C$112,0))) ->  | E192: =IF(F192="","",INDEX(EF!$B$2:$B$112,MATCH(F192,EF!$C$2:$C$112,0))) -> 
D193: =IF(F193="","",INDEX(EF!$A$2:$A$112,MATCH(F193,EF!$C$2:$C$112,0))) ->  | E193: =IF(F193="","",INDEX(EF!$B$2:$B$112,MATCH(F193,EF!$C$2:$C$112,0))) -> 
D194: =IF(F194="","",INDEX(EF!$A$2:$A$112,MATCH(F194,EF!$C$2:$C$112,0))) ->  | E194: =IF(F194="","",INDEX(EF!$B$2:$B$112,MATCH(F194,EF!$C$2:$C$112,0))) -> 
D195: =IF(F195="","",INDEX(EF!$A$2:$A$112,MATCH(F195,EF!$C$2:$C$112,0))) ->  | E195: =IF(F195="","",INDEX(EF!$B$2:$B$112,MATCH(F195,EF!$C$2:$C$112,0))) -> 
D196: =IF(F196="","",INDEX(EF!$A$2:$A$112,MATCH(F196,EF!$C$2:$C$112,0))) ->  | E196: =IF(F196="","",INDEX(EF!$B$2:$B$112,MATCH(F196,EF!$C$2:$C$112,0))) -> 
A197: =IF(B197>0,A196+1,"") ->  | D197: =IF(F197="","",INDEX(EF!$A$2:$A$112,MATCH(F197,EF!$C$2:$C$112,0))) ->  | E197: =IF(F197="","",INDEX(EF!$B$2:$B$112,MATCH(F197,EF!$C$2:$C$112,0))) -> 
D198: =IF(F198="","",INDEX(EF!$A$2:$A$112,MATCH(F198,EF!$C$2:$C$112,0))) ->  | E198: =IF(F198="","",INDEX(EF!$B$2:$B$112,MATCH(F198,EF!$C$2:$C$112,0))) -> 
D199: =IF(F199="","",INDEX(EF!$A$2:$A$112,MATCH(F199,EF!$C$2:$C$112,0))) ->  | E199: =IF(F199="","",INDEX(EF!$B$2:$B$112,MATCH(F199,EF!$C$2:$C$112,0))) -> 
D200: =IF(F200="","",INDEX(EF!$A$2:$A$112,MATCH(F200,EF!$C$2:$C$112,0))) ->  | E200: =IF(F200="","",INDEX(EF!$B$2:$B$112,MATCH(F200,EF!$C$2:$C$112,0))) -> 
... 2 more rows

Sheet F18A
A1: =Validacion!A2 -> Atemajac de Brizuela
A2: ESTADO ANALÍTICO DEL EJERCICIO DEL PRESUPUESTO DE EGRESOS DETALLADO - LDF
A3: CLASIFICACIÓN ADMINISTRATIVA
A4: ='F6'!A3 -> Del 1° de Enero al 31 de Diciembre de 2022
A6: CONCEPTO | B6: EGRESOS | G6: SUBEJERCICIO
B7: APROBADO | C7: AMPLIACIONES/ (REDUCCIONES) | D7: MODIFICADO | E7: DEVENGADO | F7: PAGADO
A8: I. GASTO NO ETIQUETADO
A9: GOBIERNO MUNICIPAL | B9: 29910830 | D9: =B9+C9 -> 29910830 | E9: 42889941.7 | F9: 42889941.7 | G9: =D9-E9 -> -12979111.7
D10: =B10+C10 -> 0 | G10: =D10-E10 -> 0
D11: 0 | G11: 0
D12: 0 | G12: 0
D13: 0 | G13: 0
D14: 0 | G14: 0
D15: 0 | G15: 0
D16: 0 | G16: 0
D17: 0 | G17: 0
D18: 0 | G18: 0
D19: 0 | G19: 0
D20: 0 | G20: 0
D21: 0 | G21: 0
D22: 0 | G22: 0
D23: 0 | G23: 0
D24: 0 | G24: 0
D25: 0 | G25: 0
D26: 0 | G26: 0
D27: 0 | G27: 0
D28: 0 | G28: 0
D29: 0 | G29: 0
D30: 0 | G30: 0
D31: 0 | G31: 0
D32: 0 | G32: 0
D33: 0 | G33: 0
A34: TOTAL DEL GASTO NO ETIQUETADO | B34: =SUM(B8:B33) -> 29910830 | C34: =SUM(C8:C33) -> 0 | D34: 29910830 | E34: 42889941.7 | F34: 42889941.7 | G34: -12979111.7
A35: II. GASTO ETIQUETADO
A36: GOBIERNO MUNICIPAL | B36: 15102180 | D36: =B36+C36 -> 15102180 | E36: 17395594.01 | F36: 17395594.01 | G36: =D36-E36 -> -2293414.01
D37: =B37+C37 -> 0 | G37: =D37-E37 -> 0
D38: 0 | G38: 0
D39: 0 | G39: 0
D40: 0 | G40: 0
D41: 0 | G41: 0
D42: 0 | G42: 0
D43: 0 | G43: 0
D44: 0 | G44: 0
D45: 0 | G45: 0
D46: 0 | G46: 0
D47: 0 | G47: 0
D48: 0 | G48: 0
D49: 0 | G49: 0
D50: 0 | G50: 0
D51: 0 | G51: 0
D52: 0 | G52: 0
D53: 0 | G53: 0
D54: 0 | G54: 0
D55: 0 | G55: 0
D56: 0 | G56: 0
D57: 0 | G57: 0
D58: 0 | G58: 0
D59: 0 | G59: 0
D60: 0 | G60: 0
A61: TOTAL DEL GASTO ETIQUETADO | B61: =SUM(B35:B60) -> 15102180 | C61: =SUM(C35:C60) -> 0 | D61: 15102180 | E61: 17395594.01 | F61: 17395594.01 | G61: -2293414.01
A62: TOTAL DEL GASTO | B62: =B34+B61 -> 45013010 | C62: =C34+C61 -> 0 | D62: 45013010 | E62: 60285535.71 | F62: 60285535.71 | G62: -15272525.71
A64: Bajo protesta de decir verdad declaramos que los estados financieros y sus notas, son razonablemente correctos y son responsabilidad del emisor.
A68: =Validacion!A7 -> C. SANTIAGO LEON CASTRO | D68: =Validacion!A9 -> L.T. JOCELYN SANCHEZ HERRERA
A70: Presidente Municipal o titular del ente público | D70: Encargado de la Hacienda Municipal o Responsable de las finanzas del ente público

Sheet F19A
B1: =Validacion!A2 -> Atemajac de Brizuela
B2: ESTADO ANALÍTICO DEL EJERCICIO DEL PRESUPUESTO DE EGRESOS DETALLADO - LDF
B3: CLASIFICACIÓN FUNCIONAL (FINALIDAD Y FUNCIÓN)
C4: ='F6'!A3 -> Del 1° de Enero al 31 de Diciembre de 2022
A6: CONCEPTO | D6: EGRESOS | I6: SUBEJERCICIO
D7: APROBADO | E7: AMPLIACIONES/ (REDUCCIONES) | F7: MODIFICADO | G7: DEVENGADO | H7: PAGADO
A8: I | B8: GASTO NO ETIQUETADO
B9: A Gobierno | D9: =SUM(D10:D17) -> 29910830 | E9: =SUM(E10:E17) -> 0 | F9: =D9+E9 -> 29910830 | G9: =SUM(G10:G17) -> 42889941.7 | H9: 42889941.7 | I9: =F9-G9 -> -12979111.7
C10: Legislación | F10: =D10+E10 -> 0 | I10: =F10-G10 -> 0
C11: Justicia | F11: 0 | I11: 0
C12: Coordinación de la política de gobierno | F12: 0 | I12: 0
C13: Relaciones exteriores | F13: 0 | I13: 0
C14: Asuntos financieros y hacendarios | F14: 0 | I14: 0
C15: Seguridad nacional | F15: 0 | I15: 0
C16: Asuntos de orden público y de seguridad interior | F16: 0 | I16: 0
C17: Otros servicios generales | D17: 29910830 | F17: 29910830 | G17: 42889941.7 | H17: 42889941.7 | I17: -12979111.7
B18: B Desarrollo social | D18: =SUM(D19:D25) -> 0 | E18: =SUM(E19:E25) -> 0 | F18: 0 | G18: =SUM(G19:G25) -> 0 | H18: 0 | I18: 0
C19: Protección ambiental | F19: 0 | I19: 0
C20: Vivienda y servicios a la comunidad | F20: 0 | I20: 0
C21: Salud | F21: 0 | I21: 0
C22: Recreación, cultura y otras manifestaciones sociales | F22: 0 | I22: 0
C23: Educación | F23: 0 | I23: 0
C24: Protección social | F24: 0 | I24: 0
C25: Otros asuntos sociales | F25: 0 | I25: 0
B26: C Desarrollo económico | D26: =SUM(D27:D35) -> 0 | E26: =SUM(E27:E35) -> 0 | F26: 0 | G26: =SUM(G27:G35) -> 0 | H26: 0 | I26: 0
C27: Asuntos económicos, comerciales y laborales en general | F27: 0 | I27: 0
C28: Agropecuaria, silvicultura, pesca y caza | F28: 0 | I28: 0
C29: Combustibles y energía | F29: 0 | I29: 0
C30: Minería, manufacturas y construcción | F30: 0 | I30: 0
C31: Transporte | F31: 0 | I31: 0
C32: Comunicaciones | F32: 0 | I32: 0
C33: Turismo | F33: 0 | I33: 0
C34: Ciencia, tecnología e innovación | F34: 0 | I34: 0
C35: Otras industrias y otros asuntos económicos | F35: 0 | I35: 0
B36: D Otras no clasificadas en fdunciones anteriores | D36: =SUM(D37:D40) -> 0 | E36: =SUM(E37:E40) -> 0 | F36: 0 | G36: =SUM(G37:G40) -> 0 | H36: =SUM(H37:H40) -> 0 | I36: 0
C37: Transacciones de la deuda publica / costo financiero de la deuda | F37: 0 | I37: 0
C38: Transferencias, participaciones y aportaciones entre diferentes niveles y órdenes de gobierno | F38: 0 | I38: 0
C39: Saneamiento del sistema financiero | F39: 0 | I39: 0
C40: Adeudos de ejercicios fiscales anteriores | F40: 0 | I40: 0
C41: TOTAL DEL GASTO NO ETIQUETADO | D41: =D9+D18+D26+D36 -> 29910830 | E41: =E9+E18+E26+E36 -> 0 | F41: 29910830 | G41: =G9+G18+G26+G36 -> 42889941.7 | H41: =H9+H18+H26+H36 -> 42889941.7 | I41: -12979111.7
A42: II | B42: GASTO ETIQUETADO
B43: A Gobierno | D43: =SUM(D44:D51) -> 15102180 | E43: =SUM(E44:E51) -> 0 | F43: =D43+E43 -> 15102180 | G43: =SUM(G44:G51) -> 17395594.01 | H43: 17395594.01 | I43: =F43-G43 -> -2293414.01
C44: Legislación | F44: =D44+E44 -> 0 | I44: =F44-G44 -> 0
C45: Justicia | F45: 0 | I45: 0
C46: Coordinación de la política de gobierno | F46: 0 | I46: 0
C47: Relaciones exteriores | F47: 0 | I47: 0
C48: Asuntos financieros y hacendarios | F48: 0 | I48: 0
C49: Seguridad nacional | F49: 0 | I49: 0
C50: Asuntos de orden público y de seguridad interior | F50: 0 | I50: 0
C51: Otros servicios generales | D51: 15102180 | F51: 15102180 | G51: 17395594.01 | H51: 17395594.01 | I51: -2293414.01
B52: B Desarrollo social | D52: =SUM(D53:D59) -> 0 | E52: =SUM(E53:E59) -> 0 | F52: 0 | G52: =SUM(G53:G59) -> 0 | H52: 0 | I52: 0
C53: Protección ambiental | F53: 0 | I53: 0
C54: Vivienda y servicios a la comunidad | F54: 0 | I54: 0
C55: Salud | F55: 0 | I55: 0
C56: Recreación, cultura y otras manifestaciones sociales | F56: 0 | I56: 0
C57: Educación | F57: 0 | I57: 0
C58: Protección social | F58: 0 | I58: 0
C59: Otros asuntos sociales | F59: 0 | I59: 0
B60: C Desarrollo económico | D60: =SUM(D61:D69) -> 0 | E60: =SUM(E61:E69) -> 0 | F60: 0 | G60: =SUM(G61:G69) -> 0 | H60: 0 | I60: 0
C61: Asuntos económicos, comerciales y laborales en general | F61: 0 | I61: 0
C62: Agropecuaria, silvicultura, pesca y caza | F62: 0 | I62: 0
C63: Combustibles y energía | F63: 0 | I63: 0
C64: Minería, manufacturas y construcción | F64: 0 | I64: 0
C65: Transporte | F65: 0 | I65: 0
C66: Comunicaciones | F66: 0 | I66: 0
C67: Turismo | F67: 0 | I67: 0
C68: Ciencia, tecnología e innovación | F68: 0 | I68: 0
C69: Otras industrias y otros asuntos económicos | F69: 0 | I69: 0
B70: D Otras no clasificadas en fdunciones anteriores | D70: =SUM(D71:D74) -> 0 | E70: =SUM(E71:E74) -> 0 | F70: 0 | G70: =SUM(G71:G74) -> 0 | H70: =SUM(H71:H74) -> 0 | I70: 0
C71: Transacciones de la deuda publica / costo financiero de la deuda | F71: 0 | I71: 0
C72: Transferencias, participaciones y aportaciones entre diferentes niveles y órdenes de gobierno | F72: 0 | I72: 0
C73: Saneamiento del sistema financiero | F73: 0 | I73: 0
C74: Adeudos de ejercicios fiscales anteriores | F74: 0 | I74: 0
C75: TOTAL DEL GASTO ETIQUETADO | D75: =D43+D52+D60+D70 -> 15102180 | E75: =E43+E52+E60+E70 -> 0 | F75: =D75+E75 -> 15102180 | G75: =G43+G52+G60+G70 -> 17395594.01 | H75: =H43+H52+H60+H70 -> 17395594.01 | I75: -2293414.01
C76: TOTAL DEL GASTO | D76: =D41+D75 -> 45013010 | E76: =E41+E75 -> 0 | F76: =F41+F75 -> 45013010 | G76: 60285535.71 | H76: 60285535.71 | I76: -15272525.71
B78: Bajo protesta de decir verdad declaramos que los estados financieros y sus notas, son razonablemente correctos y son responsabilidad del emisor.
C81: =Validacion!A7 -> C. SANTIAGO LEON CASTRO | E81: =Validacion!A9 -> L.T. JOCELYN SANCHEZ HERRERA
C83: Presidente Municipal o titular del ente público | E83: Encargado de la Hacienda Municipal o Responsable de las finanzas del ente público

Sheet F21
A1: =Validacion!A2 -> Atemajac de Brizuela
A2: ESTADO ANALÍTICO DEL EJERCICIO DEL PRESPUESTO DE EGRESOS DETALLADO - LDF
A3: CLASIFICACIÓN DE SERVICIOS PERSONALES POR CATEGORÍA
A4: ='F6'!A3 -> Del 1° de Enero al 31 de Diciembre de 2022
A6: CONCEPTO | D6: EGRESOS | I6: SUBEJERCICIO
D7: APROBADO | E7: AMPLIACIONES/ (REDUCCIONES) | F7: MODFICADO | G7: DEVENGADO | H7: PAGADO
A8: I | B8: GASTOS NO ETIQUETADOS
B9: A | C9: Personal administrativo y de servicio público | D9: 29910830 | F9: =D9+E9 -> 29910830 | G9: 42889941.7 | H9: 42889941.7 | I9: =F9-G9 -> -12979111.7
B10: B | C10: Magisterio | F10: =D10+E10 -> 0 | I10: =F10-G10 -> 0
B11: C | C11: Servicios de salud | D11: =D12+D13 -> 0 | E11: =E12+E13 -> 0 | F11: 0 | G11: =G12+G13 -> 0 | H11: =H12+H13 -> 0 | I11: 0
C12: Personal administrativo | F12: 0 | I12: 0
C13: Personal médico, paramédico y afín | F13: 0 | I13: 0
B14: D | C14: Seguridad pública | F14: 0 | I14: 0
B15: E | C15: Gastos asociados a la implementación de nuevas leyes federales o reformas a las mismas | D15: =D16+D17 -> 0 | E15: =E16+E17 -> 0 | F15: 0 | G15: =G16+G17 -> 0 | H15: =H16+H17 -> 0 | I15: 0
C16: Nombre del programa o ley | F16: 0 | I16: 0
C17: Nombre del programa o ley | F17: 0 | I17: 0
B18: F | C18: Sentencias laborales definitivas | F18: 0 | I18: 0
C19: TOTAL DEL GASTO NO ETIQUETADO | D19: =D9+D10+D11+D14+D15+D18 -> 29910830 | E19: =E9+E10+E11+E14+E15+E18 -> 0 | F19: 29910830 | G19: 42889941.7 | H19: 42889941.7 | I19: -12979111.7
A20: II | B20: GASTOS ETIQUETADOS
B21: A | C21: Personal administrativo y de servicio público | D21: 15105180 | F21: =D21+E21 -> 15105180 | G21: 17395594.01 | H21: 17395594.01 | I21: =F21-G21 -> -2290414.01
B22: B | C22: Magisterio | F22: =D22+E22 -> 0 | I22: 0
B23: C | C23: Servicios de salud | D23: =D24+D25 -> 0 | E23: =E24+E25 -> 0 | F23: =D23+E23 -> 0 | G23: =G24+G25 -> 0 | H23: 0 | I23: 0
C24: Personal administrativo | F24: =D24+E24 -> 0 | I24: 0
C25: Personal médico, paramédico y afín | F25: 0 | I25: 0
B26: D | C26: Seguridad pública | F26: =D26+E26 -> 0 | I26: 0
B27: E | C27: Gastos asociados a la implementación de nuevas leyes federales o reformas a las mismas | D27: =D28+D29 -> 0 | E27: =E28+E29 -> 0 | F27: =D27+E27 -> 0 | G27: =G28+G29 -> 0 | H27: 0 | I27: 0
C28: Nombre del programa o ley | F28: =D28+E28 -> 0 | I28: 0
C29: Nombre del programa o ley | F29: 0 | I29: 0
B30: F | C30: Sentencias laborales definitivas | F30: =D30+E30 -> 0 | I30: 0
C31: TOTAL DEL GASTO ETIQUETADO | D31: =D21+D22+D23+D26+D27+D30 -> 15105180 | E31: =E21+E22+E23+E26+E27+E30 -> 0 | F31: =D31+E31 -> 15105180 | G31: =G21+G22+G23+G26+G27+G30 -> 17395594.01 | H31: =H21+H22+H23+H26+H27+H30 -> 17395594.01 | I31: -2290414.01
A32: III | B32: TOTAL DEL GASTO DE SERVICIOS PERSONALES | D32: =D19+D31 -> 45016010 | E32: =E19+E31 -> 0 | F32: =F19+F31 -> 45016010 | G32: 60285535.71 | H32: 60285535.71 | I32: =F32-G32 -> -15269525.71
A34: Bajo protesta de decir verdad declaramos que los estados financieros y sus notas, son razonablemente correctos y son responsabilidad del emisor.
C37: =Validacion!A7 -> C. SANTIAGO LEON CASTRO | F37: =Validacion!A9 -> L.T. JOCELYN SANCHEZ HERRERA
C39: Presidente Municipal o titular del ente público | F39: Encargado de la Hacienda Municipal o Responsable de las finanzas del ente público

Sheet F22
A1: =Validacion!A2 -> Atemajac de Brizuela
A2: BALANCE PRESUPUESTARIO - LDF
A3: ='F6'!A3 -> Del 1° de Enero al 31 de Diciembre de 2022
A5: CONCEPTO | E5: ESTIMADO/ APROBADO | F5: DEVENGADO | G5: RECAUDADO/ PAGADO
A6: A | C6: Ingresos totales | E6: =SUM(E7:E9) -> 45013010 | F6: =SUM(F7:F9) -> 54878799.87 | G6: 54878799.87
B7: A1 | C7: Ingresos de libre disposición | E7: =F7B!C39 -> 29910830 | F7: =F7B!F39 -> 37483205.86 | G7: =F7B!G39 -> 37483205.86
B8: A2 | C8: Transferencias federales etiquetadas | E8: =F7B!C61 -> 15102180 | F8: =F7B!F61 -> 17395594.01 | G8: =F7B!G61 -> 17395594.01
B9: A3 | C9: Financiamiento neto | E9: =E33 -> 0 | F9: =F33 -> 0 | G9: =G33 -> 0
A10: B | C10: Egresos presupuestarios | E10: =SUM(E11:E12) -> 45013010 | F10: =SUM(F11:F12) -> 60285535.71 | G10: 60285535.71
B11: B1 | C11: Gastos no etiquetado (sin incluir amortización de la deuda pública) | E11: =F8B!D80-E31 -> 29910830 | F11: =F8B!G80-F31 -> 42889941.7 | G11: =F8B!H80-G31 -> 42889941.7
B12: B2 | C12: Gasto etiquetado (sin incluir amortización de la deuda pública) | E12: =F8B!D154-E32 -> 15102180 | F12: =F8B!G154-F32 -> 17395594.01 | G12: =F8B!H154-G32 -> 17395594.01
A13: C | C13: Remanentes del ejercicio anterior | E13: =SUM(E14:E15) -> 0 | F13: =SUM(F14:F15) -> 0 | G13: 0
B14: C1 | C14: Remanentes de ingresos de libre disposición aplicados en el periodo
B15: C2 | C15: Remanentes de transferencias federales etiquetadas aplicados en el periodo
A16: I | C16: Balance presupuestario | E16: =E6-E10+E13 -> 0 | F16: =F6-F10+F13 -> -5406735.84 | G16: -5406735.84
A17: II | C17: Balance presupuestario sin financiamiento neto | E17: =E16-E9 -> 0 | F17: =F16-F9 -> -5406735.84 | G17: -5406735.84
A18: III | C18: Balance presupuestario sin financiamiento neto y sin remanentes del ejercicio anterior | E18: =E17-E13 -> 0 | F18: =F17-F13 -> -5406735.84 | G18: -5406735.84
A20: CONCEPTO | E20: APROBADO | F20: DEVENGADO | G20: PAGADO
A21: E | C21: Intereses, comisiones y gastos de la deuda | E21: =SUM(E22:E23) -> 0 | F21: =SUM(F22:F23) -> 0 | G21: 0
B22: E1 | C22: Intereses, comisiones y gastos de la deuda con gasto no etiquetado | E22: =SUM(F8B!D74:D76) -> 0 | F22: =SUM(F8B!G74:G76) -> 0 | G22: =SUM(F8B!H74:H76) -> 0
B23: E2 | C23: Intereses, comisiones y gastos de la deuda con gasto etiquetado | E23: =SUM(F8B!D148:D150) -> 0 | F23: =SUM(F8B!G148:G150) -> 0 | G23: =SUM(F8B!H148:H150) -> 0
A24: IV | C24: Balance primario | E24: =E18+E21 -> 0 | F24: =F18+F21 -> -5406735.84 | G24: -5406735.84
A26: CONCEPTO | E26: ESTIMADO/ APROBADO | F26: DEVENGADO | G26: RECAUDADO/ PAGADO
A27: F | C27: Financiamiento | E27: =SUM(E28:E29) -> 0 | F27: =SUM(F28:F29) -> 0 | G27: 0
B28: F1 | C28: Financiamiento con fuente de pago de ingresos de libre disposición | E28: =F7B!C66 -> 0 | F28: =F7B!F66 -> 0 | G28: =F7B!G66 -> 0
B29: F2 | C29: Financiamiento con fuente de pago de transferencias federales etiquetadas | E29: =F7B!C67 -> 0 | F29: =F7B!F67 -> 0 | G29: =F7B!G67 -> 0
A30: G | C30: Amortización de la deuda | E30: =SUM(E31:E32) -> 0 | F30: =SUM(F31:F32) -> 0 | G30: 0
B31: G1 | C31: Amortización de la deuda pública con gasto no etiquetado | E31: =F8B!D73 -> 0 | F31: =F8B!G73 -> 0 | G31: =F8B!H73 -> 0
B32: G2 | C32: Amortización de la deuda pública con gasto etiquetado | E32: =F8B!D147 -> 0 | F32: =F8B!G147 -> 0 | G32: =F8B!H147 -> 0
A33: A3 | C33: Financiamiento Neto | E33: =E27-E30 -> 0 | F33: =F27-F30 -> 0 | G33: 0
A35: CONCEPTO | E35: ESTIMADO/ APROBADO | F35: DEVENGADO | G35: RECAUDADO/ PAGADO
A36: A1 | C36: Ingresos de libre disposición | E36: =E7 -> 29910830 | F36: =F7 -> 37483205.86 | G36: =G7 -> 37483205.86
A37: A3.1 | C37: Financiamiento neto con fuente de pago de ingresos de libre disposición | E37: =E38-E39 -> 0 | F37: =F38-F39 -> 0 | G37: =G38-G39 -> 0
B38: F1 | C38: Financiamiento con fuente de pago de ingresos de libre disposición | E38: =E28 -> 0 | F38: =F28 -> 0 | G38: =G28 -> 0
B39: G1 | C39: Amortización de la deuda pública con gasto etiquetado | E39: =E31 -> 0 | F39: =F31 -> 0 | G39: =G31 -> 0
A40: B1 | C40: Gasto no etiquetado (sin incluir amortización de la deuda pública) | E40: =E11 -> 29910830 | F40: =F11 -> 42889941.7 | G40: =G11 -> 42889941.7
A41: C1 | C41: Remanente de ingresos de libre disposición aplicados en el periodo | F41: =F14 -> 0 | G41: =G14 -> 0
A42: V | C42: Balance presupuestario de recursos disponibles | E42: =E36+E37-E40+E41 -> 0 | F42: =F36+F37-F40+F41 -> -5406735.84 | G42: =G36+G37-G40+G41 -> -5406735.84
A43: VI | C43: Balance presupuestario de recursos disponibles sin financiamiento neto | E43: =E42-E37 -> 0 | F43: =F42-F37 -> -5406735.84 | G43: =G42-G37 -> -5406735.84
A45: CONCEPTO | E45: ESTIMADO/ APROBADO | F45: DEVENGADO | G45: RECAUDADO/ PAGADO
A46: A2 | C46: Transferencias federales etiquetadas | E46: =E8 -> 15102180 | F46: =F8 -> 17395594.01 | G46: =G8 -> 17395594.01
A47: A3.2 | C47: Financiamiento neto con fuente de pago de transferencias federales etiquetadas | E47: =E48-E49 -> 0 | F47: =F48-F49 -> 0 | G47: 0
B48: F2 | C48: Financiamiento con fuente de pago de transferencias federales | E48: =E29 -> 0 | F48: =F29 -> 0 | G48: =G29 -> 0
B49: G2 | C49: Amortización de la deuda pública con gasto etiquetado | E49: =E32 -> 0 | F49: =F32 -> 0 | G49: =G32 -> 0
A50: B2 | C50: Gasto etiquetado (sin incluir amortización de la deuda pública) | E50: =E12 -> 15102180 | F50: =F12 -> 17395594.01 | G50: =G12 -> 17395594.01
A51: C2 | C51: Remanente de transferencias federales etiquetadas aplicados en el periodo | F51: =F15 -> 0 | G51: =G15 -> 0
A52: VII | C52: Balance presupuestario de recursos etiquetados | E52: =E46+E47-E50+E51 -> 0 | F52: =F46+F47-F50+F51 -> 3.725290298e-09 | G52: =G46+G47-G50+G51 -> 3.725290298e-09
A53: VIII | C53: Balance presupuestario de recursos etiquetados sin financiamiento neto | E53: =E52-E47 -> 0 | F53: =F52-F47 -> 3.725290298e-09 | G53: =G52-G47 -> 3.725290298e-09
A55: Bajo protesta de decir verdad declaramos que los estados financieros y sus notas, son razonablemente correctos y son responsabilidad del emisor.
C59: =Validacion!A7 -> C. SANTIAGO LEON CASTRO | E59: =Validacion!A9 -> L.T. JOCELYN SANCHEZ HERRERA
C61: Presidente Municipal o titular del ente público | E61: Encargado de la Hacienda Municipal o Responsable de las finanzas del ente público

Sheet F23
A1: =Validacion!A2 -> Atemajac de Brizuela
A2: INFORMATIVA ANUAL DE OBRAS
A3: ='F6'!A3 -> Del 1° de Enero al 31 de Diciembre de 2022
A5: NOMBRE DE OBRA O NÚMERO DE ORDEN DE TRABAJO | B5: LOCALIDAD | C5: DESCRIPCIÓN DE LA OBRA U OBJETO DEL CONTRATO | D5: NOMBRE DEL EJECUTOR DE LA OBRA | E5: UBICACIÓN GEOGRÁFICA | G5: MODALIDAD DE EJECUCIÓN | K5: PLAZO DE EJECUCIÓN | N5: PRORROGA Y/O DIFERIMIENTO | P5: ORIGEN DEL RECURSO (MONTO) | T5: IMPORTE TOTAL DEL PAGO | U5: ESTATUS DE LA OBRA | V5: ENTREGA RECEPCIÓN Y/O MINUTA DE TERMINACIÓIN
G7: ADMÓN. DIRECTA | H7: CONTRATO
E8: LATITUD | F8: LONGITUD | H8: ADJ. DIRECTA | I8: CONCURSO SIMPL. | J8: LICITA. PÚBLICA | K8: INICIO | L8: TERMINO | M8: DÍAS NATURALES | N8: SI | O8: NO | P8: PROPIOS | Q8: ESTATAL | R8: FISMDF | S8: CONVENIO FEDERAL | V8: SI | W8: NO
A9: CONSTRUCCIÓN DE CUARTO PARA RAYOS X EN LA UNIDAD DE PROTECCIÓN CIVIL EN LA CABECERA MUNICIPAL DE ATEMAJAC DE BRIZUELA, JALISCO. | B9: CABECERA MUNICIPAL | C9: BRINDAR EL SERVICIO DE RAYOS X EN EL MUNICIPIO | D9: H AYUNTAMIENTO | E9: 20.141683° | F9: -103.725686 | G9: X | K9: 2022-02-24 | L9: 2022-09-03 | M9: =L9-K9 -> 191 | O9: X | R9: 425484.9 | T9: =SUM(P9:S9) -> 425484.9 | U9: Terminada | V9: X
A10: CONSTRUCCIÓN DE RED DE ALCANTARILLADO EN LA CALLE INDEPENDENCIA EN LA LOCALIDAD DE YOLOSTA MUNICIPIO DE ATEMAJAC DE BRIZUELA, JALISCO. | B10: YOLOSTA | C10: EXCAVACION Y COLOCACION DE TUBERIA | D10: H AYUNTAMIENTO | E10: 20.178441° | F10: -103.690571° | G10: X | K10: 2022-03-18 | L10: 2022-07-22 | M10: =L10-K10 -> 126 | O10: X | R10: 129181.89 | T10: =SUM(P10:S10) -> 129181.89 | U10: Terminada | V10: X
A11: CONSTRUCCION DE PISO FIRME EN PREESCOLAR EN CALLE EMILIANO ZAPATA LOCALIDAD YOLOSTA ATEMAJAC DE BRIZUELA, JAL | B11: YOLOSTA | C11: CONSTRUCCION DE FIRME EN AREA DE PATIO CIVICO | D11: H AYUNTAMIENTO | E11: 20.177621° | F11: -103.690128 | G11: X | K11: 2022-02-28 | L11: 2022-04-23 | M11: 54 | O11: X | R11: 176165.22 | T11: 176165.22 | U11: Terminada | V11: X
A12: CONSTRUCCIÓN DE POZO PROFUNDO DE AGUA POTABLE EL OCOTITO EN LA CABECERA MUNICIPAL DE ATEMAJAC DE BRIZUELA JALISCO. | B12: CABECERA MUNICIPAL | C12: PERFORACION Y EQUIPAMIENTO DE POZO DE AGUA POTABLE | D12: PERFORACIONES LA ROCA S.A. DE C.V. | E12: 20.125680° | F12: -103.723655° | H12: X | K12: 2022-04-08 | L12: 2022-08-17 | M12: 131 | O12: X | R12: 1705745.43 | T12: 1705745.43 | U12: Terminada | V12: X
A13: CONSTRUCCION DE BODEGA Y COLOCACIÓN DE MALLA CICLONICA EN POZO DE AGUA POTABLE EL OCOTITO EN LA CABECERA MUNICIPAL DE ATEMAJAC DE BRIZUELA, JALISCO. | B13: CABECERA MUNICIPAL | C13: OBRAS COMPLEMENTARIAS PARA EQUIPAMIENTO DE POZO | D13: H AYUNTAMIENTO | E13: 20.125680° | F13: -103.723655° | G13: X | K13: 2022-08-01 | L13: 2022-09-17 | M13: 47 | O13: X | R13: 474158.28 | T13: 474158.28 | U13: Terminada | V13: X
A14: REHABILITACIÓN DE POZO PROFUNDO DE AGUA POTABLE EN LA CABECERA MUNICIPAL DE ATEMAJAC DE BRIZUELA JALISCO | B14: CABECERA MUNICIPAL | C14: REPARACIONES EN EQUIPOS DE BOMBEO | D14: PERFORACIONES LA ROCA S.A. DE C.V. | E14: 20.129519° | F14: -103.723025° | H14: X | K14: 2022-04-20 | L14: 2022-08-17 | M14: 119 | O14: X | R14: 53295.49 | T14: 53295.49 | U14: Terminada | V14: X
A15: EHABILITACIÓN DE CENTRO CULTURAL, ANTIGUO MUSEO EN LA CABECERA MUNICIPAL DE ATEMAJAC DE BRIZUELA JALISCO. | B15: CABECERA MUNICIPAL | C15: RETIRO Y REPOSICION DE CUBIERTA , REFORZAMIENTOS EN MUROS Y ACONDICIONAMIENTO DEL AREA PARA NUEVO USO | D15: H AYUNTAMIENTO | E15: 20.140638° | F15: -103.728946° | G15: X | K15: 2022-04-18 | L15: 2022-07-02 | M15: 75 | O15: X | R15: 451289.89 | T15: 451289.89 | U15: Terminada | V15: X
A16: MANTENIMIENTO DE SANITARIOS EN PREESCOLAR XICOTÉNCATL EN LA COLONIA SAN JOSÉ EN LA CABECERA MUNICIPAL DE ATEMAJAC DE BRIZUELA, JALISCO. | B16: CABECERA MUNICIPAL | C16: LIMPIEZA, REPARACION Y REACONDICIONAMIENTO DE SANITARIOS | D16: H AYUNTAMIENTO | E16: 20.135584° | F16: -103.719267° | G16: X | K16: 2022-05-06 | L16: 2022-05-27 | M16: 21 | O16: X | R16: 42084 | T16: 42084 | U16: Terminada | V16: X
A17: MANTENIMIENTO DE CEMENTERIO MUNICIPAL EN LA CABECERA MUNICIPAL DE ATEMAJAC DE BRIZUELA, JALISCO | B17: CABECERA MUNICIPAL | C17: LIMPIEZA, REPARACION Y REACONDICIONAMIENTO Y APLICACIÓN DE PINTURA | D17: H AYUNTAMIENTO | E17: 20.138747° | F17: -103.715528° | G17: X | K17: 2022-05-20 | L17: 2022-06-17 | M17: 28 | O17: X | R17: 93219.07 | T17: 93219.07 | U17: Terminada | V17: X
A18: COMPLEMENTO PARA CONSTRUCCIÓN DE RED DE ALCANTARILLADO Y RED DE AGUA POTABLE EN CALLE JOCONOXTLE CORO II EN LA CABECERA MUNICIPAL DE ATEMAJAC DE BRIZUELA, JALISCO. | B18: CABECERA MUNICIPAL | C18: MANO DE OBRA PARA COLOCACION DE BROCALES Y LIMPIEZA | D18: H AYUNTAMIENTO | E18: 20.144831° | F18: -103.734828° | G18: X | K18: 2022-06-10 | L18: 2022-06-17 | M18: 7 | O18: X | R18: 21543 | T18: 21543 | U18: Terminada | V18: X
A19: CONSTRUCCIÓN DE RED DE ALCANTARILLADO EN CALLE JOCONOXTLE EL CORO II EN LA CABECERA MUNICIPAL DE ATEMAJAC DE BRIZUELA JALISCO. | B19: CABECERA MUNICIPAL | C19: EXCAVACION Y COLOCACION DE TUBERIA Y CONSTRUCCION DE REGISTROS | D19: R R CONSTRUCCIONES | E19: 20.144831° | F19: -103.734828° | I19: X | K19: 2022-05-23 | L19: 2022-07-02 | M19: 40 | O19: X | R19: 854633.23 | T19: 854633.23 | U19: Terminada | V19: X
A20: CONSTRUCCIÓN DE BARDA PERIMETRAL EN LA SECUNDARIA TÉCNICA 128, EN LA CABECERA MUNICIPAL DE ATEMAJAC DE BRIZUELA, JALISCO. | B20: CABECERA MUNICIPAL | C20: CONS TRUCCION DE CIMENTACION Y BARDA | D20: H AYUNTAMIENTO | E20: 20.131369° | F20: -103.723595° | G20: X | K20: 2022-06-20 | L20: 2022-07-09 | M20: 19 | O20: X | R20: 218237.32 | T20: 218237.32 | U20: Terminada | V20: X
A21: REHABILITACIÓN DE CAMINOS RURALES EN LA CABECERA MUNICIPAL DE ATEMAJAC DE BRIZUELA, JALISCO | B21: CABECERA MUNICIPAL | C21: CORTE , Y NIVELACION EN CAMINOS DE TERRACERIA | D21: H AYUNTAMIENTO | E21: 20.129138° | F21: -103.715950° | G21: X | K21: 2022-06-27 | L21: 2022-10-07 | M21: 102 | O21: X | R21: 217935 | T21: 217935 | U21: Terminada | V21: X
A22: AMPLIACIÓN DE RED DE ALCANTARILLADO EN CALLE DALIA COLONIA COLOSIO EN LA CABECERA MUNICIPAL DE ATEMAJAC DE BRIZUELA, JALISCO. | B22: CABECERA MUNICIPAL | C22: EXCAVACION Y COLOCACION DE TUBERIA Y CONSTRUCCION DE REGISTROS | D22: H AYUNTAMIENTO | E22: 20.133167° | F22: -103.731281° | G22: X | K22: 2022-07-11 | L22: 2022-07-30 | M22: 19 | O22: X | R22: 99842.61 | T22: 99842.61 | U22: Terminada | V22: X
A23: MANTENIMIENTO DE CARRETERA ATEMAJAC DE BRIZUELA A TAPALPA, EN EL MUNICIPIO DE ATEMAJAC DE BRIZUELA, JALISCO. | B23: CABECERA MUNICIPAL | C23: REPARACION DE BACHES CON ASFALTO EN CALIENTE | D23: H AYUNTAMIENTO | E23: 20.133936° | F23: -103.717528° | G23: X | K23: 2022-07-25 | L23: 2022-08-22 | M23: 28 | O23: X | R23: 111117.79 | T23: 111117.79 | U23: Terminada | V23: X
A24: REHABILITACIÓN DE MERCADO MUNICIPAL EN LA CABECERA MUNICIPAL DE ATEMAJAC DE BRIZUELA, JALISCO. | B24: CABECERA MUNICIPAL | C24: LIMPIEZA, REPARACION Y REACONDICIONAMIENTO Y APLICACIÓN DE PINTURA | D24: R R CONSTRUCCIONES | E24: 20.141522° | F24: -103.728830° | H24: X | K24: 2022-08-08 | L24: 2022-09-01 | M24: 24 | O24: X | R24: 1066627.14 | T24: 1066627.14 | U24: Terminada | V24: X
A25: CONSTRUCCIÓN DE DOMO EN ESPACIO MULTIDEPORTIVO EN LA LOCALIDAD DE TIERRA BLANCA MUNICIPIO DE ATEMAJAC DE BRIZUELA, JALISCO. | B25: TIERRA BLANCA | C25: TECHADO DE CANCHA DE USOS MULTIPLES CON ESTRUCTURA Y LONA TENSADA | D25: YORISMAR | E25: 20.207691° | F25: -103.811225° | H25: X | K25: 2022-08-08 | L25: 2022-10-08 | M25: 61 | O25: X | R25: 1334272.64 | T25: 1334272.64 | U25: Terminada | V25: X
A26: REHABILITACIÓN DE RED DE ALCANTARILLADO EN CALLE FRANCISCO VILLA EN LA CABECERA MUNICIPAL DE ATEMAJAC DE BRIZUELA, JALISCO. | B26: CABECERA MUNICIPAL | C26: EXCAVACION Y COLOCACION DE TUBERIA Y CONSTRUCCION DE REGISTROS | D26: H AYUNTAMIENTO | E26: 20.135328° | F26: -103.719286° | G26: X | K26: 2022-08-18 | L26: 2022-10-03 | M26: 46 | O26: X | R26: 74143.39 | T26: 74143.39 | U26: Terminada | V26: X
A27: MANTENIMIENTO DE PLAZA CÍVICA EN LA CABECERA MUNICIPAL DE ATEMAJAC DE BRIZUELA, JALISCO. | B27: CABECERA MUNICIPAL | C27: LIMPIEZA, REPARACION Y REACONDICIONAMIENTO Y APLICACIÓN DE PINTURA | D27: H AYUNTAMIENTO | E27: 20.141044° | F27: -103.728453° | G27: X | K27: 2022-08-22 | L27: 2022-09-09 | M27: 18 | O27: X | R27: 131991.06 | T27: 131991.06 | U27: Terminada | V27: X
A28: MANTENIMIENTO DE PLAZA CÍVICA EN LA LOCALIDAD DE LAGUNILLAS MUNICIPIO DE ATEMAJAC DE BRIZUELA, JALISCO. | B28: LAGUNILLAS | C28: LIMPIEZA, REPARACION Y REACONDICIONAMIENTO Y APLICACIÓN DE PINTURA | D28: H AYUNTAMIENTO | E28: 20.204680° | F28: -103.734842° | G28: X | K28: 2022-09-22 | L28: 2022-10-06 | M28: 14 | O28: X | R28: 51402.6 | T28: 51402.6 | U28: Terminada | V28: X
A29: CONSTRUCCION DE BANQUETAS Y MACHUELOS EN CALLE NUÑEZ EN LA CABECERA MUNICIPAL DE ATEMAJAC DE BRIZUELA | B29: CABECERA MUNICIPAL | C29: CORTE NIVELACION CONSTRUCCION DE MACHUELO Y BANQUETAS | D29: H AYUNTAMIENTO | E29: 20.135468° | F29: -103.730839° | G29: X | K29: 2022-11-11 | L29: 2022-12-16 | M29: 35 | O29: X | R29: 446491.2 | T29: 446491.2 | U29: Terminada | V29: X
A30: CONSTRUCCION DE BANQUETAS Y MACHUELOS EN CALLE DAMIAN CARMONA EN LA CABECERA MUNICIPAL DE ATEMAJAC DE BRIZUELA | B30: CABECERA MUNICIPAL | C30: CORTE NIVELACION CONSTRUCCION DE MACHUELO Y BANQUETAS | D30: H AYUNTAMIENTO | E30: 20.140083° | F30: -103.732387° | G30: X | K30: 2022-11-11 | L30: 2022-12-16 | M30: 35 | O30: X | R30: 427237.85 | T30: 427237.85 | U30: Terminada | V30: X
A31: Construcción de empedrado en el Municipio de Atemajac de Brizuela, Jalisco (Programa “Empedrados para la Reactivación Económica en Municipios”) Ejercicio 2022 | B31: CABECERA MUNICIPAL | C31: RETIRO DE EMPEDRADO Y CONSTRUCCION DE BANQUETAS Y EMPEDRADO AHOGADO | D31: H AYUNTAMIENTO | E31: 20.140279° | F31: -103.730443° | G31: X | K31: 2022-09-19 | L31: 2022-11-30 | M31: 72 | O31: X | P31: 1285714.29 | Q31: 3000000 | T31: 4285714.29 | U31: Terminada | V31: X
A32: REHABILITACION DE RED DE DRENAJE SANITARIO Y RED DE AGUA POTABLE, DE LA CALLE PORFIRIÓ DÍAZ EN LA CABECERA MUNICIPAL DE ATEMAJAC DE BRIZUELA, JALISCO. | B32: CABECERA MUNICIPAL | C32: CONSTRUCCION DE REDES HIDROSANITARIAS | D32: CONSTRUCCIONES CLASICO TRES SA DE CV | E32: 20.140279° | F32: -103.730443° | H32: X | K32: 2022-11-21 | L32: 2022-12-31 | M32: 40 | O32: X | P32: 812000 | T32: 812000 | U32: Terminada | V32: X
M33: 0 | T33: 0
M34: 0 | T34: 0
M35: 0 | T35: 0
M36: 0 | T36: 0
M37: 0 | T37: 0
M38: 0 | T38: 0
M39: 0 | T39: 0
M40: 0 | T40: 0
M41: 0 | T41: 0
M42: 0 | T42: 0
M43: 0 | T43: 0
M44: 0 | T44: 0
M45: 0 | T45: 0
M46: 0 | T46: 0
M47: 0 | T47: 0
M48: 0 | T48: 0
M49: 0 | T49: 0
M50: 0 | T50: 0
M51: 0 | T51: 0
M52: 0 | T52: 0
M53: 0 | T53: 0
M54: 0 | T54: 0
M55: 0 | T55: 0
M56: 0 | T56: 0
M57: 0 | T57: 0
M58: 0 | T58: 0
M59: 0 | T59: 0
M60: 0 | T60: 0
M61: 0 | T61: 0
M62: 0 | T62: 0
M63: 0 | T63: 0
M64: 0 | T64: 0
M65: 0 | T65: 0
M66: 0 | T66: 0
M67: 0 | T67: 0
M68: 0 | T68: 0
M69: 0 | T69: 0
M70: 0 | T70: 0
M71: 0 | T71: 0
M72: 0 | T72: 0
M73: 0 | T73: 0
M74: =L74-K74 -> 0 | T74: =SUM(P74:S74) -> 0
M75: 0 | T75: 0
M76: 0 | T76: 0
M77: 0 | T77: 0
M78: 0 | T78: 0
M79: 0 | T79: 0
M80: 0 | T80: 0
M81: 0 | T81: 0
M82: 0 | T82: 0
M83: 0 | T83: 0
M84: 0 | T84: 0
M85: 0 | T85: 0
M86: 0 | T86: 0
M87: 0 | T87: 0
M88: 0 | T88: 0
M89: 0 | T89: 0
M90: 0 | T90: 0
M91: 0 | T91: 0
M92: 0 | T92: 0
M93: 0 | T93: 0
M94: 0 | T94: 0
M95: 0 | T95: 0
M96: 0 | T96: 0
M97: 0 | T97: 0
M98: 0 | T98: 0
M99: 0 | T99: 0
M100: 0 | T100: 0
M101: 0 | T101: 0
M102: 0 | T102: 0
M103: 0 | T103: 0
M104: 0 | T104: 0
M105: 0 | T105: 0
M106: 0 | T106: 0
M107: 0 | T107: 0
M108: 0 | T108: 0
M109: 0 | T109: 0
M110: 0 | T110: 0
M111: 0 | T111: 0
M112: 0 | T112: 0
M113: 0 | T113: 0
M114: 0 | T114: 0
M115: 0 | T115: 0
M116: 0 | T116: 0
M117: 0 | T117: 0
M118: 0 | T118: 0
M119: 0 | T119: 0
M120: 0 | T120: 0
M121: 0 | T121: 0
M122: 0 | T122: 0
M123: 0 | T123: 0
M124: 0 | T124: 0
M125: 0 | T125: 0
M126: 0 | T126: 0
M127: 0 | T127: 0
M128: 0 | T128: 0
M129: 0 | T129: 0
M130: 0 | T130: 0
M131: 0 | T131: 0
M132: 0 | T132: 0
M133: 0 | T133: 0
M134: 0 | T134: 0
M135: 0 | T135: 0
M136: 0 | T136: 0
M137: 0 | T137: 0
M138: =L138-K138 -> 0 | T138: =SUM(P138:S138) -> 0
M139: 0 | T139: 0
M140: 0 | T140: 0
M141: 0 | T141: 0
M142: 0 | T142: 0
M143: 0 | T143: 0
M144: 0 | T144: 0
M145: 0 | T145: 0
M146: 0 | T146: 0
M147: 0 | T147: 0
M148: 0 | T148: 0
M149: 0 | T149: 0
M150: 0 | T150: 0
M151: 0 | T151: 0
M152: 0 | T152: 0
M153: 0 | T153: 0
M154: 0 | T154: 0
M155: 0 | T155: 0
M156: 0 | T156: 0
M157: 0 | T157: 0
M158: 0 | T158: 0
M159: 0 | T159: 0
M160: 0 | T160: 0
M161: 0 | T161: 0
M162: 0 | T162: 0
M163: 0 | T163: 0
M164: 0 | T164: 0
M165: 0 | T165: 0
M166: 0 | T166: 0
M167: 0 | T167: 0
M168: 0 | T168: 0
M169: 0 | T169: 0
M170: 0 | T170: 0
M171: 0 | T171: 0
M172: 0 | T172: 0
M173: 0 | T173: 0
M174: 0 | T174: 0
M175: 0 | T175: 0
M176: 0 | T176: 0
M177: 0 | T177: 0
M178: 0 | T178: 0
M179: 0 | T179: 0
M180: 0 | T180: 0
M181: 0 | T181: 0
M182: 0 | T182: 0
M183: 0 | T183: 0
M184: 0 | T184: 0
M185: 0 | T185: 0
M186: 0 | T186: 0
M187: 0 | T187: 0
M188: 0 | T188: 0
M189: 0 | T189: 0
M190: 0 | T190: 0
M191: 0 | T191: 0
M192: 0 | T192: 0
M193: 0 | T193: 0
M194: 0 | T194: 0
M195: 0 | T195: 0
M196: 0 | T196: 0
M197: 0 | T197: 0
M198: 0 | T198: 0
M199: 0 | T199: 0
M200: 0 | T200: 0
M201: 0 | T201: 0
M202: =L202-K202 -> 0 | T202: =SUM(P202:S202) -> 0
... 298 more rows

Sheet F1
B1: =Validacion!A2 -> Atemajac de Brizuela
B2: ESTADO DE SITUACIÓN FINANCIERA
B3: ="Al "&INDEX(Validacion!D150:D161,MATCH(Validacion!A11,Validacion!C150:C161,0)) -> Al 31 de Diciembre de 2022
A5: CTA. | B5: CONCEPTO | AF5: 2022 | AG5: 2021 | AH5: CTA | AI5: CONCEPTO | BM5: 2022 | BN5: 2021
A6: 10000 | B6: ACTIVO | AH6: 20000 | AI6: PASIVO
A7: 11000 | B7: ACTIVO CIRCULANTE | AH7: 21000 | AI7: PASIVO CIRCULANTE
A8: 11100 | B8: EFECTIVO Y EQUIVALENTES | AF8: =SUM(AF9:AF15) -> 87215.71 | AG8: =SUM(AG9:AG15) -> 765144.48 | AH8: 21100 | AI8: CUENTAS POR PAGAR A CORTO PLAZO | BM8: =SUM(BM9:BM17) -> 5017864.8 | BN8: =SUM(BN9:BN17) -> 261060.73
A9: 11110 | B9: Efectivo | AF9: =Balanza!G6 -> 0 | AG9: =Balanza!C6 -> 2557.02 | AH9: 21110 | AI9: Servicios personales por pagar a corto plazo | BM9: =Balanza!H104 -> 213841 | BN9: =Balanza!D104 -> 0
A10: 11120 | B10: Bancos/Tesorería | AF10: =Balanza!G7 -> 87215.71 | AG10: =Balanza!C7 -> 762587.46 | AH10: 21120 | AI10: Proveedores por pagar a corto plazo | BM10: =Balanza!H105 -> 0 | BN10: =Balanza!D105 -> 0
A11: 11130 | B11: Bancos/Dependencias y otros | AF11: =Balanza!G8 -> 0 | AG11: =Balanza!C8 -> 0 | AH11: 21130 | AI11: Contratistas por obras públicas por pagar a corto plazo | BM11: =Balanza!H106 -> 2672176.32 | BN11: =Balanza!D106 -> 0
A12: 11140 | B12: Inversiones temporales (hasta 3 meses) | AF12: =Balanza!G9 -> 0 | AG12: =Balanza!C9 -> 0 | AH12: 21140 | AI12: Participaciones y aportaciones por pagar a corto plazo | BM12: =Balanza!H107 -> 1672891.02 | BN12: =Balanza!D107 -> 0
A13: 11150 | B13: Fondos con afectación específica | AF13: =Balanza!G10 -> 0 | AG13: =Balanza!C10 -> 0 | AH13: 21150 | AI13: Transferencias otorgadas por pagar a corto plazo | BM13: =Balanza!H108 -> 0 | BN13: =Balanza!D108 -> 0
A14: 11160 | B14: Depósitos de fondos de terceros en garantía y/o administración | AF14: =Balanza!G11 -> 0 | AG14: =Balanza!C11 -> 0 | AH14: 21160 | AI14: Intereses, comisiones y otros gastos de la deuda pública por pagar a corto plazo | BM14: =Balanza!H109 -> 0 | BN14: =Balanza!D109 -> 0
A15: 11190 | B15: Otros efectivos y equivalentes | AF15: =Balanza!G12 -> 0 | AG15: =Balanza!C12 -> 0 | AH15: 21170 | AI15: Retenciones y contribuciones por pagar a corto plazo | BM15: =Balanza!H110 -> 458956.46 | BN15: =Balanza!D110 -> 261060.73
A16: 11200 | B16: DERECHOS A RECIBIR EFECTIVO O EQUIVALENTES | AF16: =SUM(AF17:AF23) -> 32000 | AG16: =SUM(AG17:AG23) -> 4000 | AH16: 21180 | AI16: Devoluciones de la ley de ingresos por pagar a corto plazo | BM16: =Balanza!H111 -> 0 | BN16: =Balanza!D111 -> 0
A17: 11210 | B17: Inversiones financieras de corto plazo | AF17: =Balanza!G14 -> 0 | AG17: =Balanza!C14 -> 0 | AH17: 21190 | AI17: Otras cuentas por pagar a corto plazo | BM17: =Balanza!H112 -> 0 | BN17: =Balanza!D112 -> 0
A18: 11220 | B18: Cuentas por cobrar a corto plazo | AF18: =Balanza!G15 -> 0 | AG18: =Balanza!C15 -> 0 | AH18: 21200 | AI18: DOCUMENTOS POR PAGAR A CORTO PLAZO | BM18: =SUM(BM19:BM21) -> 66182 | BN18: =SUM(BN19:BN21) -> 66182
A19: 11230 | B19: Deudores diversos por cobrar a corto plazo | AF19: =Balanza!G16 -> 32000 | AG19: =Balanza!C16 -> 4000 | AH19: 21210 | AI19: Documentos comerciales por pagar a corto plazo | BM19: =Balanza!H114 -> 0 | BN19: =Balanza!D114 -> 0
A20: 11240 | B20: Ingresos por recuperar a corto plazo | AF20: =Balanza!G17 -> 0 | AG20: =Balanza!C17 -> 0 | AH20: 21220 | AI20: Documentos con contratistas por obras públicas por pagar a corto plazo | BM20: =Balanza!H115 -> 0 | BN20: =Balanza!D115 -> 0
A21: 11250 | B21: Deudores por anticipos de la tesorería a corto plazo | AF21: =Balanza!G18 -> 0 | AG21: =Balanza!C18 -> 0 | AH21: 21290 | AI21: Otros documentos por pagar a corto plazo | BM21: =Balanza!H116 -> 66182 | BN21: =Balanza!D116 -> 66182
A22: 11260 | B22: Préstamos otorgados a corto plazo | AF22: =Balanza!G19 -> 0 | AG22: =Balanza!C19 -> 0 | AH22: 21300 | AI22: PORCIÓN A CORTO PLAZO DE LA DEUDA PÚBLICA A LARGO PLAZO | BM22: =SUM(BM23:BM25) -> 0 | BN22: =SUM(BN23:BN25) -> 0
A23: 11290 | B23: Otros derechos a recibir efectivo o equivalentes a corto plazo | AF23: =Balanza!G20 -> 0 | AG23: =Balanza!C20 -> 0 | AH23: 21310 | AI23: Porción a corto plazo de la deuda pública interna | BM23: =Balanza!H118 -> 0 | BN23: =Balanza!D118 -> 0
A24: 11300 | B24: DERECHOS A RECIBIR BIENES O SERVICIOS | AF24: =SUM(AF25:AF29) -> 0 | AG24: =SUM(AG25:AG29) -> 0 | AH24: 21320 | AI24: Porción a corto plazo de la deuda pública externa | BM24: =Balanza!H119 -> 0 | BN24: =Balanza!D119 -> 0
A25: 11310 | B25: Anticipo a proveedores por adquisición de bienes y prestación de servicios a corto plazo | AF25: =Balanza!G22 -> 0 | AG25: =Balanza!C22 -> 0 | AH25: 21330 | AI25: Porción a corto plazo de arrendamiento financiero | BM25: =Balanza!H120 -> 0 | BN25: =Balanza!D120 -> 0
A26: 11320 | B26: Anticipo a proveedores por adquisición de bienes inmuebles y muebles a corto plazo | AF26: =Balanza!G23 -> 0 | AG26: =Balanza!C23 -> 0 | AH26: 21400 | AI26: TÍTULOS Y VALORES A CORTO PLAZO | BM26: =SUM(BM27:BM28) -> 0 | BN26: =SUM(BN27:BN28) -> 0
A27: 11330 | B27: Anticipo a proveedores por adquisición de bienes intangibles a corto plazo | AF27: =Balanza!G24 -> 0 | AG27: =Balanza!C24 -> 0 | AH27: 21410 | AI27: Títulos y valores de la deuda pública interna a corto plazo | BM27: =Balanza!H122 -> 0 | BN27: =Balanza!D122 -> 0
A28: 11340 | B28: Anticipo a contratistas por obras públicas a corto plazo | AF28: =Balanza!G25 -> 0 | AG28: =Balanza!C25 -> 0 | AH28: 21420 | AI28: Títulos y valores de la deuda pública externa a corto plazo | BM28: =Balanza!H123 -> 0 | BN28: =Balanza!D123 -> 0
A29: 11390 | B29: Otros derechos a recibir bienes o servicios a corto plazo | AF29: =Balanza!G26 -> 0 | AG29: =Balanza!C26 -> 0 | AH29: 21500 | AI29: PASIVOS DIFERIDOS A CORTO PLAZO | BM29: =SUM(BM30:BM32) -> 0 | BN29: =SUM(BN30:BN32) -> 0
A30: 11400 | B30: INVENTARIOS | AF30: =SUM(AF31:AF35) -> 0 | AG30: =SUM(AG31:AG35) -> 0 | AH30: 21510 | AI30: Ingresos cobrados por adelantado a corto plazo | BM30: =Balanza!H125 -> 0 | BN30: =Balanza!D125 -> 0
A31: 11410 | B31: Inventario de mercancías para venta | AF31: =Balanza!G28 -> 0 | AG31: =Balanza!C28 -> 0 | AH31: 21520 | AI31: Intereses cobrados por adelantado a corto plazo | BM31: =Balanza!H126 -> 0 | BN31: =Balanza!D126 -> 0
A32: 11420 | B32: Inventario de mercancías terminadas | AF32: =Balanza!G29 -> 0 | AG32: =Balanza!C29 -> 0 | AH32: 21590 | AI32: Otros pasivos diferidos a corto plazo | BM32: =Balanza!H127 -> 0 | BN32: =Balanza!D127 -> 0
A33: 11430 | B33: Inventario de mercancías en proceso de elaboración | AF33: =Balanza!G30 -> 0 | AG33: =Balanza!C30 -> 0 | AH33: 21600 | AI33: FONDOS Y BIENES DE TERCEROS EN GARANTÍA Y/O ADMINISTRACIÓN A CORTO PLAZO | BM33: =SUM(BM34:BM39) -> 0 | BN33: =SUM(BN34:BN39) -> 0
A34: 11440 | B34: Inventario de materias primas, materiales y suministros para producción | AF34: =Balanza!G31 -> 0 | AG34: =Balanza!C31 -> 0 | AH34: 21610 | AI34: Fondos en garantía a corto plazo | BM34: =Balanza!H129 -> 0 | BN34: =Balanza!D129 -> 0
A35: 11450 | B35: Bienes en tránsito | AF35: =Balanza!G32 -> 0 | AG35: =Balanza!C32 -> 0 | AH35: 21620 | AI35: Fondos en administración a corto plazo | BM35: =Balanza!H130 -> 0 | BN35: =Balanza!D130 -> 0
A36: 11500 | B36: ALMACENES | AF36: =AF37 -> 0 | AG36: =AG37 -> 0 | AH36: 21630 | AI36: Fondos contingentes a corto plazo | BM36: =Balanza!H131 -> 0 | BN36: =Balanza!D131 -> 0
A37: 11510 | B37: Almacén de materiales y suministro para el consumo | AF37: =Balanza!G34 -> 0 | AG37: =Balanza!C34 -> 0 | AH37: 21640 | AI37: Fondos de fideicomisos, mandatos y contratos análogos a corto plazo | BM37: =Balanza!H132 -> 0 | BN37: =Balanza!D132 -> 0
A38: 11600 | B38: ESTIMACIÓN POR PÉRDIDA O DETERIORO DE ACTIVOS CIRCULANTES | AF38: =SUM(AF39:AF40) -> 0 | AG38: =SUM(AG39:AG40) -> 0 | AH38: 21650 | AI38: Otros fondos de terceros en garantía y/o administración a corto plazo | BM38: =Balanza!H133 -> 0 | BN38: =Balanza!D133 -> 0
A39: 11610 | B39: Estimaciones para cuentas incobrables por derechos a recibir efectivo o equivalentes | AF39: =Balanza!G36 -> 0 | AG39: =Balanza!C36 -> 0 | AH39: 21660 | AI39: Valores y bienes en garantía a corto plazo | BM39: =Balanza!H134 -> 0 | BN39: =Balanza!D134 -> 0
A40: 11620 | B40: Estimación por deterioro de inventarios | AF40: =Balanza!G37 -> 0 | AG40: =Balanza!C37 -> 0 | AH40: 21700 | AI40: PROVISIONES A CORTO PLAZO | BM40: =SUM(BM41:BM43) -> 0 | BN40: =SUM(BN41:BN43) -> 0
A41: 11900 | B41: OTROS ACTIVOS CIRCULANTES | AF41: =SUM(AF42:AF45) -> 0 | AG41: =SUM(AG42:AG45) -> 0 | AH41: 21710 | AI41: Provisión para demandas y juicios a corto plazo | BM41: =Balanza!H136 -> 0 | BN41: =Balanza!D136 -> 0
A42: 11910 | B42: Valores en garantía | AF42: =Balanza!G39 -> 0 | AG42: =Balanza!C39 -> 0 | AH42: 21720 | AI42: Provisión para contingencias a corto plazo | BM42: =Balanza!H137 -> 0 | BN42: =Balanza!D137 -> 0
A43: 11920 | B43: Bienes en garantía (excluye depósitos de fondos) | AF43: =Balanza!G40 -> 0 | AG43: =Balanza!C40 -> 0 | AH43: 21790 | AI43: Otras provisiones a corto plazo | BM43: =Balanza!H138 -> 0 | BN43: =Balanza!D138 -> 0
A44: 11930 | B44: Bienes derivados de embargos, decomisos, aseguramientos y dación en pago | AF44: =Balanza!G41 -> 0 | AG44: =Balanza!C41 -> 0 | AH44: 21900 | AI44: OTROS PASIVOS A CORTO PLAZO | BM44: =SUM(BM45:BM47) -> 0 | BN44: =SUM(BN45:BN47) -> 0
A45: 11940 | B45: Adquisición con fondos de terceros | AF45: =Balanza!G42 -> 0 | AG45: =Balanza!C42 -> 0 | AH45: 21910 | AI45: Ingresos por clasificar | BM45: =Balanza!H140 -> 0 | BN45: =Balanza!D140 -> 0
B46: ACTIVOS CIRCULANTES | AF46: =AF8+AF16+AF24+AF30+AF36+AF38+AF41 -> 119215.71 | AG46: =AG8+AG16+AG24+AG30+AG36+AG38+AG41 -> 769144.48 | AH46: 21920 | AI46: Recaudación por participar | BM46: =Balanza!H141 -> 0 | BN46: =Balanza!D141 -> 0
A47: 12000 | B47: ACTIVO NO CIRCULANTE | AH47: 21990 | AI47: Otros pasivos circulantes | BM47: =Balanza!H142 -> 0 | BN47: =Balanza!D142 -> 0
A48: 12100 | B48: INVERSIONES FINANCIERAS A LARGO PLAZO | AF48: =SUM(AF49:AF52) -> 0 | AG48: =SUM(AG49:AG52) -> 0 | AI48: PASIVOS CIRCULANTES | BM48: =BM8+BM18+BM22+BM26+BM29+BM33+BM40+BM44 -> 5084046.8 | BN48: =BN8+BN18+BN22+BN26+BN29+BN33+BN40+BN44 -> 327242.73
A49: 12110 | B49: Inversiones a largo plazo | AF49: =Balanza!G45 -> 0 | AG49: =Balanza!C45 -> 0 | AH49: 22000 | AI49: PASIVO NO CIRCULANTE
A50: 12120 | B50: Títulos y valores a largo plazo | AF50: =Balanza!G46 -> 0 | AG50: =Balanza!C46 -> 0 | AH50: 22100 | AI50: CUENTAS POR PAGAR A LARGO PLAZO | BM50: =SUM(BM51:BM52) -> 0 | BN50: =SUM(BN51:BN52) -> 0
A51: 12130 | B51: Fideicomisos, mandatos y contratos análogos | AF51: =Balanza!G47 -> 0 | AG51: =Balanza!C47 -> 0 | AH51: 22110 | AI51: Proveedores por pagar a largo plazo | BM51: =Balanza!H145 -> 0 | BN51: =Balanza!D145 -> 0
A52: 12140 | B52: Participaciones y aportaciones de capital | AF52: =Balanza!G48 -> 0 | AG52: =Balanza!C48 -> 0 | AH52: 22120 | AI52: Contratistas por obras públicas por pagar a largo plazo | BM52: =Balanza!H146 -> 0 | BN52: =Balanza!D146 -> 0
A53: 12200 | B53: DERECHOS A RECIBIR EFECTIVO O EQUIVALENTES A LARGO PLAZO | AF53: =SUM(AF54:AF58) -> 0 | AG53: =SUM(AG54:AG58) -> 0 | AH53: 22200 | AI53: DOCUMENTOS POR PAGAR A LARGO PLAZO | BM53: =SUM(BM54:BM56) -> 0 | BN53: =SUM(BN54:BN56) -> 0
A54: 12210 | B54: Documentos por cobrar a largo plazo | AF54: =Balanza!G50 -> 0 | AG54: =Balanza!C50 -> 0 | AH54: 22210 | AI54: Documentos comerciales por pagar a largo plazo | BM54: =Balanza!H148 -> 0 | BN54: =Balanza!D148 -> 0
A55: 12220 | B55: Deudores diversos a largo plazo | AF55: =Balanza!G51 -> 0 | AG55: =Balanza!C51 -> 0 | AH55: 22220 | AI55: Documentos con contratistas por obras públicas por pagar a largo plazo | BM55: =Balanza!H149 -> 0 | BN55: =Balanza!D149 -> 0
A56: 12230 | B56: Ingresos por recuperar a largo plazo | AF56: =Balanza!G52 -> 0 | AG56: =Balanza!C52 -> 0 | AH56: 22290 | AI56: Otros documentos por pagar a largo plazo | BM56: =Balanza!H150 -> 0 | BN56: =Balanza!D150 -> 0
A57: 12240 | B57: Préstamos otorgados a largo plazo | AF57: =Balanza!G53 -> 0 | AG57: =Balanza!C53 -> 0 | AH57: 22300 | AI57: DEUDA PÚBLICA A LARGO PLAZO | BM57: =SUM(BM58:BM62) -> 0 | BN57: =SUM(BN58:BN62) -> 0
A58: 12290 | B58: Otros derechos a recibir efectivo o equivalentes a largo plazo | AF58: =Balanza!G54 -> 0 | AG58: =Balanza!C54 -> 0 | AH58: 22310 | AI58: Títulos y valores de la deuda pública interna a largo plazo | BM58: =Balanza!H152 -> 0 | BN58: =Balanza!D152 -> 0
A59: 12300 | B59: BIENES INMUEBLES, INFRAESTRUCTURA Y CONSTRUCCIONES EN PROCESO | AF59: =SUM(AF60:AF66) -> 43552018.57 | AG59: =SUM(AG60:AG66) -> 25830417.29 | AH59: 22320 | AI59: Títulos y valores de la deuda pública externa a largo plazo | BM59: =Balanza!H153 -> 0 | BN59: =Balanza!D153 -> 0
A60: 12310 | B60: Terrenos | AF60: =Balanza!G56 -> 0 | AG60: =Balanza!C56 -> 0 | AH60: 22330 | AI60: Préstamos de la deuda pública interna por pagar a largo plazo | BM60: =Balanza!H154 -> 0 | BN60: =Balanza!D154 -> 0
A61: 12320 | B61: Viviendas | AF61: =Balanza!G57 -> 0 | AG61: =Balanza!C57 -> 0 | AH61: 22340 | AI61: Préstamos de la deuda pública externa por pagar a largo plazo | BM61: =Balanza!H155 -> 0 | BN61: =Balanza!D155 -> 0
A62: 12330 | B62: Edificios no habitacionales | AF62: =Balanza!G58 -> 0 | AG62: =Balanza!C58 -> 0 | AH62: 22350 | AI62: Arrendamiento financiero por pagar a largo plazo | BM62: =Balanza!H156 -> 0 | BN62: =Balanza!D156 -> 0
A63: 12340 | B63: Infraestructura | AF63: =Balanza!G59 -> 25830417.29 | AG63: =Balanza!C59 -> 25830417.29 | AH63: 22400 | AI63: PASIVOS DIFERIDOS A LARGO PLAZO | BM63: =SUM(BM64:BM66) -> 0 | BN63: =SUM(BN64:BN66) -> 0
A64: 12350 | B64: Construcciones en proceso en bienes de dominio público | AF64: =Balanza!G60 -> 17721601.28 | AG64: =Balanza!C60 -> 0 | AH64: 22410 | AI64: Créditos diferidos a largo plazo | BM64: =Balanza!H158 -> 0 | BN64: =Balanza!D158 -> 0
A65: 12360 | B65: Construcciones en proceso en bienes propios | AF65: =Balanza!G61 -> 0 | AG65: =Balanza!C61 -> 0 | AH65: 22420 | AI65: Intereses cobrados por adelantado a largo plazo | BM65: =Balanza!H159 -> 0 | BN65: =Balanza!D159 -> 0
A66: 12390 | B66: Otros bienes inmuebles | AF66: =Balanza!G62 -> 0 | AG66: =Balanza!C62 -> 0 | AH66: 22490 | AI66: Otros pasivos diferidos a largo plazo | BM66: =Balanza!H160 -> 0 | BN66: =Balanza!D160 -> 0
A67: 12400 | B67: BIENES MUEBLES | AF67: =SUM(AF68:AF75) -> 3466414.4 | AG67: =SUM(AG68:AG75) -> 2530307.22 | AH67: 22500 | AI67: FONDOS Y BIENES DE TERCEROS EN GARANTÍA Y/O ADMINISTRACIÓN A LARGO PLAZO | BM67: =SUM(BM68:BM73) -> 0 | BN67: =SUM(BN68:BN73) -> 0
A68: 12410 | B68: Mobiliario y equipo de administración | AF68: =Balanza!G64 -> 211981.9 | AG68: =Balanza!C64 -> 198100.98 | AH68: 22510 | AI68: Fondos en garantía a largo plazo | BM68: =Balanza!H162 -> 0 | BN68: =Balanza!D162 -> 0
A69: 12420 | B69: Mobiliario y equipo educacional y recreativo | AF69: =Balanza!G65 -> 16436.27 | AG69: =Balanza!C65 -> 0 | AH69: 22520 | AI69: Fondos en administración a largo plazo | BM69: =Balanza!H163 -> 0 | BN69: =Balanza!D163 -> 0
A70: 12430 | B70: Equipo e instrumental médico y de laboratorio | AF70: =Balanza!G66 -> 0 | AG70: =Balanza!C66 -> 0 | AH70: 22530 | AI70: Fondos contingentes a largo plazo | BM70: =Balanza!H164 -> 0 | BN70: =Balanza!D164 -> 0
A71: 12440 | B71: Vehículos y equipo de transporte | AF71: =Balanza!G67 -> 3237996.23 | AG71: =Balanza!C67 -> 2332206.24 | AH71: 22540 | AI71: Fondos de fideicomisos, mandatos y contratos análogos a largo plazo | BM71: =Balanza!H165 -> 0 | BN71: =Balanza!D165 -> 0
A72: 12450 | B72: Equipo de defensa y seguridad | AF72: =Balanza!G68 -> 0 | AG72: =Balanza!C68 -> 0 | AH72: 22550 | AI72: Otros fondos de terceros en garantía y/o administración a largo plazo | BM72: =Balanza!H166 -> 0 | BN72: =Balanza!D166 -> 0
A73: 12460 | B73: Maquinaria, otros equipos y herramientas | AF73: =Balanza!G69 -> 0 | AG73: =Balanza!C69 -> 0 | AH73: 22560 | AI73: Valores y bienes en garantía a largo plazo | BM73: =Balanza!H167 -> 0 | BN73: =Balanza!D167 -> 0
A74: 12470 | B74: Colecciones, obras de arte y objetos valiosos | AF74: =Balanza!G70 -> 0 | AG74: =Balanza!C70 -> 0 | AH74: 22600 | AI74: PROVISIONES A LARGO PLAZO | BM74: =SUM(BM75:BM78) -> 0 | BN74: =SUM(BN75:BN78) -> 0
A75: 12480 | B75: Activos biológicos | AF75: =Balanza!G71 -> 0 | AG75: =Balanza!C71 -> 0 | AH75: 22610 | AI75: Provisión para demandas y juicios a largo plazo | BM75: =Balanza!H169 -> 0 | BN75: =Balanza!D169 -> 0
A76: 12500 | B76: ACTIVOS INTANGIBLES | AF76: =SUM(AF77:AF81) -> 0 | AG76: =SUM(AG77:AG81) -> 0 | AH76: 22620 | AI76: Provisión para pensiones a largo plazo | BM76: =Balanza!H170 -> 0 | BN76: =Balanza!D170 -> 0
A77: 12510 | B77: Software | AF77: =Balanza!G73 -> 0 | AG77: =Balanza!C73 -> 0 | AH77: 22630 | AI77: Provisión para contingencias a largo plazo | BM77: =Balanza!H171 -> 0 | BN77: =Balanza!D171 -> 0
A78: 12520 | B78: Patentes, marcas y derechos | AF78: =Balanza!G74 -> 0 | AG78: =Balanza!C74 -> 0 | AH78: 22690 | AI78: Otras provisiones a largo plazo | BM78: =Balanza!H172 -> 0 | BN78: =Balanza!D172 -> 0
A79: 12530 | B79: Concesiones y franquicias | AF79: =Balanza!G75 -> 0 | AG79: =Balanza!C75 -> 0 | AI79: PASIVOS NO CIRCULANTES | BM79: =BM50+BM53+BM57+BM63+BM67+BM74 -> 0 | BN79: =BN50+BN53+BN57+BN63+BN67+BN74 -> 0
A80: 12540 | B80: Licencias | AF80: =Balanza!G76 -> 0 | AG80: =Balanza!C76 -> 0 | AI80: TOTAL DE PASIVOS | BM80: =BM48+BM79 -> 5084046.8 | BN80: =BN48+BN79 -> 327242.73
A81: 12590 | B81: Otros activos intangibles | AF81: =Balanza!G77 -> 0 | AG81: =Balanza!C77 -> 0 | AH81: 30000 | AI81: HACIENDA PÚBLICA/ PATRIMONIO
A82: 12600 | B82: DEPRECIACIÓN, DETERIORO Y AMORTIZACIÓN ACUMULADA DE BIENES | AF82: =SUM(AF83:AF87) -> 0 | AG82: =SUM(AG83:AG87) -> 0 | AH82: 31000 | AI82: HACIENDA PÚBLICA/ PATRIMONIO CONTRIBUIDO | BM82: =SUM(BM83:BM85) -> 0 | BN82: =SUM(BN83:BN85) -> 0
A83: 12610 | B83: Depreciación acumulada de bienes inmuebles | AF83: =(Balanza!H79)*-1 -> 0 | AG83: =(Balanza!D79)*-1 -> 0 | AH83: 31100 | AI83: Aportaciones | BM83: =Balanza!H175 -> 0 | BN83: =Balanza!D175 -> 0
A84: 12620 | B84: Depreciación acumulada de infraestructura | AF84: =(Balanza!H80)*-1 -> 0 | AG84: =(Balanza!D80)*-1 -> 0 | AH84: 31200 | AI84: Donaciones de capítal | BM84: =Balanza!H176 -> 0 | BN84: =Balanza!D176 -> 0
A85: 12630 | B85: Depreciación acumulada de bienes muebles | AF85: =(Balanza!H81)*-1 -> 0 | AG85: =(Balanza!D81)*-1 -> 0 | AH85: 31300 | AI85: Actualización de la hacienda pública/patrimonio | BM85: =Balanza!H177 -> 0 | BN85: =Balanza!D177 -> 0
A86: 12640 | B86: Deterioro acumulado de activos biológicos | AF86: =(Balanza!H82)*-1 -> 0 | AG86: =(Balanza!D82)*-1 -> 0 | AH86: 32000 | AI86: HACIENDA PÚBLICA/PATRIMONIO GENERADO | BM86: =BM87+BM88+BM89+BM94+BM98 -> 42053601.88 | BN86: =BN87+BN88+BN89+BN94+BN98 -> 28802626.26
A87: 12650 | B87: Amortización acumulada de activos intangibles | AF87: =(Balanza!H83)*-1 -> 0 | AG87: =(Balanza!D83)*-1 -> 0 | AH87: 32100 | AI87: Resultado del ejercicio (ahorro/desahorro) | BM87: =Balanza!H179 -> 13250975.62 | BN87: =Balanza!D179 -> 12073953.71
A88: 12700 | B88: ACTIVOS DIFERIDOS | AF88: =SUM(AF89:AF94) -> 0 | AG88: =SUM(AG89:AG94) -> 0 | AH88: 32200 | AI88: Resultado de ejercicios anteriores | BM88: =Balanza!H180 -> 28802626.26 | BN88: =Balanza!D180 -> 16728672.55
A89: 12710 | B89: Estudios, formulación y evaluación de proyectos | AF89: =Balanza!G85 -> 0 | AG89: =Balanza!C85 -> 0 | AH89: 32300 | AI89: REVALÚOS | BM89: =SUM(BM90:BM93) -> 0 | BN89: =SUM(BN90:BN93) -> 0
A90: 12720 | B90: Derechos sobre bienes en régimen de arrendamiento financiero | AF90: =Balanza!G86 -> 0 | AG90: =Balanza!C86 -> 0 | AH90: 32310 | AI90: Revalúo de bienes inmuebles | BM90: =Balanza!H182 -> 0 | BN90: =Balanza!D182 -> 0
A91: 12730 | B91: Gastos pagados por adelantado a largo plazo | AF91: =Balanza!G87 -> 0 | AG91: =Balanza!C87 -> 0 | AH91: 32320 | AI91: Revalúo de bienes muebles | BM91: =Balanza!H183 -> 0 | BN91: =Balanza!D183 -> 0
A92: 12740 | B92: Anticipos a largo plazo | AF92: =Balanza!G88 -> 0 | AG92: =Balanza!C88 -> 0 | AH92: 32330 | AI92: Revalúo de bienes intangibles | BM92: =Balanza!H184 -> 0 | BN92: =Balanza!D184 -> 0
A93: 12750 | B93: Beneficios al retiro de empleados pagados por adelantado | AF93: =Balanza!G89 -> 0 | AG93: =Balanza!C89 -> 0 | AH93: 32390 | AI93: Otros revalúos | BM93: =Balanza!H185 -> 0 | BN93: =Balanza!D185 -> 0
A94: 12790 | B94: Otros activos diferidos | AF94: =Balanza!G90 -> 0 | AG94: =Balanza!C90 -> 0 | AH94: 32400 | AI94: RESERVAS | BM94: =SUM(BM95:BM97) -> 0 | BN94: =SUM(BN95:BN97) -> 0
A95: 12800 | B95: ESTIMACIÓN POR PÉRDIDA O DETERIORO DE ACTIVOS NO CIRCULANTES | AF95: =SUM(AF96:AF100) -> 0 | AG95: =SUM(AG96:AG100) -> 0 | AH95: 32410 | AI95: Reservas de patrimonio | BM95: =Balanza!H187 -> 0 | BN95: =Balanza!D187 -> 0
A96: 12810 | B96: Estimaciones por pérdida de cuentas incobrables de documentos por cobrar a largo plazo | AF96: =(Balanza!H92)*-1 -> 0 | AG96: =(Balanza!D92)*-1 -> 0 | AH96: 32420 | AI96: Reservas territoriales | BM96: =Balanza!H188 -> 0 | BN96: =Balanza!D188 -> 0
A97: 12820 | B97: Estimaciones por pérdida de cuentas incobrables de deudores diversos por cobrar a largo plazo | AF97: =(Balanza!H93)*-1 -> 0 | AG97: =(Balanza!D93)*-1 -> 0 | AH97: 32430 | AI97: Reservas por contingencias | BM97: =Balanza!H189 -> 0 | BN97: =Balanza!D189 -> 0
A98: 12830 | B98: Estimaciones por pérdida de cuentas incobrables de ingresos por cobrar a largo plazo | AF98: =(Balanza!H94)*-1 -> 0 | AG98: =(Balanza!D94)*-1 -> 0 | AH98: 32500 | AI98: RECTIFICACIONES DE RESULTADOS DE EJERCICIOS ANTERIORES | BM98: =SUM(BM99:BM100) -> 0 | BN98: =SUM(BN99:BN100) -> 0
A99: 12840 | B99: Estimaciones por pérdida de cuentas incobrables de préstamos otorgados a largo plazo | AF99: =(Balanza!H95)*-1 -> 0 | AG99: =(Balanza!D95)*-1 -> 0 | AH99: 32510 | AI99: Cambios en políticas contables | BM99: =Balanza!H191 -> 0 | BN99: =Balanza!D191 -> 0
A100: 12890 | B100: Estimaciones por pérdida de otras cuentas incobrables a largo plazo | AF100: =(Balanza!H96)*-1 -> 0 | AG100: =(Balanza!D96)*-1 -> 0 | AH100: 32520 | AI100: Cambios por errores contables | BM100: =Balanza!H192 -> 0 | BN100: =Balanza!D192 -> 0
A101: 12900 | B101: OTROS ACTIVOS NO CIRCULANTES | AF101: =SUM(AF102:AF104) -> 0 | AG101: =SUM(AG102:AG104) -> 0 | AH101: 33000 | AI101: EXCESO O INSUFICIENCIA EN LA ACTUALIZACIÓN DE LA HACIENDA PÚBLICA / PATRIMONIO | BM101: =SUM(BM102:BM103) -> 0 | BN101: =SUM(BN102:BN103) -> 0
A102: 12910 | B102: Bienes en concesión | AF102: =Balanza!G98 -> 0 | AG102: =Balanza!C98 -> 0 | AH102: 33100 | AI102: Resultado por posición monetaria | BM102: =Balanza!H194 -> 0 | BN102: =Balanza!D194 -> 0
A103: 12920 | B103: Bienes en arrendamiento financiero | AF103: =Balanza!G99 -> 0 | AG103: =Balanza!C99 -> 0 | AH103: 33200 | AI103: Resultado por tenencia de activos no monetarios | BM103: =Balanza!H195 -> 0 | BN103: =Balanza!D195 -> 0
A104: 12930 | B104: Bienes en comodato | AF104: =Balanza!G100 -> 0 | AG104: =Balanza!C100 -> 0 | BL104: TOTAL HACIENDA PUBLICA / PATRIMONIO | BM104: =BM82+BM86+BM101 -> 42053601.88 | BN104: =BN82+BN86+BN101 -> 28802626.26
B105: ACTIVOS NO CIRCULANTES | AF105: =AF48+AF53+AF59+AF67+AF76+AF82+AF88+AF95+AF101 -> 47018432.97 | AG105: =AG48+AG53+AG59+AG67+AG76+AG82+AG88+AG95+AG101 -> 28360724.51
B106: TOTAL DEL ACTIVO | AF106: =AF46+AF105 -> 47137648.68 | AG106: =AG46+AG105 -> 29129868.99 | AI106: SUMA DE PASIVO Y PATRIMONIO / HACIENDA PÚBLICA | BM106: =BM80+BM104 -> 47137648.68 | BN106: =BN80+BN104 -> 29129868.99
B109: Bajo protesta de decir verdad declaramos que los estados financieros y sus notas, son razonablemente correctos y son responsabilidad del emisor.
Q118: =Validacion!A7 -> C. SANTIAGO LEON CASTRO | AW118: =Validacion!A9 -> L.T. JOCELYN SANCHEZ HERRERA
Q120: Presidente Municipal o Títular del ente público | AW120: Encargado de la Hacienda Pública Municipal o Responsable de las finanzas del ente público

Sheet F1LDF
B1: =Validacion!A2 -> Atemajac de Brizuela
B2: ESTADO DE SITUACIÓN FINANCIERA DETALLADO - LDF
B3: ="Al "&INDEX(Validacion!D150:D161,MATCH(Validacion!A11,Validacion!C150:C161,0)) -> Al 31 de Diciembre de 2022
A5: CTA. | B5: CONCEPTO | AF5: 2022 | AG5: 2021 | AH5: CTA | AI5: CONCEPTO | BM5: 2022 | BN5: 2021
A6: 10000 | B6: ACTIVO | AH6: 20000 | AI6: PASIVO
A7: 11000 | B7: ACTIVO CIRCULANTE | AH7: 21000 | AI7: PASIVO CIRCULANTE
A8: 11100 | B8: EFECTIVO Y EQUIVALENTES | AF8: =SUM(AF9:AF15) -> 87215.71 | AG8: =SUM(AG9:AG15) -> 765144.48 | AH8: 21100 | AI8: CUENTAS POR PAGAR A CORTO PLAZO | BM8: =SUM(BM9:BM17) -> 5017864.8 | BN8: =SUM(BN9:BN17) -> 261060.73
A9: 11110 | B9: Efectivo | AF9: =Balanza!G6 -> 0 | AG9: =Balanza!C6 -> 2557.02 | AH9: 21110 | AI9: Servicios personales por pagar a corto plazo | BM9: =Balanza!H104 -> 213841 | BN9: =Balanza!D104 -> 0
A10: 11120 | B10: Bancos/Tesorería | AF10: =Balanza!G7 -> 87215.71 | AG10: =Balanza!C7 -> 762587.46 | AH10: 21120 | AI10: Proveedores por pagar a corto plazo | BM10: =Balanza!H105 -> 0 | BN10: =Balanza!D105 -> 0
A11: 11130 | B11: Bancos/Dependencias y otros | AF11: =Balanza!G8 -> 0 | AG11: =Balanza!C8 -> 0 | AH11: 21130 | AI11: Contratistas por obras públicas por pagar a corto plazo | BM11: =Balanza!H106 -> 2672176.32 | BN11: =Balanza!D106 -> 0
A12: 11140 | B12: Inversiones temporales (hasta 3 meses) | AF12: =Balanza!G9 -> 0 | AG12: =Balanza!C9 -> 0 | AH12: 21140 | AI12: Participaciones y aportaciones por pagar a corto plazo | BM12: =Balanza!H107 -> 1672891.02 | BN12: =Balanza!D107 -> 0
A13: 11150 | B13: Fondos con afectación específica | AF13: =Balanza!G10 -> 0 | AG13: =Balanza!C10 -> 0 | AH13: 21150 | AI13: Transferencias otorgadas por pagar a corto plazo | BM13: =Balanza!H108 -> 0 | BN13: =Balanza!D108 -> 0
A14: 11160 | B14: Depósitos de fondos de terceros en garantía y/o administración | AF14: =Balanza!G11 -> 0 | AG14: =Balanza!C11 -> 0 | AH14: 21160 | AI14: Intereses, comisiones y otros gastos de la deuda pública por pagar a corto plazo | BM14: =Balanza!H109 -> 0 | BN14: =Balanza!D109 -> 0
A15: 11190 | B15: Otros efectivos y equivalentes | AF15: =Balanza!G12 -> 0 | AG15: =Balanza!C12 -> 0 | AH15: 21170 | AI15: Retenciones y contribuciones por pagar a corto plazo | BM15: =Balanza!H110 -> 458956.46 | BN15: =Balanza!D110 -> 261060.73
A16: 11200 | B16: DERECHOS A RECIBIR EFECTIVO O EQUIVALENTES | AF16: =SUM(AF17:AF23) -> 32000 | AG16: =SUM(AG17:AG23) -> 4000 | AH16: 21180 | AI16: Devoluciones de la ley de ingresos por pagar a corto plazo | BM16: =Balanza!H111 -> 0 | BN16: =Balanza!D111 -> 0
A17: 11210 | B17: Inversiones financieras de corto plazo | AF17: =Balanza!G14 -> 0 | AG17: =Balanza!C14 -> 0 | AH17: 21190 | AI17: Otras cuentas por pagar a corto plazo | BM17: =Balanza!H112 -> 0 | BN17: =Balanza!D112 -> 0
A18: 11220 | B18: Cuentas por cobrar a corto plazo | AF18: =Balanza!G15 -> 0 | AG18: =Balanza!C15 -> 0 | AH18: 21200 | AI18: DOCUMENTOS POR PAGAR A CORTO PLAZO | BM18: =SUM(BM19:BM21) -> 66182 | BN18: =SUM(BN19:BN21) -> 66182
A19: 11230 | B19: Deudores diversos por cobrar a corto plazo | AF19: =Balanza!G16 -> 32000 | AG19: =Balanza!C16 -> 4000 | AH19: 21210 | AI19: Documentos comerciales por pagar a corto plazo | BM19: =Balanza!H114 -> 0 | BN19: =Balanza!D114 -> 0
A20: 11240 | B20: Ingresos por recuperar a corto plazo | AF20: =Balanza!G17 -> 0 | AG20: =Balanza!C17 -> 0 | AH20: 21220 | AI20: Documentos con contratistas por obras públicas por pagar a corto plazo | BM20: =Balanza!H115 -> 0 | BN20: =Balanza!D115 -> 0
A21: 11250 | B21: Deudores por anticipos de la tesorería a corto plazo | AF21: =Balanza!G18 -> 0 | AG21: =Balanza!C18 -> 0 | AH21: 21290 | AI21: Otros documentos por pagar a corto plazo | BM21: =Balanza!H116 -> 66182 | BN21: =Balanza!D116 -> 66182
A22: 11260 | B22: Préstamos otorgados a corto plazo | AF22: =Balanza!G19 -> 0 | AG22: =Balanza!C19 -> 0 | AH22: 21300 | AI22: PORCIÓN A CORTO PLAZO DE LA DEUDA PÚBLICA A LARGO PLAZO | BM22: =SUM(BM23:BM25) -> 0 | BN22: =SUM(BN23:BN25) -> 0
A23: 11290 | B23: Otros derechos a recibir efectivo o equivalentes a corto plazo | AF23: =Balanza!G20 -> 0 | AG23: =Balanza!C20 -> 0 | AH23: 21310 | AI23: Porción a corto plazo de la deuda pública interna | BM23: =Balanza!H118 -> 0 | BN23: =Balanza!D118 -> 0
A24: 11300 | B24: DERECHOS A RECIBIR BIENES O SERVICIOS | AF24: =SUM(AF25:AF29) -> 0 | AG24: =SUM(AG25:AG29) -> 0 | AH24: 21320 | AI24: Porción a corto plazo de la deuda pública externa | BM24: =Balanza!H119 -> 0 | BN24: =Balanza!D119 -> 0
A25: 11310 | B25: Anticipo a proveedores por adquisición de bienes y prestación de servicios a corto plazo | AF25: =Balanza!G22 -> 0 | AG25: =Balanza!C22 -> 0 | AH25: 21330 | AI25: Porción a corto plazo de arrendamiento financiero | BM25: =Balanza!H120 -> 0 | BN25: =Balanza!D120 -> 0
A26: 11320 | B26: Anticipo a proveedores por adquisición de bienes inmuebles y muebles a corto plazo | AF26: =Balanza!G23 -> 0 | AG26: =Balanza!C23 -> 0 | AH26: 21400 | AI26: TÍTULOS Y VALORES A CORTO PLAZO | BM26: =SUM(BM27:BM28) -> 0 | BN26: =SUM(BN27:BN28) -> 0
A27: 11330 | B27: Anticipo a proveedores por adquisición de bienes intangibles a corto plazo | AF27: =Balanza!G24 -> 0 | AG27: =Balanza!C24 -> 0 | AH27: 21410 | AI27: Títulos y valores de la deuda pública interna a corto plazo | BM27: =Balanza!H122 -> 0 | BN27: =Balanza!D122 -> 0
A28: 11340 | B28: Anticipo a contratistas por obras públicas a corto plazo | AF28: =Balanza!G25 -> 0 | AG28: =Balanza!C25 -> 0 | AH28: 21420 | AI28: Títulos y valores de la deuda pública externa a corto plazo | BM28: =Balanza!H123 -> 0 | BN28: =Balanza!D123 -> 0
A29: 11390 | B29: Otros derechos a recibir bienes o servicios a corto plazo | AF29: =Balanza!G26 -> 0 | AG29: =Balanza!C26 -> 0 | AH29: 21500 | AI29: PASIVOS DIFERIDOS A CORTO PLAZO | BM29: =SUM(BM30:BM32) -> 0 | BN29: =SUM(BN30:BN32) -> 0
A30: 11400 | B30: INVENTARIOS | AF30: =SUM(AF31:AF35) -> 0 | AG30: =SUM(AG31:AG35) -> 0 | AH30: 21510 | AI30: Ingresos cobrados por adelantado a corto plazo | BM30: =Balanza!H125 -> 0 | BN30: =Balanza!D125 -> 0
A31: 11410 | B31: Inventario de mercancías para venta | AF31: =Balanza!G28 -> 0 | AG31: =Balanza!C28 -> 0 | AH31: 21520 | AI31: Intereses cobrados por adelantado a corto plazo | BM31: =Balanza!H126 -> 0 | BN31: =Balanza!D126 -> 0
A32: 11420 | B32: Inventario de mercancías terminadas | AF32: =Balanza!G29 -> 0 | AG32: =Balanza!C29 -> 0 | AH32: 21590 | AI32: Otros pasivos diferidos a corto plazo | BM32: =Balanza!H127 -> 0 | BN32: =Balanza!D127 -> 0
A33: 11430 | B33: Inventario de mercancías en proceso de elaboración | AF33: =Balanza!G30 -> 0 | AG33: =Balanza!C30 -> 0 | AH33: 21600 | AI33: FONDOS Y BIENES DE TERCEROS EN GARANTÍA Y/O ADMINISTRACIÓN A CORTO PLAZO | BM33: =SUM(BM34:BM39) -> 0 | BN33: =SUM(BN34:BN39) -> 0
A34: 11440 | B34: Inventario de materias primas, materiales y suministros para producción | AF34: =Balanza!G31 -> 0 | AG34: =Balanza!C31 -> 0 | AH34: 21610 | AI34: Fondos en garantía a corto plazo | BM34: =Balanza!H129 -> 0 | BN34: =Balanza!D129 -> 0
A35: 11450 | B35: Bienes en tránsito | AF35: =Balanza!G32 -> 0 | AG35: =Balanza!C32 -> 0 | AH35: 21620 | AI35: Fondos en administración a corto plazo | BM35: =Balanza!H130 -> 0 | BN35: =Balanza!D130 -> 0
A36: 11500 | B36: ALMACENES | AF36: =AF37 -> 0 | AG36: =AG37 -> 0 | AH36: 21630 | AI36: Fondos contingentes a corto plazo | BM36: =Balanza!H131 -> 0 | BN36: =Balanza!D131 -> 0
A37: 11510 | B37: Almacén de materiales y suministro para el consumo | AF37: =Balanza!G34 -> 0 | AG37: =Balanza!C34 -> 0 | AH37: 21640 | AI37: Fondos de fideicomisos, mandatos y contratos análogos a corto plazo | BM37: =Balanza!H132 -> 0 | BN37: =Balanza!D132 -> 0
A38: 11600 | B38: ESTIMACIÓN POR PÉRDIDA O DETERIORO DE ACTIVOS CIRCULANTES | AF38: =SUM(AF39:AF40) -> 0 | AG38: =SUM(AG39:AG40) -> 0 | AH38: 21650 | AI38: Otros fondos de terceros en garantía y/o administración a corto plazo | BM38: =Balanza!H133 -> 0 | BN38: =Balanza!D133 -> 0
A39: 11610 | B39: Estimaciones para cuentas incobrables por derechos a recibir efectivo o equivalentes | AF39: =Balanza!G36 -> 0 | AG39: =Balanza!C36 -> 0 | AH39: 21660 | AI39: Valores y bienes en garantía a corto plazo | BM39: =Balanza!H134 -> 0 | BN39: =Balanza!D134 -> 0
A40: 11620 | B40: Estimación por deterioro de inventarios | AF40: =Balanza!G37 -> 0 | AG40: =Balanza!C37 -> 0 | AH40: 21700 | AI40: PROVISIONES A CORTO PLAZO | BM40: =SUM(BM41:BM43) -> 0 | BN40: =SUM(BN41:BN43) -> 0
A41: 11900 | B41: OTROS ACTIVOS CIRCULANTES | AF41: =SUM(AF42:AF45) -> 0 | AG41: =SUM(AG42:AG45) -> 0 | AH41: 21710 | AI41: Provisión para demandas y juicios a corto plazo | BM41: =Balanza!H136 -> 0 | BN41: =Balanza!D136 -> 0
A42: 11910 | B42: Valores en garantía | AF42: =Balanza!G39 -> 0 | AG42: =Balanza!C39 -> 0 | AH42: 21720 | AI42: Provisión para contingencias a corto plazo | BM42: =Balanza!H137 -> 0 | BN42: =Balanza!D137 -> 0
A43: 11920 | B43: Bienes en garantía (excluye depósitos de fondos) | AF43: =Balanza!G40 -> 0 | AG43: =Balanza!C40 -> 0 | AH43: 21790 | AI43: Otras provisiones a corto plazo | BM43: =Balanza!H138 -> 0 | BN43: =Balanza!D138 -> 0
A44: 11930 | B44: Bienes derivados de embargos, decomisos, aseguramientos y dación en pago | AF44: =Balanza!G41 -> 0 | AG44: =Balanza!C41 -> 0 | AH44: 21900 | AI44: OTROS PASIVOS A CORTO PLAZO | BM44: =SUM(BM45:BM47) -> 0 | BN44: =SUM(BN45:BN47) -> 0
A45: 11940 | B45: Adquisición con fondos de terceros | AF45: =Balanza!G42 -> 0 | AG45: =Balanza!C42 -> 0 | AH45: 21910 | AI45: Ingresos por clasificar | BM45: =Balanza!H140 -> 0 | BN45: =Balanza!D140 -> 0
B46: ACTIVOS CIRCULANTES | AF46: =AF8+AF16+AF24+AF30+AF36+AF38+AF41 -> 119215.71 | AG46: =AG8+AG16+AG24+AG30+AG36+AG38+AG41 -> 769144.48 | AH46: 21920 | AI46: Recaudación por participar | BM46: =Balanza!H141 -> 0 | BN46: =Balanza!D141 -> 0
A47: 12000 | B47: ACTIVO NO CIRCULANTE | AH47: 21990 | AI47: Otros pasivos circulantes | BM47: =Balanza!H142 -> 0 | BN47: =Balanza!D142 -> 0
A48: 12100 | B48: INVERSIONES FINANCIERAS A LARGO PLAZO | AF48: =SUM(AF49:AF52) -> 0 | AG48: =SUM(AG49:AG52) -> 0 | AI48: PASIVOS CIRCULANTES | BM48: =BM8+BM18+BM22+BM26+BM29+BM33+BM40+BM44 -> 5084046.8 | BN48: =BN8+BN18+BN22+BN26+BN29+BN33+BN40+BN44 -> 327242.73
A49: 12110 | B49: Inversiones a largo plazo | AF49: =Balanza!G45 -> 0 | AG49: =Balanza!C45 -> 0 | AH49: 22000 | AI49: PASIVO NO CIRCULANTE
A50: 12120 | B50: Títulos y valores a largo plazo | AF50: =Balanza!G46 -> 0 | AG50: =Balanza!C46 -> 0 | AH50: 22100 | AI50: CUENTAS POR PAGAR A LARGO PLAZO | BM50: =SUM(BM51:BM52) -> 0 | BN50: =SUM(BN51:BN52) -> 0
A51: 12130 | B51: Fideicomisos, mandatos y contratos análogos | AF51: =Balanza!G47 -> 0 | AG51: =Balanza!C47 -> 0 | AH51: 22110 | AI51: Proveedores por pagar a largo plazo | BM51: =Balanza!H145 -> 0 | BN51: =Balanza!D145 -> 0
A52: 12140 | B52: Participaciones y aportaciones de capital | AF52: =Balanza!G48 -> 0 | AG52: =Balanza!C48 -> 0 | AH52: 22120 | AI52: Contratistas por obras públicas por pagar a largo plazo | BM52: =Balanza!H146 -> 0 | BN52: =Balanza!D146 -> 0
A53: 12200 | B53: DERECHOS A RECIBIR EFECTIVO O EQUIVALENTES A LARGO PLAZO | AF53: =SUM(AF54:AF58) -> 0 | AG53: =SUM(AG54:AG58) -> 0 | AH53: 22200 | AI53: DOCUMENTOS POR PAGAR A LARGO PLAZO | BM53: =SUM(BM54:BM56) -> 0 | BN53: =SUM(BN54:BN56) -> 0
A54: 12210 | B54: Documentos por cobrar a largo plazo | AF54: =Balanza!G50 -> 0 | AG54: =Balanza!C50 -> 0 | AH54: 22210 | AI54: Documentos comerciales por pagar a largo plazo | BM54: =Balanza!H148 -> 0 | BN54: =Balanza!D148 -> 0
A55: 12220 | B55: Deudores diversos a largo plazo | AF55: =Balanza!G51 -> 0 | AG55: =Balanza!C51 -> 0 | AH55: 22220 | AI55: Documentos con contratistas por obras públicas por pagar a largo plazo | BM55: =Balanza!H149 -> 0 | BN55: =Balanza!D149 -> 0
A56: 12230 | B56: Ingresos por recuperar a largo plazo | AF56: =Balanza!G52 -> 0 | AG56: =Balanza!C52 -> 0 | AH56: 22290 | AI56: Otros documentos por pagar a largo plazo | BM56: =Balanza!H150 -> 0 | BN56: =Balanza!D150 -> 0
A57: 12240 | B57: Préstamos otorgados a largo plazo | AF57: =Balanza!G53 -> 0 | AG57: =Balanza!C53 -> 0 | AH57: 22300 | AI57: DEUDA PÚBLICA A LARGO PLAZO | BM57: =SUM(BM58:BM62) -> 0 | BN57: =SUM(BN58:BN62) -> 0
A58: 12290 | B58: Otros derechos a recibir efectivo o equivalentes a largo plazo | AF58: =Balanza!G54 -> 0 | AG58: =Balanza!C54 -> 0 | AH58: 22310 | AI58: Títulos y valores de la deuda pública interna a largo plazo | BM58: =Balanza!H152 -> 0 | BN58: =Balanza!D152 -> 0
A59: 12300 | B59: BIENES INMUEBLES, INFRAESTRUCTURA Y CONSTRUCCIONES EN PROCESO | AF59: =SUM(AF60:AF66) -> 43552018.57 | AG59: =SUM(AG60:AG66) -> 25830417.29 | AH59: 22320 | AI59: Títulos y valores de la deuda pública externa a largo plazo | BM59: =Balanza!H153 -> 0 | BN59: =Balanza!D153 -> 0
A60: 12310 | B60: Terrenos | AF60: =Balanza!G56 -> 0 | AG60: =Balanza!C56 -> 0 | AH60: 22330 | AI60: Préstamos de la deuda pública interna por pagar a largo plazo | BM60: =Balanza!H154 -> 0 | BN60: =Balanza!D154 -> 0
A61: 12320 | B61: Viviendas | AF61: =Balanza!G57 -> 0 | AG61: =Balanza!C57 -> 0 | AH61: 22340 | AI61: Préstamos de la deuda pública externa por pagar a largo plazo | BM61: =Balanza!H155 -> 0 | BN61: =Balanza!D155 -> 0
A62: 12330 | B62: Edificios no habitacionales | AF62: =Balanza!G58 -> 0 | AG62: =Balanza!C58 -> 0 | AH62: 22350 | AI62: Arrendamiento financiero por pagar a largo plazo | BM62: =Balanza!H156 -> 0 | BN62: =Balanza!D156 -> 0
A63: 12340 | B63: Infraestructura | AF63: =Balanza!G59 -> 25830417.29 | AG63: =Balanza!C59 -> 25830417.29 | AH63: 22400 | AI63: PASIVOS DIFERIDOS A LARGO PLAZO | BM63: =SUM(BM64:BM66) -> 0 | BN63: =SUM(BN64:BN66) -> 0
A64: 12350 | B64: Construcciones en proceso en bienes de dominio público | AF64: =Balanza!G60 -> 17721601.28 | AG64: =Balanza!C60 -> 0 | AH64: 22410 | AI64: Créditos diferidos a largo plazo | BM64: =Balanza!H158 -> 0 | BN64: =Balanza!D158 -> 0
A65: 12360 | B65: Construcciones en proceso en bienes propios | AF65: =Balanza!G61 -> 0 | AG65: =Balanza!C61 -> 0 | AH65: 22420 | AI65: Intereses cobrados por adelantado a largo plazo | BM65: =Balanza!H159 -> 0 | BN65: =Balanza!D159 -> 0
A66: 12390 | B66: Otros bienes inmuebles | AF66: =Balanza!G62 -> 0 | AG66: =Balanza!C62 -> 0 | AH66: 22490 | AI66: Otros pasivos diferidos a largo plazo | BM66: =Balanza!H160 -> 0 | BN66: =Balanza!D160 -> 0
A67: 12400 | B67: BIENES MUEBLES | AF67: =SUM(AF68:AF75) -> 3466414.4 | AG67: =SUM(AG68:AG75) -> 2530307.22 | AH67: 22500 | AI67: FONDOS Y BIENES DE TERCEROS EN GARANTÍA Y/O ADMINISTRACIÓN A LARGO PLAZO | BM67: =SUM(BM68:BM73) -> 0 | BN67: =SUM(BN68:BN73) -> 0
A68: 12410 | B68: Mobiliario y equipo de administración | AF68: =Balanza!G64 -> 211981.9 | AG68: =Balanza!C64 -> 198100.98 | AH68: 22510 | AI68: Fondos en garantía a largo plazo | BM68: =Balanza!H162 -> 0 | BN68: =Balanza!D162 -> 0
A69: 12420 | B69: Mobiliario y equipo educacional y recreativo | AF69: =Balanza!G65 -> 16436.27 | AG69: =Balanza!C65 -> 0 | AH69: 22520 | AI69: Fondos en administración a largo plazo | BM69: =Balanza!H163 -> 0 | BN69: =Balanza!D163 -> 0
A70: 12430 | B70: Equipo e instrumental médico y de laboratorio | AF70: =Balanza!G66 -> 0 | AG70: =Balanza!C66 -> 0 | AH70: 22530 | AI70: Fondos contingentes a largo plazo | BM70: =Balanza!H164 -> 0 | BN70: =Balanza!D164 -> 0
A71: 12440 | B71: Vehículos y equipo de transporte | AF71: =Balanza!G67 -> 3237996.23 | AG71: =Balanza!C67 -> 2332206.24 | AH71: 22540 | AI71: Fondos de fideicomisos, mandatos y contratos análogos a largo plazo | BM71: =Balanza!H165 -> 0 | BN71: =Balanza!D165 -> 0
A72: 12450 | B72: Equipo de defensa y seguridad | AF72: =Balanza!G68 -> 0 | AG72: =Balanza!C68 -> 0 | AH72: 22550 | AI72: Otros fondos de terceros en garantía y/o administración a largo plazo | BM72: =Balanza!H166 -> 0 | BN72: =Balanza!D166 -> 0
A73: 12460 | B73: Maquinaria, otros equipos y herramientas | AF73: =Balanza!G69 -> 0 | AG73: =Balanza!C69 -> 0 | AH73: 22560 | AI73: Valores y bienes en garantía a largo plazo | BM73: =Balanza!H167 -> 0 | BN73: =Balanza!D167 -> 0
A74: 12470 | B74: Colecciones, obras de arte y objetos valiosos | AF74: =Balanza!G70 -> 0 | AG74: =Balanza!C70 -> 0 | AH74: 22600 | AI74: PROVISIONES A LARGO PLAZO | BM74: =SUM(BM75:BM78) -> 0 | BN74: =SUM(BN75:BN78) -> 0
A75: 12480 | B75: Activos biológicos | AF75: =Balanza!G71 -> 0 | AG75: =Balanza!C71 -> 0 | AH75: 22610 | AI75: Provisión para demandas y juicios a largo plazo | BM75: =Balanza!H169 -> 0 | BN75: =Balanza!D169 -> 0
A76: 12500 | B76: ACTIVOS INTANGIBLES | AF76: =SUM(AF77:AF81) -> 0 | AG76: =SUM(AG77:AG81) -> 0 | AH76: 22620 | AI76: Provisión para pensiones a largo plazo | BM76: =Balanza!H170 -> 0 | BN76: =Balanza!D170 -> 0
A77: 12510 | B77: Software | AF77: =Balanza!G73 -> 0 | AG77: =Balanza!C73 -> 0 | AH77: 22630 | AI77: Provisión para contingencias a largo plazo | BM77: =Balanza!H171 -> 0 | BN77: =Balanza!D171 -> 0
A78: 12520 | B78: Patentes, marcas y derechos | AF78: =Balanza!G74 -> 0 | AG78: =Balanza!C74 -> 0 | AH78: 22690 | AI78: Otras provisiones a largo plazo | BM78: =Balanza!H172 -> 0 | BN78: =Balanza!D172 -> 0
A79: 12530 | B79: Concesiones y franquicias | AF79: =Balanza!G75 -> 0 | AG79: =Balanza!C75 -> 0 | AI79: PASIVOS NO CIRCULANTES | BM79: =BM50+BM53+BM57+BM63+BM67+BM74 -> 0 | BN79: =BN50+BN53+BN57+BN63+BN67+BN74 -> 0
A80: 12540 | B80: Licencias | AF80: =Balanza!G76 -> 0 | AG80: =Balanza!C76 -> 0 | AI80: TOTAL DE PASIVOS | BM80: =BM48+BM79 -> 5084046.8 | BN80: =BN48+BN79 -> 327242.73
A81: 12590 | B81: Otros activos intangibles | AF81: =Balanza!G77 -> 0 | AG81: =Balanza!C77 -> 0 | AH81: 30000 | AI81: HACIENDA PÚBLICA/ PATRIMONIO
A82: 12600 | B82: DEPRECIACIÓN, DETERIORO Y AMORTIZACIÓN ACUMULADA DE BIENES | AF82: =SUM(AF83:AF87) -> 0 | AG82: =SUM(AG83:AG87) -> 0 | AH82: 31000 | AI82: HACIENDA PÚBLICA/ PATRIMONIO CONTRIBUIDO | BM82: =SUM(BM83:BM85) -> 0 | BN82: =SUM(BN83:BN85) -> 0
A83: 12610 | B83: Depreciación acumulada de bienes inmuebles | AF83: =(Balanza!H79)*-1 -> 0 | AG83: =(Balanza!D79)*-1 -> 0 | AH83: 31100 | AI83: Aportaciones | BM83: =Balanza!H175 -> 0 | BN83: =Balanza!D175 -> 0
A84: 12620 | B84: Depreciación acumulada de infraestructura | AF84: =(Balanza!H80)*-1 -> 0 | AG84: =(Balanza!D80)*-1 -> 0 | AH84: 31200 | AI84: Donaciones de capítal | BM84: =Balanza!H176 -> 0 | BN84: =Balanza!D176 -> 0
A85: 12630 | B85: Depreciación acumulada de bienes muebles | AF85: =(Balanza!H81)*-1 -> 0 | AG85: =(Balanza!D81)*-1 -> 0 | AH85: 31300 | AI85: Actualización de la hacienda pública/patrimonio | BM85: =Balanza!H177 -> 0 | BN85: =Balanza!D177 -> 0
A86: 12640 | B86: Deterioro acumulado de activos biológicos | AF86: =(Balanza!H82)*-1 -> 0 | AG86: =(Balanza!D82)*-1 -> 0 | AH86: 32000 | AI86: HACIENDA PÚBLICA/PATRIMONIO GENERADO | BM86: =BM87+BM88+BM89+BM94+BM98 -> 42053601.88 | BN86: =BN87+BN88+BN89+BN94+BN98 -> 28802626.26
A87: 12650 | B87: Amortización acumulada de activos intangibles | AF87: =(Balanza!H83)*-1 -> 0 | AG87: =(Balanza!D83)*-1 -> 0 | AH87: 32100 | AI87: Resultado del ejercicio (ahorro/desahorro) | BM87: =Balanza!H179 -> 13250975.62 | BN87: =Balanza!D179 -> 12073953.71
A88: 12700 | B88: ACTIVOS DIFERIDOS | AF88: =SUM(AF89:AF94) -> 0 | AG88: =SUM(AG89:AG94) -> 0 | AH88: 32200 | AI88: Resultado de ejercicios anteriores | BM88: =Balanza!H180 -> 28802626.26 | BN88: =Balanza!D180 -> 16728672.55
A89: 12710 | B89: Estudios, formulación y evaluación de proyectos | AF89: =Balanza!G85 -> 0 | AG89: =Balanza!C85 -> 0 | AH89: 32300 | AI89: REVALÚOS | BM89: =SUM(BM90:BM93) -> 0 | BN89: =SUM(BN90:BN93) -> 0
A90: 12720 | B90: Derechos sobre bienes en régimen de arrendamiento financiero | AF90: =Balanza!G86 -> 0 | AG90: =Balanza!C86 -> 0 | AH90: 32310 | AI90: Revalúo de bienes inmuebles | BM90: =Balanza!H182 -> 0 | BN90: =Balanza!D182 -> 0
A91: 12730 | B91: Gastos pagados por adelantado a largo plazo | AF91: =Balanza!G87 -> 0 | AG91: =Balanza!C87 -> 0 | AH91: 32320 | AI91: Revalúo de bienes muebles | BM91: =Balanza!H183 -> 0 | BN91: =Balanza!D183 -> 0
A92: 12740 | B92: Anticipos a largo plazo | AF92: =Balanza!G88 -> 0 | AG92: =Balanza!C88 -> 0 | AH92: 32330 | AI92: Revalúo de bienes intangibles | BM92: =Balanza!H184 -> 0 | BN92: =Balanza!D184 -> 0
A93: 12750 | B93: Beneficios al retiro de empleados pagados por adelantado | AF93: =Balanza!G89 -> 0 | AG93: =Balanza!C89 -> 0 | AH93: 32390 | AI93: Otros revalúos | BM93: =Balanza!H185 -> 0 | BN93: =Balanza!D185 -> 0
A94: 12790 | B94: Otros activos diferidos | AF94: =Balanza!G90 -> 0 | AG94: =Balanza!C90 -> 0 | AH94: 32400 | AI94: RESERVAS | BM94: =SUM(BM95:BM97) -> 0 | BN94: =SUM(BN95:BN97) -> 0
A95: 12800 | B95: ESTIMACIÓN POR PÉRDIDA O DETERIORO DE ACTIVOS NO CIRCULANTES | AF95: =SUM(AF96:AF100) -> 0 | AG95: =SUM(AG96:AG100) -> 0 | AH95: 32410 | AI95: Reservas de patrimonio | BM95: =Balanza!H187 -> 0 | BN95: =Balanza!D187 -> 0
A96: 12810 | B96: Estimaciones por pérdida de cuentas incobrables de documentos por cobrar a largo plazo | AF96: =(Balanza!H92)*-1 -> 0 | AG96: =(Balanza!D92)*-1 -> 0 | AH96: 32420 | AI96: Reservas territoriales | BM96: =Balanza!H188 -> 0 | BN96: =Balanza!D188 -> 0
A97: 12820 | B97: Estimaciones por pérdida de cuentas incobrables de deudores diversos por cobrar a largo plazo | AF97: =(Balanza!H93)*-1 -> 0 | AG97: =(Balanza!D93)*-1 -> 0 | AH97: 32430 | AI97: Reservas por contingencias | BM97: =Balanza!H189 -> 0 | BN97: =Balanza!D189 -> 0
A98: 12830 | B98: Estimaciones por pérdida de cuentas incobrables de ingresos por cobrar a largo plazo | AF98: =(Balanza!H94)*-1 -> 0 | AG98: =(Balanza!D94)*-1 -> 0 | AH98: 32500 | AI98: RECTIFICACIONES DE RESULTADOS DE EJERCICIOS ANTERIORES | BM98: =SUM(BM99:BM100) -> 0 | BN98: =SUM(BN99:BN100) -> 0
A99: 12840 | B99: Estimaciones por pérdida de cuentas incobrables de préstamos otorgados a largo plazo | AF99: =(Balanza!H95)*-1 -> 0 | AG99: =(Balanza!D95)*-1 -> 0 | AH99: 32510 | AI99: Cambios en políticas contables | BM99: =Balanza!H191 -> 0 | BN99: =Balanza!D191 -> 0
A100: 12890 | B100: Estimaciones por pérdida de otras cuentas incobrables a largo plazo | AF100: =(Balanza!H96)*-1 -> 0 | AG100: =(Balanza!D96)*-1 -> 0 | AH100: 32520 | AI100: Cambios por errores contables | BM100: =Balanza!H192 -> 0 | BN100: =Balanza!D192 -> 0
A101: 12900 | B101: OTROS ACTIVOS NO CIRCULANTES | AF101: =SUM(AF102:AF104) -> 0 | AG101: =SUM(AG102:AG104) -> 0 | AH101: 33000 | AI101: EXCESO O INSUFICIENCIA EN LA ACTUALIZACIÓN DE LA HACIENDA PÚBLICA / PATRIMONIO | BM101: =SUM(BM102:BM103) -> 0 | BN101: =SUM(BN102:BN103) -> 0
A102: 12910 | B102: Bienes en concesión | AF102: =Balanza!G98 -> 0 | AG102: =Balanza!C98 -> 0 | AH102: 33100 | AI102: Resultado por posición monetaria | BM102: =Balanza!H194 -> 0 | BN102: =Balanza!D194 -> 0
A103: 12920 | B103: Bienes en arrendamiento financiero | AF103: =Balanza!G99 -> 0 | AG103: =Balanza!C99 -> 0 | AH103: 33200 | AI103: Resultado por tenencia de activos no monetarios | BM103: =Balanza!H195 -> 0 | BN103: =Balanza!D195 -> 0
A104: 12930 | B104: Bienes en comodato | AF104: =Balanza!G100 -> 0 | AG104: =Balanza!C100 -> 0 | BL104: TOTAL HACIENDA PUBLICA / PATRIMONIO | BM104: =BM82+BM86+BM101 -> 42053601.88 | BN104: =BN82+BN86+BN101 -> 28802626.26
B105: ACTIVOS NO CIRCULANTES | AF105: =AF48+AF53+AF59+AF67+AF76+AF82+AF88+AF95+AF101 -> 47018432.97 | AG105: =AG48+AG53+AG59+AG67+AG76+AG82+AG88+AG95+AG101 -> 28360724.51
B106: TOTAL DEL ACTIVO | AF106: =AF46+AF105 -> 47137648.68 | AG106: =AG46+AG105 -> 29129868.99 | AI106: SUMA DE PASIVO Y PATRIMONIO / HACIENDA PÚBLICA | BM106: =BM80+BM104 -> 47137648.68 | BN106: =BN80+BN104 -> 29129868.99
B109: Bajo protesta de decir verdad declaramos que los estados financieros y sus notas, son razonablemente correctos y son responsabilidad del emisor.
Q118: =Validacion!A7 -> C. SANTIAGO LEON CASTRO | AW118: =Validacion!A9 -> L.T. JOCELYN SANCHEZ HERRERA
Q120: Presidente Municipal o Títular del ente público | AW120: Encargado de la Hacienda Pública Municipal o Responsable de las finanzas del ente público

Sheet F6
A1: =Validacion!A2 -> Atemajac de Brizuela
A2: ESTADO DE ACTIVIDADES
A3: ='F9-EDP'!A3 -> Del 1° de Enero al 31 de Diciembre de 2022
A5: CTA. | B5: CONCEPTO | AX5: 2022 | AY5: 2021
A6: 40000 | B6: INGRESOS Y OTROS BENEFICIOS
A7: 41000 | B7: INGRESOS DE GESTIÓN | AX7: =AX8+AX29+AX35+AX40+AX72+AX81+AX102+AX114 -> 11085521.64 | AY7: =AY8+AY29+AY35+AY40+AY72+AY81+AY102+AY114 -> 9645868.57
A8: 41100 | B8: IMPUESTOS | AX8: =AX9+AX11+AX15+AX16+AX17+AX18+AX19+AX25+AX27 -> 4329071.44 | AY8: =AY9+AY11+AY15+AY16+AY17+AY18+AY19+AY25+AY27 -> 4282314.98
A9: 41110 | B9: Impuestos sobre los ingresos | AX9: =SUM(AX10) -> 0 | AY9: =SUM(AY10) -> 15088
A10: 41110-1 | B10: Impuestos sobre espectáculos públicos | AX10: =Balanza!H200 -> 0 | AY10: =Balanza!D200 -> 15088
A11: 41120 | B11: Impuestos sobre el patrimonio | AX11: =SUM(AX12:AX14) -> 4203225.49 | AY11: =SUM(AY12:AY14) -> 4235306.85
A12: 41120-1 | B12: Impuesto predial | AX12: =Balanza!H202 -> 2522187.98 | AY12: =Balanza!D202 -> 2162492.08
A13: 41120-2 | B13: Impuestos sobre transmisiones patrimoniales | AX13: =Balanza!H203 -> 1681037.51 | AY13: =Balanza!D203 -> 2022154.88
A14: 41120-3 | B14: Impuestos sobre negocios jurídicos | AX14: =Balanza!H204 -> 0 | AY14: =Balanza!D204 -> 50659.89
A15: 41130 | B15: Impuestos sobre la producción, el consumo y las transacciones | AX15: 0 | AY15: 0
A16: 41140 | B16: Impuestos al comercio exterior | AX16: 0 | AY16: 0
A17: 41150 | B17: Impuestos sobre nóminas y asimilables | AX17: 0 | AY17: 0
A18: 41160 | B18: Impuestos ecológicos | AX18: 0 | AY18: 0
A19: 41170 | B19: Accesorios de impuestos | AX19: =SUM(AX20:AX24) -> 125845.95 | AY19: =SUM(AY20:AY24) -> 31920.13
A20: 41170-1 | B20: Recargos | AX20: =Balanza!H210 -> 113438.59 | AY20: =Balanza!D210 -> 12455.2
A21: 41170-2 | B21: Actualizaciones | AX21: =Balanza!H211 -> 0 | AY21: =Balanza!D211 -> 0
A22: 41170-3 | B22: Multas | AX22: =Balanza!H212 -> 12407.36 | AY22: =Balanza!D212 -> 10490.8
A23: 41170-4 | B23: Gastos de ejecución | AX23: =Balanza!H213 -> 0 | AY23: =Balanza!D213 -> 0
A24: 41170-5 | B24: Otros no especificados | AX24: =Balanza!H214 -> 0 | AY24: =Balanza!D214 -> 8974.13
A25: 41180 | B25: Impuestos no comprendidos en la ley de ingresos vigente, causados en ejercicio fiscales anteriores pendientes de liquidar o pago | AX25: =SUM(AX26) -> 0 | AY25: =SUM(AY26) -> 0
A26: 41180-1 | B26: Impuestos no comprendidos en la ley de ingresos vigente, causados en ejercicio fiscales anteriores pendientes de liquidar o pago | AX26: =Balanza!H216 -> 0 | AY26: =Balanza!D216 -> 0
A27: 41190 | B27: Otros Impuestos | AX27: =SUM(AX28) -> 0 | AY27: =SUM(AY28) -> 0
A28: 41190-1 | B28: Otros impuestos | AX28: =Balanza!H218 -> 0 | AY28: =Balanza!D218 -> 0
A29: 41200 | B29: CUOTAS Y APORTACIONES DE SEGURIDAD SOCIAL | AX29: =SUM(AX30:AX34) -> 0 | AY29: =SUM(AY30:AY34) -> 0
A30: 41210 | B30: Aportaciones para fondos de vivienda | AX30: 0 | AY30: 0
A31: 41220 | B31: Cuotas para la seguridad social | AX31: 0 | AY31: 0
A32: 41230 | B32: Cuotas de ahorro para el retiro | AX32: 0 | AY32: 0
A33: 41240 | B33: Accesorios de cuotas y aportaciones de seguridad social | AX33: 0 | AY33: 0
A34: 41290 | B34: Otras cuotas y aportaciones para la seguridad social | AX34: 0 | AY34: 0
A35: 41300 | B35: CONTRIBUCIONES DE MEJORAS | AX35: =AX36+AX38 -> 0 | AY35: =AY36+AY38 -> 0
A36: 41310 | B36: Contribuciones de mejoras por obras públicas | AX36: =SUM(AX37) -> 0 | AY36: =SUM(AY37) -> 0
A37: 41310-1 | B37: Contribuciones de mejoras por obras públicas | AX37: =Balanza!H227 -> 0 | AY37: =Balanza!D227 -> 0
A38: 41320 | B38: Contribuciones de mejoras no comprendidas en la ley de ing. vigente, causadas en ejercicios fiscales anteriores pendientes de liq. o pago | AX38: =SUM(AX39) -> 0 | AY38: =SUM(AY39) -> 0
A39: 41320-1 | B39: Contribuciones de mejoras no comprendidas en la ley de ing. vigente, causadas en ejercicios fiscales anteriores pendientes de liq. o pago | AX39: =Balanza!H229 -> 0 | AY39: =Balanza!D229 -> 0
A40: 41400 | B40: DERECHOS | AX40: =AX41+AX46+AX47+AX62+AX68+AX70 -> 5890489.07 | AY40: =AY41+AY46+AY47+AY62+AY68+AY70 -> 4717158.67
A41: 41410 | B41: Derechos por el uso, goce, aprovechamiento o explotación de bienes de dominio público | AX41: =SUM(AX42:AX45) -> 19453.48 | AY41: =SUM(AY42:AY45) -> 157383
A42: 41410-1 | B42: Derechos por el uso del piso | AX42: =Balanza!H232 -> 0 | AY42: =Balanza!D232 -> 81581
A43: 41410-2 | B43: Derechos por el uso de los estacionamientos | AX43: =Balanza!H233 -> 0 | AY43: =Balanza!D233 -> 0
A44: 41410-3 | B44: Derechos de uso de cementerios y panteones municipales | AX44: =Balanza!H234 -> 19453.48 | AY44: =Balanza!D234 -> 25732
A45: 41410-4 | B45: Derechos de concesiones y demás inmuebles de propiedad municipal | AX45: =Balanza!H235 -> 0 | AY45: =Balanza!D235 -> 50070
A46: 41420 | B46: Derechos a los hidrocarburos (derogada) | AX46: 0 | AY46: 0
A47: 41430 | B47: Derechos por prestación de servicios | AX47: =SUM(AX48:AX61) -> 5198486.58 | AY47: =SUM(AY48:AY61) -> 4552870.15
A48: 41430-1 | B48: Derechos de licencias y permisos de giros | AX48: =Balanza!H238 -> 74209.74 | AY48: =Balanza!D238 -> 240109.44
A49: 41430-2 | B49: Derechos de licencias y permisos de anuncios | AX49: =Balanza!H239 -> 2268.07 | AY49: =Balanza!D239 -> 2297
A50: 41430-3 | B50: Derechos de licencias de construcción, reconstrucción, reparación o demolición de obras | AX50: =Balanza!H240 -> 150 | AY50: =Balanza!D240 -> 535054.02
A51: 41430-4 | B51: Derechos de regularizaciones de los registros de obra | AX51: =Balanza!H241 -> 0 | AY51: =Balanza!D241 -> 17582.63
A52: 41430-5 | B52: Derechos de alineamiento, designación de número oficial e inspección | AX52: =Balanza!H242 -> 116342.89 | AY52: =Balanza!D242 -> 572523.32
A53: 41430-6 | B53: Derechos de licencias de cambio de régimen de propiedad y urbanización | AX53: =Balanza!H243 -> 0 | AY53: =Balanza!D243 -> 168680.65
A54: 41430-7 | B54: Derechos de servicios de obra | AX54: =Balanza!H244 -> 1912.47 | AY54: =Balanza!D244 -> 30202.31
A55: 41430-8 | B55: Derechos de servicios de sanidad | AX55: =Balanza!H245 -> 4721.58 | AY55: =Balanza!D245 -> 11878
A56: 41430-9 | B56: Derechos de servicio de limpieza, recolección, traslado, tratamiento y disposición final de residuos | AX56: =Balanza!H246 -> 0 | AY56: =Balanza!D246 -> 0
A57: 41430-10 | B57: Derechos de agua potable, drenaje, alcantarillado, tratamiento y disposición final de aguas residuales | AX57: =Balanza!H247 -> 1655651.87 | AY57: =Balanza!D247 -> 870571.82
A58: 41430-11 | B58: Derechos del rastro | AX58: =Balanza!H248 -> 280130 | AY58: =Balanza!D248 -> 273901
A59: 41430-12 | B59: Derechos del registro civil | AX59: =Balanza!H249 -> 3223.5 | AY59: =Balanza!D249 -> 12370
A60: 41430-13 | B60: Derechos de las certificaciones | AX60: =Balanza!H250 -> 2836171.47 | AY60: =Balanza!D250 -> 167377.82
A61: 41430-14 | B61: Derechos de los servicios de catastro | AX61: =Balanza!H251 -> 223704.99 | AY61: =Balanza!D251 -> 1650322.14
A62: 41440 | B62: Accesorios de derecho | AX62: =SUM(AX63:AX67) -> 672549.01 | AY62: =SUM(AY63:AY67) -> 6905.52
A63: 41440-1 | B63: Recargos | AX63: =Balanza!H253 -> 85460.61 | AY63: =Balanza!D253 -> 900
A64: 41440-2 | B64: Actualizaciones | AX64: =Balanza!H254 -> 0 | AY64: =Balanza!D254 -> 0
A65: 41440-3 | B65: Multas | AX65: =Balanza!H255 -> 0 | AY65: =Balanza!D255 -> 0
A66: 41440-4 | B66: Gastos de ejecución | AX66: =Balanza!H256 -> 0 | AY66: =Balanza!D256 -> 0
A67: 41440-5 | B67: Otros no especificados | AX67: =Balanza!H257 -> 587088.4 | AY67: =Balanza!D257 -> 6005.52
A68: 41450 | B68: Derechos no comprendidos en la ley de ingresos vigente, causados en ejercicios fiscales anteriores pendientes de liquidación o pago | AX68: =SUM(AX69) -> 0 | AY68: =SUM(AY69) -> 0
A69: 41450-1 | B69: Derechos no comprendidos en la ley de ingresos vigente, causados en ejercicios fiscales anteriores pendientes de liquidación o pago | AX69: =Balanza!H259 -> 0 | AY69: =Balanza!D259 -> 0
A70: 41490 | B70: Otros derechos | AX70: =SUM(AX71) -> 0 | AY70: =SUM(AY71) -> 0
A71: 41490-1 | B71: Otros derechos | AX71: =Balanza!H261 -> 0 | AY71: =Balanza!D261 -> 0
A72: 41500 | B72: PRODUCTOS | AX72: =AX73+AX76+AX77+AX78+AX80 -> 655224.46 | AY72: =AY73+AY76+AY77+AY78+AY80 -> 53968.85
A73: 41510 | B73: Productos | AX73: =SUM(AX74:AX75) -> 655224.46 | AY73: =SUM(AY74:AY75) -> 53968.85
A74: 41510-1 | B74: Uso, goce, aprovechamiento o explotación de bienes de dominio privado | AX74: =Balanza!H264 -> 0 | AY74: =Balanza!D264 -> 0
A75: 41510-2 | B75: Productos diversos | AX75: =Balanza!H265 -> 655224.46 | AY75: =Balanza!D265 -> 53968.85
A76: 41520 | B76: Enajenación de bienes muebles no sujetos a ser inventariados (derogada) | AX76: 0 | AY76: 0
A77: 41530 | B77: Accesorios de productos (derogada) | AX77: 0 | AY77: 0
A78: 41540 | B78: Productos no comprendidos en la ley de ingresos vigente, causados en ejercicios fiscales anteriores pendientes de liquidación o pago | AX78: =SUM(AX79) -> 0 | AY78: =SUM(AY79) -> 0
A79: 41540-1 | B79: Productos no comprendidos en la ley de ingresos vigente, causadas en ejercicios fiscales anteriores pendientes de liquidación o pago | AX79: =Balanza!H269 -> 0 | AY79: =Balanza!D269 -> 0
A80: 41590 | B80: Otros productos que generan ingresos corrientes (derogada) | AX80: 0 | AY80: 0
A81: 41600 | B81: APROVECHAMIENTOS | AX81: =AX82+AX83+AX85+AX87+AX89+AX91+AX93+AX94+AX100 -> 210736.67 | AY81: =AY82+AY83+AY85+AY87+AY89+AY91+AY93+AY94+AY100 -> 592426.07
A82: 41610 | B82: Incentivos derivados de la colaboración fiscal (derogada) | AX82: 0 | AY82: 0
A83: 41620 | B83: Multas | AX83: =SUM(AX84) -> 0 | AY83: =SUM(AY84) -> 0
A84: 41620-1 | B84: Multas | AX84: =Balanza!H274 -> 0 | AY84: =Balanza!D274 -> 0
A85: 41630 | B85: Indemnizaciones | AX85: =SUM(AX86) -> 0 | AY85: =SUM(AY86) -> 0
A86: 41630-1 | B86: Indemnizaciones | AX86: =Balanza!H276 -> 0 | AY86: =Balanza!D276 -> 0
A87: 41640 | B87: Reintegros | AX87: =SUM(AX88) -> 0 | AY87: =SUM(AY88) -> 349127.05
A88: 41640-1 | B88: Reintegros | AX88: =Balanza!H278 -> 0 | AY88: =Balanza!D278 -> 349127.05
A89: 41650 | B89: Aprovechamientos provenientes de obras públicas | AX89: =SUM(AX90) -> 0 | AY89: =SUM(AY90) -> 0
A90: 41640-1 | B90: Aprovechamientos provenientes de obras públicas | AX90: =Balanza!H280 -> 0 | AY90: =Balanza!D280 -> 0
A91: 41660 | B91: Aprovechamientos no comprendidos en la ley de ing. vigente, causados en ejercicios fiscales anteriores pendientes de liquidación o pago | AX91: =SUM(AX92) -> 92899.98 | AY91: =SUM(AY92) -> 0
A92: 41640-1 | B92: Aprovechamientos no comprendidos en la ley de ing. vigente, causados en ejercicios fiscales anteriores pendientes de liquidación o pago | AX92: =Balanza!H282 -> 92899.98 | AY92: =Balanza!D282 -> 0
A93: 41670 | B93: Aprovechamientos por aportaciones y cooperaciones (derogada) | AX93: 0 | AY93: 0
A94: 41680 | B94: Accesorios de aprovechamiento | AX94: =SUM(AX95:AX99) -> 117836.69 | AY94: =SUM(AY95:AY99) -> 243299.02
A95: 41680-1 | B95: Recargos | AX95: =Balanza!H285 -> 0 | AY95: =Balanza!D285 -> 0
A96: 41680-2 | B96: Actualizaciones | AX96: =Balanza!H286 -> 0 | AY96: =Balanza!D286 -> 0
A97: 41680-3 | B97: Multas | AX97: =Balanza!H287 -> 0 | AY97: =Balanza!D287 -> 16184
A98: 41680-4 | B98: Gastos de ejecución | AX98: =Balanza!H288 -> 0 | AY98: =Balanza!D288 -> 0
A99: 41680-5 | B99: Otros no especificados | AX99: =Balanza!H289 -> 117836.69 | AY99: =Balanza!D289 -> 227115.02
A100: 41690 | B100: Otros aprovechamientos | AX100: =SUM(AX101) -> 0 | AY100: =SUM(AY101) -> 0
A101: 41690-1 | B101: Otros aprovechamientos | AX101: =Balanza!H291 -> 0 | AY101: =Balanza!D291 -> 0
A102: 41700 | B102: INGRESOS POR VENTAS DE BIENES Y PRESTACIÓN DE SERVICIOS | AX102: =AX103+AX105+AX106+AX108+AX109+AX110+AX111+AX113 -> 0 | AY102: =AY103+AY105+AY106+AY108+AY109+AY110+AY111+AY113 -> 0
A103: 41710 | B103: Ingresos por venta de bienes y prestación de servicios de instituciones públicas de seguridad social | AX103: =SUM(AX104) -> 0 | AY103: =SUM(AY104) -> 0
A104: 41710-1 | B104: Ingresos por venta de bienes y prestación de servicios de instituciones públicas de seguridad social | AX104: =Balanza!H294 -> 0 | AY104: =Balanza!D294 -> 0
A105: 41720 | B105: Ingresos por venta de bienes y prestación de servicios de empresas productivas del estado | AX105: 0 | AY105: 0
A106: 41730 | B106: Ingresos por venta de bienes y prestación de servicios de entidades paraestatales y fideicomisos no empresariales y no financieros | AX106: =SUM(AX107) -> 0 | AY106: =SUM(AY107) -> 0
A107: 41730-1 | B107: Ingresos por venta de bienes y prestación de servicios de entidades paraestatales y fideicomisos no empresariales y no financieros | AX107: =Balanza!H297 -> 0 | AY107: =Balanza!D297 -> 0
A108: 41740 | B108: Ingresos por venta de bienes y prestación de servicios de entidades paraestatales empresariales no financieras con participación estatal mayoritaria | AX108: 0 | AY108: 0
A109: 41750 | B109: Ing. por vta. de bienes y prestación de servicios de entidades paraestatales empresariales financieras monetarias con participación estatal mayoritaria | AX109: 0 | AY109: 0
A110: 41760 | B110: Ing. por vta. de bienes y prestación de servicios de entidades paraestatales empresariales financ. no monetarias con participación estatal mayoritaria | AX110: 0 | AY110: 0
A111: 41770 | B111: Ingresos por venta de bienes y prestación de servicios de fideicomisos financieros públicos con participación estatal mayoritaria | AX111: =SUM(AX112) -> 0 | AY111: =SUM(AY112) -> 0
A112: 41770-1 | B112: Ingresos por venta de bienes y prestación de servicios de fideicomisos financieros públicos con participación estatal mayoritaria | AX112: =Balanza!H302 -> 0 | AY112: =Balanza!D302 -> 0
A113: 41780 | B113: Ingresos por venta de bienes y prestación de servicios de los poderes legislativo y judicial, y de los órganos autónomos | AX113: 0 | AY113: 0
A114: 41900 | B114: ING. NO COM. EN LAS FRAC. DE LA LEY DE ING. CAUSADOS EN EJERc. FISC. ANTERIORES PENDIENTES DE LIQ. O PAGO (DEROGADO) | AX114: =SUM(AX115:AX116) -> 0 | AY114: =SUM(AY115:AY116) -> 0
A115: 41910 | B115: Impuestos no comprendidos en las frac. de la ley de ingresos causados en ejercicios fiscales anteriores pendientes de liquidación o pago (derogada) | AX115: 0 | AY115: 0
A116: 41920 | B116: Contrib. de mejo., derech., produc. y aprovecha. no comprend. en las fracc. de la ley de ing. causad. en ejerc. fisc. ante. pend. de liq. o pago (derogada) | AX116: 0 | AY116: 0
A117: 42000 | B117: PART, APORT, CONV, INCEN. DERIV. DE LA COLAB. FISC, FONDOS DISTINTOS DE APORT, TRANSF, ASIG, SUB Y SUBVE, Y PENS. Y JUB. | AX117: =AX118+AX149 -> 43793278.23 | AY117: =AY118+AY149 -> 39705329.43
A118: 42100 | B118: PARTIC. APORT. CONVENIOS, INCENTIVOS DERIVADOS DE LA COLABORACIÓN FISCAL Y FONDOS DISTINTOS DE APORTACIONES. | AX118: =AX119+AX132+AX135+AX140+AX146 -> 43793278.23 | AY118: =AY119+AY132+AY135+AY140+AY146 -> 39705329.43
A119: 42110 | B119: Participaciones | AX119: =SUM(AX120:AX131) -> 25807457.92 | AY119: =SUM(AY120:AY131) -> 24420587.93
A120: 42110-1 | B120: Fondo general de participaciones (federal) | AX120: =Balanza!H310 -> 18415210.97 | AY120: =Balanza!D310 -> 17152650.69
A121: 42110-2 | B121: Fondo de fomento municipal (federal) | AX121: =Balanza!H311 -> 4372789.27 | AY121: =Balanza!D311 -> 4099611.85
A122: 42110-3 | B122: Fondo de fiscalización y recaudación (federal) | AX122: =Balanza!H312 -> 274905.02 | AY122: =Balanza!D312 -> 232160.82
A123: 42110-4 | B123: Fondo de compensación (federal) | AX123: =Balanza!H313 -> 0 | AY123: =Balanza!D313 -> 0
A124: 42110-5 | B124: Fondo de extracción de hidrocarburos (federal) | AX124: =Balanza!H314 -> 0 | AY124: =Balanza!D314 -> 0
A125: 42110-6 | B125: Impuesto especial sobre producción y servicios (federal) | AX125: =Balanza!H315 -> 477499.18 | AY125: =Balanza!D315 -> 446914.35
A126: 42110-7 | B126: 0.136% de la recaudación federal participable (federal) | AX126: =Balanza!H316 -> 0 | AY126: =Balanza!D316 -> 0
A127: 42110-8 | B127: 3.17% sobre extracción de petróleo (federal) | AX127: =Balanza!H317 -> 0 | AY127: =Balanza!D317 -> 0
A128: 42110-9 | B128: Gasolinas y diésel (federal) | AX128: =Balanza!H318 -> 831753.05 | AY128: =Balanza!D318 -> 770457.35
A129: 42110-10 | B129: Fondo del impuesto sobre la renta (federal) | AX129: =Balanza!H319 -> 1173481.5 | AY129: =Balanza!D319 -> 1555537.17
A130: 42110-11 | B130: Fondo de estabilización de los ingresos de las entidades federativas (federal) | AX130: =Balanza!H320 -> 17828.88 | AY130: =Balanza!D320 -> 156538.9
A131: 42110-12 | B131: Participaciones del estado | AX131: =Balanza!H321 -> 243990.05 | AY131: =Balanza!D321 -> 6716.8
A132: 42120 | B132: Aportaciones | AX132: =SUM(AX133:AX134) -> 14395594.01 | AY132: =SUM(AY133:AY134) -> 12954133.24
A133: 42120-1 | B133: Fondo de aportaciones para la infraestructura social municipal | AX133: =Balanza!H323 -> 8606222.38 | AY133: =Balanza!D323 -> 7786787.16
A134: 42120-2 | B134: Fondo de aportaciones para el fortalecimiento municipal | AX134: =Balanza!H324 -> 5789371.63 | AY134: =Balanza!D324 -> 5167346.08
A135: 42130 | B135: Convenios | AX135: =SUM(AX136:AX139) -> 3000000 | AY135: =SUM(AY136:AY139) -> 1865390
A136: 42130-1 | B136: Convenios de protección social en salud | AX136: =Balanza!H326 -> 0 | AY136: =Balanza!D326 -> 0
A137: 42130-2 | B137: Convenios de descentralizados | AX137: =Balanza!H327 -> 0 | AY137: =Balanza!D327 -> 0
A138: 42130-3 | B138: Convenio de reasignación | AX138: =Balanza!H328 -> 0 | AY138: =Balanza!D328 -> 0
A139: 42130-456 | B139: Otros convenios y subsidios | AX139: =Balanza!H329+Balanza!H330+Balanza!H331 -> 3000000 | AY139: =Balanza!D329+Balanza!D330+Balanza!D331 -> 1865390
A140: 42140 | B140: Incentivos derivados de la colaboración fiscal | AX140: =SUM(AX141:AX145) -> 590226.3 | AY140: =SUM(AY141:AY145) -> 465218.26
A141: 42140-1 | B141: Tenencia o uso de vehículos | AX141: =Balanza!H333 -> 6.39 | AY141: =Balanza!D333 -> 301.58
A142: 42140-2 | B142: Fondo de compensación ISAN | AX142: =Balanza!H334 -> 80598.25 | AY142: =Balanza!D334 -> 74455.32
A143: 42140-3 | B143: Impuesto sobre automóviles nuevos | AX143: =Balanza!H335 -> 509621.66 | AY143: =Balanza!D335 -> 390461.36
A144: 42140-4 | B144: Fondo de compensación de repecos-intermedios | AX144: =Balanza!H336 -> 0 | AY144: =Balanza!D336 -> 0
A145: 42140-5 | B145: Otros incentivos económicos | AX145: =Balanza!H337 -> 0 | AY145: =Balanza!D337 -> 0
A146: 42150 | B146: Fondos distintos de aportaciones | AX146: =SUM(AX147:AX148) -> 0 | AY146: =SUM(AY147:AY148) -> 0
A147: 42150-1 | B147: Fondo para entidades federativas y municipios productores de hidrocarburos | AX147: =Balanza!H339 -> 0 | AY147: =Balanza!D339 -> 0
A148: 42150-2 | B148: Fondo minero | AX148: =Balanza!H340 -> 0 | AY148: =Balanza!D340 -> 0
A149: 42200 | B149: TRANSFERENCIAS, ASIGNACIONES, SUBSIDIOS Y SUBVENCIONES, PENSIONES Y JUBILACIONES | AX149: =AX150+AX152+AX153+AX155+AX156+AX158+AX159 -> 0 | AY149: =AY150+AY152+AY153+AY155+AY156+AY158+AY159 -> 0
A150: 42210 | B150: Transferencias y asignaciones | AX150: =SUM(AX151) -> 0 | AY150: =SUM(AY151) -> 0
A151: 42210-12 | B151: Transferencias y asignaciones | AX151: =Balanza!H343+Balanza!H344 -> 0 | AY151: =Balanza!D343+Balanza!D344 -> 0
A152: 42220 | B152: Transferencias del sector público (derogada) | AX152: 0 | AY152: 0
A153: 42230 | B153: Subsidios y subvenciones | AX153: =SUM(AX154) -> 0 | AY153: =SUM(AY154) -> 0
A154: 42230-12 | B154: Subsidios y subvenciones | AX154: =Balanza!H347+Balanza!H348 -> 0 | AY154: =Balanza!D347+Balanza!D348 -> 0
A155: 42240 | B155: Ayudas sociales (derogada) | AX155: 0 | AY155: 0
A156: 42250 | B156: Pensiones y jubilaciones | AX156: =SUM(AX157) -> 0 | AY156: =SUM(AY157) -> 0
A157: 42250-1 | B157: Pensiones y jubilaciones | AX157: =Balanza!H351 -> 0 | AY157: =Balanza!D351 -> 0
A158: 42260 | B158: Transferencias del exterior (derogada) | AX158: 0 | AY158: 0
A159: 42270 | B159: Transferencias del fondo mexicano del petróleo para la estabilización y el desarrollo | AX159: =SUM(AX160) -> 0 | AY159: =SUM(AY160) -> 0
A160: 42270-1 | B160: Transferencias del fondo mexicano del petróleo para la estabilización y el desarrollo | AX160: =Balanza!H354 -> 0 | AY160: =Balanza!D354 -> 0
A161: 43000 | B161: OTROS INGRESOS Y BENEFICIOS | AX161: =AX162+AX165+AX171+AX173+AX175 -> 0 | AY161: =AY162+AY165+AY171+AY173+AY175 -> 0
A162: 43100 | B162: INGRESOS FINANCIEROS | AX162: =SUM(AX163:AX164) -> 0 | AY162: =SUM(AY163:AY164) -> 0
A163: 43110 | B163: Intereses ganados de títulos, valores y demás instrumentos financieros | AX163: =Balanza!H358 -> 0 | AY163: =Balanza!D358 -> 0
A164: 43190 | B164: Otros ingresos financieros | AX164: =Balanza!H360 -> 0 | AY164: =Balanza!D360 -> 0
A165: 43200 | B165: INCREMENTO POR VARIACIÓN DE INVENTARIOS | AX165: =SUM(AX166:AX170) -> 0 | AY165: =SUM(AY166:AY170) -> 0
A166: 43210 | B166: Incremento por varación de inventarios de mercancías para venta | AX166: 0 | AY166: 0
A167: 43220 | B167: Incremento por variación de inventarios de mercancías terminadas | AX167: 0 | AY167: 0
A168: 43230 | B168: Incremento por variación de inventarios de mercancías en proceso de elaboración | AX168: 0 | AY168: 0
A169: 43240 | B169: Incremento por variación de inventarios de materias primas, materiales y suministros para producción | AX169: 0 | AY169: 0
A170: 43250 | B170: Incremento por variación de almacén de mercancías primas, materiales y suministros de consumo | AX170: 0 | AY170: 0
A171: 43300 | B171: DISMINUCIÓN DEL EXCESO DE ESTIMACIONES POR PÉRDIDA O DETERIORO U OBSOLESCENCIA | AX171: =SUM(AX172) -> 0 | AY171: =SUM(AY172) -> 0
A172: 43310 | B172: Disminución del Exceso de Estimaciones por Pérdida o Deterioro u Obsolescencia | AX172: =Balanza!H369 -> 0 | AY172: =Balanza!D369 -> 0
A173: 43400 | B173: DISMINUCIÓN DEL EXCESO DE PROVISIONES | AX173: =AX174 -> 0 | AY173: =AY174 -> 0
A174: 43410 | B174: Disminución del exceso de provisiones | AX174: =Balanza!H372 -> 0 | AY174: =Balanza!D372 -> 0
A175: 43900 | B175: OTROS INGRESOS Y BENEFICIOS VARIOS | AX175: =SUM(AX176:AX183) -> 0 | AY175: =SUM(AY176:AY183) -> 0
A176: 43910 | B176: Otros ingresos de ejercicios anteriores (derogada) | AX176: 0 | AY176: 0
A177: 43920 | B177: Bonificaciónes y descuentos obtenidos | AX177: =Balanza!H376 -> 0 | AY177: =Balanza!D376 -> 0
A178: 43930 | B178: Diferencias por tipo de cambio a favor | AX178: =Balanza!H378 -> 0 | AY178: =Balanza!D378 -> 0
A179: 43940 | B179: Diferencias de cotizaciones a favor en valores negociables | AX179: =Balanza!H380 -> 0 | AY179: =Balanza!D380 -> 0
A180: 43950 | B180: Resultado por posición monetaria | AX180: =Balanza!H382 -> 0 | AY180: =Balanza!D382 -> 0
A181: 43960 | B181: Utilidades por participación patrimonial | AX181: =Balanza!H384 -> 0 | AY181: =Balanza!D384 -> 0
A182: 43970 | B182: Diferencias por reestructuración de deuda pública a favor | AX182: =Balanza!H386 -> 0 | AY182: =Balanza!D386 -> 0
A183: 43990 | B183: Otros ingresos y beneficios varios | AX183: =Balanza!H388 -> 0 | AY183: =Balanza!D388 -> 0
B184: TOTAL DE INGRESOS | AX184: =AX7+AX117+AX161 -> 54878799.87 | AY184: =AY7+AY117+AY161 -> 49351198
A185: 50000 | B185: GASTOS Y OTRAS PÉRDIDAS
A186: 51000 | B186: GASTOS DE FUNCIONAMIENTO | AX186: =AX187+AX222+AX287 -> 37849275.53 | AY186: =AY187+AY222+AY287 -> 33734915.46
A187: 51100 | B187: SERVICIOS PERSONALES | AX187: =AX188+AX193+AX198+AX207+AX212+AX219 -> 18163725.76 | AY187: =AY188+AY193+AY198+AY207+AY212+AY219 -> 18118436.47
A188: 51110 | B188: Remuneraciones al personal de carácter permanente | AX188: =SUM(AX189:AX192) -> 9208236.29 | AY188: =SUM(AY189:AY192) -> 10250517.66
A189: 51110-1 | B189: Dietas | AX189: =Balanza!G393 -> 1798381.47 | AY189: =Balanza!C393 -> 1462276.57
A190: 51110-2 | B190: Haberes | AX190: =Balanza!G394 -> 0 | AY190: =Balanza!C394 -> 0
A191: 51110-3 | B191: Sueldos base al personal permanente | AX191: =Balanza!G395 -> 7409854.82 | AY191: =Balanza!C395 -> 8788241.09
A192: 51110-4 | B192: Remuneraciones por adscripción laboral en el extranjero | AX192: =Balanza!G396 -> 0 | AY192: =Balanza!C396 -> 0
A193: 51120 | B193: Remuneraciones al personal de carácter transitorio | AX193: =SUM(AX194:AX197) -> 6681343.22 | AY193: =SUM(AY194:AY197) -> 5809910.19
A194: 51120-1 | B194: Honorarios asimilables a salarios | AX194: =Balanza!G398 -> 0 | AY194: =Balanza!C398 -> 0
A195: 51120-2 | B195: Sueldos base al personal eventual | AX195: =Balanza!G399 -> 6681343.22 | AY195: =Balanza!C399 -> 5809910.19
A196: 51120-3 | B196: Retribuciones por servicios de carácter social | AX196: =Balanza!G400 -> 0 | AY196: =Balanza!C400 -> 0
A197: 51120-4 | B197: Retribución a los representantes de los trabajadores y de los patrones en la Junta de Conciliación y Arbitraje | AX197: =Balanza!G401 -> 0 | AY197: =Balanza!C401 -> 0
A198: 51130 | B198: Remuneraciones adicionales y especiales | AX198: =SUM(AX199:AX206) -> 2217118.1 | AY198: =SUM(AY199:AY206) -> 1992316.62
A199: 51130-1 | B199: Primas por años de servicios efectivos prestados | AX199: =Balanza!G403 -> 0 | AY199: =Balanza!C403 -> 0
A200: 51130-2 | B200: Primas de vacaciones, dominical y gratificación de fin de año | AX200: =Balanza!G404 -> 2029915.37 | AY200: =Balanza!C404 -> 1935992.83
A201: 51130-3 | B201: Horas extraordinarias | AX201: =Balanza!G405 -> 64551 | AY201: =Balanza!C405 -> 56323.79
... 346 more rows

Sheet F2
A1: =Validacion!A2 -> Atemajac de Brizuela
A2: ESTADO DE VARIACIÓN DE LA HACIENDA PÚBLICA
A3: ='F6'!A3 -> Del 1° de Enero al 31 de Diciembre de 2022
B5: CONCEPTO | C5: Hacienda pública/patrimonio contribuido | D5: Hacienda pública/patrimonio generado de ejercicios anteriores | E5: Hacienda pública/patrimonio generado del ejercicio | F5: Exceso o insuficiencia en la actualización de la Hacienda pública/patrimonio | G5: TOTAL
A6: Hacienda pública / patrimonio contribuido neto de 2021 | C6: =SUM(C7:C9) -> 0 | G6: =SUM(C6:F6) -> 0
B7: Aportaciones | C7: =Balanza!D175 -> 0 | G7: =SUM(C7:F7) -> 0
B8: Donaciones de capital | C8: =Balanza!D176 -> 0 | G8: =SUM(C8:F8) -> 0
B9: Actualización de la hacienda pública/patrimonio | C9: =Balanza!D177 -> 0 | G9: 0
A10: Hacienda pública / patrimonio generado neto de 2021 | D10: =SUM(D12:D15) -> 16728672.55 | E10: =SUM(E11) -> 12073953.71 | G10: 28802626.26
B11: Resultados del ejercicio (ahorro/desahorro) | E11: =Balanza!D179 -> 12073953.71 | G11: 12073953.71
B12: Resultados de ejercicios anteriores | D12: =Balanza!D180 -> 16728672.55 | G12: 16728672.55
B13: Revalúos | D13: =Balanza!D181 -> 0 | G13: 0
B14: Reservas | D14: =Balanza!D186 -> 0 | G14: 0
B15: Rectificaciones de resultados de ejercicios anteriores | D15: =Balanza!D190 -> 0 | G15: 0
A16: Exceso o insuficiencia en la actualización de la Hacienda pública/patrimonio neto 2021 | F16: =SUM(F17:F18) -> 0 | G16: 0
B17: Resultado por posición monetaria | F17: =Balanza!D194 -> 0 | G17: 0
B18: Resultado por tenencia de activos no monetarios | F18: =Balanza!D195 -> 0 | G18: 0
A19: Hacienda pública / patrimonio neto final de 2021 | C19: =C6 -> 0 | D19: =D10 -> 16728672.55 | E19: =E10 -> 12073953.71 | F19: =F16 -> 0 | G19: 28802626.26
A20: Cambios en la hacienda pública/patrimonio contribuido neto de 2022 | C20: =SUM(C21:C23) -> 0 | G20: 0
B21: Aportaciones | C21: =Balanza!F175-Balanza!E175 -> 0 | G21: 0
B22: Donaciones de capital | C22: =Balanza!F176-Balanza!E176 -> 0 | G22: 0
B23: Actualización de la hacienda pública/patrimonio | C23: =Balanza!F177-Balanza!E177 -> 0 | G23: 0
A24: Variaciones de la hacienda pública/patrimonio generado neto de 2022 | D24: =SUM(D26) -> 12073953.71 | E24: =SUM(E25:E29) -> 1177021.91 | G24: 13250975.62
B25: Resultados del ejercicio (ahorro/desahorro) | E25: =Balanza!H179 -> 13250975.62 | G25: 13250975.62
B26: Resultados de ejercicios anteriores | D26: =Balanza!H180-Balanza!D180 -> 12073953.71 | E26: =(Balanza!D179)*-1 -> -12073953.71 | G26: 0
B27: Revalúos | E27: =Balanza!F181-Balanza!E181 -> 0 | G27: 0
B28: Reservas | E28: =Balanza!F186-Balanza!E186 -> 0 | G28: 0
B29: Rectificaciones de resultados de ejercicios anteriores | E29: =Balanza!F190-Balanza!E190 -> 0 | G29: 0
A30: Cambios en el exceso o insuficiencia en la actualización de la hacienda pública/patrimonio neto de 2022 | F30: =SUM(F31:F32) -> 0 | G30: 0
B31: Resultados por posición monetaria | F31: =Balanza!F194-Balanza!E194 -> 0 | G31: 0
B32: Resultados por terceros de activos no monetarios | F32: =Balanza!F195-Balanza!E195 -> 0 | G32: 0
A33: Hacienda pública/patrimonio neto final de 2022 | C33: =C19+C20 -> 0 | D33: =D19+D24 -> 28802626.26 | E33: =E19+E24 -> 13250975.62 | F33: =F19+F30 -> 0 | G33: 42053601.88
B35: Bajo protesta de decir verdad declaramos que los estados financieros y sus notas, son razonablemente correctos y son responsabilidad del emisor.
B40: =Validacion!A7 -> C. SANTIAGO LEON CASTRO | D40: =Validacion!A9 -> L.T. JOCELYN SANCHEZ HERRERA
B42: Presidente Municipal o titular del ente público | D42: Encargado de la Hacienda Municipal o Responsable de las finanzas del ente público

Sheet F4A1
A1: =Validacion!A2 -> Atemajac de Brizuela
A2: CONCILIACIÓN ENTRE LOS INGRESO PRESUPUESTARIOS Y CONTABLES
A3: ='F6'!A3 -> Del 1° de Enero al 31 de Diciembre de 2022
A5: CONCEPTO | C5: IMPORTE
A6: 1. Total de ingresos presupuestarios | D6: ='F7'!F70 -> 54878799.87
A7: 2. Ingresos contables no presupuestarios | D7: =SUM(C8:C13) -> 0
B8: 2.1 Ingresos financieros | C8: ='F6'!AX162 -> 0
B9: 2.2 Incremento por variaciones de inventarios | C9: ='F6'!AX165 -> 0
B10: 2.3 Disminución del exceso de estimación por pérdida o deterioro u obsolescencia | C10: ='F6'!AX171 -> 0
B11: 2.4 Disminución del exceso de provisiones | C11: ='F6'!AX173 -> 0
B12: 2.5 Otros ingresos y beneficios varios | C12: ='F6'!AX175 -> 0
B13: 2.6 Otros ingresos contables no presupuestarios | C13: 0
A14: 3. Ingresos presupuestarios no contables | D14: =SUM(C15:C17) -> 0
B15: 3.1 Aprovechamientos patrimoniales | C15: ='F7'!F39 -> 0
B16: 3.2 Ingresos derivados de financiamientos | C16: ='F7'!F66 -> 0
B17: 3.3 Otros ingresos presupuestarios no contables | C17: 0
A18: 4. Total de ingresos contables | D18: =D6+D7-D14 -> 54878799.87
A20: Bajo protesta de decir verdad declaramos que los estados financieros y sus notas, son razonablemente correctos y son responsabilidad del emisor.
B24: =Validacion!A7 -> C. SANTIAGO LEON CASTRO
B26: Presidente Municipal o titular del ente público
B30: =Validacion!A9 -> L.T. JOCELYN SANCHEZ HERRERA
B32: Encargado de la Hacienda Municipal o Responsable de las finanzas del ente público

Sheet F4A2
A1: =Validacion!A2 -> Atemajac de Brizuela
A2: CONCILIACIÓN ENTRE LOS EGRESOS PRESUPUESTARIOS Y LOS GASTOS CONTABLES
A3: ='F6'!A3 -> Del 1° de Enero al 31 de Diciembre de 2022
A5: CONCEPTO | C5: IMPORTE
A6: 1. Total de egresos presupuestarios | D6: ='F8'!F80 -> 60285535.71
A7: 2. Egresos presupuestarios no contables | D7: =SUM(C8:C28) -> 18657711.46
B8: 2.1 Materias primas y materiales de producción y comercialización | C8: 0
B9: 2.2 Materiales y suministros | C9: 0
B10: 2.3 Mobiliario y equipo de administración | C10: ='F8'!F47 -> 13880.92
B11: 2.4 Mobiliario y equipo educacional y recreativo | C11: ='F8'!F48 -> 16436.27
B12: 2.5 Equipo e instrumental médico y de laboratorio | C12: ='F8'!F49 -> 0
B13: 2.6 Vehículos y equipo de transporte | C13: ='F8'!F50 -> 905789.99
B14: 2.7 Equipo de defensa y seguridad | C14: ='F8'!F51 -> 0
B15: 2.8 Maquinaria, otros equipos y herramientas | C15: ='F8'!F52 -> 0
B16: 2.9 Activos biológicos | C16: ='F8'!F53 -> 0
B17: 2.10 Bienes inmuebles | C17: ='F8'!F54 -> 0
B18: 2.11 Activos intangibles | C18: ='F8'!F55 -> 0
B19: 2.12 Obras públicas en bienes de dominio público | C19: ='F8'!F57 -> 17721604.28
B20: 2.13 Obras públicas en bienes propios | C20: ='F8'!F58 -> 0
B21: 2.14 Acciones y participaciones de capital | C21: ='F8'!F62 -> 0
B22: 2.15 Compra de títulos y valores | C22: ='F8'!F63 -> 0
B23: 2.16 Concesión de préstamos | C23: ='F8'!F64 -> 0
B24: 2.17 Inversiones en fideicomisos, mandatos y otros análogos | C24: ='F8'!F65 -> 0
B25: 2.18 Provisiones para contingencias y otras erogaciones especiales | C25: ='F8'!F67 -> 0
B26: 2.19 Amortización de la deuda pública | C26: ='F8'!F73 -> 0
B27: 2.20 Adeudos de ejercicios fiscales anteriores (ADEFAS) | C27: ='F8'!F79 -> 0
B28: 2.21 Otros egresos presupuestales no contables | C28: 0
A29: 3. Gastos contables no presupuestales | D29: =SUM(C30:C36) -> 0
B30: 3.1 Estimaciones, depreciaciones, deterioros, obsolescencias y amortizaciones | C30: ='F6'!AX508 -> 0
B31: 3.2 Previsiones | C31: ='F6'!AX517 -> 0
B32: 3.3 Disminución de inventarios | C32: ='F6'!AX520 -> 0
B33: 3.4 Aumento por insuficiencia de estimaciones por pérdida o deterioro u obsolescencias | C33: ='F6'!AX526 -> 0
B34: 3.5 Aumento por insuficiencia de provisiones | C34: ='F6'!AX528 -> 0
B35: 3.6 Otros gastos | C35: ='F6'!AX530 -> 0
B36: 3.7 Otros gastos contables no presupuestales | C36: 0
A37: 4. Total de gastos contables | D37: =D6-D7+D29 -> 41627824.25
A39: Bajo protesta de decir verdad declaramos que los estados financieros y sus notas, son razonablemente correctos y son responsabilidad del emisor.
B43: =Validacion!A7 -> C. SANTIAGO LEON CASTRO
B45: Presidente Municipal o titular del ente público
B49: =Validacion!A9 -> L.T. JOCELYN SANCHEZ HERRERA
B51: Encargado de la Hacienda Municipal o Responsable de las finanzas del ente público

Sheet F5
A1: =Validacion!A2 -> Atemajac de Brizuela
A2: ESTADO ANALÍTICO DEL ACTIVO
A3: ='F6'!A3 -> Del 1° de Enero al 31 de Diciembre de 2022
A5: CONCEPTO | E5: SALDO INICIAL | F5: CARGO DEL PERIODO | G5: ABONO DEL PERIODO | H5: SALDO FINAL | I5: VARIACIÓN DEL PERIODO
A6: Activo | E6: =E7+E15 -> 29129868.99 | F6: =F7+F15 -> 107541067.6 | G6: 89533287.87 | H6: =E6+F6-G6 -> 47137648.68 | I6: =ROUND(H6-E6,2) -> 18007779.69
B7: Activo circulante | E7: =SUM(E8:E14) -> 769144.48 | F7: =SUM(F8:F14) -> 88883359.1 | G7: 89533287.87 | H7: =E7+F7-G7 -> 119215.71 | I7: =H7-E7 -> -649928.77
C8: Efectivo y equivalentes | E8: =Balanza!C5 -> 765144.48 | F8: =Balanza!E5 -> 86981830.77 | G8: =Balanza!F5 -> 87659759.54 | H8: 87215.71 | I8: -677928.77
C9: Derechos a recibir efectivo o equivalentes | E9: =Balanza!C13 -> 4000 | F9: =Balanza!E13 -> 1901528.33 | G9: =Balanza!F13 -> 1873528.33 | H9: 32000 | I9: 28000
C10: Derechos a recibir bienes o servicios | E10: =Balanza!C21 -> 0 | F10: =Balanza!E21 -> 0 | G10: =Balanza!F21 -> 0 | H10: 0 | I10: 0
C11: Inventarios | E11: =Balanza!C27 -> 0 | F11: =Balanza!E27 -> 0 | G11: =Balanza!F27 -> 0 | H11: 0 | I11: 0
C12: Almacenes | E12: =Balanza!C33 -> 0 | F12: =Balanza!E33 -> 0 | G12: =Balanza!F33 -> 0 | H12: 0 | I12: 0
C13: Estimación por pérdida o deterioro de activos circulantes | E13: =Balanza!C35 -> 0 | F13: =Balanza!E35 -> 0 | G13: =Balanza!F35 -> 0 | H13: 0 | I13: 0
C14: Otros activos circulantes | E14: =Balanza!C38 -> 0 | F14: =Balanza!E38 -> 0 | G14: =Balanza!F38 -> 0 | H14: 0 | I14: 0
B15: Activo no circulante | E15: =SUM(E16:E24) -> 28360724.51 | F15: =SUM(F16:F24) -> 18657708.46 | G15: 0 | H15: 47018432.97 | I15: 18657708.46
C16: Inversiones financieras a largo plazo | E16: =Balanza!C44 -> 0 | F16: =Balanza!E44 -> 0 | G16: =Balanza!F44 -> 0 | H16: 0 | I16: 0
C17: Derechos a recibir efectivo o equivalentes a largo plazo | E17: =Balanza!C49 -> 0 | F17: =Balanza!E49 -> 0 | G17: =Balanza!F49 -> 0 | H17: 0 | I17: 0
C18: Bienes inmuebles, infraestructura y construcciones en proceso | E18: =Balanza!C55 -> 25830417.29 | F18: =Balanza!E55 -> 17721601.28 | G18: =Balanza!F55 -> 0 | H18: 43552018.57 | I18: 17721601.28
C19: Bienes muebles | E19: =Balanza!C63 -> 2530307.22 | F19: =Balanza!E63 -> 936107.18 | G19: =Balanza!F63 -> 0 | H19: 3466414.4 | I19: 936107.18
C20: Activos intangibles | E20: =Balanza!C72 -> 0 | F20: =Balanza!E72 -> 0 | G20: =Balanza!F72 -> 0 | H20: =E20+F20-G20 -> 0 | I20: =H20-E20 -> 0
C21: Depreciación, deterioro y amortización acumulada de bienes | E21: =(Balanza!D78)*-1 -> 0 | F21: =Balanza!E78 -> 0 | G21: =Balanza!F78 -> 0 | H21: 0 | I21: 0
C22: Activos diferidos | E22: =Balanza!C84 -> 0 | F22: =Balanza!E84 -> 0 | G22: =Balanza!F84 -> 0 | H22: 0 | I22: 0
C23: Estimación por pérdida o deterioro de activos no circulantes | E23: =Balanza!C91 -> 0 | F23: =Balanza!E91 -> 0 | G23: =Balanza!F91 -> 0 | H23: 0 | I23: 0
C24: Otros activos no circulantes | E24: =Balanza!C97 -> 0 | F24: =Balanza!E97 -> 0 | G24: =Balanza!F97 -> 0 | H24: 0 | I24: 0
D26: Bajo protesta de decir verdad declaramos que los estados financieros y sus notas, son razonablemente correctos y son resposabilidad del emisor.
D32: =Validacion!A7 -> C. SANTIAGO LEON CASTRO | F32: =Validacion!A9 -> L.T. JOCELYN SANCHEZ HERRERA
D34: Presidente Municipal o titular del ente público | F34: Encargado de la Hacienda Municipal o Responsable de las finanzas del ente público

Sheet F7
A1: =Validacion!A2 -> Atemajac de Brizuela
A2: ESTADO ANALÍTICO DE INGRESOS
A3: ='F6'!A3 -> Del 1° de Enero al 31 de Diciembre de 2022
A5: RUBRO DE INGRESOS | C5: INGRESO | H5: DIFERENCIA
C6: ESTIMADO | D6: AMPLIACIÓN Y REDUCCIÓN | E6: MODIFICADO | F6: DEVENGADO | G6: RECAUDADO
A7: Impuestos | C7: =SUM(C8:C16) -> 3107511 | D7: =SUM(D8:D16) -> 0 | E7: =C7+D7 -> 3107511 | F7: =SUM(F8:F16) -> 4329071.44 | G7: =SUM(G8:G16) -> 4329071.44 | H7: =G7-C7 -> 1221560.44
B8: Impuestos sobre los ingresos | C8: =Balanza!G797 -> 18000 | D8: =Balanza!G985 -> 0 | E8: =C8+D8 -> 18000 | F8: =Balanza!F1079 -> 0 | G8: =Balanza!H1173 -> 0 | H8: =G8-C8 -> -18000
B9: Impuestos sobre patrimonio | C9: =Balanza!G798 -> 3040622 | D9: =Balanza!G986 -> 0 | E9: 3040622 | F9: =Balanza!F1080 -> 4203225.49 | G9: =Balanza!H1174 -> 4203225.49 | H9: 1162603.49
B10: Impuestos sobre la producción, el consumo y las transacciones | C10: =Balanza!G799 -> 0 | D10: =Balanza!G987 -> 0 | E10: 0 | F10: =Balanza!F1081 -> 0 | G10: =Balanza!H1175 -> 0 | H10: 0
B11: Impuestos al comercio exterior | C11: =Balanza!G800 -> 0 | D11: =Balanza!G988 -> 0 | E11: 0 | F11: =Balanza!F1082 -> 0 | G11: =Balanza!H1176 -> 0 | H11: 0
B12: Impuestos sobre nóminas y asimilables | C12: =Balanza!G801 -> 0 | D12: =Balanza!G989 -> 0 | E12: 0 | F12: =Balanza!F1083 -> 0 | G12: =Balanza!H1177 -> 0 | H12: 0
B13: Impuestos ecológicos | C13: =Balanza!G802 -> 0 | D13: =Balanza!G990 -> 0 | E13: 0 | F13: =Balanza!F1084 -> 0 | G13: =Balanza!H1178 -> 0 | H13: 0
B14: Accesorios | C14: =Balanza!G803 -> 48889 | D14: =Balanza!G991 -> 0 | E14: 48889 | F14: =Balanza!F1085 -> 125845.95 | G14: =Balanza!H1179 -> 125845.95 | H14: 76956.95
B15: Otros impuestos | C15: =Balanza!G804 -> 0 | D15: =Balanza!G992 -> 0 | E15: 0 | F15: =Balanza!F1086 -> 0 | G15: =Balanza!H1180 -> 0 | H15: 0
B16: Impuestos no comprendidos en la ley de ingresos vigente, causados en ejercicios fiscales anteriores pendientes de liquidar o pago | C16: =Balanza!G805 -> 0 | D16: =Balanza!G993 -> 0 | E16: 0 | F16: =Balanza!F1087 -> 0 | G16: =Balanza!H1181 -> 0 | H16: 0
A17: Cuotas y aportaciones de seguridad social | C17: =SUM(C18:C22) -> 0 | D17: =SUM(D18:D22) -> 0 | E17: 0 | F17: =SUM(F18:F22) -> 0 | G17: 0 | H17: 0
B18: Aportaciones para fondos de vivienda | C18: =Balanza!G807 -> 0 | D18: =Balanza!G995 -> 0 | E18: 0 | F18: =Balanza!F1089 -> 0 | G18: =Balanza!H1183 -> 0 | H18: 0
B19: Cuotas para la seguridad social | C19: =Balanza!G808 -> 0 | D19: =Balanza!G996 -> 0 | E19: 0 | F19: =Balanza!F1090 -> 0 | G19: =Balanza!H1184 -> 0 | H19: 0
B20: Cuotas de ahorro para el retiro | C20: =Balanza!G809 -> 0 | D20: =Balanza!G997 -> 0 | E20: 0 | F20: =Balanza!F1091 -> 0 | G20: =Balanza!H1185 -> 0 | H20: 0
B21: Otras cuotas y aportaciones para la seguridad social | C21: =Balanza!G810 -> 0 | D21: =Balanza!G998 -> 0 | E21: 0 | F21: =Balanza!F1092 -> 0 | G21: =Balanza!H1186 -> 0 | H21: 0
B22: Accesorios de cuotas y aportaciones de seguridad social | C22: =Balanza!G811 -> 0 | D22: =Balanza!G999 -> 0 | E22: 0 | F22: =Balanza!F1093 -> 0 | G22: =Balanza!H1187 -> 0 | H22: 0
A23: Contribuciones de mejora | C23: =SUM(C24:C25) -> 0 | D23: =SUM(D24:D25) -> 0 | E23: 0 | F23: =SUM(F24:F25) -> 0 | G23: 0 | H23: 0
B24: Contribuciones de mejoras por obras públicas | C24: =Balanza!G813 -> 0 | D24: =Balanza!G1001 -> 0 | E24: 0 | F24: =Balanza!F1095 -> 0 | G24: =Balanza!H1189 -> 0 | H24: 0
B25: Contribuciones de mejoras no comprendidas en la ley de ingresos vigente, causadas en ejercicios fiscales anteriores pendientes de liquidación o pago | C25: =Balanza!G814 -> 0 | D25: =Balanza!G1002 -> 0 | E25: 0 | F25: =Balanza!F1096 -> 0 | G25: =Balanza!H1190 -> 0 | H25: 0
A26: Derechos | C26: =SUM(C27:C32) -> 2516755 | D26: =SUM(D27:D32) -> 0 | E26: 2516755 | F26: =SUM(F27:F32) -> 5890489.07 | G26: 5890489.07 | H26: 3373734.07
B27: Derechos por el uso, goce, aprovechamiento o explotación de bienes de dominio público | C27: =Balanza!G816 -> 29892 | D27: =Balanza!G1004 -> 0 | E27: 29892 | F27: =Balanza!F1098 -> 19453.48 | G27: =Balanza!H1192 -> 19453.48 | H27: -10438.52
B28: Derecho a los hidrocarburos (derogado) | C28: =Balanza!G817 -> 0 | D28: =Balanza!G1005 -> 0 | E28: 0 | F28: =Balanza!F1099 -> 0 | G28: =Balanza!H1193 -> 0 | H28: 0
B29: Derechos por prestación de servicios | C29: =Balanza!G818 -> 2473819 | D29: =Balanza!G1006 -> 0 | E29: 2473819 | F29: =Balanza!F1100 -> 5198486.58 | G29: =Balanza!H1194 -> 5198486.58 | H29: 2724667.58
B30: Otros derechos | C30: =Balanza!G819 -> 0 | D30: =Balanza!G1007 -> 0 | E30: 0 | F30: =Balanza!F1101 -> 0 | G30: =Balanza!H1195 -> 0 | H30: 0
B31: Accesorios | C31: =Balanza!G820 -> 13044 | D31: =Balanza!G1008 -> 0 | E31: 13044 | F31: =Balanza!F1102 -> 672549.01 | G31: =Balanza!H1196 -> 672549.01 | H31: 659505.01
B32: Derechos no comprendidos en la ley de ingresos vigente, causados en ejercicios fiscales anteriores pendientes de liquidación o pago | C32: =Balanza!G821 -> 0 | D32: =Balanza!G1009 -> 0 | E32: 0 | F32: =Balanza!F1103 -> 0 | G32: =Balanza!H1197 -> 0 | H32: 0
A33: Productos | C33: =SUM(C34:C36) -> 140039 | D33: =SUM(D34:D36) -> 0 | E33: 140039 | F33: =SUM(F34:F36) -> 655224.46 | G33: 655224.46 | H33: 515185.46
B34: Productos | C34: =Balanza!G823 -> 140039 | D34: =Balanza!G1011 -> 0 | E34: 140039 | F34: =Balanza!F1105 -> 655224.46 | G34: =Balanza!H1199 -> 655224.46 | H34: 515185.46
B35: Productos de capital (derogado) | C35: =Balanza!G824 -> 0 | D35: =Balanza!G1012 -> 0 | E35: 0 | F35: =Balanza!F1106 -> 0 | G35: =Balanza!H1200 -> 0 | H35: 0
B36: Productos no comprendidos en la ley de ingresos vigente, causados en ejercicios fiscales anteriores pendientes de liquidación o pago | C36: =Balanza!G825 -> 0 | D36: =Balanza!G1013 -> 0 | E36: 0 | F36: =Balanza!F1107 -> 0 | G36: =Balanza!H1201 -> 0 | H36: 0
A37: Aprovechamientos | C37: =SUM(C38:C41) -> 450920 | D37: =SUM(D38:D41) -> 0 | E37: 450920 | F37: =SUM(F38:F41) -> 210736.67 | G37: 210736.67 | H37: -240183.33
B38: Aprovechamientos | C38: =Balanza!G827 -> 450920 | D38: =Balanza!G1015 -> 0 | E38: 450920 | F38: =Balanza!F1109 -> 210736.67 | G38: =Balanza!H1203 -> 210736.67 | H38: -240183.33
B39: Aprovechamientos patrimoniales | C39: =Balanza!G828 -> 0 | D39: =Balanza!G1016 -> 0 | E39: 0 | F39: =Balanza!F1110 -> 0 | G39: =Balanza!H1204 -> 0 | H39: 0
B40: Accesorios de aprovechamientos | C40: =Balanza!G829 -> 0 | D40: =Balanza!G1017 -> 0 | E40: 0 | F40: =Balanza!F1111 -> 0 | G40: =Balanza!H1205 -> 0 | H40: 0
B41: Aprovechamientos no comprendidos en la ley de ingresos vigente, causados en ejercicios fiscales anteriores pendientes de liquidación o pago | C41: =Balanza!G830 -> 0 | D41: =Balanza!G1018 -> 0 | E41: 0 | F41: =Balanza!F1112 -> 0 | G41: =Balanza!H1206 -> 0 | H41: 0
A42: Ingresos por venta de bienes, prestación de servicios y otros ingresos | C42: =SUM(C43:C51) -> 0 | D42: =SUM(D43:D51) -> 0 | E42: 0 | F42: =SUM(F43:F51) -> 0 | G42: 0 | H42: 0
B43: Ingresos por venta de bienes y prestación de servicios de instituciones públicas de seguridad social | C43: =Balanza!G832 -> 0 | D43: =Balanza!G1020 -> 0 | E43: 0 | F43: =Balanza!F1114 -> 0 | G43: =Balanza!H1208 -> 0 | H43: 0
B44: Ingresos por venta de bienes y prestación de servicios de empresas productivas del estado | C44: =Balanza!G833 -> 0 | D44: =Balanza!G1021 -> 0 | E44: 0 | F44: =Balanza!F1115 -> 0 | G44: =Balanza!H1209 -> 0 | H44: 0
B45: Ingresos por venta de bienes y prestación de servicios de entidades paraestatales y fideicomisos no empresariales y no financieros | C45: =Balanza!G834 -> 0 | D45: =Balanza!G1022 -> 0 | E45: 0 | F45: =Balanza!F1116 -> 0 | G45: =Balanza!H1210 -> 0 | H45: 0
B46: Ingresos por venta de bienes y prestación de servicios de entidades paraestatales empresariales y no financieros con participación estatal mayoritaria | C46: =Balanza!G835 -> 0 | D46: =Balanza!G1023 -> 0 | E46: 0 | F46: =Balanza!F1117 -> 0 | G46: =Balanza!H1211 -> 0 | H46: 0
B47: Ingresos por venta de bienes y prestación de servicios de entidades paraestatales empresariales financieras monetarias con participación estatal mayoritaria | C47: =Balanza!G836 -> 0 | D47: =Balanza!G1024 -> 0 | E47: 0 | F47: =Balanza!F1118 -> 0 | G47: =Balanza!H1212 -> 0 | H47: 0
B48: Ingresos por venta de bienes y prestación de servicios de entidades paraestatales empresariales financieras no monetarias con participación estatal mayoritaria | C48: =Balanza!G837 -> 0 | D48: =Balanza!G1025 -> 0 | E48: 0 | F48: =Balanza!F1119 -> 0 | G48: =Balanza!H1213 -> 0 | H48: 0
B49: Ingresos por venta de bienes y prestación de servicios de fideicomisos financieros públicos con participación estatal mayoritaria | C49: =Balanza!G838 -> 0 | D49: =Balanza!G1026 -> 0 | E49: 0 | F49: =Balanza!F1120 -> 0 | G49: =Balanza!H1214 -> 0 | H49: 0
B50: Ingresos por venta de bienes y prestación de servicios de los poderes legislativo y judicial, y de los órganos autónomos | C50: =Balanza!G839 -> 0 | D50: =Balanza!G1027 -> 0 | E50: 0 | F50: =Balanza!F1121 -> 0 | G50: =Balanza!H1215 -> 0 | H50: 0
B51: Otros ingresos | C51: =Balanza!G840 -> 0 | D51: =Balanza!G1028 -> 0 | E51: 0 | F51: =Balanza!F1122 -> 0 | G51: =Balanza!H1216 -> 0 | H51: 0
A52: Participaciones, aportaciones, convenios, incentivos derivados de la colaboración fiscal y fondos distintos de aportaciones | C52: =SUM(C53:C57) -> 38797785 | D52: =SUM(D53:D57) -> 0 | E52: 38797785 | F52: =SUM(F53:F57) -> 43793278.23 | G52: 43793278.23 | H52: 4995493.23
B53: Participaciones | C53: =Balanza!G842 -> 23695605 | D53: =Balanza!G1030 -> 0 | E53: 23695605 | F53: =Balanza!F1124 -> 25807457.92 | G53: =Balanza!H1218 -> 25807457.92 | H53: 2111852.92
B54: Aportaciones | C54: =Balanza!G855 -> 13602180 | D54: =Balanza!G1043 -> 0 | E54: 13602180 | F54: =Balanza!F1137 -> 14395594.01 | G54: =Balanza!H1231 -> 14395594.01 | H54: 793414.01
B55: Convenios | C55: =SUM(Balanza!G858:G859) -> 1500000 | D55: =SUM(Balanza!G1046:G1047) -> 0 | E55: 1500000 | F55: =SUM(Balanza!F1140:F1141) -> 3000000 | G55: =SUM(Balanza!H1234:H1235) -> 3000000 | H55: 1500000
B56: Incentivos derivados de la colaboración fiscal | C56: =Balanza!G864 -> 0 | D56: =Balanza!G1052 -> 0 | E56: 0 | F56: =Balanza!F1146 -> 590226.3 | G56: =Balanza!H1240 -> 590226.3 | H56: 590226.3
B57: Fondos distintos de aportaciones | C57: =Balanza!G870 -> 0 | D57: =Balanza!G1058 -> 0 | E57: 0 | F57: =Balanza!F1152 -> 0 | G57: =Balanza!H1246 -> 0 | H57: 0
A58: Transferencias, asignaciones, subsidios y subvenciones, y pensiones y jubilaciones | C58: =SUM(C59:C65) -> 0 | D58: =SUM(D59:D65) -> 0 | E58: 0 | F58: =SUM(F59:F65) -> 0 | G58: =SUM(G59:G65) -> 0 | H58: 0
B59: Transferencias y asignaciones | C59: =SUM(Balanza!G874:G875) -> 0 | D59: =SUM(Balanza!G1062:G1063) -> 0 | E59: 0 | F59: =SUM(Balanza!F1156:F1157) -> 0 | G59: =SUM(Balanza!H1250:H1251) -> 0 | H59: 0
B60: Transferencias al resto del sector público (derogado) | C60: =Balanza!G876 -> 0 | D60: =Balanza!G1064 -> 0 | E60: 0 | F60: =Balanza!F1158 -> 0 | G60: =Balanza!H1252 -> 0 | H60: 0
B61: Subsidios y subvenciones | C61: =SUM(Balanza!G877:G878) -> 0 | D61: =SUM(Balanza!G1065:G1066) -> 0 | E61: 0 | F61: =SUM(Balanza!F1159:F1160) -> 0 | G61: =SUM(Balanza!H1253:H1254) -> 0 | H61: 0
B62: Ayudas sociales (derogado) | C62: =Balanza!G879 -> 0 | D62: =Balanza!G1067 -> 0 | E62: 0 | F62: =Balanza!F1161 -> 0 | G62: =Balanza!H1255 -> 0 | H62: 0
B63: Pensiones y jubilaciones | C63: =Balanza!G880 -> 0 | D63: =Balanza!G1068 -> 0 | E63: 0 | F63: =Balanza!F1162 -> 0 | G63: =Balanza!H1256 -> 0 | H63: 0
B64: Transferencias a fideicomisos, mandatos y análogos (derogado) | C64: =Balanza!G881 -> 0 | D64: =Balanza!G1069 -> 0 | E64: 0 | F64: =Balanza!F1163 -> 0 | G64: =Balanza!H1257 -> 0 | H64: 0
B65: Transferencias del fondo mexicano del petróleo para la estabilización y el desarrollo | C65: =Balanza!G882 -> 0 | D65: =Balanza!G1070 -> 0 | E65: 0 | F65: =Balanza!F1164 -> 0 | G65: =Balanza!H1258 -> 0 | H65: 0
A66: Ingresos derivados de financiamiento | C66: =SUM(C67:C69) -> 0 | D66: =SUM(D67:D69) -> 0 | E66: 0 | F66: =SUM(F67:F69) -> 0 | G66: 0 | H66: 0
B67: Endeudamiento interno | C67: =Balanza!G884 -> 0 | D67: =Balanza!G1072 -> 0 | E67: 0 | F67: =Balanza!F1166 -> 0 | G67: =Balanza!H1260 -> 0 | H67: =G67-C67 -> 0
B68: Endeudamiento externo | C68: =Balanza!G885 -> 0 | D68: =Balanza!G1073 -> 0 | E68: 0 | F68: =Balanza!F1167 -> 0 | G68: =Balanza!H1261 -> 0 | H68: 0
B69: Financiamiento interno | C69: =Balanza!G886 -> 0 | D69: =Balanza!G1074 -> 0 | E69: 0 | F69: =Balanza!F1168 -> 0 | G69: =Balanza!H1262 -> 0 | H69: 0
B70: TOTAL | C70: =SUM(C7+C17+C23+C26+C33+C37+C52+C58+C66+C42) -> 45013010 | D70: =SUM(D7+D17+D23+D26+D33+D37+D52+D58+D66+D42) -> 0 | E70: 45013010 | F70: =SUM(F7+F17+F23+F26+F33+F37+F52+F58+F66+F42) -> 54878799.87 | G70: 54878799.87 | H70: =IF(C70>G70,0,(G70-C70)) -> 9865789.87
G71: Ingresos Excedentes
A73: Bajo protesta de decir verdad declaramos que los estados financieros y sus notas, son razonablemente correctos y son responsabilidad del emisor.
B76: =Validacion!A7 -> C. SANTIAGO LEON CASTRO | D76: =Validacion!A9 -> L.T. JOCELYN SANCHEZ HERRERA
B78: Presidente Municipal o titular del ente público | D78: Encargado de la Hacienda Municipal o Responsable de las finanzas del ente público

Sheet F7A
A1: =Validacion!A2 -> Atemajac de Brizuela
A2: ESTADO ANALÍTICO DE INGRESOS POR FUENTE DE FINANCIAMIENTO
A3: ='F6'!A3 -> Del 1° de Enero al 31 de Diciembre de 2022
A5: RUBRO DE INGRESOS | D5: INGRESOS | I5: DIFERENCIA
D6: ESTIMADO | E6: AMPLACIONES Y REDUCCIONES | F6: MODIFICADO | G6: DEVENGADO | H6: RECAUDADO
A7: Ingresos del municipio | D7: =SUM(D8:D15) -> 45013010 | E7: =SUM(E8:E15) -> 0 | F7: =D7+E7 -> 45013010 | G7: =SUM(G8:G15) -> 54878799.87 | H7: =SUM(H8:H15) -> 54878799.87 | I7: =H7-D7 -> 9865789.87
B8: Impuestos | D8: =Balanza!G796 -> 3107511 | E8: =Balanza!G984 -> 0 | F8: =D8+E8 -> 3107511 | G8: =Balanza!F1078 -> 4329071.44 | H8: =Balanza!H1172 -> 4329071.44 | I8: =H8-D8 -> 1221560.44
B9: Cuotas y aportaciones de seguridad social | D9: =Balanza!G806 -> 0 | E9: =Balanza!G994 -> 0 | F9: 0 | G9: =Balanza!F1088 -> 0 | H9: =Balanza!H1182 -> 0 | I9: 0
B10: Contribuciones de mejoras | D10: =Balanza!G812 -> 0 | E10: =Balanza!G1000 -> 0 | F10: 0 | G10: =Balanza!F1094 -> 0 | H10: =Balanza!H1188 -> 0 | I10: 0
B11: Derechos | D11: =Balanza!G815 -> 2516755 | E11: =Balanza!G1003 -> 0 | F11: 2516755 | G11: =Balanza!F1097 -> 5890489.07 | H11: =Balanza!H1191 -> 5890489.07 | I11: 3373734.07
B12: Productos | D12: =Balanza!G822 -> 140039 | E12: =Balanza!G1010 -> 0 | F12: 140039 | G12: =Balanza!F1104 -> 655224.46 | H12: =Balanza!H1198 -> 655224.46 | I12: 515185.46
B13: Aprovechamientos | D13: =Balanza!G826 -> 450920 | E13: =Balanza!G1014 -> 0 | F13: 450920 | G13: =Balanza!F1108 -> 210736.67 | H13: =Balanza!H1202 -> 210736.67 | I13: -240183.33
B14: Participaciones, aportaciones, convenios, incentivos derivados de la colaboración fiscal y fondos distintos de aportaciones | D14: =Balanza!G841 -> 38797785 | E14: =Balanza!G1029 -> 0 | F14: 38797785 | G14: =Balanza!F1123 -> 43793278.23 | H14: =Balanza!H1217 -> 43793278.23 | I14: 4995493.23
B15: Transferencias, asignaciones, subsidios y subvenciones, y pensiones y jubilaciones | D15: =Balanza!G873 -> 0 | E15: =Balanza!G1061 -> 0 | F15: 0 | G15: =Balanza!F1155 -> 0 | H15: =Balanza!H1249 -> 0 | I15: 0
A16: Ingresos de los entes públicos del sector paramunicipal, así como de las empresas productivas del municipio | D16: =SUM(D17:D20) -> 0 | E16: =SUM(E17:E20) -> 0 | F16: 0 | G16: =SUM(G17:G20) -> 0 | H16: =SUM(H17:H20) -> 0 | I16: 0
B17: Cuotas y aportaciones de seguridad social | D17: 0 | E17: 0 | F17: 0 | G17: 0 | H17: 0 | I17: 0
B18: Productos | D18: 0 | E18: 0 | F18: 0 | G18: 0 | H18: 0 | I18: 0
B19: Ingresos por ventas de bienes, prestación de servicios y otros ingresos | D19: =Balanza!G831 -> 0 | E19: =Balanza!G1019 -> 0 | F19: 0 | G19: =Balanza!F1113 -> 0 | H19: =Balanza!H1207 -> 0 | I19: 0
B20: Transferencias, asignaciones, subsidios y subvenciones, y pensiones y jubilaciones | D20: 0 | E20: 0 | F20: 0 | G20: 0 | H20: 0 | I20: 0
A21: Ingresos derivados de financiamiento | D21: =D22 -> 0 | E21: =E22 -> 0 | F21: 0 | G21: =G22 -> 0 | H21: =H22 -> 0 | I21: 0
B22: Ingresos derivados de financiamientos | D22: =Balanza!G883 -> 0 | E22: =Balanza!G1071 -> 0 | F22: 0 | G22: =Balanza!F1165 -> 0 | H22: =Balanza!H1259 -> 0 | I22: 0
C23: TOTAL | D23: =D7+D16+D21 -> 45013010 | E23: =E7+E16+E21 -> 0 | F23: 45013010 | G23: =G7+G16+G21 -> 54878799.87 | H23: 54878799.87 | I23: =IF(D23>H23,0,(H23-D23)) -> 9865789.87
G24: Ingresos excedentes
A26: Bajo protesta de decir verdad declaramos que los estados financieros y sus notas, son razonablemente correctos y son responsabilidad del emisor.
C31: =Validacion!A7 -> C. SANTIAGO LEON CASTRO | E31: =Validacion!A9 -> L.T. JOCELYN SANCHEZ HERRERA
C33: Presidente Municipal o titular del ente público | E33: Encargado de la Hacienda Municipal o Responsable de las finanzas del ente público

Sheet F7B
A1: =Validacion!A2 -> Atemajac de Brizuela
A2: ESTADO ANALÍTICO DE INGRESOS DETALLADO - LDF
A3: ='F6'!A3 -> Del 1° de Enero al 31 de Diciembre de 2022
A5: RUBRO DE INGRESOS | C5: INGRESO | H5: DIFERENCIA
C6: ESTIMADO | D6: AMPLIACIÓN Y REDUCCIÓN | E6: MODIFICADO | F6: DEVENGADO | G6: RECAUDADO
A7: INGRESOS DE LIBRE DISPOSICIÓN
A8: Impuestos | C8: =Balanza!G796 -> 3107511 | D8: =Balanza!G984 -> 0 | E8: =C8+D8 -> 3107511 | F8: =Balanza!F1078 -> 4329071.44 | G8: =Balanza!H1172 -> 4329071.44 | H8: =G8-C8 -> 1221560.44
A9: Cuotas y aportaciones de seguridad social | C9: =Balanza!G806 -> 0 | D9: =Balanza!G994 -> 0 | E9: =C9+D9 -> 0 | F9: =Balanza!F1088 -> 0 | G9: =Balanza!H1182 -> 0 | H9: =G9-C9 -> 0
A10: Contribuciones de mejoras | C10: =Balanza!G812 -> 0 | D10: =Balanza!G1000 -> 0 | E10: 0 | F10: =Balanza!F1094 -> 0 | G10: =Balanza!H1188 -> 0 | H10: 0
A11: Derechos | C11: =Balanza!G815 -> 2516755 | D11: =Balanza!G1003 -> 0 | E11: 2516755 | F11: =Balanza!F1097 -> 5890489.07 | G11: =Balanza!H1191 -> 5890489.07 | H11: 3373734.07
A12: Productos | C12: =Balanza!G822 -> 140039 | D12: =Balanza!G1010 -> 0 | E12: 140039 | F12: =Balanza!F1104 -> 655224.46 | G12: =Balanza!H1198 -> 655224.46 | H12: 515185.46
A13: Aprovechamientos | C13: =Balanza!G826 -> 450920 | D13: =Balanza!G1014 -> 0 | E13: 450920 | F13: =Balanza!F1108 -> 210736.67 | G13: =Balanza!H1202 -> 210736.67 | H13: -240183.33
A14: Ingresos por ventas de bienes y servicios | C14: =Balanza!G831 -> 0 | D14: =Balanza!G1019 -> 0 | E14: 0 | F14: =Balanza!F1113 -> 0 | G14: =Balanza!H1207 -> 0 | H14: 0
A15: Participaciones | C15: =SUM(C16:C26) -> 23504937 | D15: 0 | E15: 23504937 | F15: 25563467.87 | G15: 25563467.87 | H15: 2058530.87
B16: Fondo general de participaciones | C16: =Balanza!G843 -> 14628657 | D16: =Balanza!G1031 -> 0 | E16: 14628657 | F16: =Balanza!F1125 -> 18415210.97 | G16: =Balanza!H1219 -> 18415210.97 | H16: =G16-C16 -> 3786553.97
B17: Fondo de fomento municipal | C17: =Balanza!G844 -> 4447752 | D17: =Balanza!G1032 -> 0 | E17: 4447752 | F17: =Balanza!F1126 -> 4372789.27 | G17: =Balanza!H1220 -> 4372789.27 | H17: -74962.73
B18: Fondo de fiscalización y recaudación | C18: =Balanza!G845 -> 275424 | D18: =Balanza!G1033 -> 0 | E18: 275424 | F18: =Balanza!F1127 -> 274905.02 | G18: =Balanza!H1221 -> 274905.02 | H18: -518.98
B19: Fondo de compensación | C19: =Balanza!G846 -> 70644 | D19: =Balanza!G1034 -> 0 | E19: 70644 | F19: =Balanza!F1128 -> 0 | G19: =Balanza!H1222 -> 0 | H19: -70644
B20: Fondo de extracción de hidrocarburos | C20: =Balanza!G847 -> 0 | D20: =Balanza!G1035 -> 0 | E20: 0 | F20: =Balanza!F1129 -> 0 | G20: =Balanza!H1223 -> 0 | H20: 0
B21: Impuesto especial sobre producción y servicios | C21: =Balanza!G848 -> 43308 | D21: =Balanza!G1036 -> 0 | E21: 43308 | F21: =Balanza!F1130 -> 477499.18 | G21: =Balanza!H1224 -> 477499.18 | H21: 434191.18
B22: 0.136% de la recaudación federal participable | C22: =Balanza!G849 -> 0 | D22: =Balanza!G1037 -> 0 | E22: 0 | F22: =Balanza!F1131 -> 0 | G22: =Balanza!H1225 -> 0 | H22: 0
B23: 3.17% sobre extracción del petróleo | C23: =Balanza!G850 -> 0 | D23: =Balanza!G1038 -> 0 | E23: 0 | F23: =Balanza!F1132 -> 0 | G23: =Balanza!H1226 -> 0 | H23: 0
B24: Gasolinas y diésel | C24: =Balanza!G851 -> 919152 | D24: =Balanza!G1039 -> 0 | E24: 919152 | F24: =Balanza!F1133 -> 831753.05 | G24: =Balanza!H1227 -> 831753.05 | H24: -87398.95
B25: Fondo de impuesto sobre la renta | C25: =Balanza!G852 -> 0 | D25: =Balanza!G1040 -> 0 | E25: 0 | F25: =Balanza!F1134 -> 1173481.5 | G25: =Balanza!H1228 -> 1173481.5 | H25: 1173481.5
B26: Fondo de estabilización de los ingresos de las entidades federativas | C26: =Balanza!G853 -> 3120000 | D26: =Balanza!G1041 -> 0 | E26: 3120000 | F26: =Balanza!F1135 -> 17828.88 | G26: =Balanza!H1229 -> 17828.88 | H26: -3102171.12
A27: Incentivos derivados de la colaboración fiscal | C27: =SUM(C28:C32) -> 0 | D27: 0 | E27: 0 | F27: 590226.3 | G27: 590226.3 | H27: 590226.3
B28: Tenencia o uso de vehículos | C28: =Balanza!G865 -> 0 | D28: =Balanza!G1053 -> 0 | E28: 0 | F28: =Balanza!F1147 -> 6.39 | G28: =Balanza!H1241 -> 6.39 | H28: =G28-C28 -> 6.39
B29: Fondo de compensación ISAN | C29: =Balanza!G866 -> 0 | D29: =Balanza!G1054 -> 0 | E29: 0 | F29: =Balanza!F1148 -> 80598.25 | G29: =Balanza!H1242 -> 80598.25 | H29: 80598.25
B30: Impuesto sobre automóviles nuevos | C30: =Balanza!G867 -> 0 | D30: =Balanza!G1055 -> 0 | E30: 0 | F30: =Balanza!F1149 -> 509621.66 | G30: =Balanza!H1243 -> 509621.66 | H30: 509621.66
B31: Fondo de compensación de repecos-intermedios | C31: =Balanza!G868 -> 0 | D31: =Balanza!G1056 -> 0 | E31: 0 | F31: =Balanza!F1150 -> 0 | G31: =Balanza!H1244 -> 0 | H31: 0
B32: Otros incentivos económicos | C32: =Balanza!G869 -> 0 | D32: =Balanza!G1057 -> 0 | E32: 0 | F32: =Balanza!F1151 -> 0 | G32: =Balanza!H1245 -> 0 | H32: 0
A33: Transferencias | C33: =Balanza!G874+Balanza!G882 -> 0 | D33: =Balanza!G1062+Balanza!G1070 -> 0 | E33: 0 | F33: =Balanza!F1156+Balanza!F1164 -> 0 | G33: =Balanza!H1250+Balanza!H1258 -> 0 | H33: =C33-G33 -> 0
A34: Convenios | C34: =C35 -> 0 | D34: =D35 -> 0 | E34: =E35 -> 0 | F34: =F35 -> 0 | G34: =G35 -> 0 | H34: =G34-C34 -> 0
B35: Otros convenios y subsidios | C35: =Balanza!G858+Balanza!G877 -> 0 | D35: =Balanza!G1046+Balanza!G1065 -> 0 | E35: 0 | F35: =Balanza!F1140+Balanza!F1159 -> 0 | G35: =Balanza!H1234+Balanza!H1253 -> 0 | H35: =G35-C35 -> 0
A36: Otros ingresos de libre disposición | C36: =SUM(C37:C38) -> 190668 | D36: 0 | E36: 190668 | F36: 243990.05 | G36: 243990.05 | H36: 53322.05
B37: Participaciones en ingresos locales | C37: =Balanza!G854 -> 190668 | D37: =Balanza!G1042 -> 0 | E37: 190668 | F37: =Balanza!F1136 -> 243990.05 | G37: =Balanza!H1230 -> 243990.05 | H37: =G37-C37 -> 53322.05
B38: Otros ingresos de libre disposición | C38: =Balanza!G880 -> 0 | D38: =Balanza!G1068 -> 0 | E38: 0 | F38: =Balanza!F1162 -> 0 | G38: =Balanza!H1256 -> 0 | H38: 0
B39: Total de ingresos de libre disposición | C39: =C8+C9+C10+C11+C12+C13+C14+C15+C27+C33+C34+C36 -> 29910830 | D39: 0 | E39: 29910830 | F39: 37483205.86 | G39: 37483205.86 | H39: 7572375.86
E40: Ingresos excedentes de ingresos de libre disposición
A41: TRANSFERENCIAS FEDERALES ETIQUETADAS
A42: Aportaciones | C42: =SUM(C43:C50) -> 13602180 | D42: 0 | E42: 13602180 | F42: 14395594.01 | G42: 14395594.01 | H42: 793414.01
B43: Fondo de aportaciones para la nómina educativa y gasto operativo | C43: 0 | D43: 0 | E43: =C43+D43 -> 0 | F43: 0 | G43: 0 | H43: =G43-C43 -> 0
B44: Fondo de aportaciones para los servicios de salud | C44: 0 | D44: 0 | E44: 0 | F44: 0 | G44: 0 | H44: 0
B45: Fondo de aportaciones para la infraestructura social | C45: =Balanza!G856 -> 8176218 | D45: =Balanza!G1044 -> 0 | E45: 8176218 | F45: =Balanza!F1138 -> 8606222.38 | G45: =Balanza!H1232 -> 8606222.38 | H45: 430004.38
B46: Fondo de aportaciones para el fortalecimiento de los municipios y de las demarcaciones territoriales del distrito federal | C46: =Balanza!G857 -> 5425962 | D46: =Balanza!G1045 -> 0 | E46: 5425962 | F46: =Balanza!F1139 -> 5789371.63 | G46: =Balanza!H1233 -> 5789371.63 | H46: 363409.63
B47: Fondo de aportaciones múltiples | C47: 0 | D47: 0 | E47: 0 | F47: 0 | G47: 0 | H47: 0
B48: Fondo de aportaciones para la educación tecnológica y de adultos | C48: 0 | D48: 0 | E48: 0 | F48: 0 | G48: 0 | H48: 0
B49: Fondo de aportaciones para la seguridad pública de los estados y del distrito federal | C49: 0 | D49: 0 | E49: 0 | F49: 0 | G49: 0 | H49: 0
B50: Fondo de aportaciones para el fortalecimiento de las entidades federativas | C50: 0 | D50: 0 | E50: 0 | F50: 0 | G50: 0 | H50: 0
A51: Convenios | C51: =SUM(C52:C55) -> 1500000 | D51: =SUM(D52:D55) -> 0 | E51: 1500000 | F51: 3000000 | G51: 3000000 | H51: 1500000
B52: Convenios de protección social en salud | C52: =Balanza!G860 -> 0 | D52: =Balanza!G1048 -> 0 | E52: 0 | F52: =Balanza!F1142 -> 0 | G52: =Balanza!H1236 -> 0 | H52: 0
B53: Convenios de descentralización | C53: =Balanza!G861 -> 0 | D53: =Balanza!G1049 -> 0 | E53: 0 | F53: =Balanza!F1143 -> 0 | G53: =Balanza!H1237 -> 0 | H53: 0
B54: Convenios de reasignación | C54: =Balanza!G862 -> 0 | D54: =Balanza!G1050 -> 0 | E54: 0 | F54: =Balanza!F1144 -> 0 | G54: =Balanza!H1238 -> 0 | H54: 0
B55: Otros convenios y subsidios | C55: =Balanza!G863 -> 1500000 | D55: =Balanza!G1051 -> 0 | E55: 1500000 | F55: =Balanza!F1145 -> 3000000 | G55: =Balanza!H1239 -> 3000000 | H55: 1500000
A56: Fondos distintos de aportaciones | C56: =C57+C58 -> 0 | D56: =D57+D58 -> 0 | E56: 0 | F56: 0 | G56: 0 | H56: 0
B57: Fondo para entidades federativas y municipios productores de hidrocarburos | C57: =Balanza!G871 -> 0 | D57: =Balanza!G1059 -> 0 | E57: 0 | F57: =Balanza!F1153 -> 0 | G57: =Balanza!H1247 -> 0 | H57: 0
B58: Fondo minero | C58: =Balanza!G872 -> 0 | D58: =Balanza!G1060 -> 0 | E58: 0 | F58: =Balanza!F1154 -> 0 | G58: =Balanza!H1248 -> 0 | H58: 0
A59: Transferencias, subsidios y subvenciones, y pensiones y jubilaciones | C59: =Balanza!G875+Balanza!G878 -> 0 | D59: =Balanza!G1063+Balanza!G1066 -> 0 | E59: 0 | F59: =Balanza!F1157+Balanza!F1160 -> 0 | G59: =Balanza!H1251+Balanza!H1254 -> 0 | H59: 0
A60: Otras transferencias federales etiquetadas | C60: 0 | D60: 0 | E60: 0 | F60: 0 | G60: 0 | H60: 0
B61: Total de transferencias federales etiquetadas | C61: =C42+C51+C56+C59+C60 -> 15102180 | D61: =D42+D51+D56+D59+D60 -> 0 | E61: 15102180 | F61: 17395594.01 | G61: 17395594.01 | H61: 2293414.01
A62: INGRESOS DERIVADOS DE FINANCIAMIENTO
B63: Ingresos derivados de financiamiento | C63: =C68 -> 0 | D63: =D68 -> 0 | E63: 0 | F63: =F68 -> 0 | G63: =G68 -> 0 | H63: 0
B64: Total de ingresos | C64: =C39+C61+C63 -> 45013010 | D64: =D39+D61+D63 -> 0 | E64: 45013010 | F64: 54878799.87 | G64: 54878799.87 | H64: =H39+H61+H63 -> 9865789.87
A65: DATOS INFORMATIVOS
B66: Ingresos derivados de financiamientos con fuente de pago de ingresos de libre disposición | C66: =Balanza!G887 -> 0 | D66: =Balanza!G1075 -> 0 | E66: 0 | F66: =Balanza!F1169 -> 0 | G66: =Balanza!H1263 -> 0 | H66: 0
B67: Ingresos derivados de financiamientos con fuente de pago de transferencias federales etiquetadas | C67: =Balanza!G888 -> 0 | D67: =Balanza!G1076 -> 0 | E67: 0 | F67: =Balanza!F1170 -> 0 | G67: =Balanza!H1264 -> 0 | H67: 0
B68: Ingresos derivados de financiamiento | C68: =SUM(C66:C67) -> 0 | D68: 0 | E68: 0 | F68: 0 | G68: 0 | H68: 0
A70: Bajo protesta de decir verdad declaramos que los estados financieros y sus notas, son razonablemente correctos y son responsabilidad del emisor.
B74: =Validacion!A7 -> C. SANTIAGO LEON CASTRO | E74: =Validacion!A9 -> L.T. JOCELYN SANCHEZ HERRERA
B76: Presidente Municipal o Titular del ente público | E76: Encargado de la Hacienda Municipal o Responsable de las finanzas del ente público

Sheet F8
A1: =Validacion!A2 -> Atemajac de Brizuela
A2: ESTADO ANALÍTICO DEL EJERCICIO DEL PRESPUESTO DE EGRESOS
A3: CLASIFICACIÓN POR OBJETO DEL GASTO (CAPÍTULO Y CONCEPTO)
A4: ='F6'!A3 -> Del 1° de Enero al 31 de Diciembre de 2022
A6: CONCEPTO | C6: EGRESOS | H6: SUBEJERCICIO
C7: APROBADO | D7: AMPLIACIONES/ (REDUCCIONES) | E7: MODIFICADO | F7: DEVENGADO | G7: PAGADO
A8: Servicios personales | C8: =SUM(C9:C15) -> 16449007 | D8: =SUM(D9:D15) -> 0 | E8: =C8+D8 -> 16449007 | F8: =SUM(F9:F15) -> 18163725.76 | G8: =SUM(G9:G15) -> 18163725.76 | H8: =E8-F8 -> -1714718.76
B9: Remuneraciones al personal de carácter permanente | C9: =SUM(Balanza!H1268:H1269) -> 9475080 | D9: =SUM(Balanza!H1540:H1541) -> 0 | E9: =C9+D9 -> 9475080 | F9: =SUM(Balanza!E1812:E1813) -> 9208236.29 | G9: =SUM(Balanza!G2084:G2085) -> 9208236.29 | H9: =E9-F9 -> 266843.71
B10: Remuneraciones al personal de carácter transitorio | C10: =SUM(Balanza!H1270:H1271) -> 4727208 | D10: =SUM(Balanza!H1542:H1543) -> 0 | E10: 4727208 | F10: =SUM(Balanza!E1814:E1815) -> 6681343.22 | G10: =SUM(Balanza!G2086:G2087) -> 6681343.22 | H10: -1954135.22
B11: Remuneraciones adicionales especiales | C11: =SUM(Balanza!H1272:H1273) -> 1976719 | D11: =SUM(Balanza!H1544:H1545) -> 0 | E11: 1976719 | F11: =SUM(Balanza!E1816:E1817) -> 2217118.1 | G11: =SUM(Balanza!G2088:G2089) -> 2217118.1 | H11: -240399.1
B12: Seguridad social | C12: =SUM(Balanza!H1274:H1275) -> 0 | D12: =SUM(Balanza!H1546:H1547) -> 0 | E12: 0 | F12: =SUM(Balanza!E1818:E1819) -> 0 | G12: =SUM(Balanza!G2090:G2091) -> 0 | H12: 0
B13: Otras prestaciones sociales y económicas | C13: =SUM(Balanza!H1276:H1277) -> 270000 | D13: =SUM(Balanza!H1548:H1549) -> 0 | E13: 270000 | F13: =SUM(Balanza!E1820:E1821) -> 57028.15 | G13: =SUM(Balanza!G2092:G2093) -> 57028.15 | H13: 212971.85
B14: Previsiones | C14: =SUM(Balanza!H1278:H1279) -> 0 | D14: =SUM(Balanza!H1550:H1551) -> 0 | E14: 0 | F14: =SUM(Balanza!E1822:E1823) -> 0 | G14: =SUM(Balanza!G2094:G2095) -> 0 | H14: 0
B15: Pago de estímulos a servidores públicos | C15: =SUM(Balanza!H1280:H1281) -> 0 | D15: =SUM(Balanza!H1552:H1553) -> 0 | E15: 0 | F15: =SUM(Balanza!E1824:E1825) -> 0 | G15: =SUM(Balanza!G2096:G2097) -> 0 | H15: 0
A16: Materiales y suministros | C16: =SUM(C17:C25) -> 5473908 | D16: =SUM(D17:D25) -> 0 | E16: 5473908 | F16: =SUM(F17:F25) -> 10149469.55 | G16: =SUM(G17:G25) -> 10149469.55 | H16: -4675561.55
B17: Materiales de administración, emisión de documentos y artículos oficiales | C17: =SUM(Balanza!H1283:H1284) -> 341184 | D17: =SUM(Balanza!H1555:H1556) -> 0 | E17: 341184 | F17: =SUM(Balanza!E1827:E1828) -> 588425.95 | G17: =SUM(Balanza!G2099:G2100) -> 588425.95 | H17: -247241.95
B18: Alimentos y utensilios | C18: =SUM(Balanza!H1285:H1286) -> 362748 | D18: =SUM(Balanza!H1557:H1558) -> 0 | E18: 362748 | F18: =SUM(Balanza!E1829:E1830) -> 661044.17 | G18: =SUM(Balanza!G2101:G2102) -> 661044.17 | H18: -298296.17
B19: Materias primas y materiales de producción y comercialización | C19: =SUM(Balanza!H1287:H1288) -> 0 | D19: =SUM(Balanza!H1559:H1560) -> 0 | E19: 0 | F19: =SUM(Balanza!E1831:E1832) -> 0 | G19: =SUM(Balanza!G2103:G2104) -> 0 | H19: 0
B20: Materiales y artículos de construcción y de reparación | C20: =SUM(Balanza!H1289:H1290) -> 1195164 | D20: =SUM(Balanza!H1561:H1562) -> 0 | E20: 1195164 | F20: =SUM(Balanza!E1833:E1834) -> 1522293.05 | G20: =SUM(Balanza!G2105:G2106) -> 1522293.05 | H20: -327129.05
B21: Productos químicos, farmacéuticos y de laboratorio | C21: =SUM(Balanza!H1291:H1292) -> 325916 | D21: =SUM(Balanza!H1563:H1564) -> 0 | E21: 325916 | F21: =SUM(Balanza!E1835:E1836) -> 447942.4 | G21: =SUM(Balanza!G2107:G2108) -> 447942.4 | H21: -122026.4
B22: Combustibles, lubricantes y aditivos | C22: =SUM(Balanza!H1293:H1294) -> 2566818 | D22: =SUM(Balanza!H1565:H1566) -> 0 | E22: 2566818 | F22: =SUM(Balanza!E1837:E1838) -> 5928235.85 | G22: =SUM(Balanza!G2109:G2110) -> 5928235.85 | H22: -3361417.85
B23: Vestuario, blancos, prendas de protección y artículos deportivos | C23: =SUM(Balanza!H1295:H1296) -> 118448 | D23: =SUM(Balanza!H1567:H1568) -> 0 | E23: 118448 | F23: =SUM(Balanza!E1839:E1840) -> 150699.53 | G23: =SUM(Balanza!G2111:G2112) -> 150699.53 | H23: -32251.53
B24: Materiales y suministros de seguridad | C24: =SUM(Balanza!H1297:H1298) -> 15600 | D24: =SUM(Balanza!H1569:H1570) -> 0 | E24: 15600 | F24: =SUM(Balanza!E1841:E1842) -> 0 | G24: =SUM(Balanza!G2113:G2114) -> 0 | H24: 15600
B25: Herramientas, refacciones y accesorios menores | C25: =SUM(Balanza!H1299:H1300) -> 548030 | D25: =SUM(Balanza!H1571:H1572) -> 0 | E25: 548030 | F25: =SUM(Balanza!E1843:E1844) -> 850828.6 | G25: =SUM(Balanza!G2115:G2116) -> 850828.6 | H25: -302798.6
A26: Servicios generales | C26: =SUM(C27:C35) -> 8548957 | D26: =SUM(D27:D35) -> 0 | E26: 8548957 | F26: =SUM(F27:F35) -> 9536080.22 | G26: =SUM(G27:G35) -> 9536080.22 | H26: -987123.22
B27: Servicios básicos | C27: =SUM(Balanza!H1302:H1303) -> 4883650 | D27: =SUM(Balanza!H1574:H1575) -> 0 | E27: 4883650 | F27: =SUM(Balanza!E1846:E1847) -> 4836407.29 | G27: =SUM(Balanza!G2118:G2119) -> 4836407.29 | H27: 47242.71
B28: Servicios de arrendamiento | C28: =SUM(Balanza!H1304:H1305) -> 202788 | D28: =SUM(Balanza!H1576:H1577) -> 0 | E28: 202788 | F28: =SUM(Balanza!E1848:E1849) -> 713992.73 | G28: =SUM(Balanza!G2120:G2121) -> 713992.73 | H28: -511204.73
B29: Servicios profesionales, científicos, técnicos y otros servicios | C29: =SUM(Balanza!H1306:H1307) -> 11232 | D29: =SUM(Balanza!H1578:H1579) -> 0 | E29: 11232 | F29: =SUM(Balanza!E1850:E1851) -> 811333.23 | G29: =SUM(Balanza!G2122:G2123) -> 811333.23 | H29: -800101.23
B30: Servicios financieros, bancarios y comerciales | C30: =SUM(Balanza!H1308:H1309) -> 267680 | D30: =SUM(Balanza!H1580:H1581) -> 0 | E30: 267680 | F30: =SUM(Balanza!E1852:E1853) -> 307345.77 | G30: =SUM(Balanza!G2124:G2125) -> 307345.77 | H30: -39665.77
B31: Servicios de instalación, reparación, mantenimiento y conservación | C31: =SUM(Balanza!H1310:H1311) -> 1265616 | D31: =SUM(Balanza!H1582:H1583) -> 0 | E31: 1265616 | F31: =SUM(Balanza!E1854:E1855) -> 1705408.52 | G31: =SUM(Balanza!G2126:G2127) -> 1705408.52 | H31: -439792.52
B32: Servicios de comunicación social y publicidad | C32: =SUM(Balanza!H1312:H1313) -> 31200 | D32: =SUM(Balanza!H1584:H1585) -> 0 | E32: 31200 | F32: =SUM(Balanza!E1856:E1857) -> 17790.52 | G32: =SUM(Balanza!G2128:G2129) -> 17790.52 | H32: 13409.48
B33: Servicios de traslado y viáticos | C33: =SUM(Balanza!H1314:H1315) -> 193440 | D33: =SUM(Balanza!H1586:H1587) -> 0 | E33: 193440 | F33: =SUM(Balanza!E1858:E1859) -> 54415.7 | G33: =SUM(Balanza!G2130:G2131) -> 54415.7 | H33: 139024.3
B34: Servicios oficiales | C34: =SUM(Balanza!H1316:H1317) -> 769604 | D34: =SUM(Balanza!H1588:H1589) -> 0 | E34: 769604 | F34: =SUM(Balanza!E1860:E1861) -> 833369.82 | G34: =SUM(Balanza!G2132:G2133) -> 833369.82 | H34: -63765.82
B35: Otros servicios generales | C35: =SUM(Balanza!H1318:H1319) -> 923747 | D35: =SUM(Balanza!H1590:H1591) -> 0 | E35: 923747 | F35: =SUM(Balanza!E1862:E1863) -> 256016.64 | G35: =SUM(Balanza!G2134:G2135) -> 256016.64 | H35: 667730.36
A36: Transferencias, asignaciones, subsidios y otras ayudas | C36: =SUM(C37:C45) -> 3714920 | D36: =SUM(D37:D45) -> 0 | E36: 3714920 | F36: =SUM(F37:F45) -> 3778548.72 | G36: =SUM(G37:G45) -> 3778548.72 | H36: -63628.72
B37: Transferencias internas y asignaciones al sector público | C37: =SUM(Balanza!H1321:H1322) -> 200000 | D37: =SUM(Balanza!H1593:H1594) -> 0 | E37: 200000 | F37: =SUM(Balanza!E1865:E1866) -> 0 | G37: =SUM(Balanza!G2137:G2138) -> 0 | H37: 200000
B38: Transferencias al resto del sector público | C38: =SUM(Balanza!H1323:H1324) -> 1372800 | D38: =SUM(Balanza!H1595:H1596) -> 0 | E38: 1372800 | F38: =SUM(Balanza!E1867:E1868) -> 1592504 | G38: =SUM(Balanza!G2139:G2140) -> 1592504 | H38: -219704
B39: Subsidios y subvenciones | C39: =SUM(Balanza!H1325:H1326) -> 0 | D39: =SUM(Balanza!H1597:H1598) -> 0 | E39: 0 | F39: =SUM(Balanza!E1869:E1870) -> 0 | G39: =SUM(Balanza!G2141:G2142) -> 0 | H39: 0
B40: Ayudas sociales | C40: =SUM(Balanza!H1327:H1328) -> 2142120 | D40: =SUM(Balanza!H1599:H1600) -> 0 | E40: 2142120 | F40: =SUM(Balanza!E1871:E1872) -> 2186044.72 | G40: =SUM(Balanza!G2143:G2144) -> 2186044.72 | H40: -43924.72
B41: Pensiones y jubilaciones | C41: =SUM(Balanza!H1329:H1330) -> 0 | D41: =SUM(Balanza!H1601:H1602) -> 0 | E41: 0 | F41: =SUM(Balanza!E1873:E1874) -> 0 | G41: =SUM(Balanza!G2145:G2146) -> 0 | H41: 0
B42: Transferencias a fideicomisos, mandatos y otros análogos | C42: =SUM(Balanza!H1331:H1332) -> 0 | D42: =SUM(Balanza!H1603:H1604) -> 0 | E42: 0 | F42: =SUM(Balanza!E1875:E1876) -> 0 | G42: =SUM(Balanza!G2147:G2148) -> 0 | H42: 0
B43: Transferencias a la seguridad social | C43: =SUM(Balanza!H1333:H1334) -> 0 | D43: =SUM(Balanza!H1605:H1606) -> 0 | E43: 0 | F43: =SUM(Balanza!E1877:E1878) -> 0 | G43: =SUM(Balanza!G2149:G2150) -> 0 | H43: 0
B44: Donativos | C44: =SUM(Balanza!H1335:H1336) -> 0 | D44: =SUM(Balanza!H1607:H1608) -> 0 | E44: 0 | F44: =SUM(Balanza!E1879:E1880) -> 0 | G44: =SUM(Balanza!G2151:G2152) -> 0 | H44: 0
B45: Transferencias al exterior | C45: =SUM(Balanza!H1337:H1338) -> 0 | D45: =SUM(Balanza!H1609:H1610) -> 0 | E45: 0 | F45: =SUM(Balanza!E1881:E1882) -> 0 | G45: =SUM(Balanza!G2153:G2154) -> 0 | H45: 0
A46: Bienes muebles, inmuebles e intangibles | C46: =SUM(C47:C55) -> 1150000 | D46: =SUM(D47:D55) -> 0 | E46: 1150000 | F46: =SUM(F47:F55) -> 936107.18 | G46: =SUM(G47:G55) -> 936107.18 | H46: 213892.82
B47: Mobiliario y equipo de administración | C47: =SUM(Balanza!H1340:H1341) -> 150000 | D47: =SUM(Balanza!H1612:H1613) -> 0 | E47: 150000 | F47: =SUM(Balanza!E1884:E1885) -> 13880.92 | G47: =SUM(Balanza!G2156:G2157) -> 13880.92 | H47: 136119.08
B48: Mobiliario y equipo educacional y recreativo | C48: =SUM(Balanza!H1342:H1343) -> 0 | D48: =SUM(Balanza!H1614:H1615) -> 0 | E48: 0 | F48: =SUM(Balanza!E1886:E1887) -> 16436.27 | G48: =SUM(Balanza!G2158:G2159) -> 16436.27 | H48: -16436.27
B49: Equipo instrumental médico y de laboratorio | C49: =SUM(Balanza!H1344:H1345) -> 0 | D49: =SUM(Balanza!H1616:H1617) -> 0 | E49: 0 | F49: =SUM(Balanza!E1888:E1889) -> 0 | G49: =SUM(Balanza!G2160:G2161) -> 0 | H49: 0
B50: Vehículos y equipo de transporte | C50: =SUM(Balanza!H1346:H1347) -> 1000000 | D50: =SUM(Balanza!H1618:H1619) -> 0 | E50: 1000000 | F50: =SUM(Balanza!E1890:E1891) -> 905789.99 | G50: =SUM(Balanza!G2162:G2163) -> 905789.99 | H50: 94210.01
B51: Equipo de defensa y seguridad | C51: =SUM(Balanza!H1348:H1349) -> 0 | D51: =SUM(Balanza!H1620:H1621) -> 0 | E51: 0 | F51: =SUM(Balanza!E1892:E1893) -> 0 | G51: =SUM(Balanza!G2164:G2165) -> 0 | H51: 0
B52: Maquinaria, otros equipos y herramientas | C52: =SUM(Balanza!H1350:H1351) -> 0 | D52: =SUM(Balanza!H1622:H1623) -> 0 | E52: 0 | F52: =SUM(Balanza!E1894:E1895) -> 0 | G52: =SUM(Balanza!G2166:G2167) -> 0 | H52: 0
B53: Activos biológicos | C53: =SUM(Balanza!H1352:H1353) -> 0 | D53: =SUM(Balanza!H1624:H1625) -> 0 | E53: 0 | F53: =SUM(Balanza!E1896:E1897) -> 0 | G53: =SUM(Balanza!G2168:G2169) -> 0 | H53: 0
B54: Bienes inmuebles | C54: =SUM(Balanza!H1354:H1355) -> 0 | D54: =SUM(Balanza!H1626:H1627) -> 0 | E54: 0 | F54: =SUM(Balanza!E1898:E1899) -> 0 | G54: =SUM(Balanza!G2170:G2171) -> 0 | H54: 0
B55: Activos intangibles | C55: =SUM(Balanza!H1356:H1357) -> 0 | D55: =SUM(Balanza!H1628:H1629) -> 0 | E55: 0 | F55: =SUM(Balanza!E1900:E1901) -> 0 | G55: =SUM(Balanza!G2172:G2173) -> 0 | H55: 0
A56: Inversión pública | C56: =SUM(C57:C59) -> 9676218 | D56: =SUM(D57:D59) -> 0 | E56: 9676218 | F56: =SUM(F57:F59) -> 17721604.28 | G56: =SUM(G57:G59) -> 17721604.28 | H56: -8045386.28
B57: Obra pública en bienes de dominio público | C57: =SUM(Balanza!H1359:H1360) -> 9676218 | D57: =SUM(Balanza!H1631:H1632) -> 0 | E57: 9676218 | F57: =SUM(Balanza!E1903:E1904) -> 17721604.28 | G57: =SUM(Balanza!G2175:G2176) -> 17721604.28 | H57: -8045386.28
B58: Obra pública en bienes de dominio propios | C58: =SUM(Balanza!H1361:H1362) -> 0 | D58: =SUM(Balanza!H1633:H1634) -> 0 | E58: 0 | F58: =SUM(Balanza!E1905:E1906) -> 0 | G58: =SUM(Balanza!G2177:G2178) -> 0 | H58: 0
B59: Proyectos productivos y acciones de fomento | C59: =SUM(Balanza!H1363:H1364) -> 0 | D59: =SUM(Balanza!H1635:H1636) -> 0 | E59: 0 | F59: =SUM(Balanza!E1907:E1908) -> 0 | G59: =SUM(Balanza!G2179:G2180) -> 0 | H59: 0
A60: Inversiones financieras y otras provisiones | C60: =SUM(C61:C67) -> 0 | D60: =SUM(D61:D67) -> 0 | E60: 0 | F60: =SUM(F61:F67) -> 0 | G60: =SUM(G61:G67) -> 0 | H60: 0
B61: Inversiones para el fomento de actividades productivas | C61: =SUM(Balanza!H1366:H1367) -> 0 | D61: =SUM(Balanza!H1638:H1639) -> 0 | E61: 0 | F61: =SUM(Balanza!E1910:E1911) -> 0 | G61: =SUM(Balanza!G2182:G2183) -> 0 | H61: 0
B62: Acciones y participaciones de capital | C62: =SUM(Balanza!H1368:H1369) -> 0 | D62: =SUM(Balanza!H1640:H1641) -> 0 | E62: 0 | F62: =SUM(Balanza!E1912:E1913) -> 0 | G62: =SUM(Balanza!G2184:G2185) -> 0 | H62: 0
B63: Compra de títulos y valores | C63: =SUM(Balanza!H1370:H1371) -> 0 | D63: =SUM(Balanza!H1642:H1643) -> 0 | E63: 0 | F63: =SUM(Balanza!E1914:E1915) -> 0 | G63: =SUM(Balanza!G2186:G2187) -> 0 | H63: 0
B64: Concesión de préstamos | C64: =SUM(Balanza!H1372:H1373) -> 0 | D64: =SUM(Balanza!H1644:H1645) -> 0 | E64: 0 | F64: =SUM(Balanza!E1916:E1917) -> 0 | G64: =SUM(Balanza!G2188:G2189) -> 0 | H64: 0
B65: Inversiones en fideicomisos, mandatos y otros análogos | C65: =SUM(Balanza!H1374:H1375) -> 0 | D65: =SUM(Balanza!H1646:H1647) -> 0 | E65: 0 | F65: =SUM(Balanza!E1918:E1919) -> 0 | G65: =SUM(Balanza!G2190:G2191) -> 0 | H65: 0
B66: Otras inversiones financieras | C66: =SUM(Balanza!H1376:H1377) -> 0 | D66: =SUM(Balanza!H1648:H1649) -> 0 | E66: 0 | F66: =SUM(Balanza!E1920:E1921) -> 0 | G66: =SUM(Balanza!G2192:G2193) -> 0 | H66: 0
B67: Provisiones para contingencias y otras erogaciones especiales | C67: =SUM(Balanza!H1378:H1379) -> 0 | D67: =SUM(Balanza!H1650:H1651) -> 0 | E67: 0 | F67: =SUM(Balanza!E1922:E1923) -> 0 | G67: =SUM(Balanza!G2194:G2195) -> 0 | H67: 0
A68: Participaciones y aportaciones | C68: =SUM(C69:C71) -> 0 | D68: =SUM(D69:D71) -> 0 | E68: 0 | F68: =SUM(F69:F71) -> 0 | G68: =SUM(G69:G71) -> 0 | H68: 0
B69: Participaciones | C69: =SUM(Balanza!H1381:H1382) -> 0 | D69: =SUM(Balanza!H1653:H1654) -> 0 | E69: 0 | F69: =SUM(Balanza!E1925:E1926) -> 0 | G69: =SUM(Balanza!G2197:G2198) -> 0 | H69: 0
B70: Aportaciones | C70: =SUM(Balanza!H1383:H1384) -> 0 | D70: =SUM(Balanza!H1655:H1656) -> 0 | E70: 0 | F70: =SUM(Balanza!E1927:E1928) -> 0 | G70: =SUM(Balanza!G2199:G2200) -> 0 | H70: 0
B71: Convenios | C71: =SUM(Balanza!H1385:H1386) -> 0 | D71: =SUM(Balanza!H1657:H1658) -> 0 | E71: 0 | F71: =SUM(Balanza!E1929:E1930) -> 0 | G71: =SUM(Balanza!G2201:G2202) -> 0 | H71: 0
A72: Deuda pública | C72: =SUM(C73:C79) -> 0 | D72: =SUM(D73:D79) -> 0 | E72: 0 | F72: =SUM(F73:F79) -> 0 | G72: =SUM(G73:G79) -> 0 | H72: 0
